Workbook

Sheet 改定履歴 (hidden)
A1: 改定日 | E1: Ver | G1: 改定者 | O1: 改訂箇所 | W1: 改訂内容
G2: 所属 | K2: 名前
A3: 2019-01-16 | E3: 1.7 | G3: BCC | K3: 宮島 | O3: 「電力調査票」シート、 記入例シート | W3: ・競合単価においても現行単価と同様にエリア定価を自動入力 ・単価欄、窓名の数式を修正 ・単価欄・割引欄の書式を変更(料金プランがその他の場合、あるいは料金プランがリスト内かつ定価欄を編集した場合は割引欄をグレーアウト、割引欄を編集した場合は定価欄をグレーアウト) | AV3: *
A4: 2019-01-16 | E4: 1.71 | G4: BCC | K4: 宮﨑 | O4: 「電力調査票」シート、 記入例シート | W4: ・文言修正 ・エラーセルを空白にする数式を追加 | AV4: *
A5: 2019-01-17 | E5: 1.74 | G5: BCC | K5: 宮﨑 | O5: 「電力調査票」シート、 記入例シート | W5: ・社名検索機能を追加（極力フリーでの手入力を防ぎたいため） | AV5: *
A6: 2019-01-17 | E6: 1.75 | G6: BCC | K6: 宮﨑 | O6: 「会社名選択リスト」シート | W6: ・「現行」を「現契約先」に文言変更 | AV6: *
A7: 2019-01-17 | E7: 2 | G7: BCC | K7: 宮﨑 | O7: - | W7: ・一次リリース仕様凍結版 | AV7: *
A8: 2019-01-23 | E8: 2.02 | G8: BCC | K8: 宮﨑 | O8: - | W8: ・申込書アウトプットの為に住所欄の形式を変更 ・業種をMECOMSと同じリストからの選択形式に変更 | AV8: *
A9: 2019-01-24 | E9: 2.03 | G9: BCC | K9: 宮﨑 | O9: - | W9: ・項目「旧一般/新電力」を削除 ・会社名選択リストを頻度順に並び替え（漢字社名の五十音順は不完全） | AV9: *
A10: 2019-01-30 | E10: 2.04 | G10: BCC | K10: 宮島 | O10: - | W10: ・負荷率別メニューに対応する欄を追記 | AV10: *
A11: 2019-02-01 | E11: 2.05 | G11: BCC | K11: 宮島 | O11: - | W11: ・最大10窓分のCSVを取り込むことは可能であるとの前提のもと、下記を修正 - V2.04で想定していた、4窓データ/10窓データを分けて4窓のみ取り込む方法ではなく、 両データを、取込用の10窓データ(右半分)として統合し、 負荷率別メニューの場合でも使用量・窓名・単価を取り込むことが可能にする - 上記に応じて料金単価マスタ・窓マスタを修正 ・DC単価に関わる最大需要電力・力率を使用電力量より左に配置 | AV11: *
A12: 2019-02-02 | E12: 2.06 | G12: BCC | K12: 宮崎 | O12: - | W12: ・会社名検索マクロを修正 ・10窓に対応した記入例を作成 | AV12: *
A13: 2019-02-05 | E13: 2.07 | G13: BCC | K13: 竹内 | O13: 「電力調査票」シート | W13: ・会社名検索マクロを修正 | AV13: *
A14: 2019-02-05 | E14: 2.08 | G14: BCC | K14: 竹内 | O14: 「電力調査票」シート | W14: ・会社名検索マクロを修正 | AV14: *
A15: 2019-02-05 | E15: 2.09 | G15: BCC | K15: 竹内 | O15: 「電力調査票」シート 「会社名選択リスト」シート | W15: ・会社名検索マクロを修正 ・新電力名にヨミカナ追加 | AV15: *
A16: 2019-02-05 | E16: 2.1 | G16: BCC | K16: 宮島 | O16: 「会社名選択リスト」シート | W16: ・新電力名にヨミカナ追加 | AV16: *
A17: 2019-02-05 | E17: 2.11 | G17: BCC | K17: 宮崎 | O17: 「会社名選択リスト」シート | W17: ・記入例の検索マクロ修正 ・負荷率のセル色をグレーに修正 | AV17: *
A18: 2019-02-13 | E18: 2.12 | G18: BCC | K18: 宮島 | O18: 「電力調査票」シート | W18: ・競合情報2特記事項欄の結合ミスを修正 | AV18: *
A19: 2019-02-19 | E19: 2.13 | G19: BCC | K19: 宮島 | O19: 「電力調査票」シート 「電力調査票 (4窓以内記入例)」シート 「電力調査票 (負荷率別記入例)」シート 「業種リスト」シート 「料金プランリスト」シート 「窓マスタ」シート 「単価マスタ」シート 「会社名選択リスト」シート | W19: ・「単価マスタ」・「窓マスタ」を「料金プランマスタ」に統合 ・月別データの書式設定を修正 ・10窓按分の月別データを常にグレーアウト ・エリアの単価(4窓と10窓)を常にグレーアウト ・料金プランリストから「その他」を削除(それに伴い「名前」の参照範囲を修正、関数を修正、「その他の場合」を削除) ・不要な「名前」を削除 ・不要な書式設定を削除 ・会社名リストの範囲を修正 ・関数にIFERRORを追加 ・単価情報のない料金プランを削除 ・業種リストを修正 ・関数を簡略化する為、マスタの空欄をハイフンに変更 ・北海道電力の1窓メニューの窓名を「常時」と定義 ・1窓メニューの際に、2窓をグレ－アウトする書式、2窓の使用量合計をハイフンとする関数を追加 ・負荷率別メニューを選択時に4窓単価をグレーアウトし、通常メニュー時は10窓単価をグレーアウトする書式設定を追加 ・割引に入力した場合は単価を、単価を編集した場合は割引をグレーアウトする書式設定を追加 ・シート名「XX選択リスト」・「XXリスト」を「XXリスト」に統一 ・シート見出しの色を追加 ・負荷率帯・負荷率別メニュー窓名の「未満・以上」→「以下・超」に変更 | AV19: *
A20: 2019-02-19 | E20: 2.13 | G20: BCC | K20: 宮島 | O20: - | W20: ・会社名検索マクロを修正 | AV20: *
A21: 2019-02-19 | E21: 2.14 | G21: BCC | K21: 宮島 | O21: 「電力調査票」シート、 記入例シート | W21: ・競合のDC・EC単価に、料金プラン名が選択されていない場合はグレーアウトする書式を追加 | AV21: *
A22: 2019-02-19 | E22: 2.15 | G22: BCC | K22: 宮島 | O22: 「電力調査票」シート、 記入例シート | W22: ・競合の10窓単価/割引の入力によってグレーアウトする書式を追加 ・DC単価を、小数点第2位まで表示 | AV22: *
A23: 2019-02-20 | E23: 2.16 | G23: BCC | K23: 竹内 | O23: 全般 | W23: ・マクロ実装 ・UIシート追加 ・各種シートの保護を追加 | AV23: *
A24: 2019-10-10 | E24: 2.02 | G24: BCC | K24: 宮﨑 | O24: 全般 | W24: ・verを修正 ・競合の特記事項に定型文を追加 | AV24: *
AV25: *
AV26: *
AV27: *
AV28: *
AV29: *
AV30: *
AV31: *
AV32: *
AV33: *
AV34: *
A35: * | B35: * | C35: * | D35: * | E35: * | F35: * | G35: * | H35: * | I35: * | J35: * | K35: * | L35: * | M35: * | N35: * | O35: * | P35: * | Q35: * | R35: * | S35: * | T35: * | U35: * | V35: * | W35: * | X35: * | Y35: * | Z35: * | AA35: * | AB35: * | AC35: * | AD35: * | AE35: * | AF35: * | AG35: * | AH35: * | AI35: * | AJ35: * | AK35: * | AL35: * | AM35: * | AN35: * | AO35: * | AP35: * | AQ35: * | AR35: * | AS35: * | AT35: * | AU35: *

Sheet 記入例(4窓以下) (hidden)
W1: 電力調査票 | CF1: e
E2: にご入力をお願いします。 | AH2: 記入日： | AJ2: 2019-02-19 | CF2: e
CF3: e
C4: ◆基本情報 | Z4: ◆みなし小売電気事業者約款料金（税込） | CF4: e
C5: ●御社名 | I5: XX製作所 | Z5: ●低減率 | AK5: % | CF5: e
C6: ●業種 | I6: 金属製品 | Z6: ●基本料金単価 | AE6: =IFERROR(VLOOKUP($I$18&$I$19,料金プランマスタ!$E$7:$AO$220,27,FALSE),"") -> 1765.5 | AK6: 円/kW | AT6: ◆みなし小売電気事業者約款料金（税込） | CF6: e
C7: ●御社本社ご住所 | Z7: ●使用電力量料金単価 | AT7: ●使用電力量料金単価 | BX7: ・負荷率帯 | CF7: e
E8: 郵便番号 | I8: 664 | K8: - | L8: 0008 | Z8: =IFERROR(" "&VLOOKUP($I$18&$I$19,料金プランマスタ!$E$7:$AD$220,2,0),"") -> 夏季 | AE8: =IFERROR(VLOOKUP($I$18&$I$19,料金プランマスタ!$E$7:$AO$220,28,FALSE),"") -> 13.94 | AK8: 円/kWh | AU8: =IFERROR(IF(VLOOKUP($I$18&$I$19,料金プランマスタ!$E$7:$AD$220,6,0)="●",VLOOKUP($I$18&$I$19,料金プランマスタ!$E$7:$AD$220,17,0),$N$30),"") -> 夏季 | AZ8: =IFERROR(VLOOKUP($I$18&$I$19,料金プランマスタ!$E$7:$AO$220,28,FALSE),"") -> 13.94 | BF8: 円/kWh | BI8: =IFERROR(IF(VLOOKUP($I$18&$I$19,料金プランマスタ!$E$7:$AD$220,6,0)="●",VLOOKUP($I$18&$I$19,料金プランマスタ!$E$7:$AD$220,22,0),"-"),"") -> - | BO8: =IFERROR(VLOOKUP($I$18&$I$19,料金プランマスタ!$E$7:$AO$220,33,FALSE),"") -> - | BU8: 円/kWh | BX8: =IFERROR(VLOOKUP($I$18&$I$19,料金プランマスタ!$E$7:$AO$220,7,FALSE),"") -> - | CA8: ～ | CB8: =IFERROR(VLOOKUP($I$18&$I$19,料金プランマスタ!$E$7:$AO$220,8,FALSE),"") -> - | CE8: h | CF8: e
E9: 都道府県 | I9: 大阪府 | Z9: =IFERROR(" "&VLOOKUP($I$18&$I$19,料金プランマスタ!$E$7:$AD$220,3,0),"") -> その他季 | AE9: =IFERROR(VLOOKUP($I$18&$I$19,料金プランマスタ!$E$7:$AO$220,29,FALSE),"") -> 12.87 | AK9: 円/kWh | AU9: =IFERROR(IF(VLOOKUP($I$18&$I$19,料金プランマスタ!$E$7:$AD$220,6,0)="●",VLOOKUP($I$18&$I$19,料金プランマスタ!$E$7:$AD$220,18,0),$T$30),"") -> その他季 | AZ9: =IFERROR(VLOOKUP($I$18&$I$19,料金プランマスタ!$E$7:$AO$220,29,FALSE),"") -> 12.87 | BF9: 円/kWh | BI9: =IFERROR(IF(VLOOKUP($I$18&$I$19,料金プランマスタ!$E$7:$AD$220,6,0)="●",VLOOKUP($I$18&$I$19,料金プランマスタ!$E$7:$AD$220,23,0),"-"),"") -> - | BO9: =IFERROR(VLOOKUP($I$18&$I$19,料金プランマスタ!$E$7:$AO$220,34,FALSE),"") -> - | BU9: 円/kWh | BX9: =IFERROR(VLOOKUP($I$18&$I$19,料金プランマスタ!$E$7:$AO$220,9,FALSE),"") -> - | CA9: ～ | CB9: =IFERROR(VLOOKUP($I$18&$I$19,料金プランマスタ!$E$7:$AO$220,10,FALSE),"") -> - | CE9: h | CF9: e
E10: 市区町村・番地 | I10: 大阪府伊丹市Xxx | Z10: =IFERROR(" "&VLOOKUP($I$18&$I$19,料金プランマスタ!$E$7:$AD$220,4,0),"") -> - | AE10: =IFERROR(VLOOKUP($I$18&$I$19,料金プランマスタ!$E$7:$AO$220,30,FALSE),"") -> - | AK10: 円/kWh | AU10: =IFERROR(IF(VLOOKUP($I$18&$I$19,料金プランマスタ!$E$7:$AD$220,6,0)="●",VLOOKUP($I$18&$I$19,料金プランマスタ!$E$7:$AD$220,19,0),$Z$30),"") -> - | AZ10: =IFERROR(VLOOKUP($I$18&$I$19,料金プランマスタ!$E$7:$AO$220,30,FALSE),"") -> - | BF10: 円/kWh | BI10: =IFERROR(IF(VLOOKUP($I$18&$I$19,料金プランマスタ!$E$7:$AD$220,6,0)="●",VLOOKUP($I$18&$I$19,料金プランマスタ!$E$7:$AD$220,24,0),"-"),"") -> - | BO10: =IFERROR(VLOOKUP($I$18&$I$19,料金プランマスタ!$E$7:$AO$220,35,FALSE),"") -> - | BU10: 円/kWh | BX10: =IFERROR(VLOOKUP($I$18&$I$19,料金プランマスタ!$E$7:$AO$220,11,FALSE),"") -> - | CA10: ～ | CB10: =IFERROR(VLOOKUP($I$18&$I$19,料金プランマスタ!$E$7:$AO$220,12,FALSE),"") -> - | CE10: h | CF10: e
C11: ●需要場所施設名 | I11: 舞洲工場 | Z11: =IFERROR(" "&VLOOKUP($I$18&$I$19,料金プランマスタ!$E$7:$AD$220,5,0),"") -> - | AE11: =IFERROR(VLOOKUP($I$18&$I$19,料金プランマスタ!$E$7:$AO$220,31,FALSE),"") -> - | AK11: 円/kWh | AU11: =IFERROR(IF(VLOOKUP($I$18&$I$19,料金プランマスタ!$E$7:$AD$220,6,0)="●",VLOOKUP($I$18&$I$19,料金プランマスタ!$E$7:$AD$220,20,0),$AF$30),"") -> - | AZ11: =IFERROR(VLOOKUP($I$18&$I$19,料金プランマスタ!$E$7:$AO$220,31,FALSE),"") -> - | BF11: 円/kWh | BI11: =IFERROR(IF(VLOOKUP($I$18&$I$19,料金プランマスタ!$E$7:$AD$220,6,0)="●",VLOOKUP($I$18&$I$19,料金プランマスタ!$E$7:$AD$220,25,0),"-"),"") -> - | BO11: =IFERROR(VLOOKUP($I$18&$I$19,料金プランマスタ!$E$7:$AO$220,36,FALSE),"") -> - | BU11: 円/kWh | BX11: =IFERROR(VLOOKUP($I$18&$I$19,料金プランマスタ!$E$7:$AO$220,13,FALSE),"") -> - | CA11: ～ | CB11: =IFERROR(VLOOKUP($I$18&$I$19,料金プランマスタ!$E$7:$AO$220,14,FALSE),"") -> - | CE11: h | CF11: e
C12: ●需要場所ご住所 | Z12: ●割引 | AU12: =IFERROR(IF(VLOOKUP($I$18&$I$19,料金プランマスタ!$E$7:$AD$220,6,0)="●",VLOOKUP($I$18&$I$19,料金プランマスタ!$E$7:$AD$220,21,0),"-"),"") -> - | AZ12: =IFERROR(VLOOKUP($I$18&$I$19,料金プランマスタ!$E$7:$AO$220,32,FALSE),"") -> - | BF12: 円/kWh | BI12: =IFERROR(IF(VLOOKUP($I$18&$I$19,料金プランマスタ!$E$7:$AD$220,6,0)="●",VLOOKUP($I$18&$I$19,料金プランマスタ!$E$7:$AD$220,26,0),"-"),"") -> - | BO12: =IFERROR(VLOOKUP($I$18&$I$19,料金プランマスタ!$E$7:$AO$220,37,FALSE),"") -> - | BU12: 円/kWh | BX12: =IFERROR(VLOOKUP($I$18&$I$19,料金プランマスタ!$E$7:$AO$220,15,FALSE),"") -> - | CA12: ～ | CB12: =IFERROR(VLOOKUP($I$18&$I$19,料金プランマスタ!$E$7:$AO$220,16,FALSE),"") -> - | CE12: h | CF12: e
E13: 郵便番号 | I13: 554 | K13: - | L13: 0041 | Z13: ・基本料金割引 | AK13: 円/kW | CF13: e
E14: 都道府県 | I14: 大阪府 | Z14: ・電力量料金割引 | AK14: 円/kWh | CF14: e
E15: 市区町村・番地 | I15: 大阪府大阪市此花区北港白津 | Z15: ・年間割引総額 | AK15: 円 | CF15: e
CF16: e
C17: ◆主契約情報 | Z17: ◆付帯契約 | CF17: e
C18: ●エリア | I18: 関西電力 | Z18: ●予備線契約 | AK18: kW | CF18: e
C19: ●料金プラン名 | I19: 高圧電力ＡＳ | Z19: ●予備電源契約 | AK19: kW | CF19: e
C20: ●現契約先 | I20: 関西電力 | Z20: ●自家発補給電力 | AK20: kW | CF20: e
D21: ・「その他」の場合 | I21: =IF($I$20="その他","直接入力して下さい","-") -> - | Z21: ●常用発電設備 | CF21: e
C22: ●受電（供給）電圧 | I22: 6 | O22: kV | CF22: e
C23: ●契約電力[直近］ | I23: 100 | O23: kW | Z23: ◆TCS契約への希望 | CF23: e
Z24: ●TCS長期契約の希望年数 | AK24: 年 | CF24: e
Z25: ●環境に配慮した「グリーン電力」の希望 | CF25: e
CF26: e
CF27: e
C28: ◆月別データ | AT28: ◆月別データ | CF28: e
C29: 月 | F29: 最大需要電力 (デマンド)(kW) | J29: 力率(%) | N29: 使用電力量(kWh) | AU29: 月 | AX29: 使用電力量(kWh) | CF29: e
N30: =IFERROR(VLOOKUP($I$18&$I$19,料金プランマスタ!$E$7:$AD$220,2,0),"") -> 夏季 | O30: =IFERROR(" "&IF($I$19="その他","直接入力して下さい",IF(VLOOKUP($I$18&$I$19,料金プランマスタ!$E$7:$AD$220,2,0)=0,"-",VLOOKUP($I$18&$I$19,料金プランマスタ!$E$7:$AD$220,2,0))),"") -> 夏季 | P30: =IFERROR(" "&IF($I$19="その他","直接入力して下さい",IF(VLOOKUP($I$18&$I$19,料金プランマスタ!$E$7:$AD$220,2,0)=0,"-",VLOOKUP($I$18&$I$19,料金プランマスタ!$E$7:$AD$220,2,0))),"") -> 夏季 | Q30: =IFERROR(" "&IF($I$19="その他","直接入力して下さい",IF(VLOOKUP($I$18&$I$19,料金プランマスタ!$E$7:$AD$220,2,0)=0,"-",VLOOKUP($I$18&$I$19,料金プランマスタ!$E$7:$AD$220,2,0))),"") -> 夏季 | R30: =IFERROR(" "&IF($I$19="その他","直接入力して下さい",IF(VLOOKUP($I$18&$I$19,料金プランマスタ!$E$7:$AD$220,2,0)=0,"-",VLOOKUP($I$18&$I$19,料金プランマスタ!$E$7:$AD$220,2,0))),"") -> 夏季 | S30: =IFERROR(" "&IF($I$19="その他","直接入力して下さい",IF(VLOOKUP($I$18&$I$19,料金プランマスタ!$E$7:$AD$220,2,0)=0,"-",VLOOKUP($I$18&$I$19,料金プランマスタ!$E$7:$AD$220,2,0))),"") -> 夏季 | T30: =IFERROR(VLOOKUP($I$18&$I$19,料金プランマスタ!$E$7:$AD$220,3,0),"") -> その他季 | U30: =IFERROR(" "&IF($I$19="その他","直接入力して下さい",IF(VLOOKUP($I$18&$I$19,料金プランマスタ!$E$7:$AD$220,2,0)=0,"-",VLOOKUP($I$18&$I$19,料金プランマスタ!$E$7:$AD$220,2,0))),"") -> 夏季 | V30: =IFERROR(" "&IF($I$19="その他","直接入力して下さい",IF(VLOOKUP($I$18&$I$19,料金プランマスタ!$E$7:$AD$220,2,0)=0,"-",VLOOKUP($I$18&$I$19,料金プランマスタ!$E$7:$AD$220,2,0))),"") -> 夏季 | W30: =IFERROR(" "&IF($I$19="その他","直接入力して下さい",IF(VLOOKUP($I$18&$I$19,料金プランマスタ!$E$7:$AD$220,2,0)=0,"-",VLOOKUP($I$18&$I$19,料金プランマスタ!$E$7:$AD$220,2,0))),"") -> 夏季 | X30: =IFERROR(" "&IF($I$19="その他","直接入力して下さい",IF(VLOOKUP($I$18&$I$19,料金プランマスタ!$E$7:$AD$220,2,0)=0,"-",VLOOKUP($I$18&$I$19,料金プランマスタ!$E$7:$AD$220,2,0))),"") -> 夏季 | Y30: =IFERROR(" "&IF($I$19="その他","直接入力して下さい",IF(VLOOKUP($I$18&$I$19,料金プランマスタ!$E$7:$AD$220,2,0)=0,"-",VLOOKUP($I$18&$I$19,料金プランマスタ!$E$7:$AD$220,2,0))),"") -> 夏季 | Z30: =IFERROR(VLOOKUP($I$18&$I$19,料金プランマスタ!$E$7:$AD$220,4,0),"") -> - | AA30: =IFERROR(" "&IF($I$19="その他","直接入力して下さい",IF(VLOOKUP($I$18&$I$19,料金プランマスタ!$E$7:$AD$220,2,0)=0,"-",VLOOKUP($I$18&$I$19,料金プランマスタ!$E$7:$AD$220,2,0))),"") -> 夏季 | AB30: =IFERROR(" "&IF($I$19="その他","直接入力して下さい",IF(VLOOKUP($I$18&$I$19,料金プランマスタ!$E$7:$AD$220,2,0)=0,"-",VLOOKUP($I$18&$I$19,料金プランマスタ!$E$7:$AD$220,2,0))),"") -> 夏季 | AC30: =IFERROR(" "&IF($I$19="その他","直接入力して下さい",IF(VLOOKUP($I$18&$I$19,料金プランマスタ!$E$7:$AD$220,2,0)=0,"-",VLOOKUP($I$18&$I$19,料金プランマスタ!$E$7:$AD$220,2,0))),"") -> 夏季 | AD30: =IFERROR(" "&IF($I$19="その他","直接入力して下さい",IF(VLOOKUP($I$18&$I$19,料金プランマスタ!$E$7:$AD$220,2,0)=0,"-",VLOOKUP($I$18&$I$19,料金プランマスタ!$E$7:$AD$220,2,0))),"") -> 夏季 | AE30: =IFERROR(" "&IF($I$19="その他","直接入力して下さい",IF(VLOOKUP($I$18&$I$19,料金プランマスタ!$E$7:$AD$220,2,0)=0,"-",VLOOKUP($I$18&$I$19,料金プランマスタ!$E$7:$AD$220,2,0))),"") -> 夏季 | AF30: =IFERROR(VLOOKUP($I$18&$I$19,料金プランマスタ!$E$7:$AD$220,5,0),"") -> - | AG30: =IFERROR(" "&IF($I$19="その他","直接入力して下さい",IF(VLOOKUP($I$18&$I$19,料金プランマスタ!$E$7:$AD$220,2,0)=0,"-",VLOOKUP($I$18&$I$19,料金プランマスタ!$E$7:$AD$220,2,0))),"") -> 夏季 | AH30: =IFERROR(" "&IF($I$19="その他","直接入力して下さい",IF(VLOOKUP($I$18&$I$19,料金プランマスタ!$E$7:$AD$220,2,0)=0,"-",VLOOKUP($I$18&$I$19,料金プランマスタ!$E$7:$AD$220,2,0))),"") -> 夏季 | AI30: =IFERROR(" "&IF($I$19="その他","直接入力して下さい",IF(VLOOKUP($I$18&$I$19,料金プランマスタ!$E$7:$AD$220,2,0)=0,"-",VLOOKUP($I$18&$I$19,料金プランマスタ!$E$7:$AD$220,2,0))),"") -> 夏季 | AJ30: =IFERROR(" "&IF($I$19="その他","直接入力して下さい",IF(VLOOKUP($I$18&$I$19,料金プランマスタ!$E$7:$AD$220,2,0)=0,"-",VLOOKUP($I$18&$I$19,料金プランマスタ!$E$7:$AD$220,2,0))),"") -> 夏季 | AK30: =IFERROR(" "&IF($I$19="その他","直接入力して下さい",IF(VLOOKUP($I$18&$I$19,料金プランマスタ!$E$7:$AD$220,2,0)=0,"-",VLOOKUP($I$18&$I$19,料金プランマスタ!$E$7:$AD$220,2,0))),"") -> 夏季 | AL30: 合計 | AX30: =AU8 -> 夏季 | BA30: =AU9 -> その他季 | BD30: =AU10 -> - | BG30: =AU11 -> - | BJ30: =AU12 -> - | BM30: =BI8 -> - | BP30: =BI9 -> - | BS30: =BI10 -> - | BV30: =BI11 -> - | BY30: =BI12 -> - | CB30: 合計 | CF30: e
C31: 4月 | T31: 19424 | AL31: =SUM(N31:AK31) -> 19424 | AU31: 4月 | AX31: =IFERROR(IF(VLOOKUP($I$18&$I$19,料金プランマスタ!$E$7:$AD$220,6,0)="",N31,IF($N31<$I$23*$CB$8,$N31,$I$23*$CB$8)),0) -> 0 | BA31: =IFERROR(IF(VLOOKUP($I$18&$I$19,料金プランマスタ!$E$7:$AD$220,6,0)="",T31,IF($N31-$AX31<$I$23*$CB$9-$I$23*$CB$8,$N31-$AX31,$I$23*$CB$9-$I$23*$CB$8)),0) -> 19424 | BD31: =IFERROR(IF(VLOOKUP($I$18&$I$19,料金プランマスタ!$E$7:$AD$220,6,0)="",Z31,IF($N31-$AX31-$BA31<$I$23*$CB$10-$I$23*$CB$9,$N31-$AX31-$BA31,$I$23*$CB$10-$I$23*$CB$9)),0) -> 0 | BG31: =IFERROR(IF(VLOOKUP($I$18&$I$19,料金プランマスタ!$E$7:$AD$220,6,0)="",AF31,IF($N31-$AX31-$BA31-$BD31<$I$23*$CB$11-$I$23*$CB$10,$N31-$AX31-$BA31-$BD31,$I$23*$CB$11-$I$23*$CB$10)),0) -> 0 | BJ31: =IFERROR(IF(VLOOKUP($I$18&$I$19,料金プランマスタ!$E$7:$AD$220,6,0)="","",IF($N31-$AX31-$BA31-$BD31-BG31<$I$23*$CB$12-$I$23*$CB$11,$N31-$AX31-$BA31-$BD31-$BG31,$I$23*$CB$12-$I$23*$CB$11)),0) ->  | BM31: =IFERROR(IF(VLOOKUP($I$18&$I$19,料金プランマスタ!$E$7:$AD$220,6,0)="","",IF($T31<$I$23*$CB$8,$T31,$I$23*$CB$8)),0) ->  | BP31: =IFERROR(IF(VLOOKUP($I$18&$I$19,料金プランマスタ!$E$7:$AD$220,6,0)="","",IF($T31-$BM31<$I$23*$CB$9-$I$23*$CB$8,$T31-$BM31,$I$23*$CB$9-$I$23*$CB$8)),0) ->  | BS31: =IFERROR(IF(VLOOKUP($I$18&$I$19,料金プランマスタ!$E$7:$AD$220,6,0)="","",IF($T31-$BM31-$BP31<$I$23*$CB$10-$I$23*$CB$9,$T31-$BM31-$BP31,$I$23*$CB$10-$I$23*$CB$9)),0) ->  | BV31: =IFERROR(IF(VLOOKUP($I$18&$I$19,料金プランマスタ!$E$7:$AD$220,6,0)="","",IF($T31-$BM31-$BP31-$BS31<$I$23*$CB$11-$I$23*$CB$10,$T31-$BM31-$BP31-$BS31,$I$23*$CB$11-$I$23*$CB$10)),0) ->  | BY31: =IFERROR(IF(VLOOKUP($I$18&$I$19,料金プランマスタ!$E$7:$AD$220,6,0)="","",IF($T31-$BM31-$BP31-$BS31-BV31<$I$23*$CB$12-$I$23*$CB$11,$T31-$BM31-$BP31-$BS31-$BV31,$I$23*$CB$12-$I$23*$CB$11)),0) ->  | CB31: =SUM(AX31:CA31) -> 19424 | CF31: e
C32: 5月 | T32: 21107 | AL32: =SUM(N32:AK32) -> 21107 | AU32: 5月 | AX32: =IFERROR(IF(VLOOKUP($I$18&$I$19,料金プランマスタ!$E$7:$AD$220,6,0)="",N32,IF($N32<$I$23*$CB$8,$N32,$I$23*$CB$8)),0) -> 0 | BA32: =IFERROR(IF(VLOOKUP($I$18&$I$19,料金プランマスタ!$E$7:$AD$220,6,0)="",T32,IF($N32-$AX32<$I$23*$CB$9-$I$23*$CB$8,$N32-$AX32,$I$23*$CB$9-$I$23*$CB$8)),0) -> 21107 | BD32: =IFERROR(IF(VLOOKUP($I$18&$I$19,料金プランマスタ!$E$7:$AD$220,6,0)="",Z32,IF($N32-$AX32-$BA32<$I$23*$CB$10-$I$23*$CB$9,$N32-$AX32-$BA32,$I$23*$CB$10-$I$23*$CB$9)),0) -> 0 | BG32: =IFERROR(IF(VLOOKUP($I$18&$I$19,料金プランマスタ!$E$7:$AD$220,6,0)="",AF32,IF($N32-$AX32-$BA32-$BD32<$I$23*$CB$11-$I$23*$CB$10,$N32-$AX32-$BA32-$BD32,$I$23*$CB$11-$I$23*$CB$10)),0) -> 0 | BJ32: =IFERROR(IF(VLOOKUP($I$18&$I$19,料金プランマスタ!$E$7:$AD$220,6,0)="","",IF($N32-$AX32-$BA32-$BD32-BG32<$I$23*$CB$12-$I$23*$CB$11,$N32-$AX32-$BA32-$BD32-$BG32,$I$23*$CB$12-$I$23*$CB$11)),0) ->  | BM32: =IFERROR(IF(VLOOKUP($I$18&$I$19,料金プランマスタ!$E$7:$AD$220,6,0)="","",IF($T32<$I$23*$CB$8,$T32,$I$23*$CB$8)),0) ->  | BP32: =IFERROR(IF(VLOOKUP($I$18&$I$19,料金プランマスタ!$E$7:$AD$220,6,0)="","",IF($T32-$BM32<$I$23*$CB$9-$I$23*$CB$8,$T32-$BM32,$I$23*$CB$9-$I$23*$CB$8)),0) ->  | BS32: =IFERROR(IF(VLOOKUP($I$18&$I$19,料金プランマスタ!$E$7:$AD$220,6,0)="","",IF($T32-$BM32-$BP32<$I$23*$CB$10-$I$23*$CB$9,$T32-$BM32-$BP32,$I$23*$CB$10-$I$23*$CB$9)),0) ->  | BV32: =IFERROR(IF(VLOOKUP($I$18&$I$19,料金プランマスタ!$E$7:$AD$220,6,0)="","",IF($T32-$BM32-$BP32-$BS32<$I$23*$CB$11-$I$23*$CB$10,$T32-$BM32-$BP32-$BS32,$I$23*$CB$11-$I$23*$CB$10)),0) ->  | BY32: =IFERROR(IF(VLOOKUP($I$18&$I$19,料金プランマスタ!$E$7:$AD$220,6,0)="","",IF($T32-$BM32-$BP32-$BS32-BV32<$I$23*$CB$12-$I$23*$CB$11,$T32-$BM32-$BP32-$BS32-$BV32,$I$23*$CB$12-$I$23*$CB$11)),0) ->  | CB32: =SUM(AX32:CA32) -> 21107 | CF32: e
C33: 6月 | T33: 32198 | AL33: 32198 | AU33: 6月 | AX33: =IFERROR(IF(VLOOKUP($I$18&$I$19,料金プランマスタ!$E$7:$AD$220,6,0)="",N33,IF($N33<$I$23*$CB$8,$N33,$I$23*$CB$8)),0) -> 0 | BA33: =IFERROR(IF(VLOOKUP($I$18&$I$19,料金プランマスタ!$E$7:$AD$220,6,0)="",T33,IF($N33-$AX33<$I$23*$CB$9-$I$23*$CB$8,$N33-$AX33,$I$23*$CB$9-$I$23*$CB$8)),0) -> 32198 | BD33: =IFERROR(IF(VLOOKUP($I$18&$I$19,料金プランマスタ!$E$7:$AD$220,6,0)="",Z33,IF($N33-$AX33-$BA33<$I$23*$CB$10-$I$23*$CB$9,$N33-$AX33-$BA33,$I$23*$CB$10-$I$23*$CB$9)),0) -> 0 | BG33: =IFERROR(IF(VLOOKUP($I$18&$I$19,料金プランマスタ!$E$7:$AD$220,6,0)="",AF33,IF($N33-$AX33-$BA33-$BD33<$I$23*$CB$11-$I$23*$CB$10,$N33-$AX33-$BA33-$BD33,$I$23*$CB$11-$I$23*$CB$10)),0) -> 0 | BJ33: =IFERROR(IF(VLOOKUP($I$18&$I$19,料金プランマスタ!$E$7:$AD$220,6,0)="","",IF($N33-$AX33-$BA33-$BD33-BG33<$I$23*$CB$12-$I$23*$CB$11,$N33-$AX33-$BA33-$BD33-$BG33,$I$23*$CB$12-$I$23*$CB$11)),0) ->  | BM33: =IFERROR(IF(VLOOKUP($I$18&$I$19,料金プランマスタ!$E$7:$AD$220,6,0)="","",IF($T33<$I$23*$CB$8,$T33,$I$23*$CB$8)),0) ->  | BP33: =IFERROR(IF(VLOOKUP($I$18&$I$19,料金プランマスタ!$E$7:$AD$220,6,0)="","",IF($T33-$BM33<$I$23*$CB$9-$I$23*$CB$8,$T33-$BM33,$I$23*$CB$9-$I$23*$CB$8)),0) ->  | BS33: =IFERROR(IF(VLOOKUP($I$18&$I$19,料金プランマスタ!$E$7:$AD$220,6,0)="","",IF($T33-$BM33-$BP33<$I$23*$CB$10-$I$23*$CB$9,$T33-$BM33-$BP33,$I$23*$CB$10-$I$23*$CB$9)),0) ->  | BV33: =IFERROR(IF(VLOOKUP($I$18&$I$19,料金プランマスタ!$E$7:$AD$220,6,0)="","",IF($T33-$BM33-$BP33-$BS33<$I$23*$CB$11-$I$23*$CB$10,$T33-$BM33-$BP33-$BS33,$I$23*$CB$11-$I$23*$CB$10)),0) ->  | BY33: =IFERROR(IF(VLOOKUP($I$18&$I$19,料金プランマスタ!$E$7:$AD$220,6,0)="","",IF($T33-$BM33-$BP33-$BS33-BV33<$I$23*$CB$12-$I$23*$CB$11,$T33-$BM33-$BP33-$BS33-$BV33,$I$23*$CB$12-$I$23*$CB$11)),0) ->  | CB33: 32198 | CF33: e
C34: 7月 | N34: 13008 | AL34: 13008 | AU34: 7月 | AX34: =IFERROR(IF(VLOOKUP($I$18&$I$19,料金プランマスタ!$E$7:$AD$220,6,0)="",N34,IF($N34<$I$23*$CB$8,$N34,$I$23*$CB$8)),0) -> 13008 | BA34: =IFERROR(IF(VLOOKUP($I$18&$I$19,料金プランマスタ!$E$7:$AD$220,6,0)="",T34,IF($N34-$AX34<$I$23*$CB$9-$I$23*$CB$8,$N34-$AX34,$I$23*$CB$9-$I$23*$CB$8)),0) -> 0 | BD34: =IFERROR(IF(VLOOKUP($I$18&$I$19,料金プランマスタ!$E$7:$AD$220,6,0)="",Z34,IF($N34-$AX34-$BA34<$I$23*$CB$10-$I$23*$CB$9,$N34-$AX34-$BA34,$I$23*$CB$10-$I$23*$CB$9)),0) -> 0 | BG34: =IFERROR(IF(VLOOKUP($I$18&$I$19,料金プランマスタ!$E$7:$AD$220,6,0)="",AF34,IF($N34-$AX34-$BA34-$BD34<$I$23*$CB$11-$I$23*$CB$10,$N34-$AX34-$BA34-$BD34,$I$23*$CB$11-$I$23*$CB$10)),0) -> 0 | BJ34: =IFERROR(IF(VLOOKUP($I$18&$I$19,料金プランマスタ!$E$7:$AD$220,6,0)="","",IF($N34-$AX34-$BA34-$BD34-BG34<$I$23*$CB$12-$I$23*$CB$11,$N34-$AX34-$BA34-$BD34-$BG34,$I$23*$CB$12-$I$23*$CB$11)),0) ->  | BM34: =IFERROR(IF(VLOOKUP($I$18&$I$19,料金プランマスタ!$E$7:$AD$220,6,0)="","",IF($T34<$I$23*$CB$8,$T34,$I$23*$CB$8)),0) ->  | BP34: =IFERROR(IF(VLOOKUP($I$18&$I$19,料金プランマスタ!$E$7:$AD$220,6,0)="","",IF($T34-$BM34<$I$23*$CB$9-$I$23*$CB$8,$T34-$BM34,$I$23*$CB$9-$I$23*$CB$8)),0) ->  | BS34: =IFERROR(IF(VLOOKUP($I$18&$I$19,料金プランマスタ!$E$7:$AD$220,6,0)="","",IF($T34-$BM34-$BP34<$I$23*$CB$10-$I$23*$CB$9,$T34-$BM34-$BP34,$I$23*$CB$10-$I$23*$CB$9)),0) ->  | BV34: =IFERROR(IF(VLOOKUP($I$18&$I$19,料金プランマスタ!$E$7:$AD$220,6,0)="","",IF($T34-$BM34-$BP34-$BS34<$I$23*$CB$11-$I$23*$CB$10,$T34-$BM34-$BP34-$BS34,$I$23*$CB$11-$I$23*$CB$10)),0) ->  | BY34: =IFERROR(IF(VLOOKUP($I$18&$I$19,料金プランマスタ!$E$7:$AD$220,6,0)="","",IF($T34-$BM34-$BP34-$BS34-BV34<$I$23*$CB$12-$I$23*$CB$11,$T34-$BM34-$BP34-$BS34-$BV34,$I$23*$CB$12-$I$23*$CB$11)),0) ->  | CB34: 13008 | CF34: e
C35: 8月 | N35: 3867 | AL35: 3867 | AU35: 8月 | AX35: =IFERROR(IF(VLOOKUP($I$18&$I$19,料金プランマスタ!$E$7:$AD$220,6,0)="",N35,IF($N35<$I$23*$CB$8,$N35,$I$23*$CB$8)),0) -> 3867 | BA35: =IFERROR(IF(VLOOKUP($I$18&$I$19,料金プランマスタ!$E$7:$AD$220,6,0)="",T35,IF($N35-$AX35<$I$23*$CB$9-$I$23*$CB$8,$N35-$AX35,$I$23*$CB$9-$I$23*$CB$8)),0) -> 0 | BD35: =IFERROR(IF(VLOOKUP($I$18&$I$19,料金プランマスタ!$E$7:$AD$220,6,0)="",Z35,IF($N35-$AX35-$BA35<$I$23*$CB$10-$I$23*$CB$9,$N35-$AX35-$BA35,$I$23*$CB$10-$I$23*$CB$9)),0) -> 0 | BG35: =IFERROR(IF(VLOOKUP($I$18&$I$19,料金プランマスタ!$E$7:$AD$220,6,0)="",AF35,IF($N35-$AX35-$BA35-$BD35<$I$23*$CB$11-$I$23*$CB$10,$N35-$AX35-$BA35-$BD35,$I$23*$CB$11-$I$23*$CB$10)),0) -> 0 | BJ35: =IFERROR(IF(VLOOKUP($I$18&$I$19,料金プランマスタ!$E$7:$AD$220,6,0)="","",IF($N35-$AX35-$BA35-$BD35-BG35<$I$23*$CB$12-$I$23*$CB$11,$N35-$AX35-$BA35-$BD35-$BG35,$I$23*$CB$12-$I$23*$CB$11)),0) ->  | BM35: =IFERROR(IF(VLOOKUP($I$18&$I$19,料金プランマスタ!$E$7:$AD$220,6,0)="","",IF($T35<$I$23*$CB$8,$T35,$I$23*$CB$8)),0) ->  | BP35: =IFERROR(IF(VLOOKUP($I$18&$I$19,料金プランマスタ!$E$7:$AD$220,6,0)="","",IF($T35-$BM35<$I$23*$CB$9-$I$23*$CB$8,$T35-$BM35,$I$23*$CB$9-$I$23*$CB$8)),0) ->  | BS35: =IFERROR(IF(VLOOKUP($I$18&$I$19,料金プランマスタ!$E$7:$AD$220,6,0)="","",IF($T35-$BM35-$BP35<$I$23*$CB$10-$I$23*$CB$9,$T35-$BM35-$BP35,$I$23*$CB$10-$I$23*$CB$9)),0) ->  | BV35: =IFERROR(IF(VLOOKUP($I$18&$I$19,料金プランマスタ!$E$7:$AD$220,6,0)="","",IF($T35-$BM35-$BP35-$BS35<$I$23*$CB$11-$I$23*$CB$10,$T35-$BM35-$BP35-$BS35,$I$23*$CB$11-$I$23*$CB$10)),0) ->  | BY35: =IFERROR(IF(VLOOKUP($I$18&$I$19,料金プランマスタ!$E$7:$AD$220,6,0)="","",IF($T35-$BM35-$BP35-$BS35-BV35<$I$23*$CB$12-$I$23*$CB$11,$T35-$BM35-$BP35-$BS35-$BV35,$I$23*$CB$12-$I$23*$CB$11)),0) ->  | CB35: 3867 | CF35: e
C36: 9月 | N36: 39670 | AL36: 39670 | AU36: 9月 | AX36: =IFERROR(IF(VLOOKUP($I$18&$I$19,料金プランマスタ!$E$7:$AD$220,6,0)="",N36,IF($N36<$I$23*$CB$8,$N36,$I$23*$CB$8)),0) -> 39670 | BA36: =IFERROR(IF(VLOOKUP($I$18&$I$19,料金プランマスタ!$E$7:$AD$220,6,0)="",T36,IF($N36-$AX36<$I$23*$CB$9-$I$23*$CB$8,$N36-$AX36,$I$23*$CB$9-$I$23*$CB$8)),0) -> 0 | BD36: =IFERROR(IF(VLOOKUP($I$18&$I$19,料金プランマスタ!$E$7:$AD$220,6,0)="",Z36,IF($N36-$AX36-$BA36<$I$23*$CB$10-$I$23*$CB$9,$N36-$AX36-$BA36,$I$23*$CB$10-$I$23*$CB$9)),0) -> 0 | BG36: =IFERROR(IF(VLOOKUP($I$18&$I$19,料金プランマスタ!$E$7:$AD$220,6,0)="",AF36,IF($N36-$AX36-$BA36-$BD36<$I$23*$CB$11-$I$23*$CB$10,$N36-$AX36-$BA36-$BD36,$I$23*$CB$11-$I$23*$CB$10)),0) -> 0 | BJ36: =IFERROR(IF(VLOOKUP($I$18&$I$19,料金プランマスタ!$E$7:$AD$220,6,0)="","",IF($N36-$AX36-$BA36-$BD36-BG36<$I$23*$CB$12-$I$23*$CB$11,$N36-$AX36-$BA36-$BD36-$BG36,$I$23*$CB$12-$I$23*$CB$11)),0) ->  | BM36: =IFERROR(IF(VLOOKUP($I$18&$I$19,料金プランマスタ!$E$7:$AD$220,6,0)="","",IF($T36<$I$23*$CB$8,$T36,$I$23*$CB$8)),0) ->  | BP36: =IFERROR(IF(VLOOKUP($I$18&$I$19,料金プランマスタ!$E$7:$AD$220,6,0)="","",IF($T36-$BM36<$I$23*$CB$9-$I$23*$CB$8,$T36-$BM36,$I$23*$CB$9-$I$23*$CB$8)),0) ->  | BS36: =IFERROR(IF(VLOOKUP($I$18&$I$19,料金プランマスタ!$E$7:$AD$220,6,0)="","",IF($T36-$BM36-$BP36<$I$23*$CB$10-$I$23*$CB$9,$T36-$BM36-$BP36,$I$23*$CB$10-$I$23*$CB$9)),0) ->  | BV36: =IFERROR(IF(VLOOKUP($I$18&$I$19,料金プランマスタ!$E$7:$AD$220,6,0)="","",IF($T36-$BM36-$BP36-$BS36<$I$23*$CB$11-$I$23*$CB$10,$T36-$BM36-$BP36-$BS36,$I$23*$CB$11-$I$23*$CB$10)),0) ->  | BY36: =IFERROR(IF(VLOOKUP($I$18&$I$19,料金プランマスタ!$E$7:$AD$220,6,0)="","",IF($T36-$BM36-$BP36-$BS36-BV36<$I$23*$CB$12-$I$23*$CB$11,$T36-$BM36-$BP36-$BS36-$BV36,$I$23*$CB$12-$I$23*$CB$11)),0) ->  | CB36: 39670 | CF36: e
C37: 10月 | T37: 14596 | AL37: 14596 | AU37: 10月 | AX37: =IFERROR(IF(VLOOKUP($I$18&$I$19,料金プランマスタ!$E$7:$AD$220,6,0)="",N37,IF($N37<$I$23*$CB$8,$N37,$I$23*$CB$8)),0) -> 0 | BA37: =IFERROR(IF(VLOOKUP($I$18&$I$19,料金プランマスタ!$E$7:$AD$220,6,0)="",T37,IF($N37-$AX37<$I$23*$CB$9-$I$23*$CB$8,$N37-$AX37,$I$23*$CB$9-$I$23*$CB$8)),0) -> 14596 | BD37: =IFERROR(IF(VLOOKUP($I$18&$I$19,料金プランマスタ!$E$7:$AD$220,6,0)="",Z37,IF($N37-$AX37-$BA37<$I$23*$CB$10-$I$23*$CB$9,$N37-$AX37-$BA37,$I$23*$CB$10-$I$23*$CB$9)),0) -> 0 | BG37: =IFERROR(IF(VLOOKUP($I$18&$I$19,料金プランマスタ!$E$7:$AD$220,6,0)="",AF37,IF($N37-$AX37-$BA37-$BD37<$I$23*$CB$11-$I$23*$CB$10,$N37-$AX37-$BA37-$BD37,$I$23*$CB$11-$I$23*$CB$10)),0) -> 0 | BJ37: =IFERROR(IF(VLOOKUP($I$18&$I$19,料金プランマスタ!$E$7:$AD$220,6,0)="","",IF($N37-$AX37-$BA37-$BD37-BG37<$I$23*$CB$12-$I$23*$CB$11,$N37-$AX37-$BA37-$BD37-$BG37,$I$23*$CB$12-$I$23*$CB$11)),0) ->  | BM37: =IFERROR(IF(VLOOKUP($I$18&$I$19,料金プランマスタ!$E$7:$AD$220,6,0)="","",IF($T37<$I$23*$CB$8,$T37,$I$23*$CB$8)),0) ->  | BP37: =IFERROR(IF(VLOOKUP($I$18&$I$19,料金プランマスタ!$E$7:$AD$220,6,0)="","",IF($T37-$BM37<$I$23*$CB$9-$I$23*$CB$8,$T37-$BM37,$I$23*$CB$9-$I$23*$CB$8)),0) ->  | BS37: =IFERROR(IF(VLOOKUP($I$18&$I$19,料金プランマスタ!$E$7:$AD$220,6,0)="","",IF($T37-$BM37-$BP37<$I$23*$CB$10-$I$23*$CB$9,$T37-$BM37-$BP37,$I$23*$CB$10-$I$23*$CB$9)),0) ->  | BV37: =IFERROR(IF(VLOOKUP($I$18&$I$19,料金プランマスタ!$E$7:$AD$220,6,0)="","",IF($T37-$BM37-$BP37-$BS37<$I$23*$CB$11-$I$23*$CB$10,$T37-$BM37-$BP37-$BS37,$I$23*$CB$11-$I$23*$CB$10)),0) ->  | BY37: =IFERROR(IF(VLOOKUP($I$18&$I$19,料金プランマスタ!$E$7:$AD$220,6,0)="","",IF($T37-$BM37-$BP37-$BS37-BV37<$I$23*$CB$12-$I$23*$CB$11,$T37-$BM37-$BP37-$BS37-$BV37,$I$23*$CB$12-$I$23*$CB$11)),0) ->  | CB37: 14596 | CF37: e
C38: 11月 | T38: 35184 | AL38: 35184 | AU38: 11月 | AX38: =IFERROR(IF(VLOOKUP($I$18&$I$19,料金プランマスタ!$E$7:$AD$220,6,0)="",N38,IF($N38<$I$23*$CB$8,$N38,$I$23*$CB$8)),0) -> 0 | BA38: =IFERROR(IF(VLOOKUP($I$18&$I$19,料金プランマスタ!$E$7:$AD$220,6,0)="",T38,IF($N38-$AX38<$I$23*$CB$9-$I$23*$CB$8,$N38-$AX38,$I$23*$CB$9-$I$23*$CB$8)),0) -> 35184 | BD38: =IFERROR(IF(VLOOKUP($I$18&$I$19,料金プランマスタ!$E$7:$AD$220,6,0)="",Z38,IF($N38-$AX38-$BA38<$I$23*$CB$10-$I$23*$CB$9,$N38-$AX38-$BA38,$I$23*$CB$10-$I$23*$CB$9)),0) -> 0 | BG38: =IFERROR(IF(VLOOKUP($I$18&$I$19,料金プランマスタ!$E$7:$AD$220,6,0)="",AF38,IF($N38-$AX38-$BA38-$BD38<$I$23*$CB$11-$I$23*$CB$10,$N38-$AX38-$BA38-$BD38,$I$23*$CB$11-$I$23*$CB$10)),0) -> 0 | BJ38: =IFERROR(IF(VLOOKUP($I$18&$I$19,料金プランマスタ!$E$7:$AD$220,6,0)="","",IF($N38-$AX38-$BA38-$BD38-BG38<$I$23*$CB$12-$I$23*$CB$11,$N38-$AX38-$BA38-$BD38-$BG38,$I$23*$CB$12-$I$23*$CB$11)),0) ->  | BM38: =IFERROR(IF(VLOOKUP($I$18&$I$19,料金プランマスタ!$E$7:$AD$220,6,0)="","",IF($T38<$I$23*$CB$8,$T38,$I$23*$CB$8)),0) ->  | BP38: =IFERROR(IF(VLOOKUP($I$18&$I$19,料金プランマスタ!$E$7:$AD$220,6,0)="","",IF($T38-$BM38<$I$23*$CB$9-$I$23*$CB$8,$T38-$BM38,$I$23*$CB$9-$I$23*$CB$8)),0) ->  | BS38: =IFERROR(IF(VLOOKUP($I$18&$I$19,料金プランマスタ!$E$7:$AD$220,6,0)="","",IF($T38-$BM38-$BP38<$I$23*$CB$10-$I$23*$CB$9,$T38-$BM38-$BP38,$I$23*$CB$10-$I$23*$CB$9)),0) ->  | BV38: =IFERROR(IF(VLOOKUP($I$18&$I$19,料金プランマスタ!$E$7:$AD$220,6,0)="","",IF($T38-$BM38-$BP38-$BS38<$I$23*$CB$11-$I$23*$CB$10,$T38-$BM38-$BP38-$BS38,$I$23*$CB$11-$I$23*$CB$10)),0) ->  | BY38: =IFERROR(IF(VLOOKUP($I$18&$I$19,料金プランマスタ!$E$7:$AD$220,6,0)="","",IF($T38-$BM38-$BP38-$BS38-BV38<$I$23*$CB$12-$I$23*$CB$11,$T38-$BM38-$BP38-$BS38-$BV38,$I$23*$CB$12-$I$23*$CB$11)),0) ->  | CB38: 35184 | CF38: e
C39: 12月 | T39: 47527 | AL39: 47527 | AU39: 12月 | AX39: =IFERROR(IF(VLOOKUP($I$18&$I$19,料金プランマスタ!$E$7:$AD$220,6,0)="",N39,IF($N39<$I$23*$CB$8,$N39,$I$23*$CB$8)),0) -> 0 | BA39: =IFERROR(IF(VLOOKUP($I$18&$I$19,料金プランマスタ!$E$7:$AD$220,6,0)="",T39,IF($N39-$AX39<$I$23*$CB$9-$I$23*$CB$8,$N39-$AX39,$I$23*$CB$9-$I$23*$CB$8)),0) -> 47527 | BD39: =IFERROR(IF(VLOOKUP($I$18&$I$19,料金プランマスタ!$E$7:$AD$220,6,0)="",Z39,IF($N39-$AX39-$BA39<$I$23*$CB$10-$I$23*$CB$9,$N39-$AX39-$BA39,$I$23*$CB$10-$I$23*$CB$9)),0) -> 0 | BG39: =IFERROR(IF(VLOOKUP($I$18&$I$19,料金プランマスタ!$E$7:$AD$220,6,0)="",AF39,IF($N39-$AX39-$BA39-$BD39<$I$23*$CB$11-$I$23*$CB$10,$N39-$AX39-$BA39-$BD39,$I$23*$CB$11-$I$23*$CB$10)),0) -> 0 | BJ39: =IFERROR(IF(VLOOKUP($I$18&$I$19,料金プランマスタ!$E$7:$AD$220,6,0)="","",IF($N39-$AX39-$BA39-$BD39-BG39<$I$23*$CB$12-$I$23*$CB$11,$N39-$AX39-$BA39-$BD39-$BG39,$I$23*$CB$12-$I$23*$CB$11)),0) ->  | BM39: =IFERROR(IF(VLOOKUP($I$18&$I$19,料金プランマスタ!$E$7:$AD$220,6,0)="","",IF($T39<$I$23*$CB$8,$T39,$I$23*$CB$8)),0) ->  | BP39: =IFERROR(IF(VLOOKUP($I$18&$I$19,料金プランマスタ!$E$7:$AD$220,6,0)="","",IF($T39-$BM39<$I$23*$CB$9-$I$23*$CB$8,$T39-$BM39,$I$23*$CB$9-$I$23*$CB$8)),0) ->  | BS39: =IFERROR(IF(VLOOKUP($I$18&$I$19,料金プランマスタ!$E$7:$AD$220,6,0)="","",IF($T39-$BM39-$BP39<$I$23*$CB$10-$I$23*$CB$9,$T39-$BM39-$BP39,$I$23*$CB$10-$I$23*$CB$9)),0) ->  | BV39: =IFERROR(IF(VLOOKUP($I$18&$I$19,料金プランマスタ!$E$7:$AD$220,6,0)="","",IF($T39-$BM39-$BP39-$BS39<$I$23*$CB$11-$I$23*$CB$10,$T39-$BM39-$BP39-$BS39,$I$23*$CB$11-$I$23*$CB$10)),0) ->  | BY39: =IFERROR(IF(VLOOKUP($I$18&$I$19,料金プランマスタ!$E$7:$AD$220,6,0)="","",IF($T39-$BM39-$BP39-$BS39-BV39<$I$23*$CB$12-$I$23*$CB$11,$T39-$BM39-$BP39-$BS39-$BV39,$I$23*$CB$12-$I$23*$CB$11)),0) ->  | CB39: 47527 | CF39: e
C40: 1月 | T40: 16694 | AL40: 16694 | AU40: 1月 | AX40: =IFERROR(IF(VLOOKUP($I$18&$I$19,料金プランマスタ!$E$7:$AD$220,6,0)="",N40,IF($N40<$I$23*$CB$8,$N40,$I$23*$CB$8)),0) -> 0 | BA40: =IFERROR(IF(VLOOKUP($I$18&$I$19,料金プランマスタ!$E$7:$AD$220,6,0)="",T40,IF($N40-$AX40<$I$23*$CB$9-$I$23*$CB$8,$N40-$AX40,$I$23*$CB$9-$I$23*$CB$8)),0) -> 16694 | BD40: =IFERROR(IF(VLOOKUP($I$18&$I$19,料金プランマスタ!$E$7:$AD$220,6,0)="",Z40,IF($N40-$AX40-$BA40<$I$23*$CB$10-$I$23*$CB$9,$N40-$AX40-$BA40,$I$23*$CB$10-$I$23*$CB$9)),0) -> 0 | BG40: =IFERROR(IF(VLOOKUP($I$18&$I$19,料金プランマスタ!$E$7:$AD$220,6,0)="",AF40,IF($N40-$AX40-$BA40-$BD40<$I$23*$CB$11-$I$23*$CB$10,$N40-$AX40-$BA40-$BD40,$I$23*$CB$11-$I$23*$CB$10)),0) -> 0 | BJ40: =IFERROR(IF(VLOOKUP($I$18&$I$19,料金プランマスタ!$E$7:$AD$220,6,0)="","",IF($N40-$AX40-$BA40-$BD40-BG40<$I$23*$CB$12-$I$23*$CB$11,$N40-$AX40-$BA40-$BD40-$BG40,$I$23*$CB$12-$I$23*$CB$11)),0) ->  | BM40: =IFERROR(IF(VLOOKUP($I$18&$I$19,料金プランマスタ!$E$7:$AD$220,6,0)="","",IF($T40<$I$23*$CB$8,$T40,$I$23*$CB$8)),0) ->  | BP40: =IFERROR(IF(VLOOKUP($I$18&$I$19,料金プランマスタ!$E$7:$AD$220,6,0)="","",IF($T40-$BM40<$I$23*$CB$9-$I$23*$CB$8,$T40-$BM40,$I$23*$CB$9-$I$23*$CB$8)),0) ->  | BS40: =IFERROR(IF(VLOOKUP($I$18&$I$19,料金プランマスタ!$E$7:$AD$220,6,0)="","",IF($T40-$BM40-$BP40<$I$23*$CB$10-$I$23*$CB$9,$T40-$BM40-$BP40,$I$23*$CB$10-$I$23*$CB$9)),0) ->  | BV40: =IFERROR(IF(VLOOKUP($I$18&$I$19,料金プランマスタ!$E$7:$AD$220,6,0)="","",IF($T40-$BM40-$BP40-$BS40<$I$23*$CB$11-$I$23*$CB$10,$T40-$BM40-$BP40-$BS40,$I$23*$CB$11-$I$23*$CB$10)),0) ->  | BY40: =IFERROR(IF(VLOOKUP($I$18&$I$19,料金プランマスタ!$E$7:$AD$220,6,0)="","",IF($T40-$BM40-$BP40-$BS40-BV40<$I$23*$CB$12-$I$23*$CB$11,$T40-$BM40-$BP40-$BS40-$BV40,$I$23*$CB$12-$I$23*$CB$11)),0) ->  | CB40: 16694 | CF40: e
C41: 2月 | T41: 40812 | AL41: 40812 | AU41: 2月 | AX41: =IFERROR(IF(VLOOKUP($I$18&$I$19,料金プランマスタ!$E$7:$AD$220,6,0)="",N41,IF($N41<$I$23*$CB$8,$N41,$I$23*$CB$8)),0) -> 0 | BA41: =IFERROR(IF(VLOOKUP($I$18&$I$19,料金プランマスタ!$E$7:$AD$220,6,0)="",T41,IF($N41-$AX41<$I$23*$CB$9-$I$23*$CB$8,$N41-$AX41,$I$23*$CB$9-$I$23*$CB$8)),0) -> 40812 | BD41: =IFERROR(IF(VLOOKUP($I$18&$I$19,料金プランマスタ!$E$7:$AD$220,6,0)="",Z41,IF($N41-$AX41-$BA41<$I$23*$CB$10-$I$23*$CB$9,$N41-$AX41-$BA41,$I$23*$CB$10-$I$23*$CB$9)),0) -> 0 | BG41: =IFERROR(IF(VLOOKUP($I$18&$I$19,料金プランマスタ!$E$7:$AD$220,6,0)="",AF41,IF($N41-$AX41-$BA41-$BD41<$I$23*$CB$11-$I$23*$CB$10,$N41-$AX41-$BA41-$BD41,$I$23*$CB$11-$I$23*$CB$10)),0) -> 0 | BJ41: =IFERROR(IF(VLOOKUP($I$18&$I$19,料金プランマスタ!$E$7:$AD$220,6,0)="","",IF($N41-$AX41-$BA41-$BD41-BG41<$I$23*$CB$12-$I$23*$CB$11,$N41-$AX41-$BA41-$BD41-$BG41,$I$23*$CB$12-$I$23*$CB$11)),0) ->  | BM41: =IFERROR(IF(VLOOKUP($I$18&$I$19,料金プランマスタ!$E$7:$AD$220,6,0)="","",IF($T41<$I$23*$CB$8,$T41,$I$23*$CB$8)),0) ->  | BP41: =IFERROR(IF(VLOOKUP($I$18&$I$19,料金プランマスタ!$E$7:$AD$220,6,0)="","",IF($T41-$BM41<$I$23*$CB$9-$I$23*$CB$8,$T41-$BM41,$I$23*$CB$9-$I$23*$CB$8)),0) ->  | BS41: =IFERROR(IF(VLOOKUP($I$18&$I$19,料金プランマスタ!$E$7:$AD$220,6,0)="","",IF($T41-$BM41-$BP41<$I$23*$CB$10-$I$23*$CB$9,$T41-$BM41-$BP41,$I$23*$CB$10-$I$23*$CB$9)),0) ->  | BV41: =IFERROR(IF(VLOOKUP($I$18&$I$19,料金プランマスタ!$E$7:$AD$220,6,0)="","",IF($T41-$BM41-$BP41-$BS41<$I$23*$CB$11-$I$23*$CB$10,$T41-$BM41-$BP41-$BS41,$I$23*$CB$11-$I$23*$CB$10)),0) ->  | BY41: =IFERROR(IF(VLOOKUP($I$18&$I$19,料金プランマスタ!$E$7:$AD$220,6,0)="","",IF($T41-$BM41-$BP41-$BS41-BV41<$I$23*$CB$12-$I$23*$CB$11,$T41-$BM41-$BP41-$BS41-$BV41,$I$23*$CB$12-$I$23*$CB$11)),0) ->  | CB41: =SUM(AX41:CA41) -> 40812 | CF41: e
C42: 3月 | T42: 13186 | AL42: 13186 | AU42: 3月 | AX42: =IFERROR(IF(VLOOKUP($I$18&$I$19,料金プランマスタ!$E$7:$AD$220,6,0)="",N42,IF($N42<$I$23*$CB$8,$N42,$I$23*$CB$8)),0) -> 0 | BA42: =IFERROR(IF(VLOOKUP($I$18&$I$19,料金プランマスタ!$E$7:$AD$220,6,0)="",T42,IF($N42-$AX42<$I$23*$CB$9-$I$23*$CB$8,$N42-$AX42,$I$23*$CB$9-$I$23*$CB$8)),0) -> 13186 | BD42: =IFERROR(IF(VLOOKUP($I$18&$I$19,料金プランマスタ!$E$7:$AD$220,6,0)="",Z42,IF($N42-$AX42-$BA42<$I$23*$CB$10-$I$23*$CB$9,$N42-$AX42-$BA42,$I$23*$CB$10-$I$23*$CB$9)),0) -> 0 | BG42: =IFERROR(IF(VLOOKUP($I$18&$I$19,料金プランマスタ!$E$7:$AD$220,6,0)="",AF42,IF($N42-$AX42-$BA42-$BD42<$I$23*$CB$11-$I$23*$CB$10,$N42-$AX42-$BA42-$BD42,$I$23*$CB$11-$I$23*$CB$10)),0) -> 0 | BJ42: =IFERROR(IF(VLOOKUP($I$18&$I$19,料金プランマスタ!$E$7:$AD$220,6,0)="","",IF($N42-$AX42-$BA42-$BD42-BG42<$I$23*$CB$12-$I$23*$CB$11,$N42-$AX42-$BA42-$BD42-$BG42,$I$23*$CB$12-$I$23*$CB$11)),0) ->  | BM42: =IFERROR(IF(VLOOKUP($I$18&$I$19,料金プランマスタ!$E$7:$AD$220,6,0)="","",IF($T42<$I$23*$CB$8,$T42,$I$23*$CB$8)),0) ->  | BP42: =IFERROR(IF(VLOOKUP($I$18&$I$19,料金プランマスタ!$E$7:$AD$220,6,0)="","",IF($T42-$BM42<$I$23*$CB$9-$I$23*$CB$8,$T42-$BM42,$I$23*$CB$9-$I$23*$CB$8)),0) ->  | BS42: =IFERROR(IF(VLOOKUP($I$18&$I$19,料金プランマスタ!$E$7:$AD$220,6,0)="","",IF($T42-$BM42-$BP42<$I$23*$CB$10-$I$23*$CB$9,$T42-$BM42-$BP42,$I$23*$CB$10-$I$23*$CB$9)),0) ->  | BV42: =IFERROR(IF(VLOOKUP($I$18&$I$19,料金プランマスタ!$E$7:$AD$220,6,0)="","",IF($T42-$BM42-$BP42-$BS42<$I$23*$CB$11-$I$23*$CB$10,$T42-$BM42-$BP42-$BS42,$I$23*$CB$11-$I$23*$CB$10)),0) ->  | BY42: =IFERROR(IF(VLOOKUP($I$18&$I$19,料金プランマスタ!$E$7:$AD$220,6,0)="","",IF($T42-$BM42-$BP42-$BS42-BV42<$I$23*$CB$12-$I$23*$CB$11,$T42-$BM42-$BP42-$BS42-$BV42,$I$23*$CB$12-$I$23*$CB$11)),0) ->  | CB42: =SUM(AX42:CA42) -> 13186 | CF42: e
C43: 合計 | N43: =SUM(N31:S42) -> 56545 | T43: =IF(T30="-","-",SUM(T31:Y42)) -> 240728 | Z43: =IF(Z30="-","-",SUM(Z31:AE42)) -> - | AF43: =IF(AF30="-","-",SUM(AF31:AK42)) -> - | AL43: =SUM(AL31:AQ42) -> 297273 | AU43: 合計 | AX43: =SUM(AX31:AZ42) -> 56545 | BA43: =IF(BA$30="-","-",SUM(BA31:BC42)) -> 240728 | BD43: =IF(BD$30="-","-",SUM(BD$31:BF$42)) -> - | BG43: =IF(BG$30="-","-",SUM(BG$31:BI$42)) -> - | BJ43: =IF(BJ$30="-","-",SUM(BJ$31:BL$42)) -> - | BM43: =IF(BM$30="-","-",SUM(BM$31:BO$42)) -> - | BP43: =IF(BP$30="-","-",SUM(BP$31:BR$42)) -> - | BS43: =IF(BS$30="-","-",SUM(BS$31:BU$42)) -> - | BV43: =IF(BV$30="-","-",SUM(BV$31:BX$42)) -> - | BY43: =IF(BY$30="-","-",SUM(BY$31:CA$42)) -> - | CB43: =SUM(CB$31:CD$42) -> 297273 | CF43: e
C44: 特記事項 | CF44: e
CF45: e
AL46: ◆負荷率 | AN46: =IF($I$23=0,"",$AL$43/($I$23*12)) -> 247.7275 | CF46: e
AT47: ◆競合情報1 | CF47: e
C48: 競合情報1 | O48: 競合情報2 | AT48: ●使用電力量料金単価 | BX48: ・負荷率帯 | CF48: e
C49: ◆会社名 | O49: ◆会社名 | AC49: 競合情報1特記事項 | AU49: =IFERROR(IF(VLOOKUP($I$18&$I$19,料金プランマスタ!$E$7:$AD$220,6,0)="●",VLOOKUP($I$18&$I$19,料金プランマスタ!$E$7:$AD$220,17,0),$N$30),"") -> 夏季 | AZ49: =IFERROR(VLOOKUP($I$18&$I$19,料金プランマスタ!$E$7:$AO$220,28,FALSE),"") -> 13.94 | BF49: 円/kWh | BH49: =IFERROR(VLOOKUP($I$18&$I$19,料金プランマスタ!$E$7:$AO$220,28,FALSE),"") -> 13.94 | BI49: =IFERROR(IF(VLOOKUP($I$18&$I$19,料金プランマスタ!$E$7:$AD$220,6,0)="●",VLOOKUP($I$18&$I$19,料金プランマスタ!$E$7:$AD$220,22,0),"-"),"") -> - | BO49: =IFERROR(VLOOKUP($I$18&$I$19,料金プランマスタ!$E$7:$AO$220,33,FALSE),"") -> - | BU49: 円/kWh | BW49: =IFERROR(VLOOKUP($I$18&$I$19,料金プランマスタ!$E$7:$AO$220,33,FALSE),"") -> - | BX49: =IFERROR(VLOOKUP($I$18&$I$19,料金プランマスタ!$E$7:$AO$220,7,FALSE),"") -> - | CA49: ～ | CB49: =IFERROR(VLOOKUP($I$18&$I$19,料金プランマスタ!$E$7:$AO$220,8,FALSE),"") -> - | CE49: h | CF49: e
D50: ・「その他」の場合 | H50: =IF($H$49="その他","直接入力して下さい","-") -> - | P50: ・「その他」の場合 | T50: =IF($T$49="その他","直接入力して下さい","-") -> - | AU50: =IFERROR(IF(VLOOKUP($I$18&$I$19,料金プランマスタ!$E$7:$AD$220,6,0)="●",VLOOKUP($I$18&$I$19,料金プランマスタ!$E$7:$AD$220,18,0),$T$30),"") -> その他季 | AZ50: =IFERROR(VLOOKUP($I$18&$I$19,料金プランマスタ!$E$7:$AO$220,29,FALSE),"") -> 12.87 | BF50: 円/kWh | BH50: =IFERROR(VLOOKUP($I$18&$I$19,料金プランマスタ!$E$7:$AO$220,29,FALSE),"") -> 12.87 | BI50: =IFERROR(IF(VLOOKUP($I$18&$I$19,料金プランマスタ!$E$7:$AD$220,6,0)="●",VLOOKUP($I$18&$I$19,料金プランマスタ!$E$7:$AD$220,23,0),"-"),"") -> - | BO50: =IFERROR(VLOOKUP($I$18&$I$19,料金プランマスタ!$E$7:$AO$220,34,FALSE),"") -> - | BU50: 円/kWh | BW50: =IFERROR(VLOOKUP($I$18&$I$19,料金プランマスタ!$E$7:$AO$220,34,FALSE),"") -> - | BX50: =IFERROR(VLOOKUP($I$18&$I$19,料金プランマスタ!$E$7:$AO$220,9,FALSE),"") -> - | CA50: ～ | CB50: =IFERROR(VLOOKUP($I$18&$I$19,料金プランマスタ!$E$7:$AO$220,10,FALSE),"") -> - | CE50: h | CF50: e
C51: ◆競合単価（税込） | O51: ◆競合単価（税込） | AU51: =IFERROR(IF(VLOOKUP($I$18&$I$19,料金プランマスタ!$E$7:$AD$220,6,0)="●",VLOOKUP($I$18&$I$19,料金プランマスタ!$E$7:$AD$220,19,0),$Z$30),"") -> - | AZ51: =IFERROR(VLOOKUP($I$18&$I$19,料金プランマスタ!$E$7:$AO$220,30,FALSE),"") -> - | BF51: 円/kWh | BH51: =IFERROR(VLOOKUP($I$18&$I$19,料金プランマスタ!$E$7:$AO$220,30,FALSE),"") -> - | BI51: =IFERROR(IF(VLOOKUP($I$18&$I$19,料金プランマスタ!$E$7:$AD$220,6,0)="●",VLOOKUP($I$18&$I$19,料金プランマスタ!$E$7:$AD$220,24,0),"-"),"") -> - | BO51: =IFERROR(VLOOKUP($I$18&$I$19,料金プランマスタ!$E$7:$AO$220,35,FALSE),"") -> - | BU51: 円/kWh | BW51: =IFERROR(VLOOKUP($I$18&$I$19,料金プランマスタ!$E$7:$AO$220,35,FALSE),"") -> - | BX51: =IFERROR(VLOOKUP($I$18&$I$19,料金プランマスタ!$E$7:$AO$220,11,FALSE),"") -> - | CA51: ～ | CB51: =IFERROR(VLOOKUP($I$18&$I$19,料金プランマスタ!$E$7:$AO$220,12,FALSE),"") -> - | CE51: h | CF51: e
C52: ●低減率 | L52: % | O52: ●低減率 | X52: % | AU52: =IFERROR(IF(VLOOKUP($I$18&$I$19,料金プランマスタ!$E$7:$AD$220,6,0)="●",VLOOKUP($I$18&$I$19,料金プランマスタ!$E$7:$AD$220,20,0),$AF$30),"") -> - | AZ52: =IFERROR(VLOOKUP($I$18&$I$19,料金プランマスタ!$E$7:$AO$220,31,FALSE),"") -> - | BF52: 円/kWh | BH52: =IFERROR(VLOOKUP($I$18&$I$19,料金プランマスタ!$E$7:$AO$220,31,FALSE),"") -> - | BI52: =IFERROR(IF(VLOOKUP($I$18&$I$19,料金プランマスタ!$E$7:$AD$220,6,0)="●",VLOOKUP($I$18&$I$19,料金プランマスタ!$E$7:$AD$220,25,0),"-"),"") -> - | BO52: =IFERROR(VLOOKUP($I$18&$I$19,料金プランマスタ!$E$7:$AO$220,36,FALSE),"") -> - | BU52: 円/kWh | BW52: =IFERROR(VLOOKUP($I$18&$I$19,料金プランマスタ!$E$7:$AO$220,36,FALSE),"") -> - | BX52: =IFERROR(VLOOKUP($I$18&$I$19,料金プランマスタ!$E$7:$AO$220,13,FALSE),"") -> - | CA52: ～ | CB52: =IFERROR(VLOOKUP($I$18&$I$19,料金プランマスタ!$E$7:$AO$220,14,FALSE),"") -> - | CE52: h | CF52: e
C53: ●基本料金単価 | H53: =IFERROR(VLOOKUP($I$18&$I$19,料金プランマスタ!$E$7:$AO$220,27,FALSE),"") -> 1765.5 | L53: 円/kW | N53: =IFERROR(VLOOKUP($I$18&$I$19,料金プランマスタ!$E$7:$AO$220,27,FALSE),"") -> 1765.5 | O53: ●基本料金単価 | T53: =IFERROR(VLOOKUP($I$18&$I$19,料金プランマスタ!$E$7:$AO$220,27,FALSE),"") -> 1765.5 | X53: 円/kW | Z53: =IFERROR(VLOOKUP($I$18&$I$19,料金プランマスタ!$E$7:$AO$220,27,FALSE),"") -> 1765.5 | AU53: =IFERROR(IF(VLOOKUP($I$18&$I$19,料金プランマスタ!$E$7:$AD$220,6,0)="●",VLOOKUP($I$18&$I$19,料金プランマスタ!$E$7:$AD$220,21,0),"-"),"") -> - | AZ53: =IFERROR(VLOOKUP($I$18&$I$19,料金プランマスタ!$E$7:$AO$220,32,FALSE),"") -> - | BF53: 円/kWh | BH53: =IFERROR(VLOOKUP($I$18&$I$19,料金プランマスタ!$E$7:$AO$220,32,FALSE),"") -> - | BI53: =IFERROR(IF(VLOOKUP($I$18&$I$19,料金プランマスタ!$E$7:$AD$220,6,0)="●",VLOOKUP($I$18&$I$19,料金プランマスタ!$E$7:$AD$220,26,0),"-"),"") -> - | BO53: =IFERROR(VLOOKUP($I$18&$I$19,料金プランマスタ!$E$7:$AO$220,37,FALSE),"") -> - | BU53: 円/kWh | BW53: =IFERROR(VLOOKUP($I$18&$I$19,料金プランマスタ!$E$7:$AO$220,37,FALSE),"") -> - | BX53: =IFERROR(VLOOKUP($I$18&$I$19,料金プランマスタ!$E$7:$AO$220,15,FALSE),"") -> - | CA53: ～ | CB53: =IFERROR(VLOOKUP($I$18&$I$19,料金プランマスタ!$E$7:$AO$220,16,FALSE),"") -> - | CE53: h | CF53: e
C54: ●使用電力量料金単価 | O54: ●使用電力量料金単価 | CF54: e
C55: =IFERROR(" "&IF(VLOOKUP($I$18&$I$19,料金プランマスタ!$E$7:$AD$220,2,0)=0,"-",VLOOKUP($I$18&$I$19,料金プランマスタ!$E$7:$AD$220,2,0)),"") -> 夏季 | H55: =IFERROR(VLOOKUP($I$18&$I$19,料金プランマスタ!$E$7:$AO$220,28,FALSE),"") -> 13.94 | L55: 円/kWh | N55: =IFERROR(VLOOKUP($I$18&$I$19,料金プランマスタ!$E$7:$AO$220,28,FALSE),"") -> 13.94 | O55: =IFERROR(" "&VLOOKUP($I$18&$I$19,料金プランマスタ!$E$7:$AD$220,2,0),"") -> 夏季 | T55: =IFERROR(VLOOKUP($I$18&$I$19,料金プランマスタ!$E$7:$AO$220,28,FALSE),"") -> 13.94 | X55: 円/kWh | Z55: =IFERROR(VLOOKUP($I$18&$I$19,料金プランマスタ!$E$7:$AO$220,28,FALSE),"") -> 13.94 | CF55: e
C56: =IFERROR(" "&IF(VLOOKUP($I$18&$I$19,料金プランマスタ!$E$7:$AD$220,3,0)=0,"-",VLOOKUP($I$18&$I$19,料金プランマスタ!$E$7:$AD$220,3,0)),"") -> その他季 | H56: =IFERROR(VLOOKUP($I$18&$I$19,料金プランマスタ!$E$7:$AO$220,29,FALSE),"") -> 12.87 | L56: 円/kWh | N56: =IFERROR(VLOOKUP($I$18&$I$19,料金プランマスタ!$E$7:$AO$220,29,FALSE),"") -> 12.87 | O56: =IFERROR(" "&VLOOKUP($I$18&$I$19,料金プランマスタ!$E$7:$AD$220,3,0),"") -> その他季 | T56: =IFERROR(VLOOKUP($I$18&$I$19,料金プランマスタ!$E$7:$AO$220,29,FALSE),"") -> 12.87 | X56: 円/kWh | Z56: =IFERROR(VLOOKUP($I$18&$I$19,料金プランマスタ!$E$7:$AO$220,29,FALSE),"") -> 12.87 | AT56: ◆競合情報2 | CF56: e
C57: =IFERROR(" "&IF(VLOOKUP($I$18&$I$19,料金プランマスタ!$E$7:$AD$220,4,0)=0,"-",VLOOKUP($I$18&$I$19,料金プランマスタ!$E$7:$AD$220,4,0)),"") -> - | H57: =IFERROR(VLOOKUP($I$18&$I$19,料金プランマスタ!$E$7:$AO$220,30,FALSE),"") -> - | L57: 円/kWh | N57: =IFERROR(VLOOKUP($I$18&$I$19,料金プランマスタ!$E$7:$AO$220,30,FALSE),"") -> - | O57: =IFERROR(" "&VLOOKUP($I$18&$I$19,料金プランマスタ!$E$7:$AD$220,4,0),"") -> - | T57: =IFERROR(VLOOKUP($I$18&$I$19,料金プランマスタ!$E$7:$AO$220,30,FALSE),"") -> - | X57: 円/kWh | Z57: =IFERROR(VLOOKUP($I$18&$I$19,料金プランマスタ!$E$7:$AO$220,30,FALSE),"") -> - | AC57: 競合情報2特記事項 | AT57: ●使用電力量料金単価 | BX57: ・負荷率帯 | CF57: e
C58: =IFERROR(" "&IF(VLOOKUP($I$18&$I$19,料金プランマスタ!$E$7:$AD$220,4,0)=0,"-",VLOOKUP($I$18&$I$19,料金プランマスタ!$E$7:$AD$220,5,0)),"") -> - | H58: =IFERROR(VLOOKUP($I$18&$I$19,料金プランマスタ!$E$7:$AO$220,31,FALSE),"") -> - | L58: 円/kWh | N58: =IFERROR(VLOOKUP($I$18&$I$19,料金プランマスタ!$E$7:$AO$220,31,FALSE),"") -> - | O58: =IFERROR(" "&VLOOKUP($I$18&$I$19,料金プランマスタ!$E$7:$AD$220,5,0),"") -> - | T58: =IFERROR(VLOOKUP($I$18&$I$19,料金プランマスタ!$E$7:$AO$220,31,FALSE),"") -> - | X58: 円/kWh | Z58: =IFERROR(VLOOKUP($I$18&$I$19,料金プランマスタ!$E$7:$AO$220,31,FALSE),"") -> - | AU58: =IFERROR(IF(VLOOKUP($I$18&$I$19,料金プランマスタ!$E$7:$AD$220,6,0)="●",VLOOKUP($I$18&$I$19,料金プランマスタ!$E$7:$AD$220,17,0),$N$30),"") -> 夏季 | AZ58: =IFERROR(VLOOKUP($I$18&$I$19,料金プランマスタ!$E$7:$AO$220,28,FALSE),"") -> 13.94 | BF58: 円/kWh | BH58: =IFERROR(VLOOKUP($I$18&$I$19,料金プランマスタ!$E$7:$AO$220,28,FALSE),"") -> 13.94 | BI58: =IFERROR(IF(VLOOKUP($I$18&$I$19,料金プランマスタ!$E$7:$AD$220,6,0)="●",VLOOKUP($I$18&$I$19,料金プランマスタ!$E$7:$AD$220,22,0),"-"),"") -> - | BO58: =IFERROR(VLOOKUP($I$18&$I$19,料金プランマスタ!$E$7:$AO$220,33,FALSE),"") -> - | BU58: 円/kWh | BW58: =IFERROR(VLOOKUP($I$18&$I$19,料金プランマスタ!$E$7:$AO$220,33,FALSE),"") -> - | BX58: =IFERROR(VLOOKUP($I$18&$I$19,料金プランマスタ!$E$7:$AO$220,7,FALSE),"") -> - | CA58: ～ | CB58: =IFERROR(VLOOKUP($I$18&$I$19,料金プランマスタ!$E$7:$AO$220,8,FALSE),"") -> - | CE58: h | CF58: e
C59: ●割引 | O59: ●割引 | AU59: =IFERROR(IF(VLOOKUP($I$18&$I$19,料金プランマスタ!$E$7:$AD$220,6,0)="●",VLOOKUP($I$18&$I$19,料金プランマスタ!$E$7:$AD$220,18,0),$T$30),"") -> その他季 | AZ59: =IFERROR(VLOOKUP($I$18&$I$19,料金プランマスタ!$E$7:$AO$220,29,FALSE),"") -> 12.87 | BF59: 円/kWh | BH59: =IFERROR(VLOOKUP($I$18&$I$19,料金プランマスタ!$E$7:$AO$220,29,FALSE),"") -> 12.87 | BI59: =IFERROR(IF(VLOOKUP($I$18&$I$19,料金プランマスタ!$E$7:$AD$220,6,0)="●",VLOOKUP($I$18&$I$19,料金プランマスタ!$E$7:$AD$220,23,0),"-"),"") -> - | BO59: =IFERROR(VLOOKUP($I$18&$I$19,料金プランマスタ!$E$7:$AO$220,34,FALSE),"") -> - | BU59: 円/kWh | BW59: =IFERROR(VLOOKUP($I$18&$I$19,料金プランマスタ!$E$7:$AO$220,34,FALSE),"") -> - | BX59: =IFERROR(VLOOKUP($I$18&$I$19,料金プランマスタ!$E$7:$AO$220,9,FALSE),"") -> - | CA59: ～ | CB59: =IFERROR(VLOOKUP($I$18&$I$19,料金プランマスタ!$E$7:$AO$220,10,FALSE),"") -> - | CE59: h | CF59: e
C60: ・基本料金割引 | L60: 円/kW | O60: ・基本料金割引 | X60: 円/kW | AU60: =IFERROR(IF(VLOOKUP($I$18&$I$19,料金プランマスタ!$E$7:$AD$220,6,0)="●",VLOOKUP($I$18&$I$19,料金プランマスタ!$E$7:$AD$220,19,0),$Z$30),"") -> - | AZ60: =IFERROR(VLOOKUP($I$18&$I$19,料金プランマスタ!$E$7:$AO$220,30,FALSE),"") -> - | BF60: 円/kWh | BH60: =IFERROR(VLOOKUP($I$18&$I$19,料金プランマスタ!$E$7:$AO$220,30,FALSE),"") -> - | BI60: =IFERROR(IF(VLOOKUP($I$18&$I$19,料金プランマスタ!$E$7:$AD$220,6,0)="●",VLOOKUP($I$18&$I$19,料金プランマスタ!$E$7:$AD$220,24,0),"-"),"") -> - | BO60: =IFERROR(VLOOKUP($I$18&$I$19,料金プランマスタ!$E$7:$AO$220,35,FALSE),"") -> - | BU60: 円/kWh | BW60: =IFERROR(VLOOKUP($I$18&$I$19,料金プランマスタ!$E$7:$AO$220,35,FALSE),"") -> - | BX60: =IFERROR(VLOOKUP($I$18&$I$19,料金プランマスタ!$E$7:$AO$220,11,FALSE),"") -> - | CA60: ～ | CB60: =IFERROR(VLOOKUP($I$18&$I$19,料金プランマスタ!$E$7:$AO$220,12,FALSE),"") -> - | CE60: h | CF60: e
C61: ・電力量料金割引 | L61: 円/kW | O61: ・電力量料金割引 | X61: 円/kW | AU61: =IFERROR(IF(VLOOKUP($I$18&$I$19,料金プランマスタ!$E$7:$AD$220,6,0)="●",VLOOKUP($I$18&$I$19,料金プランマスタ!$E$7:$AD$220,20,0),$AF$30),"") -> - | AZ61: =IFERROR(VLOOKUP($I$18&$I$19,料金プランマスタ!$E$7:$AO$220,31,FALSE),"") -> - | BF61: 円/kWh | BH61: =IFERROR(VLOOKUP($I$18&$I$19,料金プランマスタ!$E$7:$AO$220,31,FALSE),"") -> - | BI61: =IFERROR(IF(VLOOKUP($I$18&$I$19,料金プランマスタ!$E$7:$AD$220,6,0)="●",VLOOKUP($I$18&$I$19,料金プランマスタ!$E$7:$AD$220,25,0),"-"),"") -> - | BO61: =IFERROR(VLOOKUP($I$18&$I$19,料金プランマスタ!$E$7:$AO$220,36,FALSE),"") -> - | BU61: 円/kWh | BW61: =IFERROR(VLOOKUP($I$18&$I$19,料金プランマスタ!$E$7:$AO$220,36,FALSE),"") -> - | BX61: =IFERROR(VLOOKUP($I$18&$I$19,料金プランマスタ!$E$7:$AO$220,13,FALSE),"") -> - | CA61: ～ | CB61: =IFERROR(VLOOKUP($I$18&$I$19,料金プランマスタ!$E$7:$AO$220,14,FALSE),"") -> - | CE61: h | CF61: e
C62: ・年間割引総額 | L62: 円 | O62: ・年間割引総額 | X62: 円 | AU62: =IFERROR(IF(VLOOKUP($I$18&$I$19,料金プランマスタ!$E$7:$AD$220,6,0)="●",VLOOKUP($I$18&$I$19,料金プランマスタ!$E$7:$AD$220,21,0),"-"),"") -> - | AZ62: =IFERROR(VLOOKUP($I$18&$I$19,料金プランマスタ!$E$7:$AO$220,32,FALSE),"") -> - | BF62: 円/kWh | BH62: =IFERROR(VLOOKUP($I$18&$I$19,料金プランマスタ!$E$7:$AO$220,32,FALSE),"") -> - | BI62: =IFERROR(IF(VLOOKUP($I$18&$I$19,料金プランマスタ!$E$7:$AD$220,6,0)="●",VLOOKUP($I$18&$I$19,料金プランマスタ!$E$7:$AD$220,26,0),"-"),"") -> - | BO62: =IFERROR(VLOOKUP($I$18&$I$19,料金プランマスタ!$E$7:$AO$220,37,FALSE),"") -> - | BU62: 円/kWh | BW62: =IFERROR(VLOOKUP($I$18&$I$19,料金プランマスタ!$E$7:$AO$220,37,FALSE),"") -> - | BX62: =IFERROR(VLOOKUP($I$18&$I$19,料金プランマスタ!$E$7:$AO$220,15,FALSE),"") -> - | CA62: ～ | CB62: =IFERROR(VLOOKUP($I$18&$I$19,料金プランマスタ!$E$7:$AO$220,16,FALSE),"") -> - | CE62: h | CF62: e
CF63: e
CF64: e
A65: e | B65: e | C65: e | D65: e | E65: e | F65: e | G65: e | H65: e | I65: e | J65: e | K65: e | L65: e | M65: e | N65: e | O65: e | P65: e | Q65: e | R65: e | S65: e | T65: e | U65: e | V65: e | W65: e | X65: e | Y65: e | Z65: e | AA65: e | AB65: e | AC65: e | AD65: e | AE65: e | AF65: e | AG65: e | AH65: e | AI65: e | AJ65: e | AK65: e | AL65: e | AM65: e | AN65: e | AO65: e | AP65: e | AQ65: e | AR65: e | AS65: e | AT65: e | AU65: e | AV65: e | AW65: e | AX65: e | AY65: e | AZ65: e | BA65: e | BB65: e | BC65: e | BD65: e | BE65: e | BF65: e | BG65: e | BH65: e | BI65: e | BJ65: e | BK65: e | BL65: e | BM65: e | BN65: e | BO65: e | BP65: e | BQ65: e | BR65: e | BS65: e | BT65: e | BU65: e | BV65: e | BW65: e | BX65: e | BY65: e | BZ65: e | CA65: e | CB65: e | CC65: e | CD65: e | CE65: e | CF65: e

Sheet 記入例(負荷率別) (hidden)
W1: 電力調査票 | CF1: e
E2: にご入力をお願いします。 | AH2: 記入日： | AJ2: 2019-02-19 | CF2: e
CF3: e
C4: ◆基本情報 | Z4: ◆みなし小売電気事業者約款料金（税込） | CF4: e
C5: ●御社名 | I5: XX製作所 | Z5: ●低減率 | AK5: % | CF5: e
C6: ●業種 | I6: 金属製品 | Z6: ●基本料金単価 | AE6: =IFERROR(VLOOKUP($I$18&$I$19,料金プランマスタ!$E$7:$AO$220,27,FALSE),"") -> 1842.5 | AK6: 円/kW | AT6: ◆みなし小売電気事業者約款料金（税込） | CF6: e
C7: ●御社本社ご住所 | Z7: ●使用電力量料金単価 | AT7: ●使用電力量料金単価 | BX7: ・負荷率帯 | CF7: e
E8: 郵便番号 | I8: 664 | K8: - | L8: 0008 | Z8: =IFERROR(" "&VLOOKUP($I$18&$I$19,料金プランマスタ!$E$7:$AD$220,2,0),"") -> 夏季 | AE8: =IFERROR(VLOOKUP($I$18&$I$19,料金プランマスタ!$E$7:$AO$220,28,FALSE),"") -> 14.14 | AK8: 円/kWh | AU8: =IFERROR(IF(VLOOKUP($I$18&$I$19,料金プランマスタ!$E$7:$AD$220,6,0)="●",VLOOKUP($I$18&$I$19,料金プランマスタ!$E$7:$AD$220,17,0),$N$30),"") -> 夏季100未満 | AZ8: =IFERROR(VLOOKUP($I$18&$I$19,料金プランマスタ!$E$7:$AO$220,28,FALSE),"") -> 14.14 | BF8: 円/kWh | BI8: =IFERROR(IF(VLOOKUP($I$18&$I$19,料金プランマスタ!$E$7:$AD$220,6,0)="●",VLOOKUP($I$18&$I$19,料金プランマスタ!$E$7:$AD$220,22,0),"-"),"") -> 他季100未満 | BO8: =IFERROR(VLOOKUP($I$18&$I$19,料金プランマスタ!$E$7:$AO$220,33,FALSE),"") -> 13.07 | BU8: 円/kWh | BX8: =IFERROR(VLOOKUP($I$18&$I$19,料金プランマスタ!$E$7:$AO$220,7,FALSE),"") -> 0 | CA8: ～ | CB8: =IFERROR(VLOOKUP($I$18&$I$19,料金プランマスタ!$E$7:$AO$220,8,FALSE),"") -> 100 | CE8: h | CF8: e
E9: 都道府県 | I9: 大阪府 | Z9: =IFERROR(" "&VLOOKUP($I$18&$I$19,料金プランマスタ!$E$7:$AD$220,3,0),"") -> その他季 | AE9: =IFERROR(VLOOKUP($I$18&$I$19,料金プランマスタ!$E$7:$AO$220,29,FALSE),"") -> 13.02 | AK9: 円/kWh | AU9: =IFERROR(IF(VLOOKUP($I$18&$I$19,料金プランマスタ!$E$7:$AD$220,6,0)="●",VLOOKUP($I$18&$I$19,料金プランマスタ!$E$7:$AD$220,18,0),$T$30),"") -> 夏季100-200 | AZ9: =IFERROR(VLOOKUP($I$18&$I$19,料金プランマスタ!$E$7:$AO$220,29,FALSE),"") -> 13.02 | BF9: 円/kWh | BI9: =IFERROR(IF(VLOOKUP($I$18&$I$19,料金プランマスタ!$E$7:$AD$220,6,0)="●",VLOOKUP($I$18&$I$19,料金プランマスタ!$E$7:$AD$220,23,0),"-"),"") -> 他季100-200 | BO9: =IFERROR(VLOOKUP($I$18&$I$19,料金プランマスタ!$E$7:$AO$220,34,FALSE),"") -> 12.04 | BU9: 円/kWh | BX9: =IFERROR(VLOOKUP($I$18&$I$19,料金プランマスタ!$E$7:$AO$220,9,FALSE),"") -> 100 | CA9: ～ | CB9: =IFERROR(VLOOKUP($I$18&$I$19,料金プランマスタ!$E$7:$AO$220,10,FALSE),"") -> 200 | CE9: h | CF9: e
E10: 市区町村・番地 | I10: 大阪府伊丹市Xxx | Z10: =IFERROR(" "&VLOOKUP($I$18&$I$19,料金プランマスタ!$E$7:$AD$220,4,0),"") -> - | AE10: =IFERROR(VLOOKUP($I$18&$I$19,料金プランマスタ!$E$7:$AO$220,30,FALSE),"") -> 12.52 | AK10: 円/kWh | AU10: =IFERROR(IF(VLOOKUP($I$18&$I$19,料金プランマスタ!$E$7:$AD$220,6,0)="●",VLOOKUP($I$18&$I$19,料金プランマスタ!$E$7:$AD$220,19,0),$Z$30),"") -> 夏季200-300 | AZ10: =IFERROR(VLOOKUP($I$18&$I$19,料金プランマスタ!$E$7:$AO$220,30,FALSE),"") -> 12.52 | BF10: 円/kWh | BI10: =IFERROR(IF(VLOOKUP($I$18&$I$19,料金プランマスタ!$E$7:$AD$220,6,0)="●",VLOOKUP($I$18&$I$19,料金プランマスタ!$E$7:$AD$220,24,0),"-"),"") -> 他季200-300 | BO10: =IFERROR(VLOOKUP($I$18&$I$19,料金プランマスタ!$E$7:$AO$220,35,FALSE),"") -> 11.59 | BU10: 円/kWh | BX10: =IFERROR(VLOOKUP($I$18&$I$19,料金プランマスタ!$E$7:$AO$220,11,FALSE),"") -> 200 | CA10: ～ | CB10: =IFERROR(VLOOKUP($I$18&$I$19,料金プランマスタ!$E$7:$AO$220,12,FALSE),"") -> 300 | CE10: h | CF10: e
C11: ●需要場所施設名 | I11: 舞洲工場 | Z11: =IFERROR(" "&VLOOKUP($I$18&$I$19,料金プランマスタ!$E$7:$AD$220,5,0),"") -> - | AE11: =IFERROR(VLOOKUP($I$18&$I$19,料金プランマスタ!$E$7:$AO$220,31,FALSE),"") -> 12.39 | AK11: 円/kWh | AU11: =IFERROR(IF(VLOOKUP($I$18&$I$19,料金プランマスタ!$E$7:$AD$220,6,0)="●",VLOOKUP($I$18&$I$19,料金プランマスタ!$E$7:$AD$220,20,0),$AF$30),"") -> 夏季300以上 | AZ11: =IFERROR(VLOOKUP($I$18&$I$19,料金プランマスタ!$E$7:$AO$220,31,FALSE),"") -> 12.39 | BF11: 円/kWh | BI11: =IFERROR(IF(VLOOKUP($I$18&$I$19,料金プランマスタ!$E$7:$AD$220,6,0)="●",VLOOKUP($I$18&$I$19,料金プランマスタ!$E$7:$AD$220,25,0),"-"),"") -> 他季300以上 | BO11: =IFERROR(VLOOKUP($I$18&$I$19,料金プランマスタ!$E$7:$AO$220,36,FALSE),"") -> 11.48 | BU11: 円/kWh | BX11: =IFERROR(VLOOKUP($I$18&$I$19,料金プランマスタ!$E$7:$AO$220,13,FALSE),"") -> 300 | CA11: ～ | CB11: =IFERROR(VLOOKUP($I$18&$I$19,料金プランマスタ!$E$7:$AO$220,14,FALSE),"") -> 999 | CE11: h | CF11: e
C12: ●需要場所ご住所 | Z12: ●割引 | AU12: =IFERROR(IF(VLOOKUP($I$18&$I$19,料金プランマスタ!$E$7:$AD$220,6,0)="●",VLOOKUP($I$18&$I$19,料金プランマスタ!$E$7:$AD$220,21,0),"-"),"") -> - | AZ12: =IFERROR(VLOOKUP($I$18&$I$19,料金プランマスタ!$E$7:$AO$220,32,FALSE),"") -> - | BF12: 円/kWh | BI12: =IFERROR(IF(VLOOKUP($I$18&$I$19,料金プランマスタ!$E$7:$AD$220,6,0)="●",VLOOKUP($I$18&$I$19,料金プランマスタ!$E$7:$AD$220,26,0),"-"),"") -> - | BO12: =IFERROR(VLOOKUP($I$18&$I$19,料金プランマスタ!$E$7:$AO$220,37,FALSE),"") -> - | BU12: 円/kWh | BX12: =IFERROR(VLOOKUP($I$18&$I$19,料金プランマスタ!$E$7:$AO$220,15,FALSE),"") -> - | CA12: ～ | CB12: =IFERROR(VLOOKUP($I$18&$I$19,料金プランマスタ!$E$7:$AO$220,16,FALSE),"") -> - | CE12: h | CF12: e
E13: 郵便番号 | I13: 554 | K13: - | L13: 0041 | Z13: ・基本料金割引 | AK13: 円/kW | CF13: e
E14: 都道府県 | I14: 大阪府 | Z14: ・電力量料金割引 | AK14: 円/kWh | CF14: e
E15: 市区町村・番地 | I15: 大阪府大阪市此花区北港白津 | Z15: ・年間割引総額 | AK15: 円 | CF15: e
CF16: e
C17: ◆主契約情報 | Z17: ◆付帯契約 | CF17: e
C18: ●エリア | I18: 関西電力 | Z18: ●予備線契約 | AK18: kW | CF18: e
C19: ●料金プラン名 | I19: 高圧負荷率別契約Ｓ | Z19: ●予備電源契約 | AK19: kW | CF19: e
C20: ●現契約先 | I20: 関西電力 | Z20: ●自家発補給電力 | AK20: kW | CF20: e
D21: ・「その他」の場合 | I21: =IF($I$20="その他","直接入力して下さい","-") -> - | Z21: ●常用発電設備 | CF21: e
C22: ●受電（供給）電圧 | I22: 6 | O22: kV | CF22: e
C23: ●契約電力[直近］ | I23: 100 | O23: kW | Z23: ◆TCS契約への希望 | CF23: e
Z24: ●TCS長期契約の希望年数 | AK24: 年 | CF24: e
Z25: ●環境に配慮した「グリーン電力」の希望 | CF25: e
CF26: e
CF27: e
C28: ◆月別データ | AT28: ◆月別データ | CF28: e
C29: 月 | F29: 最大需要電力 (デマンド)(kW) | J29: 力率(%) | N29: 使用電力量(kWh) | AU29: 月 | AX29: 使用電力量(kWh) | CF29: e
N30: =IFERROR(VLOOKUP($I$18&$I$19,料金プランマスタ!$E$7:$AD$220,2,0),"") -> 夏季 | O30: =IFERROR(" "&IF($I$19="その他","直接入力して下さい",IF(VLOOKUP($I$18&$I$19,料金プランマスタ!$E$7:$AD$220,2,0)=0,"-",VLOOKUP($I$18&$I$19,料金プランマスタ!$E$7:$AD$220,2,0))),"") -> 夏季 | P30: =IFERROR(" "&IF($I$19="その他","直接入力して下さい",IF(VLOOKUP($I$18&$I$19,料金プランマスタ!$E$7:$AD$220,2,0)=0,"-",VLOOKUP($I$18&$I$19,料金プランマスタ!$E$7:$AD$220,2,0))),"") -> 夏季 | Q30: =IFERROR(" "&IF($I$19="その他","直接入力して下さい",IF(VLOOKUP($I$18&$I$19,料金プランマスタ!$E$7:$AD$220,2,0)=0,"-",VLOOKUP($I$18&$I$19,料金プランマスタ!$E$7:$AD$220,2,0))),"") -> 夏季 | R30: =IFERROR(" "&IF($I$19="その他","直接入力して下さい",IF(VLOOKUP($I$18&$I$19,料金プランマスタ!$E$7:$AD$220,2,0)=0,"-",VLOOKUP($I$18&$I$19,料金プランマスタ!$E$7:$AD$220,2,0))),"") -> 夏季 | S30: =IFERROR(" "&IF($I$19="その他","直接入力して下さい",IF(VLOOKUP($I$18&$I$19,料金プランマスタ!$E$7:$AD$220,2,0)=0,"-",VLOOKUP($I$18&$I$19,料金プランマスタ!$E$7:$AD$220,2,0))),"") -> 夏季 | T30: =IFERROR(VLOOKUP($I$18&$I$19,料金プランマスタ!$E$7:$AD$220,3,0),"") -> その他季 | U30: =IFERROR(" "&IF($I$19="その他","直接入力して下さい",IF(VLOOKUP($I$18&$I$19,料金プランマスタ!$E$7:$AD$220,2,0)=0,"-",VLOOKUP($I$18&$I$19,料金プランマスタ!$E$7:$AD$220,2,0))),"") -> 夏季 | V30: =IFERROR(" "&IF($I$19="その他","直接入力して下さい",IF(VLOOKUP($I$18&$I$19,料金プランマスタ!$E$7:$AD$220,2,0)=0,"-",VLOOKUP($I$18&$I$19,料金プランマスタ!$E$7:$AD$220,2,0))),"") -> 夏季 | W30: =IFERROR(" "&IF($I$19="その他","直接入力して下さい",IF(VLOOKUP($I$18&$I$19,料金プランマスタ!$E$7:$AD$220,2,0)=0,"-",VLOOKUP($I$18&$I$19,料金プランマスタ!$E$7:$AD$220,2,0))),"") -> 夏季 | X30: =IFERROR(" "&IF($I$19="その他","直接入力して下さい",IF(VLOOKUP($I$18&$I$19,料金プランマスタ!$E$7:$AD$220,2,0)=0,"-",VLOOKUP($I$18&$I$19,料金プランマスタ!$E$7:$AD$220,2,0))),"") -> 夏季 | Y30: =IFERROR(" "&IF($I$19="その他","直接入力して下さい",IF(VLOOKUP($I$18&$I$19,料金プランマスタ!$E$7:$AD$220,2,0)=0,"-",VLOOKUP($I$18&$I$19,料金プランマスタ!$E$7:$AD$220,2,0))),"") -> 夏季 | Z30: =IFERROR(VLOOKUP($I$18&$I$19,料金プランマスタ!$E$7:$AD$220,4,0),"") -> - | AA30: =IFERROR(" "&IF($I$19="その他","直接入力して下さい",IF(VLOOKUP($I$18&$I$19,料金プランマスタ!$E$7:$AD$220,2,0)=0,"-",VLOOKUP($I$18&$I$19,料金プランマスタ!$E$7:$AD$220,2,0))),"") -> 夏季 | AB30: =IFERROR(" "&IF($I$19="その他","直接入力して下さい",IF(VLOOKUP($I$18&$I$19,料金プランマスタ!$E$7:$AD$220,2,0)=0,"-",VLOOKUP($I$18&$I$19,料金プランマスタ!$E$7:$AD$220,2,0))),"") -> 夏季 | AC30: =IFERROR(" "&IF($I$19="その他","直接入力して下さい",IF(VLOOKUP($I$18&$I$19,料金プランマスタ!$E$7:$AD$220,2,0)=0,"-",VLOOKUP($I$18&$I$19,料金プランマスタ!$E$7:$AD$220,2,0))),"") -> 夏季 | AD30: =IFERROR(" "&IF($I$19="その他","直接入力して下さい",IF(VLOOKUP($I$18&$I$19,料金プランマスタ!$E$7:$AD$220,2,0)=0,"-",VLOOKUP($I$18&$I$19,料金プランマスタ!$E$7:$AD$220,2,0))),"") -> 夏季 | AE30: =IFERROR(" "&IF($I$19="その他","直接入力して下さい",IF(VLOOKUP($I$18&$I$19,料金プランマスタ!$E$7:$AD$220,2,0)=0,"-",VLOOKUP($I$18&$I$19,料金プランマスタ!$E$7:$AD$220,2,0))),"") -> 夏季 | AF30: =IFERROR(VLOOKUP($I$18&$I$19,料金プランマスタ!$E$7:$AD$220,5,0),"") -> - | AG30: =IFERROR(" "&IF($I$19="その他","直接入力して下さい",IF(VLOOKUP($I$18&$I$19,料金プランマスタ!$E$7:$AD$220,2,0)=0,"-",VLOOKUP($I$18&$I$19,料金プランマスタ!$E$7:$AD$220,2,0))),"") -> 夏季 | AH30: =IFERROR(" "&IF($I$19="その他","直接入力して下さい",IF(VLOOKUP($I$18&$I$19,料金プランマスタ!$E$7:$AD$220,2,0)=0,"-",VLOOKUP($I$18&$I$19,料金プランマスタ!$E$7:$AD$220,2,0))),"") -> 夏季 | AI30: =IFERROR(" "&IF($I$19="その他","直接入力して下さい",IF(VLOOKUP($I$18&$I$19,料金プランマスタ!$E$7:$AD$220,2,0)=0,"-",VLOOKUP($I$18&$I$19,料金プランマスタ!$E$7:$AD$220,2,0))),"") -> 夏季 | AJ30: =IFERROR(" "&IF($I$19="その他","直接入力して下さい",IF(VLOOKUP($I$18&$I$19,料金プランマスタ!$E$7:$AD$220,2,0)=0,"-",VLOOKUP($I$18&$I$19,料金プランマスタ!$E$7:$AD$220,2,0))),"") -> 夏季 | AK30: =IFERROR(" "&IF($I$19="その他","直接入力して下さい",IF(VLOOKUP($I$18&$I$19,料金プランマスタ!$E$7:$AD$220,2,0)=0,"-",VLOOKUP($I$18&$I$19,料金プランマスタ!$E$7:$AD$220,2,0))),"") -> 夏季 | AL30: 合計 | AX30: =AU8 -> 夏季100未満 | BA30: =AU9 -> 夏季100-200 | BD30: =AU10 -> 夏季200-300 | BG30: =AU11 -> 夏季300以上 | BJ30: =AU12 -> - | BM30: =BI8 -> 他季100未満 | BP30: =BI9 -> 他季100-200 | BS30: =BI10 -> 他季200-300 | BV30: =BI11 -> 他季300以上 | BY30: =BI12 -> - | CB30: 合計 | CF30: e
C31: 4月 | T31: 19424 | AL31: =SUM(N31:AK31) -> 19424 | AU31: 4月 | AX31: =IFERROR(IF(VLOOKUP($I$18&$I$19,料金プランマスタ!$E$7:$AD$220,6,0)="",N31,IF($N31<$I$23*$CB$8,$N31,$I$23*$CB$8)),0) -> 0 | BA31: =IFERROR(IF(VLOOKUP($I$18&$I$19,料金プランマスタ!$E$7:$AD$220,6,0)="",T31,IF($N31-$AX31<$I$23*$CB$9-$I$23*$CB$8,$N31-$AX31,$I$23*$CB$9-$I$23*$CB$8)),0) -> 0 | BD31: =IFERROR(IF(VLOOKUP($I$18&$I$19,料金プランマスタ!$E$7:$AD$220,6,0)="",Z31,IF($N31-$AX31-$BA31<$I$23*$CB$10-$I$23*$CB$9,$N31-$AX31-$BA31,$I$23*$CB$10-$I$23*$CB$9)),0) -> 0 | BG31: =IFERROR(IF(VLOOKUP($I$18&$I$19,料金プランマスタ!$E$7:$AD$220,6,0)="",AF31,IF($N31-$AX31-$BA31-$BD31<$I$23*$CB$11-$I$23*$CB$10,$N31-$AX31-$BA31-$BD31,$I$23*$CB$11-$I$23*$CB$10)),0) -> 0 | BJ31: =IFERROR(IF(VLOOKUP($I$18&$I$19,料金プランマスタ!$E$7:$AD$220,6,0)="","",IF($N31-$AX31-$BA31-$BD31-BG31<$I$23*$CB$12-$I$23*$CB$11,$N31-$AX31-$BA31-$BD31-$BG31,$I$23*$CB$12-$I$23*$CB$11)),0) -> 0 | BM31: =IFERROR(IF(VLOOKUP($I$18&$I$19,料金プランマスタ!$E$7:$AD$220,6,0)="","",IF($T31<$I$23*$CB$8,$T31,$I$23*$CB$8)),0) -> 10000 | BP31: =IFERROR(IF(VLOOKUP($I$18&$I$19,料金プランマスタ!$E$7:$AD$220,6,0)="","",IF($T31-$BM31<$I$23*$CB$9-$I$23*$CB$8,$T31-$BM31,$I$23*$CB$9-$I$23*$CB$8)),0) -> 9424 | BS31: =IFERROR(IF(VLOOKUP($I$18&$I$19,料金プランマスタ!$E$7:$AD$220,6,0)="","",IF($T31-$BM31-$BP31<$I$23*$CB$10-$I$23*$CB$9,$T31-$BM31-$BP31,$I$23*$CB$10-$I$23*$CB$9)),0) -> 0 | BV31: =IFERROR(IF(VLOOKUP($I$18&$I$19,料金プランマスタ!$E$7:$AD$220,6,0)="","",IF($T31-$BM31-$BP31-$BS31<$I$23*$CB$11-$I$23*$CB$10,$T31-$BM31-$BP31-$BS31,$I$23*$CB$11-$I$23*$CB$10)),0) -> 0 | BY31: =IFERROR(IF(VLOOKUP($I$18&$I$19,料金プランマスタ!$E$7:$AD$220,6,0)="","",IF($T31-$BM31-$BP31-$BS31-BV31<$I$23*$CB$12-$I$23*$CB$11,$T31-$BM31-$BP31-$BS31-$BV31,$I$23*$CB$12-$I$23*$CB$11)),0) -> 0 | CB31: =SUM(AX31:CA31) -> 19424 | CF31: e
C32: 5月 | T32: 21107 | AL32: =SUM(N32:AK32) -> 21107 | AU32: 5月 | AX32: =IFERROR(IF(VLOOKUP($I$18&$I$19,料金プランマスタ!$E$7:$AD$220,6,0)="",N32,IF($N32<$I$23*$CB$8,$N32,$I$23*$CB$8)),0) -> 0 | BA32: =IFERROR(IF(VLOOKUP($I$18&$I$19,料金プランマスタ!$E$7:$AD$220,6,0)="",T32,IF($N32-$AX32<$I$23*$CB$9-$I$23*$CB$8,$N32-$AX32,$I$23*$CB$9-$I$23*$CB$8)),0) -> 0 | BD32: =IFERROR(IF(VLOOKUP($I$18&$I$19,料金プランマスタ!$E$7:$AD$220,6,0)="",Z32,IF($N32-$AX32-$BA32<$I$23*$CB$10-$I$23*$CB$9,$N32-$AX32-$BA32,$I$23*$CB$10-$I$23*$CB$9)),0) -> 0 | BG32: =IFERROR(IF(VLOOKUP($I$18&$I$19,料金プランマスタ!$E$7:$AD$220,6,0)="",AF32,IF($N32-$AX32-$BA32-$BD32<$I$23*$CB$11-$I$23*$CB$10,$N32-$AX32-$BA32-$BD32,$I$23*$CB$11-$I$23*$CB$10)),0) -> 0 | BJ32: =IFERROR(IF(VLOOKUP($I$18&$I$19,料金プランマスタ!$E$7:$AD$220,6,0)="","",IF($N32-$AX32-$BA32-$BD32-BG32<$I$23*$CB$12-$I$23*$CB$11,$N32-$AX32-$BA32-$BD32-$BG32,$I$23*$CB$12-$I$23*$CB$11)),0) -> 0 | BM32: =IFERROR(IF(VLOOKUP($I$18&$I$19,料金プランマスタ!$E$7:$AD$220,6,0)="","",IF($T32<$I$23*$CB$8,$T32,$I$23*$CB$8)),0) -> 10000 | BP32: =IFERROR(IF(VLOOKUP($I$18&$I$19,料金プランマスタ!$E$7:$AD$220,6,0)="","",IF($T32-$BM32<$I$23*$CB$9-$I$23*$CB$8,$T32-$BM32,$I$23*$CB$9-$I$23*$CB$8)),0) -> 10000 | BS32: =IFERROR(IF(VLOOKUP($I$18&$I$19,料金プランマスタ!$E$7:$AD$220,6,0)="","",IF($T32-$BM32-$BP32<$I$23*$CB$10-$I$23*$CB$9,$T32-$BM32-$BP32,$I$23*$CB$10-$I$23*$CB$9)),0) -> 1107 | BV32: =IFERROR(IF(VLOOKUP($I$18&$I$19,料金プランマスタ!$E$7:$AD$220,6,0)="","",IF($T32-$BM32-$BP32-$BS32<$I$23*$CB$11-$I$23*$CB$10,$T32-$BM32-$BP32-$BS32,$I$23*$CB$11-$I$23*$CB$10)),0) -> 0 | BY32: =IFERROR(IF(VLOOKUP($I$18&$I$19,料金プランマスタ!$E$7:$AD$220,6,0)="","",IF($T32-$BM32-$BP32-$BS32-BV32<$I$23*$CB$12-$I$23*$CB$11,$T32-$BM32-$BP32-$BS32-$BV32,$I$23*$CB$12-$I$23*$CB$11)),0) -> 0 | CB32: =SUM(AX32:CA32) -> 21107 | CF32: e
C33: 6月 | T33: 32198 | AL33: 32198 | AU33: 6月 | AX33: =IFERROR(IF(VLOOKUP($I$18&$I$19,料金プランマスタ!$E$7:$AD$220,6,0)="",N33,IF($N33<$I$23*$CB$8,$N33,$I$23*$CB$8)),0) -> 0 | BA33: =IFERROR(IF(VLOOKUP($I$18&$I$19,料金プランマスタ!$E$7:$AD$220,6,0)="",T33,IF($N33-$AX33<$I$23*$CB$9-$I$23*$CB$8,$N33-$AX33,$I$23*$CB$9-$I$23*$CB$8)),0) -> 0 | BD33: =IFERROR(IF(VLOOKUP($I$18&$I$19,料金プランマスタ!$E$7:$AD$220,6,0)="",Z33,IF($N33-$AX33-$BA33<$I$23*$CB$10-$I$23*$CB$9,$N33-$AX33-$BA33,$I$23*$CB$10-$I$23*$CB$9)),0) -> 0 | BG33: =IFERROR(IF(VLOOKUP($I$18&$I$19,料金プランマスタ!$E$7:$AD$220,6,0)="",AF33,IF($N33-$AX33-$BA33-$BD33<$I$23*$CB$11-$I$23*$CB$10,$N33-$AX33-$BA33-$BD33,$I$23*$CB$11-$I$23*$CB$10)),0) -> 0 | BJ33: =IFERROR(IF(VLOOKUP($I$18&$I$19,料金プランマスタ!$E$7:$AD$220,6,0)="","",IF($N33-$AX33-$BA33-$BD33-BG33<$I$23*$CB$12-$I$23*$CB$11,$N33-$AX33-$BA33-$BD33-$BG33,$I$23*$CB$12-$I$23*$CB$11)),0) -> 0 | BM33: =IFERROR(IF(VLOOKUP($I$18&$I$19,料金プランマスタ!$E$7:$AD$220,6,0)="","",IF($T33<$I$23*$CB$8,$T33,$I$23*$CB$8)),0) -> 10000 | BP33: =IFERROR(IF(VLOOKUP($I$18&$I$19,料金プランマスタ!$E$7:$AD$220,6,0)="","",IF($T33-$BM33<$I$23*$CB$9-$I$23*$CB$8,$T33-$BM33,$I$23*$CB$9-$I$23*$CB$8)),0) -> 10000 | BS33: =IFERROR(IF(VLOOKUP($I$18&$I$19,料金プランマスタ!$E$7:$AD$220,6,0)="","",IF($T33-$BM33-$BP33<$I$23*$CB$10-$I$23*$CB$9,$T33-$BM33-$BP33,$I$23*$CB$10-$I$23*$CB$9)),0) -> 10000 | BV33: =IFERROR(IF(VLOOKUP($I$18&$I$19,料金プランマスタ!$E$7:$AD$220,6,0)="","",IF($T33-$BM33-$BP33-$BS33<$I$23*$CB$11-$I$23*$CB$10,$T33-$BM33-$BP33-$BS33,$I$23*$CB$11-$I$23*$CB$10)),0) -> 2198 | BY33: =IFERROR(IF(VLOOKUP($I$18&$I$19,料金プランマスタ!$E$7:$AD$220,6,0)="","",IF($T33-$BM33-$BP33-$BS33-BV33<$I$23*$CB$12-$I$23*$CB$11,$T33-$BM33-$BP33-$BS33-$BV33,$I$23*$CB$12-$I$23*$CB$11)),0) -> 0 | CB33: 32198 | CF33: e
C34: 7月 | N34: 13008 | AL34: 13008 | AU34: 7月 | AX34: =IFERROR(IF(VLOOKUP($I$18&$I$19,料金プランマスタ!$E$7:$AD$220,6,0)="",N34,IF($N34<$I$23*$CB$8,$N34,$I$23*$CB$8)),0) -> 10000 | BA34: =IFERROR(IF(VLOOKUP($I$18&$I$19,料金プランマスタ!$E$7:$AD$220,6,0)="",T34,IF($N34-$AX34<$I$23*$CB$9-$I$23*$CB$8,$N34-$AX34,$I$23*$CB$9-$I$23*$CB$8)),0) -> 3008 | BD34: =IFERROR(IF(VLOOKUP($I$18&$I$19,料金プランマスタ!$E$7:$AD$220,6,0)="",Z34,IF($N34-$AX34-$BA34<$I$23*$CB$10-$I$23*$CB$9,$N34-$AX34-$BA34,$I$23*$CB$10-$I$23*$CB$9)),0) -> 0 | BG34: =IFERROR(IF(VLOOKUP($I$18&$I$19,料金プランマスタ!$E$7:$AD$220,6,0)="",AF34,IF($N34-$AX34-$BA34-$BD34<$I$23*$CB$11-$I$23*$CB$10,$N34-$AX34-$BA34-$BD34,$I$23*$CB$11-$I$23*$CB$10)),0) -> 0 | BJ34: =IFERROR(IF(VLOOKUP($I$18&$I$19,料金プランマスタ!$E$7:$AD$220,6,0)="","",IF($N34-$AX34-$BA34-$BD34-BG34<$I$23*$CB$12-$I$23*$CB$11,$N34-$AX34-$BA34-$BD34-$BG34,$I$23*$CB$12-$I$23*$CB$11)),0) -> 0 | BM34: =IFERROR(IF(VLOOKUP($I$18&$I$19,料金プランマスタ!$E$7:$AD$220,6,0)="","",IF($T34<$I$23*$CB$8,$T34,$I$23*$CB$8)),0) -> 0 | BP34: =IFERROR(IF(VLOOKUP($I$18&$I$19,料金プランマスタ!$E$7:$AD$220,6,0)="","",IF($T34-$BM34<$I$23*$CB$9-$I$23*$CB$8,$T34-$BM34,$I$23*$CB$9-$I$23*$CB$8)),0) -> 0 | BS34: =IFERROR(IF(VLOOKUP($I$18&$I$19,料金プランマスタ!$E$7:$AD$220,6,0)="","",IF($T34-$BM34-$BP34<$I$23*$CB$10-$I$23*$CB$9,$T34-$BM34-$BP34,$I$23*$CB$10-$I$23*$CB$9)),0) -> 0 | BV34: =IFERROR(IF(VLOOKUP($I$18&$I$19,料金プランマスタ!$E$7:$AD$220,6,0)="","",IF($T34-$BM34-$BP34-$BS34<$I$23*$CB$11-$I$23*$CB$10,$T34-$BM34-$BP34-$BS34,$I$23*$CB$11-$I$23*$CB$10)),0) -> 0 | BY34: =IFERROR(IF(VLOOKUP($I$18&$I$19,料金プランマスタ!$E$7:$AD$220,6,0)="","",IF($T34-$BM34-$BP34-$BS34-BV34<$I$23*$CB$12-$I$23*$CB$11,$T34-$BM34-$BP34-$BS34-$BV34,$I$23*$CB$12-$I$23*$CB$11)),0) -> 0 | CB34: 13008 | CF34: e
C35: 8月 | N35: 3867 | AL35: 3867 | AU35: 8月 | AX35: =IFERROR(IF(VLOOKUP($I$18&$I$19,料金プランマスタ!$E$7:$AD$220,6,0)="",N35,IF($N35<$I$23*$CB$8,$N35,$I$23*$CB$8)),0) -> 3867 | BA35: =IFERROR(IF(VLOOKUP($I$18&$I$19,料金プランマスタ!$E$7:$AD$220,6,0)="",T35,IF($N35-$AX35<$I$23*$CB$9-$I$23*$CB$8,$N35-$AX35,$I$23*$CB$9-$I$23*$CB$8)),0) -> 0 | BD35: =IFERROR(IF(VLOOKUP($I$18&$I$19,料金プランマスタ!$E$7:$AD$220,6,0)="",Z35,IF($N35-$AX35-$BA35<$I$23*$CB$10-$I$23*$CB$9,$N35-$AX35-$BA35,$I$23*$CB$10-$I$23*$CB$9)),0) -> 0 | BG35: =IFERROR(IF(VLOOKUP($I$18&$I$19,料金プランマスタ!$E$7:$AD$220,6,0)="",AF35,IF($N35-$AX35-$BA35-$BD35<$I$23*$CB$11-$I$23*$CB$10,$N35-$AX35-$BA35-$BD35,$I$23*$CB$11-$I$23*$CB$10)),0) -> 0 | BJ35: =IFERROR(IF(VLOOKUP($I$18&$I$19,料金プランマスタ!$E$7:$AD$220,6,0)="","",IF($N35-$AX35-$BA35-$BD35-BG35<$I$23*$CB$12-$I$23*$CB$11,$N35-$AX35-$BA35-$BD35-$BG35,$I$23*$CB$12-$I$23*$CB$11)),0) -> 0 | BM35: =IFERROR(IF(VLOOKUP($I$18&$I$19,料金プランマスタ!$E$7:$AD$220,6,0)="","",IF($T35<$I$23*$CB$8,$T35,$I$23*$CB$8)),0) -> 0 | BP35: =IFERROR(IF(VLOOKUP($I$18&$I$19,料金プランマスタ!$E$7:$AD$220,6,0)="","",IF($T35-$BM35<$I$23*$CB$9-$I$23*$CB$8,$T35-$BM35,$I$23*$CB$9-$I$23*$CB$8)),0) -> 0 | BS35: =IFERROR(IF(VLOOKUP($I$18&$I$19,料金プランマスタ!$E$7:$AD$220,6,0)="","",IF($T35-$BM35-$BP35<$I$23*$CB$10-$I$23*$CB$9,$T35-$BM35-$BP35,$I$23*$CB$10-$I$23*$CB$9)),0) -> 0 | BV35: =IFERROR(IF(VLOOKUP($I$18&$I$19,料金プランマスタ!$E$7:$AD$220,6,0)="","",IF($T35-$BM35-$BP35-$BS35<$I$23*$CB$11-$I$23*$CB$10,$T35-$BM35-$BP35-$BS35,$I$23*$CB$11-$I$23*$CB$10)),0) -> 0 | BY35: =IFERROR(IF(VLOOKUP($I$18&$I$19,料金プランマスタ!$E$7:$AD$220,6,0)="","",IF($T35-$BM35-$BP35-$BS35-BV35<$I$23*$CB$12-$I$23*$CB$11,$T35-$BM35-$BP35-$BS35-$BV35,$I$23*$CB$12-$I$23*$CB$11)),0) -> 0 | CB35: 3867 | CF35: e
C36: 9月 | N36: 39670 | AL36: 39670 | AU36: 9月 | AX36: =IFERROR(IF(VLOOKUP($I$18&$I$19,料金プランマスタ!$E$7:$AD$220,6,0)="",N36,IF($N36<$I$23*$CB$8,$N36,$I$23*$CB$8)),0) -> 10000 | BA36: =IFERROR(IF(VLOOKUP($I$18&$I$19,料金プランマスタ!$E$7:$AD$220,6,0)="",T36,IF($N36-$AX36<$I$23*$CB$9-$I$23*$CB$8,$N36-$AX36,$I$23*$CB$9-$I$23*$CB$8)),0) -> 10000 | BD36: =IFERROR(IF(VLOOKUP($I$18&$I$19,料金プランマスタ!$E$7:$AD$220,6,0)="",Z36,IF($N36-$AX36-$BA36<$I$23*$CB$10-$I$23*$CB$9,$N36-$AX36-$BA36,$I$23*$CB$10-$I$23*$CB$9)),0) -> 10000 | BG36: =IFERROR(IF(VLOOKUP($I$18&$I$19,料金プランマスタ!$E$7:$AD$220,6,0)="",AF36,IF($N36-$AX36-$BA36-$BD36<$I$23*$CB$11-$I$23*$CB$10,$N36-$AX36-$BA36-$BD36,$I$23*$CB$11-$I$23*$CB$10)),0) -> 9670 | BJ36: =IFERROR(IF(VLOOKUP($I$18&$I$19,料金プランマスタ!$E$7:$AD$220,6,0)="","",IF($N36-$AX36-$BA36-$BD36-BG36<$I$23*$CB$12-$I$23*$CB$11,$N36-$AX36-$BA36-$BD36-$BG36,$I$23*$CB$12-$I$23*$CB$11)),0) -> 0 | BM36: =IFERROR(IF(VLOOKUP($I$18&$I$19,料金プランマスタ!$E$7:$AD$220,6,0)="","",IF($T36<$I$23*$CB$8,$T36,$I$23*$CB$8)),0) -> 0 | BP36: =IFERROR(IF(VLOOKUP($I$18&$I$19,料金プランマスタ!$E$7:$AD$220,6,0)="","",IF($T36-$BM36<$I$23*$CB$9-$I$23*$CB$8,$T36-$BM36,$I$23*$CB$9-$I$23*$CB$8)),0) -> 0 | BS36: =IFERROR(IF(VLOOKUP($I$18&$I$19,料金プランマスタ!$E$7:$AD$220,6,0)="","",IF($T36-$BM36-$BP36<$I$23*$CB$10-$I$23*$CB$9,$T36-$BM36-$BP36,$I$23*$CB$10-$I$23*$CB$9)),0) -> 0 | BV36: =IFERROR(IF(VLOOKUP($I$18&$I$19,料金プランマスタ!$E$7:$AD$220,6,0)="","",IF($T36-$BM36-$BP36-$BS36<$I$23*$CB$11-$I$23*$CB$10,$T36-$BM36-$BP36-$BS36,$I$23*$CB$11-$I$23*$CB$10)),0) -> 0 | BY36: =IFERROR(IF(VLOOKUP($I$18&$I$19,料金プランマスタ!$E$7:$AD$220,6,0)="","",IF($T36-$BM36-$BP36-$BS36-BV36<$I$23*$CB$12-$I$23*$CB$11,$T36-$BM36-$BP36-$BS36-$BV36,$I$23*$CB$12-$I$23*$CB$11)),0) -> 0 | CB36: 39670 | CF36: e
C37: 10月 | T37: 14596 | AL37: 14596 | AU37: 10月 | AX37: =IFERROR(IF(VLOOKUP($I$18&$I$19,料金プランマスタ!$E$7:$AD$220,6,0)="",N37,IF($N37<$I$23*$CB$8,$N37,$I$23*$CB$8)),0) -> 0 | BA37: =IFERROR(IF(VLOOKUP($I$18&$I$19,料金プランマスタ!$E$7:$AD$220,6,0)="",T37,IF($N37-$AX37<$I$23*$CB$9-$I$23*$CB$8,$N37-$AX37,$I$23*$CB$9-$I$23*$CB$8)),0) -> 0 | BD37: =IFERROR(IF(VLOOKUP($I$18&$I$19,料金プランマスタ!$E$7:$AD$220,6,0)="",Z37,IF($N37-$AX37-$BA37<$I$23*$CB$10-$I$23*$CB$9,$N37-$AX37-$BA37,$I$23*$CB$10-$I$23*$CB$9)),0) -> 0 | BG37: =IFERROR(IF(VLOOKUP($I$18&$I$19,料金プランマスタ!$E$7:$AD$220,6,0)="",AF37,IF($N37-$AX37-$BA37-$BD37<$I$23*$CB$11-$I$23*$CB$10,$N37-$AX37-$BA37-$BD37,$I$23*$CB$11-$I$23*$CB$10)),0) -> 0 | BJ37: =IFERROR(IF(VLOOKUP($I$18&$I$19,料金プランマスタ!$E$7:$AD$220,6,0)="","",IF($N37-$AX37-$BA37-$BD37-BG37<$I$23*$CB$12-$I$23*$CB$11,$N37-$AX37-$BA37-$BD37-$BG37,$I$23*$CB$12-$I$23*$CB$11)),0) -> 0 | BM37: =IFERROR(IF(VLOOKUP($I$18&$I$19,料金プランマスタ!$E$7:$AD$220,6,0)="","",IF($T37<$I$23*$CB$8,$T37,$I$23*$CB$8)),0) -> 10000 | BP37: =IFERROR(IF(VLOOKUP($I$18&$I$19,料金プランマスタ!$E$7:$AD$220,6,0)="","",IF($T37-$BM37<$I$23*$CB$9-$I$23*$CB$8,$T37-$BM37,$I$23*$CB$9-$I$23*$CB$8)),0) -> 4596 | BS37: =IFERROR(IF(VLOOKUP($I$18&$I$19,料金プランマスタ!$E$7:$AD$220,6,0)="","",IF($T37-$BM37-$BP37<$I$23*$CB$10-$I$23*$CB$9,$T37-$BM37-$BP37,$I$23*$CB$10-$I$23*$CB$9)),0) -> 0 | BV37: =IFERROR(IF(VLOOKUP($I$18&$I$19,料金プランマスタ!$E$7:$AD$220,6,0)="","",IF($T37-$BM37-$BP37-$BS37<$I$23*$CB$11-$I$23*$CB$10,$T37-$BM37-$BP37-$BS37,$I$23*$CB$11-$I$23*$CB$10)),0) -> 0 | BY37: =IFERROR(IF(VLOOKUP($I$18&$I$19,料金プランマスタ!$E$7:$AD$220,6,0)="","",IF($T37-$BM37-$BP37-$BS37-BV37<$I$23*$CB$12-$I$23*$CB$11,$T37-$BM37-$BP37-$BS37-$BV37,$I$23*$CB$12-$I$23*$CB$11)),0) -> 0 | CB37: 14596 | CF37: e
C38: 11月 | T38: 35184 | AL38: 35184 | AU38: 11月 | AX38: =IFERROR(IF(VLOOKUP($I$18&$I$19,料金プランマスタ!$E$7:$AD$220,6,0)="",N38,IF($N38<$I$23*$CB$8,$N38,$I$23*$CB$8)),0) -> 0 | BA38: =IFERROR(IF(VLOOKUP($I$18&$I$19,料金プランマスタ!$E$7:$AD$220,6,0)="",T38,IF($N38-$AX38<$I$23*$CB$9-$I$23*$CB$8,$N38-$AX38,$I$23*$CB$9-$I$23*$CB$8)),0) -> 0 | BD38: =IFERROR(IF(VLOOKUP($I$18&$I$19,料金プランマスタ!$E$7:$AD$220,6,0)="",Z38,IF($N38-$AX38-$BA38<$I$23*$CB$10-$I$23*$CB$9,$N38-$AX38-$BA38,$I$23*$CB$10-$I$23*$CB$9)),0) -> 0 | BG38: =IFERROR(IF(VLOOKUP($I$18&$I$19,料金プランマスタ!$E$7:$AD$220,6,0)="",AF38,IF($N38-$AX38-$BA38-$BD38<$I$23*$CB$11-$I$23*$CB$10,$N38-$AX38-$BA38-$BD38,$I$23*$CB$11-$I$23*$CB$10)),0) -> 0 | BJ38: =IFERROR(IF(VLOOKUP($I$18&$I$19,料金プランマスタ!$E$7:$AD$220,6,0)="","",IF($N38-$AX38-$BA38-$BD38-BG38<$I$23*$CB$12-$I$23*$CB$11,$N38-$AX38-$BA38-$BD38-$BG38,$I$23*$CB$12-$I$23*$CB$11)),0) -> 0 | BM38: =IFERROR(IF(VLOOKUP($I$18&$I$19,料金プランマスタ!$E$7:$AD$220,6,0)="","",IF($T38<$I$23*$CB$8,$T38,$I$23*$CB$8)),0) -> 10000 | BP38: =IFERROR(IF(VLOOKUP($I$18&$I$19,料金プランマスタ!$E$7:$AD$220,6,0)="","",IF($T38-$BM38<$I$23*$CB$9-$I$23*$CB$8,$T38-$BM38,$I$23*$CB$9-$I$23*$CB$8)),0) -> 10000 | BS38: =IFERROR(IF(VLOOKUP($I$18&$I$19,料金プランマスタ!$E$7:$AD$220,6,0)="","",IF($T38-$BM38-$BP38<$I$23*$CB$10-$I$23*$CB$9,$T38-$BM38-$BP38,$I$23*$CB$10-$I$23*$CB$9)),0) -> 10000 | BV38: =IFERROR(IF(VLOOKUP($I$18&$I$19,料金プランマスタ!$E$7:$AD$220,6,0)="","",IF($T38-$BM38-$BP38-$BS38<$I$23*$CB$11-$I$23*$CB$10,$T38-$BM38-$BP38-$BS38,$I$23*$CB$11-$I$23*$CB$10)),0) -> 5184 | BY38: =IFERROR(IF(VLOOKUP($I$18&$I$19,料金プランマスタ!$E$7:$AD$220,6,0)="","",IF($T38-$BM38-$BP38-$BS38-BV38<$I$23*$CB$12-$I$23*$CB$11,$T38-$BM38-$BP38-$BS38-$BV38,$I$23*$CB$12-$I$23*$CB$11)),0) -> 0 | CB38: 35184 | CF38: e
C39: 12月 | T39: 47527 | AL39: 47527 | AU39: 12月 | AX39: =IFERROR(IF(VLOOKUP($I$18&$I$19,料金プランマスタ!$E$7:$AD$220,6,0)="",N39,IF($N39<$I$23*$CB$8,$N39,$I$23*$CB$8)),0) -> 0 | BA39: =IFERROR(IF(VLOOKUP($I$18&$I$19,料金プランマスタ!$E$7:$AD$220,6,0)="",T39,IF($N39-$AX39<$I$23*$CB$9-$I$23*$CB$8,$N39-$AX39,$I$23*$CB$9-$I$23*$CB$8)),0) -> 0 | BD39: =IFERROR(IF(VLOOKUP($I$18&$I$19,料金プランマスタ!$E$7:$AD$220,6,0)="",Z39,IF($N39-$AX39-$BA39<$I$23*$CB$10-$I$23*$CB$9,$N39-$AX39-$BA39,$I$23*$CB$10-$I$23*$CB$9)),0) -> 0 | BG39: =IFERROR(IF(VLOOKUP($I$18&$I$19,料金プランマスタ!$E$7:$AD$220,6,0)="",AF39,IF($N39-$AX39-$BA39-$BD39<$I$23*$CB$11-$I$23*$CB$10,$N39-$AX39-$BA39-$BD39,$I$23*$CB$11-$I$23*$CB$10)),0) -> 0 | BJ39: =IFERROR(IF(VLOOKUP($I$18&$I$19,料金プランマスタ!$E$7:$AD$220,6,0)="","",IF($N39-$AX39-$BA39-$BD39-BG39<$I$23*$CB$12-$I$23*$CB$11,$N39-$AX39-$BA39-$BD39-$BG39,$I$23*$CB$12-$I$23*$CB$11)),0) -> 0 | BM39: =IFERROR(IF(VLOOKUP($I$18&$I$19,料金プランマスタ!$E$7:$AD$220,6,0)="","",IF($T39<$I$23*$CB$8,$T39,$I$23*$CB$8)),0) -> 10000 | BP39: =IFERROR(IF(VLOOKUP($I$18&$I$19,料金プランマスタ!$E$7:$AD$220,6,0)="","",IF($T39-$BM39<$I$23*$CB$9-$I$23*$CB$8,$T39-$BM39,$I$23*$CB$9-$I$23*$CB$8)),0) -> 10000 | BS39: =IFERROR(IF(VLOOKUP($I$18&$I$19,料金プランマスタ!$E$7:$AD$220,6,0)="","",IF($T39-$BM39-$BP39<$I$23*$CB$10-$I$23*$CB$9,$T39-$BM39-$BP39,$I$23*$CB$10-$I$23*$CB$9)),0) -> 10000 | BV39: =IFERROR(IF(VLOOKUP($I$18&$I$19,料金プランマスタ!$E$7:$AD$220,6,0)="","",IF($T39-$BM39-$BP39-$BS39<$I$23*$CB$11-$I$23*$CB$10,$T39-$BM39-$BP39-$BS39,$I$23*$CB$11-$I$23*$CB$10)),0) -> 17527 | BY39: =IFERROR(IF(VLOOKUP($I$18&$I$19,料金プランマスタ!$E$7:$AD$220,6,0)="","",IF($T39-$BM39-$BP39-$BS39-BV39<$I$23*$CB$12-$I$23*$CB$11,$T39-$BM39-$BP39-$BS39-$BV39,$I$23*$CB$12-$I$23*$CB$11)),0) -> 0 | CB39: 47527 | CF39: e
C40: 1月 | T40: 16694 | AL40: 16694 | AU40: 1月 | AX40: =IFERROR(IF(VLOOKUP($I$18&$I$19,料金プランマスタ!$E$7:$AD$220,6,0)="",N40,IF($N40<$I$23*$CB$8,$N40,$I$23*$CB$8)),0) -> 0 | BA40: =IFERROR(IF(VLOOKUP($I$18&$I$19,料金プランマスタ!$E$7:$AD$220,6,0)="",T40,IF($N40-$AX40<$I$23*$CB$9-$I$23*$CB$8,$N40-$AX40,$I$23*$CB$9-$I$23*$CB$8)),0) -> 0 | BD40: =IFERROR(IF(VLOOKUP($I$18&$I$19,料金プランマスタ!$E$7:$AD$220,6,0)="",Z40,IF($N40-$AX40-$BA40<$I$23*$CB$10-$I$23*$CB$9,$N40-$AX40-$BA40,$I$23*$CB$10-$I$23*$CB$9)),0) -> 0 | BG40: =IFERROR(IF(VLOOKUP($I$18&$I$19,料金プランマスタ!$E$7:$AD$220,6,0)="",AF40,IF($N40-$AX40-$BA40-$BD40<$I$23*$CB$11-$I$23*$CB$10,$N40-$AX40-$BA40-$BD40,$I$23*$CB$11-$I$23*$CB$10)),0) -> 0 | BJ40: =IFERROR(IF(VLOOKUP($I$18&$I$19,料金プランマスタ!$E$7:$AD$220,6,0)="","",IF($N40-$AX40-$BA40-$BD40-BG40<$I$23*$CB$12-$I$23*$CB$11,$N40-$AX40-$BA40-$BD40-$BG40,$I$23*$CB$12-$I$23*$CB$11)),0) -> 0 | BM40: =IFERROR(IF(VLOOKUP($I$18&$I$19,料金プランマスタ!$E$7:$AD$220,6,0)="","",IF($T40<$I$23*$CB$8,$T40,$I$23*$CB$8)),0) -> 10000 | BP40: =IFERROR(IF(VLOOKUP($I$18&$I$19,料金プランマスタ!$E$7:$AD$220,6,0)="","",IF($T40-$BM40<$I$23*$CB$9-$I$23*$CB$8,$T40-$BM40,$I$23*$CB$9-$I$23*$CB$8)),0) -> 6694 | BS40: =IFERROR(IF(VLOOKUP($I$18&$I$19,料金プランマスタ!$E$7:$AD$220,6,0)="","",IF($T40-$BM40-$BP40<$I$23*$CB$10-$I$23*$CB$9,$T40-$BM40-$BP40,$I$23*$CB$10-$I$23*$CB$9)),0) -> 0 | BV40: =IFERROR(IF(VLOOKUP($I$18&$I$19,料金プランマスタ!$E$7:$AD$220,6,0)="","",IF($T40-$BM40-$BP40-$BS40<$I$23*$CB$11-$I$23*$CB$10,$T40-$BM40-$BP40-$BS40,$I$23*$CB$11-$I$23*$CB$10)),0) -> 0 | BY40: =IFERROR(IF(VLOOKUP($I$18&$I$19,料金プランマスタ!$E$7:$AD$220,6,0)="","",IF($T40-$BM40-$BP40-$BS40-BV40<$I$23*$CB$12-$I$23*$CB$11,$T40-$BM40-$BP40-$BS40-$BV40,$I$23*$CB$12-$I$23*$CB$11)),0) -> 0 | CB40: 16694 | CF40: e
C41: 2月 | T41: 40812 | AL41: 40812 | AU41: 2月 | AX41: =IFERROR(IF(VLOOKUP($I$18&$I$19,料金プランマスタ!$E$7:$AD$220,6,0)="",N41,IF($N41<$I$23*$CB$8,$N41,$I$23*$CB$8)),0) -> 0 | BA41: =IFERROR(IF(VLOOKUP($I$18&$I$19,料金プランマスタ!$E$7:$AD$220,6,0)="",T41,IF($N41-$AX41<$I$23*$CB$9-$I$23*$CB$8,$N41-$AX41,$I$23*$CB$9-$I$23*$CB$8)),0) -> 0 | BD41: =IFERROR(IF(VLOOKUP($I$18&$I$19,料金プランマスタ!$E$7:$AD$220,6,0)="",Z41,IF($N41-$AX41-$BA41<$I$23*$CB$10-$I$23*$CB$9,$N41-$AX41-$BA41,$I$23*$CB$10-$I$23*$CB$9)),0) -> 0 | BG41: =IFERROR(IF(VLOOKUP($I$18&$I$19,料金プランマスタ!$E$7:$AD$220,6,0)="",AF41,IF($N41-$AX41-$BA41-$BD41<$I$23*$CB$11-$I$23*$CB$10,$N41-$AX41-$BA41-$BD41,$I$23*$CB$11-$I$23*$CB$10)),0) -> 0 | BJ41: =IFERROR(IF(VLOOKUP($I$18&$I$19,料金プランマスタ!$E$7:$AD$220,6,0)="","",IF($N41-$AX41-$BA41-$BD41-BG41<$I$23*$CB$12-$I$23*$CB$11,$N41-$AX41-$BA41-$BD41-$BG41,$I$23*$CB$12-$I$23*$CB$11)),0) -> 0 | BM41: =IFERROR(IF(VLOOKUP($I$18&$I$19,料金プランマスタ!$E$7:$AD$220,6,0)="","",IF($T41<$I$23*$CB$8,$T41,$I$23*$CB$8)),0) -> 10000 | BP41: =IFERROR(IF(VLOOKUP($I$18&$I$19,料金プランマスタ!$E$7:$AD$220,6,0)="","",IF($T41-$BM41<$I$23*$CB$9-$I$23*$CB$8,$T41-$BM41,$I$23*$CB$9-$I$23*$CB$8)),0) -> 10000 | BS41: =IFERROR(IF(VLOOKUP($I$18&$I$19,料金プランマスタ!$E$7:$AD$220,6,0)="","",IF($T41-$BM41-$BP41<$I$23*$CB$10-$I$23*$CB$9,$T41-$BM41-$BP41,$I$23*$CB$10-$I$23*$CB$9)),0) -> 10000 | BV41: =IFERROR(IF(VLOOKUP($I$18&$I$19,料金プランマスタ!$E$7:$AD$220,6,0)="","",IF($T41-$BM41-$BP41-$BS41<$I$23*$CB$11-$I$23*$CB$10,$T41-$BM41-$BP41-$BS41,$I$23*$CB$11-$I$23*$CB$10)),0) -> 10812 | BY41: =IFERROR(IF(VLOOKUP($I$18&$I$19,料金プランマスタ!$E$7:$AD$220,6,0)="","",IF($T41-$BM41-$BP41-$BS41-BV41<$I$23*$CB$12-$I$23*$CB$11,$T41-$BM41-$BP41-$BS41-$BV41,$I$23*$CB$12-$I$23*$CB$11)),0) -> 0 | CB41: =SUM(AX41:CA41) -> 40812 | CF41: e
C42: 3月 | T42: 13186 | AL42: 13186 | AU42: 3月 | AX42: =IFERROR(IF(VLOOKUP($I$18&$I$19,料金プランマスタ!$E$7:$AD$220,6,0)="",N42,IF($N42<$I$23*$CB$8,$N42,$I$23*$CB$8)),0) -> 0 | BA42: =IFERROR(IF(VLOOKUP($I$18&$I$19,料金プランマスタ!$E$7:$AD$220,6,0)="",T42,IF($N42-$AX42<$I$23*$CB$9-$I$23*$CB$8,$N42-$AX42,$I$23*$CB$9-$I$23*$CB$8)),0) -> 0 | BD42: =IFERROR(IF(VLOOKUP($I$18&$I$19,料金プランマスタ!$E$7:$AD$220,6,0)="",Z42,IF($N42-$AX42-$BA42<$I$23*$CB$10-$I$23*$CB$9,$N42-$AX42-$BA42,$I$23*$CB$10-$I$23*$CB$9)),0) -> 0 | BG42: =IFERROR(IF(VLOOKUP($I$18&$I$19,料金プランマスタ!$E$7:$AD$220,6,0)="",AF42,IF($N42-$AX42-$BA42-$BD42<$I$23*$CB$11-$I$23*$CB$10,$N42-$AX42-$BA42-$BD42,$I$23*$CB$11-$I$23*$CB$10)),0) -> 0 | BJ42: =IFERROR(IF(VLOOKUP($I$18&$I$19,料金プランマスタ!$E$7:$AD$220,6,0)="","",IF($N42-$AX42-$BA42-$BD42-BG42<$I$23*$CB$12-$I$23*$CB$11,$N42-$AX42-$BA42-$BD42-$BG42,$I$23*$CB$12-$I$23*$CB$11)),0) -> 0 | BM42: =IFERROR(IF(VLOOKUP($I$18&$I$19,料金プランマスタ!$E$7:$AD$220,6,0)="","",IF($T42<$I$23*$CB$8,$T42,$I$23*$CB$8)),0) -> 10000 | BP42: =IFERROR(IF(VLOOKUP($I$18&$I$19,料金プランマスタ!$E$7:$AD$220,6,0)="","",IF($T42-$BM42<$I$23*$CB$9-$I$23*$CB$8,$T42-$BM42,$I$23*$CB$9-$I$23*$CB$8)),0) -> 3186 | BS42: =IFERROR(IF(VLOOKUP($I$18&$I$19,料金プランマスタ!$E$7:$AD$220,6,0)="","",IF($T42-$BM42-$BP42<$I$23*$CB$10-$I$23*$CB$9,$T42-$BM42-$BP42,$I$23*$CB$10-$I$23*$CB$9)),0) -> 0 | BV42: =IFERROR(IF(VLOOKUP($I$18&$I$19,料金プランマスタ!$E$7:$AD$220,6,0)="","",IF($T42-$BM42-$BP42-$BS42<$I$23*$CB$11-$I$23*$CB$10,$T42-$BM42-$BP42-$BS42,$I$23*$CB$11-$I$23*$CB$10)),0) -> 0 | BY42: =IFERROR(IF(VLOOKUP($I$18&$I$19,料金プランマスタ!$E$7:$AD$220,6,0)="","",IF($T42-$BM42-$BP42-$BS42-BV42<$I$23*$CB$12-$I$23*$CB$11,$T42-$BM42-$BP42-$BS42-$BV42,$I$23*$CB$12-$I$23*$CB$11)),0) -> 0 | CB42: =SUM(AX42:CA42) -> 13186 | CF42: e
C43: 合計 | N43: =SUM(N31:S42) -> 56545 | T43: =IF(T30="-","-",SUM(T31:Y42)) -> 240728 | Z43: =IF(Z30="-","-",SUM(Z31:AE42)) -> - | AF43: =IF(AF30="-","-",SUM(AF31:AK42)) -> - | AL43: =SUM(AL31:AQ42) -> 297273 | AU43: 合計 | AX43: =SUM(AX31:AZ42) -> 23867 | BA43: =IF(BA$30="-","-",SUM(BA31:BC42)) -> 13008 | BD43: =IF(BD$30="-","-",SUM(BD$31:BF$42)) -> 10000 | BG43: =IF(BG$30="-","-",SUM(BG$31:BI$42)) -> 9670 | BJ43: =IF(BJ$30="-","-",SUM(BJ$31:BL$42)) -> - | BM43: =IF(BM$30="-","-",SUM(BM$31:BO$42)) -> 90000 | BP43: =IF(BP$30="-","-",SUM(BP$31:BR$42)) -> 73900 | BS43: =IF(BS$30="-","-",SUM(BS$31:BU$42)) -> 41107 | BV43: =IF(BV$30="-","-",SUM(BV$31:BX$42)) -> 35721 | BY43: =IF(BY$30="-","-",SUM(BY$31:CA$42)) -> - | CB43: =SUM(CB$31:CD$42) -> 297273 | CF43: e
C44: 特記事項 | CF44: e
CF45: e
AL46: ◆負荷率 | AN46: =IF($I$23=0,"",$AL$43/($I$23*12)) -> 247.7275 | CF46: e
AT47: ◆競合情報1 | CF47: e
C48: 競合情報1 | O48: 競合情報2 | AT48: ●使用電力量料金単価 | BX48: ・負荷率帯 | CF48: e
C49: ◆会社名 | O49: ◆会社名 | AC49: 競合情報1特記事項 | AU49: =IFERROR(IF(VLOOKUP($I$18&$I$19,料金プランマスタ!$E$7:$AD$220,6,0)="●",VLOOKUP($I$18&$I$19,料金プランマスタ!$E$7:$AD$220,17,0),$N$30),"") -> 夏季100未満 | AZ49: =IFERROR(VLOOKUP($I$18&$I$19,料金プランマスタ!$E$7:$AO$220,28,FALSE),"") -> 14.14 | BF49: 円/kWh | BH49: =IFERROR(VLOOKUP($I$18&$I$19,料金プランマスタ!$E$7:$AO$220,28,FALSE),"") -> 14.14 | BI49: =IFERROR(IF(VLOOKUP($I$18&$I$19,料金プランマスタ!$E$7:$AD$220,6,0)="●",VLOOKUP($I$18&$I$19,料金プランマスタ!$E$7:$AD$220,22,0),"-"),"") -> 他季100未満 | BO49: =IFERROR(VLOOKUP($I$18&$I$19,料金プランマスタ!$E$7:$AO$220,33,FALSE),"") -> 13.07 | BU49: 円/kWh | BW49: =IFERROR(VLOOKUP($I$18&$I$19,料金プランマスタ!$E$7:$AO$220,33,FALSE),"") -> 13.07 | BX49: =IFERROR(VLOOKUP($I$18&$I$19,料金プランマスタ!$E$7:$AO$220,7,FALSE),"") -> 0 | CA49: ～ | CB49: =IFERROR(VLOOKUP($I$18&$I$19,料金プランマスタ!$E$7:$AO$220,8,FALSE),"") -> 100 | CE49: h | CF49: e
D50: ・「その他」の場合 | H50: =IF($H$49="その他","直接入力して下さい","-") -> - | P50: ・「その他」の場合 | T50: =IF($T$49="その他","直接入力して下さい","-") -> - | AU50: =IFERROR(IF(VLOOKUP($I$18&$I$19,料金プランマスタ!$E$7:$AD$220,6,0)="●",VLOOKUP($I$18&$I$19,料金プランマスタ!$E$7:$AD$220,18,0),$T$30),"") -> 夏季100-200 | AZ50: =IFERROR(VLOOKUP($I$18&$I$19,料金プランマスタ!$E$7:$AO$220,29,FALSE),"") -> 13.02 | BF50: 円/kWh | BH50: =IFERROR(VLOOKUP($I$18&$I$19,料金プランマスタ!$E$7:$AO$220,29,FALSE),"") -> 13.02 | BI50: =IFERROR(IF(VLOOKUP($I$18&$I$19,料金プランマスタ!$E$7:$AD$220,6,0)="●",VLOOKUP($I$18&$I$19,料金プランマスタ!$E$7:$AD$220,23,0),"-"),"") -> 他季100-200 | BO50: =IFERROR(VLOOKUP($I$18&$I$19,料金プランマスタ!$E$7:$AO$220,34,FALSE),"") -> 12.04 | BU50: 円/kWh | BW50: =IFERROR(VLOOKUP($I$18&$I$19,料金プランマスタ!$E$7:$AO$220,34,FALSE),"") -> 12.04 | BX50: =IFERROR(VLOOKUP($I$18&$I$19,料金プランマスタ!$E$7:$AO$220,9,FALSE),"") -> 100 | CA50: ～ | CB50: =IFERROR(VLOOKUP($I$18&$I$19,料金プランマスタ!$E$7:$AO$220,10,FALSE),"") -> 200 | CE50: h | CF50: e
C51: ◆競合単価（税込） | O51: ◆競合単価（税込） | AU51: =IFERROR(IF(VLOOKUP($I$18&$I$19,料金プランマスタ!$E$7:$AD$220,6,0)="●",VLOOKUP($I$18&$I$19,料金プランマスタ!$E$7:$AD$220,19,0),$Z$30),"") -> 夏季200-300 | AZ51: =IFERROR(VLOOKUP($I$18&$I$19,料金プランマスタ!$E$7:$AO$220,30,FALSE),"") -> 12.52 | BF51: 円/kWh | BH51: =IFERROR(VLOOKUP($I$18&$I$19,料金プランマスタ!$E$7:$AO$220,30,FALSE),"") -> 12.52 | BI51: =IFERROR(IF(VLOOKUP($I$18&$I$19,料金プランマスタ!$E$7:$AD$220,6,0)="●",VLOOKUP($I$18&$I$19,料金プランマスタ!$E$7:$AD$220,24,0),"-"),"") -> 他季200-300 | BO51: =IFERROR(VLOOKUP($I$18&$I$19,料金プランマスタ!$E$7:$AO$220,35,FALSE),"") -> 11.59 | BU51: 円/kWh | BW51: =IFERROR(VLOOKUP($I$18&$I$19,料金プランマスタ!$E$7:$AO$220,35,FALSE),"") -> 11.59 | BX51: =IFERROR(VLOOKUP($I$18&$I$19,料金プランマスタ!$E$7:$AO$220,11,FALSE),"") -> 200 | CA51: ～ | CB51: =IFERROR(VLOOKUP($I$18&$I$19,料金プランマスタ!$E$7:$AO$220,12,FALSE),"") -> 300 | CE51: h | CF51: e
C52: ●低減率 | L52: % | O52: ●低減率 | X52: % | AU52: =IFERROR(IF(VLOOKUP($I$18&$I$19,料金プランマスタ!$E$7:$AD$220,6,0)="●",VLOOKUP($I$18&$I$19,料金プランマスタ!$E$7:$AD$220,20,0),$AF$30),"") -> 夏季300以上 | AZ52: =IFERROR(VLOOKUP($I$18&$I$19,料金プランマスタ!$E$7:$AO$220,31,FALSE),"") -> 12.39 | BF52: 円/kWh | BH52: =IFERROR(VLOOKUP($I$18&$I$19,料金プランマスタ!$E$7:$AO$220,31,FALSE),"") -> 12.39 | BI52: =IFERROR(IF(VLOOKUP($I$18&$I$19,料金プランマスタ!$E$7:$AD$220,6,0)="●",VLOOKUP($I$18&$I$19,料金プランマスタ!$E$7:$AD$220,25,0),"-"),"") -> 他季300以上 | BO52: =IFERROR(VLOOKUP($I$18&$I$19,料金プランマスタ!$E$7:$AO$220,36,FALSE),"") -> 11.48 | BU52: 円/kWh | BW52: =IFERROR(VLOOKUP($I$18&$I$19,料金プランマスタ!$E$7:$AO$220,36,FALSE),"") -> 11.48 | BX52: =IFERROR(VLOOKUP($I$18&$I$19,料金プランマスタ!$E$7:$AO$220,13,FALSE),"") -> 300 | CA52: ～ | CB52: =IFERROR(VLOOKUP($I$18&$I$19,料金プランマスタ!$E$7:$AO$220,14,FALSE),"") -> 999 | CE52: h | CF52: e
C53: ●基本料金単価 | H53: =IFERROR(VLOOKUP($I$18&$I$19,料金プランマスタ!$E$7:$AO$220,27,FALSE),"") -> 1842.5 | L53: 円/kW | N53: =IFERROR(VLOOKUP($I$18&$I$19,料金プランマスタ!$E$7:$AO$220,27,FALSE),"") -> 1842.5 | O53: ●基本料金単価 | T53: =IFERROR(VLOOKUP($I$18&$I$19,料金プランマスタ!$E$7:$AO$220,27,FALSE),"") -> 1842.5 | X53: 円/kW | Z53: =IFERROR(VLOOKUP($I$18&$I$19,料金プランマスタ!$E$7:$AO$220,27,FALSE),"") -> 1842.5 | AU53: =IFERROR(IF(VLOOKUP($I$18&$I$19,料金プランマスタ!$E$7:$AD$220,6,0)="●",VLOOKUP($I$18&$I$19,料金プランマスタ!$E$7:$AD$220,21,0),"-"),"") -> - | AZ53: =IFERROR(VLOOKUP($I$18&$I$19,料金プランマスタ!$E$7:$AO$220,32,FALSE),"") -> - | BF53: 円/kWh | BH53: =IFERROR(VLOOKUP($I$18&$I$19,料金プランマスタ!$E$7:$AO$220,32,FALSE),"") -> - | BI53: =IFERROR(IF(VLOOKUP($I$18&$I$19,料金プランマスタ!$E$7:$AD$220,6,0)="●",VLOOKUP($I$18&$I$19,料金プランマスタ!$E$7:$AD$220,26,0),"-"),"") -> - | BO53: =IFERROR(VLOOKUP($I$18&$I$19,料金プランマスタ!$E$7:$AO$220,37,FALSE),"") -> - | BU53: 円/kWh | BW53: =IFERROR(VLOOKUP($I$18&$I$19,料金プランマスタ!$E$7:$AO$220,37,FALSE),"") -> - | BX53: =IFERROR(VLOOKUP($I$18&$I$19,料金プランマスタ!$E$7:$AO$220,15,FALSE),"") -> - | CA53: ～ | CB53: =IFERROR(VLOOKUP($I$18&$I$19,料金プランマスタ!$E$7:$AO$220,16,FALSE),"") -> - | CE53: h | CF53: e
C54: ●使用電力量料金単価 | O54: ●使用電力量料金単価 | CF54: e
C55: =IFERROR(" "&IF(VLOOKUP($I$18&$I$19,料金プランマスタ!$E$7:$AD$220,2,0)=0,"-",VLOOKUP($I$18&$I$19,料金プランマスタ!$E$7:$AD$220,2,0)),"") -> 夏季 | H55: =IFERROR(VLOOKUP($I$18&$I$19,料金プランマスタ!$E$7:$AO$220,28,FALSE),"") -> 14.14 | L55: 円/kWh | N55: =IFERROR(VLOOKUP($I$18&$I$19,料金プランマスタ!$E$7:$AO$220,28,FALSE),"") -> 14.14 | O55: =IFERROR(" "&VLOOKUP($I$18&$I$19,料金プランマスタ!$E$7:$AD$220,2,0),"") -> 夏季 | T55: =IFERROR(VLOOKUP($I$18&$I$19,料金プランマスタ!$E$7:$AO$220,28,FALSE),"") -> 14.14 | X55: 円/kWh | Z55: =IFERROR(VLOOKUP($I$18&$I$19,料金プランマスタ!$E$7:$AO$220,28,FALSE),"") -> 14.14 | CF55: e
C56: =IFERROR(" "&IF(VLOOKUP($I$18&$I$19,料金プランマスタ!$E$7:$AD$220,3,0)=0,"-",VLOOKUP($I$18&$I$19,料金プランマスタ!$E$7:$AD$220,3,0)),"") -> その他季 | H56: =IFERROR(VLOOKUP($I$18&$I$19,料金プランマスタ!$E$7:$AO$220,29,FALSE),"") -> 13.02 | L56: 円/kWh | N56: =IFERROR(VLOOKUP($I$18&$I$19,料金プランマスタ!$E$7:$AO$220,29,FALSE),"") -> 13.02 | O56: =IFERROR(" "&VLOOKUP($I$18&$I$19,料金プランマスタ!$E$7:$AD$220,3,0),"") -> その他季 | T56: =IFERROR(VLOOKUP($I$18&$I$19,料金プランマスタ!$E$7:$AO$220,29,FALSE),"") -> 13.02 | X56: 円/kWh | Z56: =IFERROR(VLOOKUP($I$18&$I$19,料金プランマスタ!$E$7:$AO$220,29,FALSE),"") -> 13.02 | AT56: ◆競合情報2 | CF56: e
C57: =IFERROR(" "&IF(VLOOKUP($I$18&$I$19,料金プランマスタ!$E$7:$AD$220,4,0)=0,"-",VLOOKUP($I$18&$I$19,料金プランマスタ!$E$7:$AD$220,4,0)),"") -> - | H57: =IFERROR(VLOOKUP($I$18&$I$19,料金プランマスタ!$E$7:$AO$220,30,FALSE),"") -> 12.52 | L57: 円/kWh | N57: =IFERROR(VLOOKUP($I$18&$I$19,料金プランマスタ!$E$7:$AO$220,30,FALSE),"") -> 12.52 | O57: =IFERROR(" "&VLOOKUP($I$18&$I$19,料金プランマスタ!$E$7:$AD$220,4,0),"") -> - | T57: =IFERROR(VLOOKUP($I$18&$I$19,料金プランマスタ!$E$7:$AO$220,30,FALSE),"") -> 12.52 | X57: 円/kWh | Z57: =IFERROR(VLOOKUP($I$18&$I$19,料金プランマスタ!$E$7:$AO$220,30,FALSE),"") -> 12.52 | AC57: 競合情報2特記事項 | AT57: ●使用電力量料金単価 | BX57: ・負荷率帯 | CF57: e
C58: =IFERROR(" "&IF(VLOOKUP($I$18&$I$19,料金プランマスタ!$E$7:$AD$220,4,0)=0,"-",VLOOKUP($I$18&$I$19,料金プランマスタ!$E$7:$AD$220,5,0)),"") -> - | H58: =IFERROR(VLOOKUP($I$18&$I$19,料金プランマスタ!$E$7:$AO$220,31,FALSE),"") -> 12.39 | L58: 円/kWh | N58: =IFERROR(VLOOKUP($I$18&$I$19,料金プランマスタ!$E$7:$AO$220,31,FALSE),"") -> 12.39 | O58: =IFERROR(" "&VLOOKUP($I$18&$I$19,料金プランマスタ!$E$7:$AD$220,5,0),"") -> - | T58: =IFERROR(VLOOKUP($I$18&$I$19,料金プランマスタ!$E$7:$AO$220,31,FALSE),"") -> 12.39 | X58: 円/kWh | Z58: =IFERROR(VLOOKUP($I$18&$I$19,料金プランマスタ!$E$7:$AO$220,31,FALSE),"") -> 12.39 | AU58: =IFERROR(IF(VLOOKUP($I$18&$I$19,料金プランマスタ!$E$7:$AD$220,6,0)="●",VLOOKUP($I$18&$I$19,料金プランマスタ!$E$7:$AD$220,17,0),$N$30),"") -> 夏季100未満 | AZ58: =IFERROR(VLOOKUP($I$18&$I$19,料金プランマスタ!$E$7:$AO$220,28,FALSE),"") -> 14.14 | BF58: 円/kWh | BH58: =IFERROR(VLOOKUP($I$18&$I$19,料金プランマスタ!$E$7:$AO$220,28,FALSE),"") -> 14.14 | BI58: =IFERROR(IF(VLOOKUP($I$18&$I$19,料金プランマスタ!$E$7:$AD$220,6,0)="●",VLOOKUP($I$18&$I$19,料金プランマスタ!$E$7:$AD$220,22,0),"-"),"") -> 他季100未満 | BO58: =IFERROR(VLOOKUP($I$18&$I$19,料金プランマスタ!$E$7:$AO$220,33,FALSE),"") -> 13.07 | BU58: 円/kWh | BW58: =IFERROR(VLOOKUP($I$18&$I$19,料金プランマスタ!$E$7:$AO$220,33,FALSE),"") -> 13.07 | BX58: =IFERROR(VLOOKUP($I$18&$I$19,料金プランマスタ!$E$7:$AO$220,7,FALSE),"") -> 0 | CA58: ～ | CB58: =IFERROR(VLOOKUP($I$18&$I$19,料金プランマスタ!$E$7:$AO$220,8,FALSE),"") -> 100 | CE58: h | CF58: e
C59: ●割引 | O59: ●割引 | AU59: =IFERROR(IF(VLOOKUP($I$18&$I$19,料金プランマスタ!$E$7:$AD$220,6,0)="●",VLOOKUP($I$18&$I$19,料金プランマスタ!$E$7:$AD$220,18,0),$T$30),"") -> 夏季100-200 | AZ59: =IFERROR(VLOOKUP($I$18&$I$19,料金プランマスタ!$E$7:$AO$220,29,FALSE),"") -> 13.02 | BF59: 円/kWh | BH59: =IFERROR(VLOOKUP($I$18&$I$19,料金プランマスタ!$E$7:$AO$220,29,FALSE),"") -> 13.02 | BI59: =IFERROR(IF(VLOOKUP($I$18&$I$19,料金プランマスタ!$E$7:$AD$220,6,0)="●",VLOOKUP($I$18&$I$19,料金プランマスタ!$E$7:$AD$220,23,0),"-"),"") -> 他季100-200 | BO59: =IFERROR(VLOOKUP($I$18&$I$19,料金プランマスタ!$E$7:$AO$220,34,FALSE),"") -> 12.04 | BU59: 円/kWh | BW59: =IFERROR(VLOOKUP($I$18&$I$19,料金プランマスタ!$E$7:$AO$220,34,FALSE),"") -> 12.04 | BX59: =IFERROR(VLOOKUP($I$18&$I$19,料金プランマスタ!$E$7:$AO$220,9,FALSE),"") -> 100 | CA59: ～ | CB59: =IFERROR(VLOOKUP($I$18&$I$19,料金プランマスタ!$E$7:$AO$220,10,FALSE),"") -> 200 | CE59: h | CF59: e
C60: ・基本料金割引 | L60: 円/kW | O60: ・基本料金割引 | X60: 円/kW | AU60: =IFERROR(IF(VLOOKUP($I$18&$I$19,料金プランマスタ!$E$7:$AD$220,6,0)="●",VLOOKUP($I$18&$I$19,料金プランマスタ!$E$7:$AD$220,19,0),$Z$30),"") -> 夏季200-300 | AZ60: =IFERROR(VLOOKUP($I$18&$I$19,料金プランマスタ!$E$7:$AO$220,30,FALSE),"") -> 12.52 | BF60: 円/kWh | BH60: =IFERROR(VLOOKUP($I$18&$I$19,料金プランマスタ!$E$7:$AO$220,30,FALSE),"") -> 12.52 | BI60: =IFERROR(IF(VLOOKUP($I$18&$I$19,料金プランマスタ!$E$7:$AD$220,6,0)="●",VLOOKUP($I$18&$I$19,料金プランマスタ!$E$7:$AD$220,24,0),"-"),"") -> 他季200-300 | BO60: =IFERROR(VLOOKUP($I$18&$I$19,料金プランマスタ!$E$7:$AO$220,35,FALSE),"") -> 11.59 | BU60: 円/kWh | BW60: =IFERROR(VLOOKUP($I$18&$I$19,料金プランマスタ!$E$7:$AO$220,35,FALSE),"") -> 11.59 | BX60: =IFERROR(VLOOKUP($I$18&$I$19,料金プランマスタ!$E$7:$AO$220,11,FALSE),"") -> 200 | CA60: ～ | CB60: =IFERROR(VLOOKUP($I$18&$I$19,料金プランマスタ!$E$7:$AO$220,12,FALSE),"") -> 300 | CE60: h | CF60: e
C61: ・電力量料金割引 | L61: 円/kW | O61: ・電力量料金割引 | X61: 円/kW | AU61: =IFERROR(IF(VLOOKUP($I$18&$I$19,料金プランマスタ!$E$7:$AD$220,6,0)="●",VLOOKUP($I$18&$I$19,料金プランマスタ!$E$7:$AD$220,20,0),$AF$30),"") -> 夏季300以上 | AZ61: =IFERROR(VLOOKUP($I$18&$I$19,料金プランマスタ!$E$7:$AO$220,31,FALSE),"") -> 12.39 | BF61: 円/kWh | BH61: =IFERROR(VLOOKUP($I$18&$I$19,料金プランマスタ!$E$7:$AO$220,31,FALSE),"") -> 12.39 | BI61: =IFERROR(IF(VLOOKUP($I$18&$I$19,料金プランマスタ!$E$7:$AD$220,6,0)="●",VLOOKUP($I$18&$I$19,料金プランマスタ!$E$7:$AD$220,25,0),"-"),"") -> 他季300以上 | BO61: =IFERROR(VLOOKUP($I$18&$I$19,料金プランマスタ!$E$7:$AO$220,36,FALSE),"") -> 11.48 | BU61: 円/kWh | BW61: =IFERROR(VLOOKUP($I$18&$I$19,料金プランマスタ!$E$7:$AO$220,36,FALSE),"") -> 11.48 | BX61: =IFERROR(VLOOKUP($I$18&$I$19,料金プランマスタ!$E$7:$AO$220,13,FALSE),"") -> 300 | CA61: ～ | CB61: =IFERROR(VLOOKUP($I$18&$I$19,料金プランマスタ!$E$7:$AO$220,14,FALSE),"") -> 999 | CE61: h | CF61: e
C62: ・年間割引総額 | L62: 円 | O62: ・年間割引総額 | X62: 円 | AU62: =IFERROR(IF(VLOOKUP($I$18&$I$19,料金プランマスタ!$E$7:$AD$220,6,0)="●",VLOOKUP($I$18&$I$19,料金プランマスタ!$E$7:$AD$220,21,0),"-"),"") -> - | AZ62: =IFERROR(VLOOKUP($I$18&$I$19,料金プランマスタ!$E$7:$AO$220,32,FALSE),"") -> - | BF62: 円/kWh | BH62: =IFERROR(VLOOKUP($I$18&$I$19,料金プランマスタ!$E$7:$AO$220,32,FALSE),"") -> - | BI62: =IFERROR(IF(VLOOKUP($I$18&$I$19,料金プランマスタ!$E$7:$AD$220,6,0)="●",VLOOKUP($I$18&$I$19,料金プランマスタ!$E$7:$AD$220,26,0),"-"),"") -> - | BO62: =IFERROR(VLOOKUP($I$18&$I$19,料金プランマスタ!$E$7:$AO$220,37,FALSE),"") -> - | BU62: 円/kWh | BW62: =IFERROR(VLOOKUP($I$18&$I$19,料金プランマスタ!$E$7:$AO$220,37,FALSE),"") -> - | BX62: =IFERROR(VLOOKUP($I$18&$I$19,料金プランマスタ!$E$7:$AO$220,15,FALSE),"") -> - | CA62: ～ | CB62: =IFERROR(VLOOKUP($I$18&$I$19,料金プランマスタ!$E$7:$AO$220,16,FALSE),"") -> - | CE62: h | CF62: e
CF63: e
CF64: e
A65: e | B65: e | C65: e | D65: e | E65: e | F65: e | G65: e | H65: e | I65: e | J65: e | K65: e | L65: e | M65: e | N65: e | O65: e | P65: e | Q65: e | R65: e | S65: e | T65: e | U65: e | V65: e | W65: e | X65: e | Y65: e | Z65: e | AA65: e | AB65: e | AC65: e | AD65: e | AE65: e | AF65: e | AG65: e | AH65: e | AI65: e | AJ65: e | AK65: e | AL65: e | AM65: e | AN65: e | AO65: e | AP65: e | AQ65: e | AR65: e | AS65: e | AT65: e | AU65: e | AV65: e | AW65: e | AX65: e | AY65: e | AZ65: e | BA65: e | BB65: e | BC65: e | BD65: e | BE65: e | BF65: e | BG65: e | BH65: e | BI65: e | BJ65: e | BK65: e | BL65: e | BM65: e | BN65: e | BO65: e | BP65: e | BQ65: e | BR65: e | BS65: e | BT65: e | BU65: e | BV65: e | BW65: e | BX65: e | BY65: e | BZ65: e | CA65: e | CB65: e | CC65: e | CD65: e | CE65: e | CF65: e

Sheet Validation_新調査票識別用Sheet_★ (hidden)

Sheet UI
P2: ◆システム制御
C3: ◆拠点追加 | Q3: 現在ページ数 | R3: 0 | T3: エラーMsg
C4: 見積を作成する拠点数を下記Boxに入力して、「追加」ボタンを押下してください。 | Q4: 消費税 | R4: 10 | S4: %
Q5: バージョン | R5: 2.02
J6: 拠点
C9: ◆拠点削除
C10: 削除する拠点Noを下記Boxに入力して、「削除」ボタンを押下してください。
C16: ◆初期化
C17: すべて削除してやり直す場合は、「初期化」ボタンを押下してください。
C20: 現在の拠点数は、 | E20: 0 | F20: 拠点 | G20: です。
C25: ↓旧見積ツールのインプット
C26: 案件ID | D26: 明細No. | E26: 電力調査票記入日 | F26: 企業名 | G26: 本社住所 | H26: 需要場所施設名 | I26: 需要場所ご住所 | J26: 電力会社 | K26: 現行料金プラン名 | L26: その他の電力会社 | M26: その他の現行料金プラン名 | N26: 電圧[kV] | O26: 契約電力[kW/月]（直近） | P26: 力率[%]（直近） | Q26: 予備線契約 | R26: 予備電源契約 | S26: 割引額[円／年] | T26: 常用発電設備 | U26: 負荷率（h） | V26: 使用電力量（kWh／年） | W26: 4月：1使用電力量（kWh/月） | X26: 4月：2使用電力量（kWh/月） | Y26: 4月：3使用電力量（kWh/月） | Z26: 4月：4使用電力量（kWh/月） | AA26: 5月：1使用電力量（kWh/月） | AB26: 5月：2使用電力量（kWh/月） | AC26: 5月：3使用電力量（kWh/月） | AD26: 5月：4使用電力量（kWh/月） | AE26: 6月：1使用電力量（kWh/月） | AF26: 6月：2使用電力量（kWh/月） | AG26: 6月：3使用電力量（kWh/月） | AH26: 6月：4使用電力量（kWh/月） | AI26: 7月：1使用電力量（kWh/月） | AJ26: 7月：2使用電力量（kWh/月） | AK26: 7月：3使用電力量（kWh/月） | AL26: 7月：4使用電力量（kWh/月） | AM26: 8月：1使用電力量（kWh/月） | AN26: 8月：2使用電力量（kWh/月） | AO26: 8月：3使用電力量（kWh/月） | AP26: 8月：4使用電力量（kWh/月） | AQ26: 9月：1使用電力量（kWh/月） | AR26: 9月：2使用電力量（kWh/月） | AS26: 9月：3使用電力量（kWh/月） | AT26: 9月：4使用電力量（kWh/月） | AU26: 10月：1使用電力量（kWh/月） | AV26: 10月：2使用電力量（kWh/月） | AW26: 10月：3使用電力量（kWh/月） | AX26: 10月：4使用電力量（kWh/月） | AY26: 11月：1使用電力量（kWh/月） | AZ26: 11月：2使用電力量（kWh/月） | BA26: 11月：3使用電力量（kWh/月） | BB26: 11月：4使用電力量（kWh/月） | BC26: 12月：1使用電力量（kWh/月） | BD26: 12月：2使用電力量（kWh/月） | BE26: 12月：3使用電力量（kWh/月） | BF26: 12月：4使用電力量（kWh/月） | BG26: 1月：1使用電力量（kWh/月） | BH26: 1月：2使用電力量（kWh/月） | BI26: 1月：3使用電力量（kWh/月） | BJ26: 1月：4使用電力量（kWh/月） | BK26: 2月：1使用電力量（kWh/月） | BL26: 2月：2使用電力量（kWh/月） | BM26: 2月：3使用電力量（kWh/月） | BN26: 2月：4使用電力量（kWh/月） | BO26: 3月：1使用電力量（kWh/月） | BP26: 3月：2使用電力量（kWh/月） | BQ26: 3月：3使用電力量（kWh/月） | BR26: 3月：4使用電力量（kWh/月） | BS26: 4月：合計使用電力量（kWh/月） | BT26: 5月：合計使用電力量（kWh/月） | BU26: 6月：合計使用電力量（kWh/月） | BV26: 7月：合計使用電力量（kWh/月） | BW26: 8月：合計使用電力量（kWh/月） | BX26: 9月：合計使用電力量（kWh/月） | BY26: 10月：合計使用電力量（kWh/月） | BZ26: 11月：合計使用電力量（kWh/月） | CA26: 12月：合計使用電力量（kWh/月） | CB26: 1月：合計使用電力量（kWh/月） | CC26: 2月：合計使用電力量（kWh/月） | CD26: 3月：合計使用電力量（kWh/月） | CE26: 見積番号 | CF26: 電力量料金 | CG26: 現在_基本料金単価 | CH26: 現在_値引き額 | CI26: 現在_基本料金サマリ | CJ26: 現在_総合計金額 | CK26: 現在_単価 | CL26: 提案_基本料金単価 | CM26: 提案_基本料金サマリ | CN26: 提案_総合計金額 | CO26: 提案_単価 | CP26: 値引き_基本料金サマリ | CQ26: 値引き_総合計金額 | CR26: 値引き_単価 | CS26: 値引き_値引率 | CT26: 申込書可否 | CU26: 不可理由 | CV26: 申込書受領日 | CW26: 需給開始予定日 | CX26: A料金単価（円 税込）1 | CY26: A料金単価（円 税込）2 | CZ26: A料金単価（円 税込）3 | DA26: B料金単価（円 税込） | DB26: 差額（円 税込）1 | DC26: 差額（円 税込）2 | DD26: 差額（円 税込）3 | DE26: 年間見込金額（円 税込）1 | DF26: 年間見込金額（円 税込）2 | DG26: 年間見込金額（円 税込）3 | DH26: 契約継続 | DI26: 長期

Sheet 新旧マッピング表 (hidden)
A1: # | B1: 旧電力調査票 | D1: 新電力調査票 | G1: 備考 | H1: e
B2: CSVヘッダー項目 | C2: 参照セル/関数 | D2: 項目名 | E2: セル | H2: e
A3: =ROW()-2 -> 1 | B3: 案件ID | C3: 参照なし | D3: - | E3: - | H3: e
A4: =ROW()-2 -> 2 | B4: 明細No. | C4: 参照なし | D4: - | E4: - | H4: e
A5: 3 | B5: 電力調査票記入日 | C5: 参照なし | D5: 記入日 | E5: AJ2 | H5: e
A6: 4 | B6: 企業名 | C6: D5 | D6: 御社名 | E6: I5 | H6: e
A7: 5 | B7: 本社住所 | C7: D6 | D7: 都道府県＆市区町村・番地 | E7: ※ | F7: I9&I10 | G7: 都道府県セルと市区町村・番地セルの値を結合する必要あり | H7: e
A8: 6 | B8: 需要場所施設名 | C8: D9 | D8: 需要場所施設名 | E8: I11 | G8: As-Isでは住所(D8)を施設名(D7)に結合した値を参照している | H8: e
A9: 7 | B9: 需要場所ご住所 | C9: D8 | D9: 都道府県＆市区町村・番地 | E9: ※ | F9: I14&I15 | G9: 都道府県セルと市区町村・番地セルの値を結合する必要あり | H9: e
A10: 8 | B10: 電力会社 | C10: D11 | D10: エリア | E10: I18 | H10: e
A11: 9 | B11: 現行料金プラン名 | C11: D12 | D11: 料金プラン名 | E11: I19 | H11: e
A12: 10 | B12: その他の電力会社 | C12: F11 | D12: 現契約先 or 「その他」の場合 | E12: ※ | F12: I20 or I21 | G12: I20が"その他"の場合はI21を取得し、それ以外はI20を取得する必要あり (2019/5/29追加：現契約先がエリアと同じ場合、出力しない) | H12: e
A13: 11 | B13: その他の現行料金プラン名 | C13: F12 | D13: - | E13: - | G13: 新電力調査票では「その他」を許容しないため該当セルなし ※As-IsのCSVヘッダー項目名に誤字あり | H13: e
A14: 12 | B14: 電圧[kV] | C14: ＝VALUE(LEFT(D13,FIND("k",D13)-1)) | D14: 受電(供給)電圧 | E14: I22 | H14: e
A15: 13 | B15: 契約電力[kW/月]（直近） | C15: D14 | D15: 契約電力[直近] | E15: I23 | H15: e
A16: 14 | B16: 力率[%]（直近） | C16: =VLOOKUP("○",B19:G30,6,FALSE) | D16: 力率(%) | E16: ※ | F16: J31：J42 | G16: 平均計算する必要あり | H16: e
A17: 15 | B17: 予備線契約 | C17: R6 | D17: 予備線契約 | E17: AE18 | G17: As-Isでは"有/無"が入力されるが、To-Beでは契約電力(kW)が入力される ※見積Excelで該当の値を参照していないため影響なし | H17: e
A18: 16 | B18: 予備電源契約 | C18: R7 | D18: 予備電源契約 | E18: AE19 | G18: As-Isでは"有/無"が入力されるが、To-Beでは契約電力(kW)が入力される ※見積Excelで該当の値を参照していないため影響なし | H18: e
A19: 17 | B19: 割引額[円／年] | C19: =IF(Q31="",0,Q31) | D19: 低減率・基本料金割引・電力量料金割引の額換算 ＋年間割引総額 | E19: ※ | F19: AE5 AE13 AE14 AE15 I23 N43 T43 Z43 AF43 | G19: 見積Excel用出力の割引額=①低減率の額換算+②DC割引額＋③EC割引額＋④年間総値引額 ①=(基本料金単価×契約電力×12×(185-平均力率)/100+各窓の電力量料金単価×各窓の使用電力量)×低減率(%) ②=DC割引単価×契約電力×12×(185-平均力率)/100 ③=EC割引単価×使用電力量合計 ④=入力額 | H19: e
A20: 18 | B20: 常用発電設備 | C20: R13 | D20: 常用発電設備 | E20: AE21 | H20: e
A21: 19 | B21: 負荷率（h） | C21: P33 | D21: 負荷率 | E21: AN46 | H21: e
A22: 20 | B22: 使用電力量（kWh／年） | C22: P31 | D22: 使用電力量(年間合計) | E22: AL43 | H22: e
A23: 21 | B23: 4月：1使用電力量（kWh/月） | C23: H19 | D23: 使用電力量(4月,窓1) | E23: ※ | F23: N31 | G23: 該当使用量が空欄の場合、0を出力する | H23: e
A24: 22 | B24: 4月：2使用電力量（kWh/月） | C24: I19 | D24: 使用電力量(4月,窓2) | E24: ※ | F24: T31 | G24: 該当使用量が空欄の場合、0を出力する | H24: e
A25: 23 | B25: 4月：3使用電力量（kWh/月） | C25: J19 | D25: 使用電力量(4月,窓3) | E25: ※ | F25: Z31 | G25: 該当使用量が空欄の場合、0を出力する | H25: e
A26: 24 | B26: 4月：4使用電力量（kWh/月） | C26: K19 | D26: 使用電力量(4月,窓4) | E26: ※ | F26: AF31 | G26: 該当使用量が空欄の場合、0を出力する | H26: e
A27: 25 | B27: 5月：1使用電力量（kWh/月） | C27: H20 | D27: 使用電力量(5月,窓1) | E27: ※ | F27: N32 | G27: 該当使用量が空欄の場合、0を出力する | H27: e
A28: 26 | B28: 5月：2使用電力量（kWh/月） | C28: I20 | D28: 使用電力量(5月,窓2) | E28: ※ | F28: T32 | G28: 該当使用量が空欄の場合、0を出力する | H28: e
A29: 27 | B29: 5月：3使用電力量（kWh/月） | C29: J20 | D29: 使用電力量(5月,窓3) | E29: ※ | F29: Z32 | G29: 該当使用量が空欄の場合、0を出力する | H29: e
A30: 28 | B30: 5月：4使用電力量（kWh/月） | C30: K20 | D30: 使用電力量(5月,窓4) | E30: ※ | F30: AF32 | G30: 該当使用量が空欄の場合、0を出力する | H30: e
A31: 29 | B31: 6月：1使用電力量（kWh/月） | C31: H21 | D31: 使用電力量(6月,窓1) | E31: ※ | F31: N33 | G31: 該当使用量が空欄の場合、0を出力する | H31: e
A32: 30 | B32: 6月：2使用電力量（kWh/月） | C32: I21 | D32: 使用電力量(6月,窓2) | E32: ※ | F32: T33 | G32: 該当使用量が空欄の場合、0を出力する | H32: e
A33: 31 | B33: 6月：3使用電力量（kWh/月） | C33: J21 | D33: 使用電力量(6月,窓3) | E33: ※ | F33: Z33 | G33: 該当使用量が空欄の場合、0を出力する | H33: e
A34: 32 | B34: 6月：4使用電力量（kWh/月） | C34: K21 | D34: 使用電力量(6月,窓4) | E34: ※ | F34: AF33 | G34: 該当使用量が空欄の場合、0を出力する | H34: e
A35: 33 | B35: 7月：1使用電力量（kWh/月） | C35: H22 | D35: 使用電力量(7月,窓1) | E35: ※ | F35: N34 | G35: 該当使用量が空欄の場合、0を出力する | H35: e
A36: 34 | B36: 7月：2使用電力量（kWh/月） | C36: I22 | D36: 使用電力量(7月,窓2) | E36: ※ | F36: T34 | G36: 該当使用量が空欄の場合、0を出力する | H36: e
A37: 35 | B37: 7月：3使用電力量（kWh/月） | C37: J22 | D37: 使用電力量(7月,窓3) | E37: ※ | F37: Z34 | G37: 該当使用量が空欄の場合、0を出力する | H37: e
A38: 36 | B38: 7月：4使用電力量（kWh/月） | C38: K22 | D38: 使用電力量(7月,窓4) | E38: ※ | F38: AF34 | G38: 該当使用量が空欄の場合、0を出力する | H38: e
A39: 37 | B39: 8月：1使用電力量（kWh/月） | C39: H23 | D39: 使用電力量(8月,窓1) | E39: ※ | F39: N35 | G39: 該当使用量が空欄の場合、0を出力する | H39: e
A40: 38 | B40: 8月：2使用電力量（kWh/月） | C40: I23 | D40: 使用電力量(8月,窓2) | E40: ※ | F40: T35 | G40: 該当使用量が空欄の場合、0を出力する | H40: e
A41: 39 | B41: 8月：3使用電力量（kWh/月） | C41: J23 | D41: 使用電力量(8月,窓3) | E41: ※ | F41: Z35 | G41: 該当使用量が空欄の場合、0を出力する | H41: e
A42: 40 | B42: 8月：4使用電力量（kWh/月） | C42: K23 | D42: 使用電力量(8月,窓4) | E42: ※ | F42: AF35 | G42: 該当使用量が空欄の場合、0を出力する | H42: e
A43: 41 | B43: 9月：1使用電力量（kWh/月） | C43: H24 | D43: 使用電力量(9月,窓1) | E43: ※ | F43: N36 | G43: 該当使用量が空欄の場合、0を出力する | H43: e
A44: 42 | B44: 9月：2使用電力量（kWh/月） | C44: I24 | D44: 使用電力量(9月,窓2) | E44: ※ | F44: T36 | G44: 該当使用量が空欄の場合、0を出力する | H44: e
A45: 43 | B45: 9月：3使用電力量（kWh/月） | C45: J24 | D45: 使用電力量(9月,窓3) | E45: ※ | F45: Z36 | G45: 該当使用量が空欄の場合、0を出力する | H45: e
A46: 44 | B46: 9月：4使用電力量（kWh/月） | C46: K24 | D46: 使用電力量(9月,窓4) | E46: ※ | F46: AF36 | G46: 該当使用量が空欄の場合、0を出力する | H46: e | CF46: 0 | CG46: 0 | DG46: 0 | DH46: 0
A47: 45 | B47: 10月：1使用電力量（kWh/月） | C47: H25 | D47: 使用電力量(10月,窓1) | E47: ※ | F47: N37 | G47: 該当使用量が空欄の場合、0を出力する | H47: e | CG47: e
A48: 46 | B48: 10月：2使用電力量（kWh/月） | C48: I25 | D48: 使用電力量(10月,窓2) | E48: ※ | F48: T37 | G48: 該当使用量が空欄の場合、0を出力する | H48: e
A49: 47 | B49: 10月：3使用電力量（kWh/月） | C49: J25 | D49: 使用電力量(10月,窓3) | E49: ※ | F49: Z37 | G49: 該当使用量が空欄の場合、0を出力する | H49: e
A50: 48 | B50: 10月：4使用電力量（kWh/月） | C50: K25 | D50: 使用電力量(10月,窓4) | E50: ※ | F50: AF37 | G50: 該当使用量が空欄の場合、0を出力する | H50: e
A51: 49 | B51: 11月：1使用電力量（kWh/月） | C51: H26 | D51: 使用電力量(11月,窓1) | E51: ※ | F51: N38 | G51: 該当使用量が空欄の場合、0を出力する | H51: e
A52: 50 | B52: 11月：2使用電力量（kWh/月） | C52: I26 | D52: 使用電力量(11月,窓2) | E52: ※ | F52: T38 | G52: 該当使用量が空欄の場合、0を出力する | H52: e
A53: 51 | B53: 11月：3使用電力量（kWh/月） | C53: J26 | D53: 使用電力量(11月,窓3) | E53: ※ | F53: Z38 | G53: 該当使用量が空欄の場合、0を出力する | H53: e
A54: 52 | B54: 11月：4使用電力量（kWh/月） | C54: K26 | D54: 使用電力量(11月,窓4) | E54: ※ | F54: AF38 | G54: 該当使用量が空欄の場合、0を出力する | H54: e
A55: 53 | B55: 12月：1使用電力量（kWh/月） | C55: H27 | D55: 使用電力量(12月,窓1) | E55: ※ | F55: N39 | G55: 該当使用量が空欄の場合、0を出力する | H55: e
A56: 54 | B56: 12月：2使用電力量（kWh/月） | C56: I27 | D56: 使用電力量(12月,窓2) | E56: ※ | F56: T39 | G56: 該当使用量が空欄の場合、0を出力する | H56: e
A57: 55 | B57: 12月：3使用電力量（kWh/月） | C57: J27 | D57: 使用電力量(12月,窓3) | E57: ※ | F57: Z39 | G57: 該当使用量が空欄の場合、0を出力する | H57: e
A58: 56 | B58: 12月：4使用電力量（kWh/月） | C58: K27 | D58: 使用電力量(12月,窓4) | E58: ※ | F58: AF39 | G58: 該当使用量が空欄の場合、0を出力する | H58: e
A59: 57 | B59: 1月：1使用電力量（kWh/月） | C59: H28 | D59: 使用電力量(1月,窓1) | E59: ※ | F59: N40 | G59: 該当使用量が空欄の場合、0を出力する | H59: e
A60: 58 | B60: 1月：2使用電力量（kWh/月） | C60: I28 | D60: 使用電力量(1月,窓2) | E60: ※ | F60: T40 | G60: 該当使用量が空欄の場合、0を出力する | H60: e
A61: 59 | B61: 1月：3使用電力量（kWh/月） | C61: J28 | D61: 使用電力量(1月,窓3) | E61: ※ | F61: Z40 | G61: 該当使用量が空欄の場合、0を出力する | H61: e
A62: 60 | B62: 1月：4使用電力量（kWh/月） | C62: K28 | D62: 使用電力量(1月,窓4) | E62: ※ | F62: AF40 | G62: 該当使用量が空欄の場合、0を出力する | H62: e
A63: 61 | B63: 2月：1使用電力量（kWh/月） | C63: H29 | D63: 使用電力量(2月,窓1) | E63: ※ | F63: N41 | G63: 該当使用量が空欄の場合、0を出力する | H63: e
A64: 62 | B64: 2月：2使用電力量（kWh/月） | C64: I29 | D64: 使用電力量(2月,窓2) | E64: ※ | F64: T41 | G64: 該当使用量が空欄の場合、0を出力する | H64: e
A65: 63 | B65: 2月：3使用電力量（kWh/月） | C65: J29 | D65: 使用電力量(2月,窓3) | E65: ※ | F65: Z41 | G65: 該当使用量が空欄の場合、0を出力する | H65: e
A66: 64 | B66: 2月：4使用電力量（kWh/月） | C66: K29 | D66: 使用電力量(2月,窓4) | E66: ※ | F66: AF41 | G66: 該当使用量が空欄の場合、0を出力する | H66: e
A67: 65 | B67: 3月：1使用電力量（kWh/月） | C67: H30 | D67: 使用電力量(3月,窓1) | E67: ※ | F67: N42 | G67: 該当使用量が空欄の場合、0を出力する | H67: e
A68: =ROW()-2 -> 66 | B68: 3月：2使用電力量（kWh/月） | C68: I30 | D68: 使用電力量(3月,窓2) | E68: ※ | F68: T42 | G68: 該当使用量が空欄の場合、0を出力する | H68: e
A69: 67 | B69: 3月：3使用電力量（kWh/月） | C69: J30 | D69: 使用電力量(3月,窓3) | E69: ※ | F69: Z42 | G69: 該当使用量が空欄の場合、0を出力する | H69: e
A70: 68 | B70: 3月：4使用電力量（kWh/月） | C70: K30 | D70: 使用電力量(3月,窓4) | E70: ※ | F70: AF42 | G70: 該当使用量が空欄の場合、0を出力する | H70: e
A71: 69 | B71: 4月：合計使用電力量（kWh/月） | C71: 参照なし | D71: 使用電力量(4月合計) | E71: - | H71: e
A72: 70 | B72: 5月：合計使用電力量（kWh/月） | C72: 参照なし | D72: 使用電力量(5月合計) | E72: - | H72: e
A73: 71 | B73: 6月：合計使用電力量（kWh/月） | C73: 参照なし | D73: 使用電力量(6月合計) | E73: - | H73: e
A74: 72 | B74: 7月：合計使用電力量（kWh/月） | C74: 参照なし | D74: 使用電力量(7月合計) | E74: - | H74: e
A75: 73 | B75: 8月：合計使用電力量（kWh/月） | C75: 参照なし | D75: 使用電力量(8月合計) | E75: - | H75: e
A76: 74 | B76: 9月：合計使用電力量（kWh/月） | C76: 参照なし | D76: 使用電力量(9月合計) | E76: - | H76: e
A77: 75 | B77: 10月：合計使用電力量（kWh/月） | C77: 参照なし | D77: 使用電力量(10月合計) | E77: - | H77: e
A78: 76 | B78: 11月：合計使用電力量（kWh/月） | C78: 参照なし | D78: 使用電力量(11月合計) | E78: - | H78: e
A79: 77 | B79: 12月：合計使用電力量（kWh/月） | C79: 参照なし | D79: 使用電力量(12月合計) | E79: - | H79: e
A80: 78 | B80: 1月：合計使用電力量（kWh/月） | C80: 参照なし | D80: 使用電力量(1月合計) | E80: - | H80: e
A81: 79 | B81: 2月：合計使用電力量（kWh/月） | C81: 参照なし | D81: 使用電力量(2月合計) | E81: - | H81: e
A82: 80 | B82: 3月：合計使用電力量（kWh/月） | C82: 参照なし | D82: 使用電力量(3月合計) | E82: - | H82: e
A83: 81 | B83: 見積番号 | C83: 参照なし | D83: - | E83: - | H83: e
A84: 82 | B84: 電力量料金 | C84: 参照なし | D84: - | E84: - | H84: e
A85: 83 | B85: 現在_基本料金単価 | C85: J6 | D85: 基本料金単価 | E85: ※ | F85: AE6 or H53 | G85: ①現契約先の単価を"みなし小売電気事業者約款料金"に記入している場合 ⇒AE6 ②現契約先の単価を"競合情報1"に記入している場合 ⇒H53 上記二つはシステム上区別できないため、現実的には取込不可 しかし見積Excelで該当の値を参照していないため取込不要か | H85: e
A86: 84 | B86: 現在_値引き額 | C86: Q31 | D86: 低減率・基本料金割引・電力量料金割引の額換算 ＋年間割引総額 | E86: ※ | F86: AE5 AE13 AE14 AE15 I23 N43 T43 Z43 AF43 | G86: 見積Excel用出力の割引額=①低減率の額換算+②DC割引額＋③EC割引額＋④年間総値引額 ①=(基本料金単価×契約電力×12×(185-平均力率)/100+各窓の電力量料金単価×各窓の使用電力量)×低減率(%) ②=DC割引単価×契約電力×12×(185-平均力率)/100 ③=EC割引単価×使用電力量合計 ④=入力額 | H86: e
A87: 85 | B87: 現在_基本料金サマリ | C87: 参照なし | D87: - | E87: - | H87: e
A88: 86 | B88: 現在_総合計金額 | C88: 参照なし | D88: - | E88: - | H88: e
A89: 87 | B89: 現在_単価 | C89: 参照なし | D89: - | E89: - | H89: e
A90: 88 | B90: 提案_基本料金単価 | C90: 参照なし | D90: - | E90: - | H90: e
A91: 89 | B91: 提案_基本料金サマリ | C91: 参照なし | D91: - | E91: - | H91: e
A92: 90 | B92: 提案_総合計金額 | C92: 参照なし | D92: - | E92: - | H92: e
A93: 91 | B93: 提案_単価 | C93: 参照なし | D93: - | E93: - | H93: e
A94: 92 | B94: 値引き_基本料金サマリ | C94: 参照なし | D94: - | E94: - | H94: e
A95: 93 | B95: 値引き_総合計金額 | C95: 参照なし | D95: - | E95: - | H95: e
A96: 94 | B96: 値引き_単価 | C96: 参照なし | D96: - | E96: - | H96: e
A97: 95 | B97: 値引き_値引率 | C97: 参照なし | D97: - | E97: - | H97: e
A98: 96 | B98: 申込書可否 | C98: 参照なし | D98: - | E98: - | H98: e
A99: 97 | B99: 不可理由 | C99: 参照なし | D99: - | E99: - | H99: e
A100: 98 | B100: 申込書受領日 | C100: 参照なし | D100: - | E100: - | H100: e
A101: 99 | B101: 需給開始予定日 | C101: 参照なし | D101: - | E101: - | H101: e
A102: 100 | B102: A料金単価（円 税込）1 | C102: 参照なし | D102: - | E102: - | H102: e
A103: 101 | B103: A料金単価（円 税込）2 | C103: 参照なし | D103: - | E103: - | H103: e
A104: 102 | B104: A料金単価（円 税込）3 | C104: 参照なし | D104: - | E104: - | H104: e
A105: 103 | B105: B料金単価（円 税込） | C105: 参照なし | D105: - | E105: - | H105: e
A106: 104 | B106: 差額（円 税込）1 | C106: 参照なし | D106: - | E106: - | H106: e
A107: 105 | B107: 差額（円 税込）2 | C107: 参照なし | D107: - | E107: - | H107: e
A108: 106 | B108: 差額（円 税込）3 | C108: 参照なし | D108: - | E108: - | H108: e
A109: 107 | B109: 年間見込金額（円 税込）1 | C109: 参照なし | D109: - | E109: - | H109: e
A110: 108 | B110: 年間見込金額（円 税込）2 | C110: 参照なし | D110: - | E110: - | H110: e
A111: 109 | B111: 年間見込金額（円 税込）3 | C111: 参照なし | D111: - | E111: - | H111: e
A112: 110 | B112: 契約継続 | C112: =VALUE(S10) | D112: - | E112: - | G112: To-Beに該当する項目が存在しないが、見積Excelで該当の値を参照していないため取込不要か | H112: e
A113: 111 | B113: 長期 | C113: =VALUE(S11) | D113: TCS長期契約の希望年数 | E113: AG24 | G113: As-Isでは％(詳細要確認)だが、To-Beでは長期契約の希望年数が入力される | H113: e
A114: e | B114: e | C114: e | D114: e | F114: e | G114: e | H114: e

Sheet テンプレ (hidden)
W1: 電力調査票 | CF1: e | DE1: end
E2: にご入力をお願いします。 | J2: 赤二重線 | L2: は必須項目です。 | AH2: 記入日： | CF2: e | DE2: end
CF3: e | DE3: end
C4: ◆基本情報 | Z4: ◆地元電力会社 約款料金（税込） | CF4: e | DE4: end
C5: ●御社名 | Z5: ●低減率 | AK5: % | CF5: e | CT5: システム項目 | DE5: end
C6: ●業種 | Z6: ●基本料金単価 | AE6: =IFERROR(VLOOKUP($I$18&$I$19,料金プランマスタ!$E:$AO,27,FALSE),"") ->  | AK6: 円/kW | AT6: ◆地元電力会社 約款料金（税込） | CF6: e | CT6: No | DE6: end
C7: ●御社本社ご住所 | Z7: ●電力量料金単価 | AE7: =IF(IFERROR(VLOOKUP($I$18&$I$19,料金プランマスタ!$E:$AO,6,FALSE),"")="●","※電力量料金単価は、シート右部分(AS列以降)を参照してください。","") ->  | AT7: ●電力量料金単価 | BX7: ・負荷率帯 | CF7: e | CT7: 負荷率別メニューチェック | CU7: =IFERROR(VLOOKUP($I$18&$I$19,料金プランマスタ!$E:$AD,6,0)="●","") ->  | DE7: end
E8: 郵便番号 | K8: - | Z8: =IFERROR(" "&VLOOKUP($I$18&$I$19,料金プランマスタ!$E:$AD,2,0),"") ->  | AE8: =IF(IFERROR(VLOOKUP($I$18&$I$19,料金プランマスタ!$E:$AO,6,FALSE),"")="●","",IFERROR(VLOOKUP($I$18&$I$19,料金プランマスタ!$E:$AO,28,FALSE),"")) ->  | AK8: 円/kWh | AU8: =IFERROR(IF(VLOOKUP($I$18&$I$19,料金プランマスタ!$E:$AD,6,0)="●",VLOOKUP($I$18&$I$19,料金プランマスタ!$E:$AD,17,0),$N$30),"") ->  | AZ8: =IFERROR(VLOOKUP($I$18&$I$19,料金プランマスタ!$E:$AO,28,FALSE),"") ->  | BF8: 円/kWh | BI8: =IFERROR(IF(VLOOKUP($I$18&$I$19,料金プランマスタ!$E:$AD,6,0)="●",VLOOKUP($I$18&$I$19,料金プランマスタ!$E:$AD,22,0),"-"),"") ->  | BO8: =IFERROR(VLOOKUP($I$18&$I$19,料金プランマスタ!$E:$AO,33,FALSE),"") ->  | BU8: 円/kWh | BX8: =IFERROR(VLOOKUP($I$18&$I$19,料金プランマスタ!$E:$AO,7,FALSE),"") ->  | CA8: ～ | CB8: =IFERROR(VLOOKUP($I$18&$I$19,料金プランマスタ!$E:$AO,8,FALSE),"") ->  | CE8: h | CF8: e | CT8: エリア | CU8: FALSE | CV8: セクション | CW8: 項目名 | CX8: 切替 | CY8: 非活性 | CZ8: セル位置 | DA8: 条件 | DB8: 定数 | DC8: 備考 | DD8: 数式 | DE8: end
E9: 都道府県 | Z9: =IFERROR(" "&VLOOKUP($I$18&$I$19,料金プランマスタ!$E:$AD,3,0),"") ->  | AE9: =IF(IFERROR(VLOOKUP($I$18&$I$19,料金プランマスタ!$E:$AO,6,FALSE),"")="●","",IFERROR(VLOOKUP($I$18&$I$19,料金プランマスタ!$E:$AO,29,FALSE),"")) ->  | AK9: 円/kWh | AU9: =IFERROR(IF(VLOOKUP($I$18&$I$19,料金プランマスタ!$E:$AD,6,0)="●",VLOOKUP($I$18&$I$19,料金プランマスタ!$E:$AD,18,0),$T$30),"") ->  | AZ9: =IFERROR(VLOOKUP($I$18&$I$19,料金プランマスタ!$E:$AO,29,FALSE),"") ->  | BF9: 円/kWh | BI9: =IFERROR(IF(VLOOKUP($I$18&$I$19,料金プランマスタ!$E:$AD,6,0)="●",VLOOKUP($I$18&$I$19,料金プランマスタ!$E:$AD,23,0),"-"),"") ->  | BO9: =IFERROR(VLOOKUP($I$18&$I$19,料金プランマスタ!$E:$AO,34,FALSE),"") ->  | BU9: 円/kWh | BX9: =IFERROR(VLOOKUP($I$18&$I$19,料金プランマスタ!$E:$AO,9,FALSE),"") ->  | CA9: ～ | CB9: =IFERROR(VLOOKUP($I$18&$I$19,料金プランマスタ!$E:$AO,10,FALSE),"") ->  | CE9: h | CF9: e | CT9: 料金プラン名 | CU9: FALSE | CV9: 現契約先 | CW9: 「その他の場合」 | CX9: ● | CY9: =$I$20<>"その他" -> TRUE | CZ9: I21:T21 | DA9: $I$20<>"その他" | DE9: end
E10: 市区町村・番地 | Z10: =IFERROR(" "&VLOOKUP($I$18&$I$19,料金プランマスタ!$E:$AD,4,0),"") ->  | AE10: =IF(IFERROR(VLOOKUP($I$18&$I$19,料金プランマスタ!$E:$AO,6,FALSE),"")="●","",IFERROR(VLOOKUP($I$18&$I$19,料金プランマスタ!$E:$AO,30,FALSE),"")) ->  | AK10: 円/kWh | AU10: =IFERROR(IF(VLOOKUP($I$18&$I$19,料金プランマスタ!$E:$AD,6,0)="●",VLOOKUP($I$18&$I$19,料金プランマスタ!$E:$AD,19,0),$Z$30),"") ->  | AZ10: =IFERROR(VLOOKUP($I$18&$I$19,料金プランマスタ!$E:$AO,30,FALSE),"") ->  | BF10: 円/kWh | BI10: =IFERROR(IF(VLOOKUP($I$18&$I$19,料金プランマスタ!$E:$AD,6,0)="●",VLOOKUP($I$18&$I$19,料金プランマスタ!$E:$AD,24,0),"-"),"") ->  | BO10: =IFERROR(VLOOKUP($I$18&$I$19,料金プランマスタ!$E:$AO,35,FALSE),"") ->  | BU10: 円/kWh | BX10: =IFERROR(VLOOKUP($I$18&$I$19,料金プランマスタ!$E:$AO,11,FALSE),"") ->  | CA10: ～ | CB10: =IFERROR(VLOOKUP($I$18&$I$19,料金プランマスタ!$E:$AO,12,FALSE),"") ->  | CE10: h | CF10: e | CT10: 現在窓数 | CV10: みなし小売電気事業者約款料金（税込） | CW10: 基本料金単価 | CX10: ● | CY10: TRUE | CZ10: AE6:AJ6 | DA10: 常時 | DC10: 負荷率別の場合は表示不要 | DE10: end
C11: ●需要場所施設名 | Z11: =IFERROR(" "&VLOOKUP($I$18&$I$19,料金プランマスタ!$E:$AD,5,0),"") ->  | AE11: =IF(IFERROR(VLOOKUP($I$18&$I$19,料金プランマスタ!$E:$AO,6,FALSE),"")="●","",IFERROR(VLOOKUP($I$18&$I$19,料金プランマスタ!$E:$AO,31,FALSE),"")) ->  | AK11: 円/kWh | AU11: =IFERROR(IF(VLOOKUP($I$18&$I$19,料金プランマスタ!$E:$AD,6,0)="●",VLOOKUP($I$18&$I$19,料金プランマスタ!$E:$AD,20,0),$AF$30),"") ->  | AZ11: =IFERROR(VLOOKUP($I$18&$I$19,料金プランマスタ!$E:$AO,31,FALSE),"") ->  | BF11: 円/kWh | BI11: =IFERROR(IF(VLOOKUP($I$18&$I$19,料金プランマスタ!$E:$AD,6,0)="●",VLOOKUP($I$18&$I$19,料金プランマスタ!$E:$AD,25,0),"-"),"") ->  | BO11: =IFERROR(VLOOKUP($I$18&$I$19,料金プランマスタ!$E:$AO,36,FALSE),"") ->  | BU11: 円/kWh | BX11: =IFERROR(VLOOKUP($I$18&$I$19,料金プランマスタ!$E:$AO,13,FALSE),"") ->  | CA11: ～ | CB11: =IFERROR(VLOOKUP($I$18&$I$19,料金プランマスタ!$E:$AO,14,FALSE),"") ->  | CE11: h | CF11: e | CT11: 高圧or特高 | CV11: 使用電力量料金単価 | CW11: 窓名1 | CX11: ● | CY11: TRUE | CZ11: Z8 | DA11: 常時 | DC11: 負荷率別の場合は表示不要 | DE11: end
C12: ●需要場所ご住所 | Z12: ●割引 | AU12: =IFERROR(IF(VLOOKUP($I$18&$I$19,料金プランマスタ!$E:$AD,6,0)="●",VLOOKUP($I$18&$I$19,料金プランマスタ!$E:$AD,21,0),"-"),"") ->  | AZ12: =IFERROR(VLOOKUP($I$18&$I$19,料金プランマスタ!$E:$AO,32,FALSE),"") ->  | BF12: 円/kWh | BI12: =IFERROR(IF(VLOOKUP($I$18&$I$19,料金プランマスタ!$E:$AD,6,0)="●",VLOOKUP($I$18&$I$19,料金プランマスタ!$E:$AD,26,0),"-"),"") ->  | BO12: =IFERROR(VLOOKUP($I$18&$I$19,料金プランマスタ!$E:$AO,37,FALSE),"") ->  | BU12: 円/kWh | BX12: =IFERROR(VLOOKUP($I$18&$I$19,料金プランマスタ!$E:$AO,15,FALSE),"") ->  | CA12: ～ | CB12: =IFERROR(VLOOKUP($I$18&$I$19,料金プランマスタ!$E:$AO,16,FALSE),"") ->  | CE12: h | CF12: e | CT12: 力率(直近) | CU12: =IF(IFERROR(VLOOKUP("○",$D$31:$M$42,7,FALSE),"")=0,"",IFERROR(VLOOKUP("○",$D$31:$M$42,7,FALSE),"")) ->  | CV12: 使用電力量料金単価 | CW12: 窓名2 | CX12: ● | CY12: TRUE | CZ12: Z9 | DA12: 常時 | DC12: 負荷率別の場合は表示不要 | DE12: end
E13: 郵便番号 | K13: - | Z13: ・基本料金割引 | AK13: 円/kW | AN13: % | AO13: =IFERROR(AE6*AM13/100,"") ->  | CF13: e | CT13: リテンションフラグ | CU13: FALSE | CV13: 使用電力量料金単価 | CW13: 窓名3 | CX13: ● | CY13: TRUE | CZ13: Z10 | DA13: 常時 | DC13: 負荷率別の場合は表示不要 | DE13: end
E14: 都道府県 | Z14: ・電力量料金割引 | AK14: 円/kWh | AN14: % | AO14: =IFERROR(IF(IFERROR(VLOOKUP($I$18&$I$19,料金プランマスタ!$E:$AO,6,FALSE),"")="●",((IF(AX43="-",0,AX43*AZ8))+(IF(BA43="-",0,BA43*AZ9))+(IF(BD43="-",0,BD43*AZ10))+(IF(BG43="-",0,BG43*AZ11))+(IF(BJ43="-",0,BJ43*AZ12))+(IF(BM43="-",0,BM43*BO8))+(IF(BP43="-",0,BP43*BO9))+(IF(BS43="-",0,BS43*BO10))+(IF(BV43="-",0,BV43*BO11))+(IF(BY43="-",0,BY43*BO12))),(IF(N43="-",0,N43*AE8)+IF(T43="-",0,T43*AE9)+IF(Z43="-",0,Z43*AE10)+IF(AF43="-",0,AF43*AE11)))*(AM14/100)/CB43,"") ->  | CF14: e | CV14: 使用電力量料金単価 | CW14: 窓名4 | CX14: ● | CY14: TRUE | CZ14: Z11 | DA14: 常時 | DC14: 負荷率別の場合は表示不要 | DE14: end
E15: 市区町村・番地 | Z15: ・年間割引総額 | AK15: 円 | CF15: e | CV15: 使用電力量料金単価 | CW15: 窓値1 | CX15: ● | CY15: TRUE | CZ15: AE8:AJ8 | DA15: 常時 | DC15: 負荷率別の場合は表示不要 | DE15: end
CF16: e | CV16: 使用電力量料金単価 | CW16: 窓値2 | CX16: ● | CY16: TRUE | CZ16: AE9:AJ9 | DA16: 常時 | DC16: 負荷率別の場合は表示不要 | DE16: end
C17: ◆主契約情報 | Z17: ◆付帯契約 | CF17: e | CV17: 使用電力量料金単価 | CW17: 窓値3 | CX17: ● | CY17: TRUE | CZ17: AE10:AJ10 | DA17: 常時 | DC17: 負荷率別の場合は表示不要 | DE17: end
C18: ●エリア | Z18: ●予備線契約 | AK18: kW | AM18: 無 | CF18: e | CV18: 使用電力量料金単価 | CW18: 窓値4 | CX18: ● | CY18: TRUE | CZ18: AE11:AJ11 | DA18: 常時 | DC18: 負荷率別の場合は表示不要 | DE18: end
C19: ●料金プラン名 | V19: 会社名検索 | Z19: ●予備電源契約 | AK19: kW | AM19: 無 | CF19: e | CV19: ◆月別データ | CW19: 窓1 | CX19: ● | CY19: TRUE | CZ19: N30:S30 | DA19: 常時 | DE19: end
C20: ●現契約先 | Z20: ●自家発補給電力 | AK20: kW | AM20: 無 | CF20: e | CV20: ◆月別データ | CW20: 窓2 | CX20: ● | CY20: TRUE | CZ20: T30:Y30 | DA20: 常時 | DE20: end
D21: ・「その他」の場合 | I21: =IF(I20="その他","直接入力してください","-") -> - | V21: ※全角カタカナ | Z21: ●常用発電設備 | CF21: e | CV21: ◆月別データ | CW21: 窓3 | CX21: ● | CY21: TRUE | CZ21: Z30:AE30 | DA21: 常時 | DE21: end
C22: ●受電（供給）電圧 | O22: kV | CF22: e | CV22: ◆月別データ | CW22: 窓4 | CX22: ● | CY22: TRUE | CZ22: AF30:AK30 | DA22: 常時 | DE22: end
C23: ●契約電力[直近］ | I23: =IF(IFERROR(VLOOKUP("○",$D$31:$I$42,3,FALSE),"")=0,"",IFERROR(VLOOKUP("○",$D$31:$I$42,3,FALSE),"")) ->  | O23: kW | Z23: ◆TCS契約への希望 | CF23: e | CV23: ◆月別データ | CW23: 使用量等 | CX23: ● | CY23: 該当窓の使用量は非活性 | CZ23: F31:AK42 | DA23: 窓名が"-"の場合 | DD23: ←マクロで制御 | DE23: end
Z24: ●TCS長期契約の希望年数 | AK24: 年 | CF24: e | CV24: ◆月別データ | CW24: 負荷率 | CX24: ● | CY24: TRUE | CZ24: AN46:AQ46 | DA24: 常時 | DE24: end
C25: ◆供給地点特定番号 | Z25: ●環境に配慮した「グリーン電力」の希望 | CF25: e | CV25: 競合情報1 | CW25: 「その他」の場合 | CX25: ● | CY25: =$H$49<>"その他" -> TRUE | CZ25: H50:K50 | DA25: $H$49<>"その他" | DE25: end
CF26: e | CV26: ◆競合単価（税込） | CW26: 低減率 | CX26: ● | CY26: =OR($AZ$47<>$BH$47,$AZ$49<>$BH$49,$AZ$50<>$BH$50,$AZ$51<>$BH$51,$AZ$52<>$BH$52,$AZ$53<>$BH$53,$BO$49<>$BW$49,$BO$50<>$BW$50,$BO$51<>$BW$51,$BO$52<>$BW$52,$BO$53<>$BW$53,$H$53<>$N$53,$H$55<>$N$55,$H$56<>$N$56,$H$57<>$N$57,$H$58<>$N$58) -> FALSE | CZ26: H52:K52 | DA26: OR($AZ$47<>$BH$47,$AZ$49<>$BH$49,$AZ$50<>$BH$50,$AZ$51<>$BH$51,$AZ$52<>$BH$52,$AZ$53<>$BH$53,$BO$49<>$BW$49,$BO$50<>$BW$50,$BO$51<>$BW$51,$BO$52<>$BW$52,$BO$53<>$BW$53) | DE26: end
CF27: e | CV27: ◆競合単価（税込） | DA27: OR($H$53<>$N$53,$H$55<>$N$55,$H$56<>$N$56,$H$57<>$N$57,$H$58<>$N$58) | DE27: end
C28: ◆月別データ | AT28: ◆月別データ | CF28: e | CV28: ◆競合単価（税込） | CW28: 基本料金単価 | CX28: ● | CY28: =OR($H$52<>0,$H$60<>0,$H$61<>0,$H$62<>0,$I$19="",IF(IFERROR(VLOOKUP($I$18&$I$19,料金プランマスタ!$E:$AD,6,0),"●")="●",TRUE,FALSE)) -> TRUE | CZ28: H53:K53 | DA28: $I$19="" | DE28: end
C29: 月 | D29: 最新月に "○" | F29: 契約電力(kW) | J29: 力率(%) | N29: 使用電力量(kWh) | AU29: 月 | AX29: 使用電力量(kWh) | CF29: e | CV29: ◆競合単価（税込） | DA29: IF(IFERROR(VLOOKUP($I$18&$I$19,料金プランマスタ!$E$7:$AD$212,6,0),"●")="●",TRUE,FALSE) | DC29: 負荷率別の場合は表示不要 | DE29: end
N30: =IFERROR(VLOOKUP($I$18&$I$19,料金プランマスタ!$E:$AD,2,0),"") ->  | T30: =IFERROR(VLOOKUP($I$18&$I$19,料金プランマスタ!$E:$AD,3,0),"") ->  | Z30: =IFERROR(VLOOKUP($I$18&$I$19,料金プランマスタ!$E:$AD,4,0),"") ->  | AF30: =IFERROR(VLOOKUP($I$18&$I$19,料金プランマスタ!$E:$AD,5,0),"") ->  | AL30: 合計 | AX30: =AU8 ->  | BA30: =AU9 ->  | BD30: =AU10 ->  | BG30: =AU11 ->  | BJ30: =AU12 ->  | BM30: =BI8 ->  | BP30: =BI9 ->  | BS30: =BI10 ->  | BV30: =BI11 ->  | BY30: =BI12 ->  | CB30: 合計 | CF30: e | CV30: ◆競合単価（税込） | DA30: OR($H$52<>0,$H$60<>0,$H$61<>0,$H$62<>0) | DE30: end
C31: 4 | AL31: =SUM(N31:AK31) -> 0 | AU31: 4月 | AX31: =IF(IFERROR(IF(VLOOKUP($I$18&$I$19,料金プランマスタ!$E:$AD,6,0)="",N31,IF($N31<$I$23*$CB$8,$N31,$I$23*$CB$8)),0)=0,"",IFERROR(IF(VLOOKUP($I$18&$I$19,料金プランマスタ!$E:$AD,6,0)="",N31,IF($N31<$I$23*$CB$8,$N31,$I$23*$CB$8)),0)) ->  | BA31: =IF(IFERROR(IF(VLOOKUP($I$18&$I$19,料金プランマスタ!$E:$AD,6,0)="",T31,IF($N31-$AX31<$I$23*$CB$9-$I$23*$CB$8,$N31-$AX31,$I$23*$CB$9-$I$23*$CB$8)),0)=0,"",IFERROR(IF(VLOOKUP($I$18&$I$19,料金プランマスタ!$E:$AD,6,0)="",T31,IF($N31-$AX31<$I$23*$CB$9-$I$23*$CB$8,$N31-$AX31,$I$23*$CB$9-$I$23*$CB$8)),0)) ->  | BD31: =IF(IFERROR(IF(VLOOKUP($I$18&$I$19,料金プランマスタ!$E:$AD,6,0)="",Z31,IF($N31-$AX31-$BA31<$I$23*$CB$10-$I$23*$CB$9,$N31-$AX31-$BA31,$I$23*$CB$10-$I$23*$CB$9)),0)=0,"",IFERROR(IF(VLOOKUP($I$18&$I$19,料金プランマスタ!$E:$AD,6,0)="",Z31,IF($N31-$AX31-$BA31<$I$23*$CB$10-$I$23*$CB$9,$N31-$AX31-$BA31,$I$23*$CB$10-$I$23*$CB$9)),0)) ->  | BG31: =IF(IFERROR(IF(VLOOKUP($I$18&$I$19,料金プランマスタ!$E:$AD,6,0)="",AF31,IF($N31-$AX31-$BA31-$BD31<$I$23*$CB$11-$I$23*$CB$10,$N31-$AX31-$BA31-$BD31,$I$23*$CB$11-$I$23*$CB$10)),0)=0,"",IFERROR(IF(VLOOKUP($I$18&$I$19,料金プランマスタ!$E:$AD,6,0)="",AF31,IF($N31-$AX31-$BA31-$BD31<$I$23*$CB$11-$I$23*$CB$10,$N31-$AX31-$BA31-$BD31,$I$23*$CB$11-$I$23*$CB$10)),0)) ->  | BJ31: =IF(IFERROR(IF(VLOOKUP($I$18&$I$19,料金プランマスタ!$E:$AD,6,0)="","",IF($N31-$AX31-$BA31-$BD31-BG31<$I$23*$CB$12-$I$23*$CB$11,$N31-$AX31-$BA31-$BD31-$BG31,$I$23*$CB$12-$I$23*$CB$11)),0)=0,"",IFERROR(IF(VLOOKUP($I$18&$I$19,料金プランマスタ!$E:$AD,6,0)="","",IF($N31-$AX31-$BA31-$BD31-BG31<$I$23*$CB$12-$I$23*$CB$11,$N31-$AX31-$BA31-$BD31-$BG31,$I$23*$CB$12-$I$23*$CB$11)),0)) ->  | BM31: =IF(IFERROR(IF(VLOOKUP($I$18&$I$19,料金プランマスタ!$E:$AD,6,0)="","",IF($T31<$I$23*$CB$8,$T31,$I$23*$CB$8)),0)=0,"",IFERROR(IF(VLOOKUP($I$18&$I$19,料金プランマスタ!$E:$AD,6,0)="","",IF($T31<$I$23*$CB$8,$T31,$I$23*$CB$8)),0)) ->  | BP31: =IF(IFERROR(IF(VLOOKUP($I$18&$I$19,料金プランマスタ!$E:$AD,6,0)="","",IF($T31-$BM31<$I$23*$CB$9-$I$23*$CB$8,$T31-$BM31,$I$23*$CB$9-$I$23*$CB$8)),0)=0,"",IFERROR(IF(VLOOKUP($I$18&$I$19,料金プランマスタ!$E:$AD,6,0)="","",IF($T31-$BM31<$I$23*$CB$9-$I$23*$CB$8,$T31-$BM31,$I$23*$CB$9-$I$23*$CB$8)),0)) ->  | BS31: =IF(IFERROR(IF(VLOOKUP($I$18&$I$19,料金プランマスタ!$E:$AD,6,0)="","",IF($T31-$BM31-$BP31<$I$23*$CB$10-$I$23*$CB$9,$T31-$BM31-$BP31,$I$23*$CB$10-$I$23*$CB$9)),0)=0,"",IFERROR(IF(VLOOKUP($I$18&$I$19,料金プランマスタ!$E:$AD,6,0)="","",IF($T31-$BM31-$BP31<$I$23*$CB$10-$I$23*$CB$9,$T31-$BM31-$BP31,$I$23*$CB$10-$I$23*$CB$9)),0)) ->  | BV31: =IF(IFERROR(IF(VLOOKUP($I$18&$I$19,料金プランマスタ!$E:$AD,6,0)="","",IF($T31-$BM31-$BP31-$BS31<$I$23*$CB$11-$I$23*$CB$10,$T31-$BM31-$BP31-$BS31,$I$23*$CB$11-$I$23*$CB$10)),0)=0,"",IFERROR(IF(VLOOKUP($I$18&$I$19,料金プランマスタ!$E:$AD,6,0)="","",IF($T31-$BM31-$BP31-$BS31<$I$23*$CB$11-$I$23*$CB$10,$T31-$BM31-$BP31-$BS31,$I$23*$CB$11-$I$23*$CB$10)),0)) ->  | BY31: =IF(IFERROR(IF(VLOOKUP($I$18&$I$19,料金プランマスタ!$E:$AD,6,0)="","",IF($T31-$BM31-$BP31-$BS31-BV31<$I$23*$CB$12-$I$23*$CB$11,$T31-$BM31-$BP31-$BS31-$BV31,$I$23*$CB$12-$I$23*$CB$11)),0)=0,"",IFERROR(IF(VLOOKUP($I$18&$I$19,料金プランマスタ!$E:$AD,6,0)="","",IF($T31-$BM31-$BP31-$BS31-BV31<$I$23*$CB$12-$I$23*$CB$11,$T31-$BM31-$BP31-$BS31-$BV31,$I$23*$CB$12-$I$23*$CB$11)),0)) ->  | CB31: =SUM(AX31:CA31) -> 0 | CF31: e | CV31: 使用電力量料金単価 | CW31: 窓名1 | CX31: ● | CY31: TRUE | CZ31: C55 | DA31: 常時 | DC31: 負荷率別の場合は表示不要 | DE31: end
C32: 5 | AL32: 0 | AU32: 5月 | AX32: =IF(IFERROR(IF(VLOOKUP($I$18&$I$19,料金プランマスタ!$E:$AD,6,0)="",N32,IF($N32<$I$23*$CB$8,$N32,$I$23*$CB$8)),0)=0,"",IFERROR(IF(VLOOKUP($I$18&$I$19,料金プランマスタ!$E:$AD,6,0)="",N32,IF($N32<$I$23*$CB$8,$N32,$I$23*$CB$8)),0)) ->  | BA32: =IF(IFERROR(IF(VLOOKUP($I$18&$I$19,料金プランマスタ!$E:$AD,6,0)="",T32,IF($N32-$AX32<$I$23*$CB$9-$I$23*$CB$8,$N32-$AX32,$I$23*$CB$9-$I$23*$CB$8)),0)=0,"",IFERROR(IF(VLOOKUP($I$18&$I$19,料金プランマスタ!$E:$AD,6,0)="",T32,IF($N32-$AX32<$I$23*$CB$9-$I$23*$CB$8,$N32-$AX32,$I$23*$CB$9-$I$23*$CB$8)),0)) ->  | BD32: =IF(IFERROR(IF(VLOOKUP($I$18&$I$19,料金プランマスタ!$E:$AD,6,0)="",Z32,IF($N32-$AX32-$BA32<$I$23*$CB$10-$I$23*$CB$9,$N32-$AX32-$BA32,$I$23*$CB$10-$I$23*$CB$9)),0)=0,"",IFERROR(IF(VLOOKUP($I$18&$I$19,料金プランマスタ!$E:$AD,6,0)="",Z32,IF($N32-$AX32-$BA32<$I$23*$CB$10-$I$23*$CB$9,$N32-$AX32-$BA32,$I$23*$CB$10-$I$23*$CB$9)),0)) ->  | BG32: =IF(IFERROR(IF(VLOOKUP($I$18&$I$19,料金プランマスタ!$E:$AD,6,0)="",AF32,IF($N32-$AX32-$BA32-$BD32<$I$23*$CB$11-$I$23*$CB$10,$N32-$AX32-$BA32-$BD32,$I$23*$CB$11-$I$23*$CB$10)),0)=0,"",IFERROR(IF(VLOOKUP($I$18&$I$19,料金プランマスタ!$E:$AD,6,0)="",AF32,IF($N32-$AX32-$BA32-$BD32<$I$23*$CB$11-$I$23*$CB$10,$N32-$AX32-$BA32-$BD32,$I$23*$CB$11-$I$23*$CB$10)),0)) ->  | BJ32: =IF(IFERROR(IF(VLOOKUP($I$18&$I$19,料金プランマスタ!$E:$AD,6,0)="","",IF($N32-$AX32-$BA32-$BD32-BG32<$I$23*$CB$12-$I$23*$CB$11,$N32-$AX32-$BA32-$BD32-$BG32,$I$23*$CB$12-$I$23*$CB$11)),0)=0,"",IFERROR(IF(VLOOKUP($I$18&$I$19,料金プランマスタ!$E:$AD,6,0)="","",IF($N32-$AX32-$BA32-$BD32-BG32<$I$23*$CB$12-$I$23*$CB$11,$N32-$AX32-$BA32-$BD32-$BG32,$I$23*$CB$12-$I$23*$CB$11)),0)) ->  | BM32: =IF(IFERROR(IF(VLOOKUP($I$18&$I$19,料金プランマスタ!$E:$AD,6,0)="","",IF($T32<$I$23*$CB$8,$T32,$I$23*$CB$8)),0)=0,"",IFERROR(IF(VLOOKUP($I$18&$I$19,料金プランマスタ!$E:$AD,6,0)="","",IF($T32<$I$23*$CB$8,$T32,$I$23*$CB$8)),0)) ->  | BP32: =IF(IFERROR(IF(VLOOKUP($I$18&$I$19,料金プランマスタ!$E:$AD,6,0)="","",IF($T32-$BM32<$I$23*$CB$9-$I$23*$CB$8,$T32-$BM32,$I$23*$CB$9-$I$23*$CB$8)),0)=0,"",IFERROR(IF(VLOOKUP($I$18&$I$19,料金プランマスタ!$E:$AD,6,0)="","",IF($T32-$BM32<$I$23*$CB$9-$I$23*$CB$8,$T32-$BM32,$I$23*$CB$9-$I$23*$CB$8)),0)) ->  | BS32: =IF(IFERROR(IF(VLOOKUP($I$18&$I$19,料金プランマスタ!$E:$AD,6,0)="","",IF($T32-$BM32-$BP32<$I$23*$CB$10-$I$23*$CB$9,$T32-$BM32-$BP32,$I$23*$CB$10-$I$23*$CB$9)),0)=0,"",IFERROR(IF(VLOOKUP($I$18&$I$19,料金プランマスタ!$E:$AD,6,0)="","",IF($T32-$BM32-$BP32<$I$23*$CB$10-$I$23*$CB$9,$T32-$BM32-$BP32,$I$23*$CB$10-$I$23*$CB$9)),0)) ->  | BV32: =IF(IFERROR(IF(VLOOKUP($I$18&$I$19,料金プランマスタ!$E:$AD,6,0)="","",IF($T32-$BM32-$BP32-$BS32<$I$23*$CB$11-$I$23*$CB$10,$T32-$BM32-$BP32-$BS32,$I$23*$CB$11-$I$23*$CB$10)),0)=0,"",IFERROR(IF(VLOOKUP($I$18&$I$19,料金プランマスタ!$E:$AD,6,0)="","",IF($T32-$BM32-$BP32-$BS32<$I$23*$CB$11-$I$23*$CB$10,$T32-$BM32-$BP32-$BS32,$I$23*$CB$11-$I$23*$CB$10)),0)) ->  | BY32: =IF(IFERROR(IF(VLOOKUP($I$18&$I$19,料金プランマスタ!$E:$AD,6,0)="","",IF($T32-$BM32-$BP32-$BS32-BV32<$I$23*$CB$12-$I$23*$CB$11,$T32-$BM32-$BP32-$BS32-$BV32,$I$23*$CB$12-$I$23*$CB$11)),0)=0,"",IFERROR(IF(VLOOKUP($I$18&$I$19,料金プランマスタ!$E:$AD,6,0)="","",IF($T32-$BM32-$BP32-$BS32-BV32<$I$23*$CB$12-$I$23*$CB$11,$T32-$BM32-$BP32-$BS32-$BV32,$I$23*$CB$12-$I$23*$CB$11)),0)) ->  | CB32: 0 | CF32: e | CV32: 使用電力量料金単価 | CW32: 窓名2 | CX32: ● | CY32: TRUE | CZ32: C56 | DA32: 常時 | DC32: 負荷率別の場合は表示不要 | DE32: end
C33: 6 | AL33: 0 | AU33: 6月 | AX33: =IF(IFERROR(IF(VLOOKUP($I$18&$I$19,料金プランマスタ!$E:$AD,6,0)="",N33,IF($N33<$I$23*$CB$8,$N33,$I$23*$CB$8)),0)=0,"",IFERROR(IF(VLOOKUP($I$18&$I$19,料金プランマスタ!$E:$AD,6,0)="",N33,IF($N33<$I$23*$CB$8,$N33,$I$23*$CB$8)),0)) ->  | BA33: =IF(IFERROR(IF(VLOOKUP($I$18&$I$19,料金プランマスタ!$E:$AD,6,0)="",T33,IF($N33-$AX33<$I$23*$CB$9-$I$23*$CB$8,$N33-$AX33,$I$23*$CB$9-$I$23*$CB$8)),0)=0,"",IFERROR(IF(VLOOKUP($I$18&$I$19,料金プランマスタ!$E:$AD,6,0)="",T33,IF($N33-$AX33<$I$23*$CB$9-$I$23*$CB$8,$N33-$AX33,$I$23*$CB$9-$I$23*$CB$8)),0)) ->  | BD33: =IF(IFERROR(IF(VLOOKUP($I$18&$I$19,料金プランマスタ!$E:$AD,6,0)="",Z33,IF($N33-$AX33-$BA33<$I$23*$CB$10-$I$23*$CB$9,$N33-$AX33-$BA33,$I$23*$CB$10-$I$23*$CB$9)),0)=0,"",IFERROR(IF(VLOOKUP($I$18&$I$19,料金プランマスタ!$E:$AD,6,0)="",Z33,IF($N33-$AX33-$BA33<$I$23*$CB$10-$I$23*$CB$9,$N33-$AX33-$BA33,$I$23*$CB$10-$I$23*$CB$9)),0)) ->  | BG33: =IF(IFERROR(IF(VLOOKUP($I$18&$I$19,料金プランマスタ!$E:$AD,6,0)="",AF33,IF($N33-$AX33-$BA33-$BD33<$I$23*$CB$11-$I$23*$CB$10,$N33-$AX33-$BA33-$BD33,$I$23*$CB$11-$I$23*$CB$10)),0)=0,"",IFERROR(IF(VLOOKUP($I$18&$I$19,料金プランマスタ!$E:$AD,6,0)="",AF33,IF($N33-$AX33-$BA33-$BD33<$I$23*$CB$11-$I$23*$CB$10,$N33-$AX33-$BA33-$BD33,$I$23*$CB$11-$I$23*$CB$10)),0)) ->  | BJ33: =IF(IFERROR(IF(VLOOKUP($I$18&$I$19,料金プランマスタ!$E:$AD,6,0)="","",IF($N33-$AX33-$BA33-$BD33-BG33<$I$23*$CB$12-$I$23*$CB$11,$N33-$AX33-$BA33-$BD33-$BG33,$I$23*$CB$12-$I$23*$CB$11)),0)=0,"",IFERROR(IF(VLOOKUP($I$18&$I$19,料金プランマスタ!$E:$AD,6,0)="","",IF($N33-$AX33-$BA33-$BD33-BG33<$I$23*$CB$12-$I$23*$CB$11,$N33-$AX33-$BA33-$BD33-$BG33,$I$23*$CB$12-$I$23*$CB$11)),0)) ->  | BM33: =IF(IFERROR(IF(VLOOKUP($I$18&$I$19,料金プランマスタ!$E:$AD,6,0)="","",IF($T33<$I$23*$CB$8,$T33,$I$23*$CB$8)),0)=0,"",IFERROR(IF(VLOOKUP($I$18&$I$19,料金プランマスタ!$E:$AD,6,0)="","",IF($T33<$I$23*$CB$8,$T33,$I$23*$CB$8)),0)) ->  | BP33: =IF(IFERROR(IF(VLOOKUP($I$18&$I$19,料金プランマスタ!$E:$AD,6,0)="","",IF($T33-$BM33<$I$23*$CB$9-$I$23*$CB$8,$T33-$BM33,$I$23*$CB$9-$I$23*$CB$8)),0)=0,"",IFERROR(IF(VLOOKUP($I$18&$I$19,料金プランマスタ!$E:$AD,6,0)="","",IF($T33-$BM33<$I$23*$CB$9-$I$23*$CB$8,$T33-$BM33,$I$23*$CB$9-$I$23*$CB$8)),0)) ->  | BS33: =IF(IFERROR(IF(VLOOKUP($I$18&$I$19,料金プランマスタ!$E:$AD,6,0)="","",IF($T33-$BM33-$BP33<$I$23*$CB$10-$I$23*$CB$9,$T33-$BM33-$BP33,$I$23*$CB$10-$I$23*$CB$9)),0)=0,"",IFERROR(IF(VLOOKUP($I$18&$I$19,料金プランマスタ!$E:$AD,6,0)="","",IF($T33-$BM33-$BP33<$I$23*$CB$10-$I$23*$CB$9,$T33-$BM33-$BP33,$I$23*$CB$10-$I$23*$CB$9)),0)) ->  | BV33: =IF(IFERROR(IF(VLOOKUP($I$18&$I$19,料金プランマスタ!$E:$AD,6,0)="","",IF($T33-$BM33-$BP33-$BS33<$I$23*$CB$11-$I$23*$CB$10,$T33-$BM33-$BP33-$BS33,$I$23*$CB$11-$I$23*$CB$10)),0)=0,"",IFERROR(IF(VLOOKUP($I$18&$I$19,料金プランマスタ!$E:$AD,6,0)="","",IF($T33-$BM33-$BP33-$BS33<$I$23*$CB$11-$I$23*$CB$10,$T33-$BM33-$BP33-$BS33,$I$23*$CB$11-$I$23*$CB$10)),0)) ->  | BY33: =IF(IFERROR(IF(VLOOKUP($I$18&$I$19,料金プランマスタ!$E:$AD,6,0)="","",IF($T33-$BM33-$BP33-$BS33-BV33<$I$23*$CB$12-$I$23*$CB$11,$T33-$BM33-$BP33-$BS33-$BV33,$I$23*$CB$12-$I$23*$CB$11)),0)=0,"",IFERROR(IF(VLOOKUP($I$18&$I$19,料金プランマスタ!$E:$AD,6,0)="","",IF($T33-$BM33-$BP33-$BS33-BV33<$I$23*$CB$12-$I$23*$CB$11,$T33-$BM33-$BP33-$BS33-$BV33,$I$23*$CB$12-$I$23*$CB$11)),0)) ->  | CB33: 0 | CF33: e | CV33: 使用電力量料金単価 | CW33: 窓名3 | CX33: ● | CY33: TRUE | CZ33: C57 | DA33: 常時 | DC33: 負荷率別の場合は表示不要 | DE33: end
C34: 7 | AL34: 0 | AU34: 7月 | AX34: =IF(IFERROR(IF(VLOOKUP($I$18&$I$19,料金プランマスタ!$E:$AD,6,0)="",N34,IF($N34<$I$23*$CB$8,$N34,$I$23*$CB$8)),0)=0,"",IFERROR(IF(VLOOKUP($I$18&$I$19,料金プランマスタ!$E:$AD,6,0)="",N34,IF($N34<$I$23*$CB$8,$N34,$I$23*$CB$8)),0)) ->  | BA34: =IF(IFERROR(IF(VLOOKUP($I$18&$I$19,料金プランマスタ!$E:$AD,6,0)="",T34,IF($N34-$AX34<$I$23*$CB$9-$I$23*$CB$8,$N34-$AX34,$I$23*$CB$9-$I$23*$CB$8)),0)=0,"",IFERROR(IF(VLOOKUP($I$18&$I$19,料金プランマスタ!$E:$AD,6,0)="",T34,IF($N34-$AX34<$I$23*$CB$9-$I$23*$CB$8,$N34-$AX34,$I$23*$CB$9-$I$23*$CB$8)),0)) ->  | BD34: =IF(IFERROR(IF(VLOOKUP($I$18&$I$19,料金プランマスタ!$E:$AD,6,0)="",Z34,IF($N34-$AX34-$BA34<$I$23*$CB$10-$I$23*$CB$9,$N34-$AX34-$BA34,$I$23*$CB$10-$I$23*$CB$9)),0)=0,"",IFERROR(IF(VLOOKUP($I$18&$I$19,料金プランマスタ!$E:$AD,6,0)="",Z34,IF($N34-$AX34-$BA34<$I$23*$CB$10-$I$23*$CB$9,$N34-$AX34-$BA34,$I$23*$CB$10-$I$23*$CB$9)),0)) ->  | BG34: =IF(IFERROR(IF(VLOOKUP($I$18&$I$19,料金プランマスタ!$E:$AD,6,0)="",AF34,IF($N34-$AX34-$BA34-$BD34<$I$23*$CB$11-$I$23*$CB$10,$N34-$AX34-$BA34-$BD34,$I$23*$CB$11-$I$23*$CB$10)),0)=0,"",IFERROR(IF(VLOOKUP($I$18&$I$19,料金プランマスタ!$E:$AD,6,0)="",AF34,IF($N34-$AX34-$BA34-$BD34<$I$23*$CB$11-$I$23*$CB$10,$N34-$AX34-$BA34-$BD34,$I$23*$CB$11-$I$23*$CB$10)),0)) ->  | BJ34: =IF(IFERROR(IF(VLOOKUP($I$18&$I$19,料金プランマスタ!$E:$AD,6,0)="","",IF($N34-$AX34-$BA34-$BD34-BG34<$I$23*$CB$12-$I$23*$CB$11,$N34-$AX34-$BA34-$BD34-$BG34,$I$23*$CB$12-$I$23*$CB$11)),0)=0,"",IFERROR(IF(VLOOKUP($I$18&$I$19,料金プランマスタ!$E:$AD,6,0)="","",IF($N34-$AX34-$BA34-$BD34-BG34<$I$23*$CB$12-$I$23*$CB$11,$N34-$AX34-$BA34-$BD34-$BG34,$I$23*$CB$12-$I$23*$CB$11)),0)) ->  | BM34: =IF(IFERROR(IF(VLOOKUP($I$18&$I$19,料金プランマスタ!$E:$AD,6,0)="","",IF($T34<$I$23*$CB$8,$T34,$I$23*$CB$8)),0)=0,"",IFERROR(IF(VLOOKUP($I$18&$I$19,料金プランマスタ!$E:$AD,6,0)="","",IF($T34<$I$23*$CB$8,$T34,$I$23*$CB$8)),0)) ->  | BP34: =IF(IFERROR(IF(VLOOKUP($I$18&$I$19,料金プランマスタ!$E:$AD,6,0)="","",IF($T34-$BM34<$I$23*$CB$9-$I$23*$CB$8,$T34-$BM34,$I$23*$CB$9-$I$23*$CB$8)),0)=0,"",IFERROR(IF(VLOOKUP($I$18&$I$19,料金プランマスタ!$E:$AD,6,0)="","",IF($T34-$BM34<$I$23*$CB$9-$I$23*$CB$8,$T34-$BM34,$I$23*$CB$9-$I$23*$CB$8)),0)) ->  | BS34: =IF(IFERROR(IF(VLOOKUP($I$18&$I$19,料金プランマスタ!$E:$AD,6,0)="","",IF($T34-$BM34-$BP34<$I$23*$CB$10-$I$23*$CB$9,$T34-$BM34-$BP34,$I$23*$CB$10-$I$23*$CB$9)),0)=0,"",IFERROR(IF(VLOOKUP($I$18&$I$19,料金プランマスタ!$E:$AD,6,0)="","",IF($T34-$BM34-$BP34<$I$23*$CB$10-$I$23*$CB$9,$T34-$BM34-$BP34,$I$23*$CB$10-$I$23*$CB$9)),0)) ->  | BV34: =IF(IFERROR(IF(VLOOKUP($I$18&$I$19,料金プランマスタ!$E:$AD,6,0)="","",IF($T34-$BM34-$BP34-$BS34<$I$23*$CB$11-$I$23*$CB$10,$T34-$BM34-$BP34-$BS34,$I$23*$CB$11-$I$23*$CB$10)),0)=0,"",IFERROR(IF(VLOOKUP($I$18&$I$19,料金プランマスタ!$E:$AD,6,0)="","",IF($T34-$BM34-$BP34-$BS34<$I$23*$CB$11-$I$23*$CB$10,$T34-$BM34-$BP34-$BS34,$I$23*$CB$11-$I$23*$CB$10)),0)) ->  | BY34: =IF(IFERROR(IF(VLOOKUP($I$18&$I$19,料金プランマスタ!$E:$AD,6,0)="","",IF($T34-$BM34-$BP34-$BS34-BV34<$I$23*$CB$12-$I$23*$CB$11,$T34-$BM34-$BP34-$BS34-$BV34,$I$23*$CB$12-$I$23*$CB$11)),0)=0,"",IFERROR(IF(VLOOKUP($I$18&$I$19,料金プランマスタ!$E:$AD,6,0)="","",IF($T34-$BM34-$BP34-$BS34-BV34<$I$23*$CB$12-$I$23*$CB$11,$T34-$BM34-$BP34-$BS34-$BV34,$I$23*$CB$12-$I$23*$CB$11)),0)) ->  | CB34: 0 | CF34: e | CV34: 使用電力量料金単価 | CW34: 窓名4 | CX34: ● | CY34: TRUE | CZ34: C58 | DA34: 常時 | DC34: 負荷率別の場合は表示不要 | DE34: end
C35: 8 | AL35: 0 | AU35: 8月 | AX35: =IF(IFERROR(IF(VLOOKUP($I$18&$I$19,料金プランマスタ!$E:$AD,6,0)="",N35,IF($N35<$I$23*$CB$8,$N35,$I$23*$CB$8)),0)=0,"",IFERROR(IF(VLOOKUP($I$18&$I$19,料金プランマスタ!$E:$AD,6,0)="",N35,IF($N35<$I$23*$CB$8,$N35,$I$23*$CB$8)),0)) ->  | BA35: =IF(IFERROR(IF(VLOOKUP($I$18&$I$19,料金プランマスタ!$E:$AD,6,0)="",T35,IF($N35-$AX35<$I$23*$CB$9-$I$23*$CB$8,$N35-$AX35,$I$23*$CB$9-$I$23*$CB$8)),0)=0,"",IFERROR(IF(VLOOKUP($I$18&$I$19,料金プランマスタ!$E:$AD,6,0)="",T35,IF($N35-$AX35<$I$23*$CB$9-$I$23*$CB$8,$N35-$AX35,$I$23*$CB$9-$I$23*$CB$8)),0)) ->  | BD35: =IF(IFERROR(IF(VLOOKUP($I$18&$I$19,料金プランマスタ!$E:$AD,6,0)="",Z35,IF($N35-$AX35-$BA35<$I$23*$CB$10-$I$23*$CB$9,$N35-$AX35-$BA35,$I$23*$CB$10-$I$23*$CB$9)),0)=0,"",IFERROR(IF(VLOOKUP($I$18&$I$19,料金プランマスタ!$E:$AD,6,0)="",Z35,IF($N35-$AX35-$BA35<$I$23*$CB$10-$I$23*$CB$9,$N35-$AX35-$BA35,$I$23*$CB$10-$I$23*$CB$9)),0)) ->  | BG35: =IF(IFERROR(IF(VLOOKUP($I$18&$I$19,料金プランマスタ!$E:$AD,6,0)="",AF35,IF($N35-$AX35-$BA35-$BD35<$I$23*$CB$11-$I$23*$CB$10,$N35-$AX35-$BA35-$BD35,$I$23*$CB$11-$I$23*$CB$10)),0)=0,"",IFERROR(IF(VLOOKUP($I$18&$I$19,料金プランマスタ!$E:$AD,6,0)="",AF35,IF($N35-$AX35-$BA35-$BD35<$I$23*$CB$11-$I$23*$CB$10,$N35-$AX35-$BA35-$BD35,$I$23*$CB$11-$I$23*$CB$10)),0)) ->  | BJ35: =IF(IFERROR(IF(VLOOKUP($I$18&$I$19,料金プランマスタ!$E:$AD,6,0)="","",IF($N35-$AX35-$BA35-$BD35-BG35<$I$23*$CB$12-$I$23*$CB$11,$N35-$AX35-$BA35-$BD35-$BG35,$I$23*$CB$12-$I$23*$CB$11)),0)=0,"",IFERROR(IF(VLOOKUP($I$18&$I$19,料金プランマスタ!$E:$AD,6,0)="","",IF($N35-$AX35-$BA35-$BD35-BG35<$I$23*$CB$12-$I$23*$CB$11,$N35-$AX35-$BA35-$BD35-$BG35,$I$23*$CB$12-$I$23*$CB$11)),0)) ->  | BM35: =IF(IFERROR(IF(VLOOKUP($I$18&$I$19,料金プランマスタ!$E:$AD,6,0)="","",IF($T35<$I$23*$CB$8,$T35,$I$23*$CB$8)),0)=0,"",IFERROR(IF(VLOOKUP($I$18&$I$19,料金プランマスタ!$E:$AD,6,0)="","",IF($T35<$I$23*$CB$8,$T35,$I$23*$CB$8)),0)) ->  | BP35: =IF(IFERROR(IF(VLOOKUP($I$18&$I$19,料金プランマスタ!$E:$AD,6,0)="","",IF($T35-$BM35<$I$23*$CB$9-$I$23*$CB$8,$T35-$BM35,$I$23*$CB$9-$I$23*$CB$8)),0)=0,"",IFERROR(IF(VLOOKUP($I$18&$I$19,料金プランマスタ!$E:$AD,6,0)="","",IF($T35-$BM35<$I$23*$CB$9-$I$23*$CB$8,$T35-$BM35,$I$23*$CB$9-$I$23*$CB$8)),0)) ->  | BS35: =IF(IFERROR(IF(VLOOKUP($I$18&$I$19,料金プランマスタ!$E:$AD,6,0)="","",IF($T35-$BM35-$BP35<$I$23*$CB$10-$I$23*$CB$9,$T35-$BM35-$BP35,$I$23*$CB$10-$I$23*$CB$9)),0)=0,"",IFERROR(IF(VLOOKUP($I$18&$I$19,料金プランマスタ!$E:$AD,6,0)="","",IF($T35-$BM35-$BP35<$I$23*$CB$10-$I$23*$CB$9,$T35-$BM35-$BP35,$I$23*$CB$10-$I$23*$CB$9)),0)) ->  | BV35: =IF(IFERROR(IF(VLOOKUP($I$18&$I$19,料金プランマスタ!$E:$AD,6,0)="","",IF($T35-$BM35-$BP35-$BS35<$I$23*$CB$11-$I$23*$CB$10,$T35-$BM35-$BP35-$BS35,$I$23*$CB$11-$I$23*$CB$10)),0)=0,"",IFERROR(IF(VLOOKUP($I$18&$I$19,料金プランマスタ!$E:$AD,6,0)="","",IF($T35-$BM35-$BP35-$BS35<$I$23*$CB$11-$I$23*$CB$10,$T35-$BM35-$BP35-$BS35,$I$23*$CB$11-$I$23*$CB$10)),0)) ->  | BY35: =IF(IFERROR(IF(VLOOKUP($I$18&$I$19,料金プランマスタ!$E:$AD,6,0)="","",IF($T35-$BM35-$BP35-$BS35-BV35<$I$23*$CB$12-$I$23*$CB$11,$T35-$BM35-$BP35-$BS35-$BV35,$I$23*$CB$12-$I$23*$CB$11)),0)=0,"",IFERROR(IF(VLOOKUP($I$18&$I$19,料金プランマスタ!$E:$AD,6,0)="","",IF($T35-$BM35-$BP35-$BS35-BV35<$I$23*$CB$12-$I$23*$CB$11,$T35-$BM35-$BP35-$BS35-$BV35,$I$23*$CB$12-$I$23*$CB$11)),0)) ->  | CB35: 0 | CF35: e | CV35: 使用電力量料金単価 | CW35: 窓値1 | CX35: ● | CY35: =OR($H$52<>0,$H$60<>0,$H$61<>0,$H$62<>0,$I$19="",IF(IFERROR(IF(IFERROR(VLOOKUP($I$18&$I$19,料金プランマスタ!$E:$AD,6,0),"●")="●",TRUE,FALSE),"")="",FALSE,TRUE)) -> TRUE | CZ35: H55:K55 | DA35: $I$19="" | DE35: end
C36: 9 | AL36: 0 | AU36: 9月 | AX36: =IF(IFERROR(IF(VLOOKUP($I$18&$I$19,料金プランマスタ!$E:$AD,6,0)="",N36,IF($N36<$I$23*$CB$8,$N36,$I$23*$CB$8)),0)=0,"",IFERROR(IF(VLOOKUP($I$18&$I$19,料金プランマスタ!$E:$AD,6,0)="",N36,IF($N36<$I$23*$CB$8,$N36,$I$23*$CB$8)),0)) ->  | BA36: =IF(IFERROR(IF(VLOOKUP($I$18&$I$19,料金プランマスタ!$E:$AD,6,0)="",T36,IF($N36-$AX36<$I$23*$CB$9-$I$23*$CB$8,$N36-$AX36,$I$23*$CB$9-$I$23*$CB$8)),0)=0,"",IFERROR(IF(VLOOKUP($I$18&$I$19,料金プランマスタ!$E:$AD,6,0)="",T36,IF($N36-$AX36<$I$23*$CB$9-$I$23*$CB$8,$N36-$AX36,$I$23*$CB$9-$I$23*$CB$8)),0)) ->  | BD36: =IF(IFERROR(IF(VLOOKUP($I$18&$I$19,料金プランマスタ!$E:$AD,6,0)="",Z36,IF($N36-$AX36-$BA36<$I$23*$CB$10-$I$23*$CB$9,$N36-$AX36-$BA36,$I$23*$CB$10-$I$23*$CB$9)),0)=0,"",IFERROR(IF(VLOOKUP($I$18&$I$19,料金プランマスタ!$E:$AD,6,0)="",Z36,IF($N36-$AX36-$BA36<$I$23*$CB$10-$I$23*$CB$9,$N36-$AX36-$BA36,$I$23*$CB$10-$I$23*$CB$9)),0)) ->  | BG36: =IF(IFERROR(IF(VLOOKUP($I$18&$I$19,料金プランマスタ!$E:$AD,6,0)="",AF36,IF($N36-$AX36-$BA36-$BD36<$I$23*$CB$11-$I$23*$CB$10,$N36-$AX36-$BA36-$BD36,$I$23*$CB$11-$I$23*$CB$10)),0)=0,"",IFERROR(IF(VLOOKUP($I$18&$I$19,料金プランマスタ!$E:$AD,6,0)="",AF36,IF($N36-$AX36-$BA36-$BD36<$I$23*$CB$11-$I$23*$CB$10,$N36-$AX36-$BA36-$BD36,$I$23*$CB$11-$I$23*$CB$10)),0)) ->  | BJ36: =IF(IFERROR(IF(VLOOKUP($I$18&$I$19,料金プランマスタ!$E:$AD,6,0)="","",IF($N36-$AX36-$BA36-$BD36-BG36<$I$23*$CB$12-$I$23*$CB$11,$N36-$AX36-$BA36-$BD36-$BG36,$I$23*$CB$12-$I$23*$CB$11)),0)=0,"",IFERROR(IF(VLOOKUP($I$18&$I$19,料金プランマスタ!$E:$AD,6,0)="","",IF($N36-$AX36-$BA36-$BD36-BG36<$I$23*$CB$12-$I$23*$CB$11,$N36-$AX36-$BA36-$BD36-$BG36,$I$23*$CB$12-$I$23*$CB$11)),0)) ->  | BM36: =IF(IFERROR(IF(VLOOKUP($I$18&$I$19,料金プランマスタ!$E:$AD,6,0)="","",IF($T36<$I$23*$CB$8,$T36,$I$23*$CB$8)),0)=0,"",IFERROR(IF(VLOOKUP($I$18&$I$19,料金プランマスタ!$E:$AD,6,0)="","",IF($T36<$I$23*$CB$8,$T36,$I$23*$CB$8)),0)) ->  | BP36: =IF(IFERROR(IF(VLOOKUP($I$18&$I$19,料金プランマスタ!$E:$AD,6,0)="","",IF($T36-$BM36<$I$23*$CB$9-$I$23*$CB$8,$T36-$BM36,$I$23*$CB$9-$I$23*$CB$8)),0)=0,"",IFERROR(IF(VLOOKUP($I$18&$I$19,料金プランマスタ!$E:$AD,6,0)="","",IF($T36-$BM36<$I$23*$CB$9-$I$23*$CB$8,$T36-$BM36,$I$23*$CB$9-$I$23*$CB$8)),0)) ->  | BS36: =IF(IFERROR(IF(VLOOKUP($I$18&$I$19,料金プランマスタ!$E:$AD,6,0)="","",IF($T36-$BM36-$BP36<$I$23*$CB$10-$I$23*$CB$9,$T36-$BM36-$BP36,$I$23*$CB$10-$I$23*$CB$9)),0)=0,"",IFERROR(IF(VLOOKUP($I$18&$I$19,料金プランマスタ!$E:$AD,6,0)="","",IF($T36-$BM36-$BP36<$I$23*$CB$10-$I$23*$CB$9,$T36-$BM36-$BP36,$I$23*$CB$10-$I$23*$CB$9)),0)) ->  | BV36: =IF(IFERROR(IF(VLOOKUP($I$18&$I$19,料金プランマスタ!$E:$AD,6,0)="","",IF($T36-$BM36-$BP36-$BS36<$I$23*$CB$11-$I$23*$CB$10,$T36-$BM36-$BP36-$BS36,$I$23*$CB$11-$I$23*$CB$10)),0)=0,"",IFERROR(IF(VLOOKUP($I$18&$I$19,料金プランマスタ!$E:$AD,6,0)="","",IF($T36-$BM36-$BP36-$BS36<$I$23*$CB$11-$I$23*$CB$10,$T36-$BM36-$BP36-$BS36,$I$23*$CB$11-$I$23*$CB$10)),0)) ->  | BY36: =IF(IFERROR(IF(VLOOKUP($I$18&$I$19,料金プランマスタ!$E:$AD,6,0)="","",IF($T36-$BM36-$BP36-$BS36-BV36<$I$23*$CB$12-$I$23*$CB$11,$T36-$BM36-$BP36-$BS36-$BV36,$I$23*$CB$12-$I$23*$CB$11)),0)=0,"",IFERROR(IF(VLOOKUP($I$18&$I$19,料金プランマスタ!$E:$AD,6,0)="","",IF($T36-$BM36-$BP36-$BS36-BV36<$I$23*$CB$12-$I$23*$CB$11,$T36-$BM36-$BP36-$BS36-$BV36,$I$23*$CB$12-$I$23*$CB$11)),0)) ->  | CB36: 0 | CF36: e | CV36: 使用電力量料金単価 | DA36: IF(IFERROR(IF(IFERROR(VLOOKUP($I$18&$I$19,料金プランマスタ!$E$7:$AD$212,6,0),"●")="●",TRUE,FALSE),"")="",FALSE,TRUE) | DC36: 負荷率別の場合は表示不要 | DE36: end
C37: 10 | AL37: 0 | AU37: 10月 | AX37: =IF(IFERROR(IF(VLOOKUP($I$18&$I$19,料金プランマスタ!$E:$AD,6,0)="",N37,IF($N37<$I$23*$CB$8,$N37,$I$23*$CB$8)),0)=0,"",IFERROR(IF(VLOOKUP($I$18&$I$19,料金プランマスタ!$E:$AD,6,0)="",N37,IF($N37<$I$23*$CB$8,$N37,$I$23*$CB$8)),0)) ->  | BA37: =IF(IFERROR(IF(VLOOKUP($I$18&$I$19,料金プランマスタ!$E:$AD,6,0)="",T37,IF($N37-$AX37<$I$23*$CB$9-$I$23*$CB$8,$N37-$AX37,$I$23*$CB$9-$I$23*$CB$8)),0)=0,"",IFERROR(IF(VLOOKUP($I$18&$I$19,料金プランマスタ!$E:$AD,6,0)="",T37,IF($N37-$AX37<$I$23*$CB$9-$I$23*$CB$8,$N37-$AX37,$I$23*$CB$9-$I$23*$CB$8)),0)) ->  | BD37: =IF(IFERROR(IF(VLOOKUP($I$18&$I$19,料金プランマスタ!$E:$AD,6,0)="",Z37,IF($N37-$AX37-$BA37<$I$23*$CB$10-$I$23*$CB$9,$N37-$AX37-$BA37,$I$23*$CB$10-$I$23*$CB$9)),0)=0,"",IFERROR(IF(VLOOKUP($I$18&$I$19,料金プランマスタ!$E:$AD,6,0)="",Z37,IF($N37-$AX37-$BA37<$I$23*$CB$10-$I$23*$CB$9,$N37-$AX37-$BA37,$I$23*$CB$10-$I$23*$CB$9)),0)) ->  | BG37: =IF(IFERROR(IF(VLOOKUP($I$18&$I$19,料金プランマスタ!$E:$AD,6,0)="",AF37,IF($N37-$AX37-$BA37-$BD37<$I$23*$CB$11-$I$23*$CB$10,$N37-$AX37-$BA37-$BD37,$I$23*$CB$11-$I$23*$CB$10)),0)=0,"",IFERROR(IF(VLOOKUP($I$18&$I$19,料金プランマスタ!$E:$AD,6,0)="",AF37,IF($N37-$AX37-$BA37-$BD37<$I$23*$CB$11-$I$23*$CB$10,$N37-$AX37-$BA37-$BD37,$I$23*$CB$11-$I$23*$CB$10)),0)) ->  | BJ37: =IF(IFERROR(IF(VLOOKUP($I$18&$I$19,料金プランマスタ!$E:$AD,6,0)="","",IF($N37-$AX37-$BA37-$BD37-BG37<$I$23*$CB$12-$I$23*$CB$11,$N37-$AX37-$BA37-$BD37-$BG37,$I$23*$CB$12-$I$23*$CB$11)),0)=0,"",IFERROR(IF(VLOOKUP($I$18&$I$19,料金プランマスタ!$E:$AD,6,0)="","",IF($N37-$AX37-$BA37-$BD37-BG37<$I$23*$CB$12-$I$23*$CB$11,$N37-$AX37-$BA37-$BD37-$BG37,$I$23*$CB$12-$I$23*$CB$11)),0)) ->  | BM37: =IF(IFERROR(IF(VLOOKUP($I$18&$I$19,料金プランマスタ!$E:$AD,6,0)="","",IF($T37<$I$23*$CB$8,$T37,$I$23*$CB$8)),0)=0,"",IFERROR(IF(VLOOKUP($I$18&$I$19,料金プランマスタ!$E:$AD,6,0)="","",IF($T37<$I$23*$CB$8,$T37,$I$23*$CB$8)),0)) ->  | BP37: =IF(IFERROR(IF(VLOOKUP($I$18&$I$19,料金プランマスタ!$E:$AD,6,0)="","",IF($T37-$BM37<$I$23*$CB$9-$I$23*$CB$8,$T37-$BM37,$I$23*$CB$9-$I$23*$CB$8)),0)=0,"",IFERROR(IF(VLOOKUP($I$18&$I$19,料金プランマスタ!$E:$AD,6,0)="","",IF($T37-$BM37<$I$23*$CB$9-$I$23*$CB$8,$T37-$BM37,$I$23*$CB$9-$I$23*$CB$8)),0)) ->  | BS37: =IF(IFERROR(IF(VLOOKUP($I$18&$I$19,料金プランマスタ!$E:$AD,6,0)="","",IF($T37-$BM37-$BP37<$I$23*$CB$10-$I$23*$CB$9,$T37-$BM37-$BP37,$I$23*$CB$10-$I$23*$CB$9)),0)=0,"",IFERROR(IF(VLOOKUP($I$18&$I$19,料金プランマスタ!$E:$AD,6,0)="","",IF($T37-$BM37-$BP37<$I$23*$CB$10-$I$23*$CB$9,$T37-$BM37-$BP37,$I$23*$CB$10-$I$23*$CB$9)),0)) ->  | BV37: =IF(IFERROR(IF(VLOOKUP($I$18&$I$19,料金プランマスタ!$E:$AD,6,0)="","",IF($T37-$BM37-$BP37-$BS37<$I$23*$CB$11-$I$23*$CB$10,$T37-$BM37-$BP37-$BS37,$I$23*$CB$11-$I$23*$CB$10)),0)=0,"",IFERROR(IF(VLOOKUP($I$18&$I$19,料金プランマスタ!$E:$AD,6,0)="","",IF($T37-$BM37-$BP37-$BS37<$I$23*$CB$11-$I$23*$CB$10,$T37-$BM37-$BP37-$BS37,$I$23*$CB$11-$I$23*$CB$10)),0)) ->  | BY37: =IF(IFERROR(IF(VLOOKUP($I$18&$I$19,料金プランマスタ!$E:$AD,6,0)="","",IF($T37-$BM37-$BP37-$BS37-BV37<$I$23*$CB$12-$I$23*$CB$11,$T37-$BM37-$BP37-$BS37-$BV37,$I$23*$CB$12-$I$23*$CB$11)),0)=0,"",IFERROR(IF(VLOOKUP($I$18&$I$19,料金プランマスタ!$E:$AD,6,0)="","",IF($T37-$BM37-$BP37-$BS37-BV37<$I$23*$CB$12-$I$23*$CB$11,$T37-$BM37-$BP37-$BS37-$BV37,$I$23*$CB$12-$I$23*$CB$11)),0)) ->  | CB37: 0 | CF37: e | CV37: 使用電力量料金単価 | DA37: OR($H$52<>0,$H$60<>0,$H$61<>0,$H$62<>0) | DE37: end
C38: 11 | AL38: 0 | AU38: 11月 | AX38: =IF(IFERROR(IF(VLOOKUP($I$18&$I$19,料金プランマスタ!$E:$AD,6,0)="",N38,IF($N38<$I$23*$CB$8,$N38,$I$23*$CB$8)),0)=0,"",IFERROR(IF(VLOOKUP($I$18&$I$19,料金プランマスタ!$E:$AD,6,0)="",N38,IF($N38<$I$23*$CB$8,$N38,$I$23*$CB$8)),0)) ->  | BA38: =IF(IFERROR(IF(VLOOKUP($I$18&$I$19,料金プランマスタ!$E:$AD,6,0)="",T38,IF($N38-$AX38<$I$23*$CB$9-$I$23*$CB$8,$N38-$AX38,$I$23*$CB$9-$I$23*$CB$8)),0)=0,"",IFERROR(IF(VLOOKUP($I$18&$I$19,料金プランマスタ!$E:$AD,6,0)="",T38,IF($N38-$AX38<$I$23*$CB$9-$I$23*$CB$8,$N38-$AX38,$I$23*$CB$9-$I$23*$CB$8)),0)) ->  | BD38: =IF(IFERROR(IF(VLOOKUP($I$18&$I$19,料金プランマスタ!$E:$AD,6,0)="",Z38,IF($N38-$AX38-$BA38<$I$23*$CB$10-$I$23*$CB$9,$N38-$AX38-$BA38,$I$23*$CB$10-$I$23*$CB$9)),0)=0,"",IFERROR(IF(VLOOKUP($I$18&$I$19,料金プランマスタ!$E:$AD,6,0)="",Z38,IF($N38-$AX38-$BA38<$I$23*$CB$10-$I$23*$CB$9,$N38-$AX38-$BA38,$I$23*$CB$10-$I$23*$CB$9)),0)) ->  | BG38: =IF(IFERROR(IF(VLOOKUP($I$18&$I$19,料金プランマスタ!$E:$AD,6,0)="",AF38,IF($N38-$AX38-$BA38-$BD38<$I$23*$CB$11-$I$23*$CB$10,$N38-$AX38-$BA38-$BD38,$I$23*$CB$11-$I$23*$CB$10)),0)=0,"",IFERROR(IF(VLOOKUP($I$18&$I$19,料金プランマスタ!$E:$AD,6,0)="",AF38,IF($N38-$AX38-$BA38-$BD38<$I$23*$CB$11-$I$23*$CB$10,$N38-$AX38-$BA38-$BD38,$I$23*$CB$11-$I$23*$CB$10)),0)) ->  | BJ38: =IF(IFERROR(IF(VLOOKUP($I$18&$I$19,料金プランマスタ!$E:$AD,6,0)="","",IF($N38-$AX38-$BA38-$BD38-BG38<$I$23*$CB$12-$I$23*$CB$11,$N38-$AX38-$BA38-$BD38-$BG38,$I$23*$CB$12-$I$23*$CB$11)),0)=0,"",IFERROR(IF(VLOOKUP($I$18&$I$19,料金プランマスタ!$E:$AD,6,0)="","",IF($N38-$AX38-$BA38-$BD38-BG38<$I$23*$CB$12-$I$23*$CB$11,$N38-$AX38-$BA38-$BD38-$BG38,$I$23*$CB$12-$I$23*$CB$11)),0)) ->  | BM38: =IF(IFERROR(IF(VLOOKUP($I$18&$I$19,料金プランマスタ!$E:$AD,6,0)="","",IF($T38<$I$23*$CB$8,$T38,$I$23*$CB$8)),0)=0,"",IFERROR(IF(VLOOKUP($I$18&$I$19,料金プランマスタ!$E:$AD,6,0)="","",IF($T38<$I$23*$CB$8,$T38,$I$23*$CB$8)),0)) ->  | BP38: =IF(IFERROR(IF(VLOOKUP($I$18&$I$19,料金プランマスタ!$E:$AD,6,0)="","",IF($T38-$BM38<$I$23*$CB$9-$I$23*$CB$8,$T38-$BM38,$I$23*$CB$9-$I$23*$CB$8)),0)=0,"",IFERROR(IF(VLOOKUP($I$18&$I$19,料金プランマスタ!$E:$AD,6,0)="","",IF($T38-$BM38<$I$23*$CB$9-$I$23*$CB$8,$T38-$BM38,$I$23*$CB$9-$I$23*$CB$8)),0)) ->  | BS38: =IF(IFERROR(IF(VLOOKUP($I$18&$I$19,料金プランマスタ!$E:$AD,6,0)="","",IF($T38-$BM38-$BP38<$I$23*$CB$10-$I$23*$CB$9,$T38-$BM38-$BP38,$I$23*$CB$10-$I$23*$CB$9)),0)=0,"",IFERROR(IF(VLOOKUP($I$18&$I$19,料金プランマスタ!$E:$AD,6,0)="","",IF($T38-$BM38-$BP38<$I$23*$CB$10-$I$23*$CB$9,$T38-$BM38-$BP38,$I$23*$CB$10-$I$23*$CB$9)),0)) ->  | BV38: =IF(IFERROR(IF(VLOOKUP($I$18&$I$19,料金プランマスタ!$E:$AD,6,0)="","",IF($T38-$BM38-$BP38-$BS38<$I$23*$CB$11-$I$23*$CB$10,$T38-$BM38-$BP38-$BS38,$I$23*$CB$11-$I$23*$CB$10)),0)=0,"",IFERROR(IF(VLOOKUP($I$18&$I$19,料金プランマスタ!$E:$AD,6,0)="","",IF($T38-$BM38-$BP38-$BS38<$I$23*$CB$11-$I$23*$CB$10,$T38-$BM38-$BP38-$BS38,$I$23*$CB$11-$I$23*$CB$10)),0)) ->  | BY38: =IF(IFERROR(IF(VLOOKUP($I$18&$I$19,料金プランマスタ!$E:$AD,6,0)="","",IF($T38-$BM38-$BP38-$BS38-BV38<$I$23*$CB$12-$I$23*$CB$11,$T38-$BM38-$BP38-$BS38-$BV38,$I$23*$CB$12-$I$23*$CB$11)),0)=0,"",IFERROR(IF(VLOOKUP($I$18&$I$19,料金プランマスタ!$E:$AD,6,0)="","",IF($T38-$BM38-$BP38-$BS38-BV38<$I$23*$CB$12-$I$23*$CB$11,$T38-$BM38-$BP38-$BS38-$BV38,$I$23*$CB$12-$I$23*$CB$11)),0)) ->  | CB38: 0 | CF38: e | CV38: 使用電力量料金単価 | CW38: 窓値2 | CX38: ● | CY38: =OR($H$52<>0,$H$60<>0,$H$61<>0,$H$62<>0,$I$19="",IF(IFERROR(IF(IFERROR(VLOOKUP($I$18&$I$19,料金プランマスタ!$E:$AD,6,0),"●")="●",TRUE,FALSE),"")="",FALSE,TRUE)) -> TRUE | CZ38: H56:K56 | DA38: 上に同じ | DC38: 負荷率別の場合は表示不要 | DE38: end
C39: 12 | AL39: 0 | AU39: 12月 | AX39: =IF(IFERROR(IF(VLOOKUP($I$18&$I$19,料金プランマスタ!$E:$AD,6,0)="",N39,IF($N39<$I$23*$CB$8,$N39,$I$23*$CB$8)),0)=0,"",IFERROR(IF(VLOOKUP($I$18&$I$19,料金プランマスタ!$E:$AD,6,0)="",N39,IF($N39<$I$23*$CB$8,$N39,$I$23*$CB$8)),0)) ->  | BA39: =IF(IFERROR(IF(VLOOKUP($I$18&$I$19,料金プランマスタ!$E:$AD,6,0)="",T39,IF($N39-$AX39<$I$23*$CB$9-$I$23*$CB$8,$N39-$AX39,$I$23*$CB$9-$I$23*$CB$8)),0)=0,"",IFERROR(IF(VLOOKUP($I$18&$I$19,料金プランマスタ!$E:$AD,6,0)="",T39,IF($N39-$AX39<$I$23*$CB$9-$I$23*$CB$8,$N39-$AX39,$I$23*$CB$9-$I$23*$CB$8)),0)) ->  | BD39: =IF(IFERROR(IF(VLOOKUP($I$18&$I$19,料金プランマスタ!$E:$AD,6,0)="",Z39,IF($N39-$AX39-$BA39<$I$23*$CB$10-$I$23*$CB$9,$N39-$AX39-$BA39,$I$23*$CB$10-$I$23*$CB$9)),0)=0,"",IFERROR(IF(VLOOKUP($I$18&$I$19,料金プランマスタ!$E:$AD,6,0)="",Z39,IF($N39-$AX39-$BA39<$I$23*$CB$10-$I$23*$CB$9,$N39-$AX39-$BA39,$I$23*$CB$10-$I$23*$CB$9)),0)) ->  | BG39: =IF(IFERROR(IF(VLOOKUP($I$18&$I$19,料金プランマスタ!$E:$AD,6,0)="",AF39,IF($N39-$AX39-$BA39-$BD39<$I$23*$CB$11-$I$23*$CB$10,$N39-$AX39-$BA39-$BD39,$I$23*$CB$11-$I$23*$CB$10)),0)=0,"",IFERROR(IF(VLOOKUP($I$18&$I$19,料金プランマスタ!$E:$AD,6,0)="",AF39,IF($N39-$AX39-$BA39-$BD39<$I$23*$CB$11-$I$23*$CB$10,$N39-$AX39-$BA39-$BD39,$I$23*$CB$11-$I$23*$CB$10)),0)) ->  | BJ39: =IF(IFERROR(IF(VLOOKUP($I$18&$I$19,料金プランマスタ!$E:$AD,6,0)="","",IF($N39-$AX39-$BA39-$BD39-BG39<$I$23*$CB$12-$I$23*$CB$11,$N39-$AX39-$BA39-$BD39-$BG39,$I$23*$CB$12-$I$23*$CB$11)),0)=0,"",IFERROR(IF(VLOOKUP($I$18&$I$19,料金プランマスタ!$E:$AD,6,0)="","",IF($N39-$AX39-$BA39-$BD39-BG39<$I$23*$CB$12-$I$23*$CB$11,$N39-$AX39-$BA39-$BD39-$BG39,$I$23*$CB$12-$I$23*$CB$11)),0)) ->  | BM39: =IF(IFERROR(IF(VLOOKUP($I$18&$I$19,料金プランマスタ!$E:$AD,6,0)="","",IF($T39<$I$23*$CB$8,$T39,$I$23*$CB$8)),0)=0,"",IFERROR(IF(VLOOKUP($I$18&$I$19,料金プランマスタ!$E:$AD,6,0)="","",IF($T39<$I$23*$CB$8,$T39,$I$23*$CB$8)),0)) ->  | BP39: =IF(IFERROR(IF(VLOOKUP($I$18&$I$19,料金プランマスタ!$E:$AD,6,0)="","",IF($T39-$BM39<$I$23*$CB$9-$I$23*$CB$8,$T39-$BM39,$I$23*$CB$9-$I$23*$CB$8)),0)=0,"",IFERROR(IF(VLOOKUP($I$18&$I$19,料金プランマスタ!$E:$AD,6,0)="","",IF($T39-$BM39<$I$23*$CB$9-$I$23*$CB$8,$T39-$BM39,$I$23*$CB$9-$I$23*$CB$8)),0)) ->  | BS39: =IF(IFERROR(IF(VLOOKUP($I$18&$I$19,料金プランマスタ!$E:$AD,6,0)="","",IF($T39-$BM39-$BP39<$I$23*$CB$10-$I$23*$CB$9,$T39-$BM39-$BP39,$I$23*$CB$10-$I$23*$CB$9)),0)=0,"",IFERROR(IF(VLOOKUP($I$18&$I$19,料金プランマスタ!$E:$AD,6,0)="","",IF($T39-$BM39-$BP39<$I$23*$CB$10-$I$23*$CB$9,$T39-$BM39-$BP39,$I$23*$CB$10-$I$23*$CB$9)),0)) ->  | BV39: =IF(IFERROR(IF(VLOOKUP($I$18&$I$19,料金プランマスタ!$E:$AD,6,0)="","",IF($T39-$BM39-$BP39-$BS39<$I$23*$CB$11-$I$23*$CB$10,$T39-$BM39-$BP39-$BS39,$I$23*$CB$11-$I$23*$CB$10)),0)=0,"",IFERROR(IF(VLOOKUP($I$18&$I$19,料金プランマスタ!$E:$AD,6,0)="","",IF($T39-$BM39-$BP39-$BS39<$I$23*$CB$11-$I$23*$CB$10,$T39-$BM39-$BP39-$BS39,$I$23*$CB$11-$I$23*$CB$10)),0)) ->  | BY39: =IF(IFERROR(IF(VLOOKUP($I$18&$I$19,料金プランマスタ!$E:$AD,6,0)="","",IF($T39-$BM39-$BP39-$BS39-BV39<$I$23*$CB$12-$I$23*$CB$11,$T39-$BM39-$BP39-$BS39-$BV39,$I$23*$CB$12-$I$23*$CB$11)),0)=0,"",IFERROR(IF(VLOOKUP($I$18&$I$19,料金プランマスタ!$E:$AD,6,0)="","",IF($T39-$BM39-$BP39-$BS39-BV39<$I$23*$CB$12-$I$23*$CB$11,$T39-$BM39-$BP39-$BS39-$BV39,$I$23*$CB$12-$I$23*$CB$11)),0)) ->  | CB39: 0 | CF39: e | CV39: 使用電力量料金単価 | CW39: 窓値3 | CX39: ● | CY39: =OR($H$52<>0,$H$60<>0,$H$61<>0,$H$62<>0,$I$19="",IF(IFERROR(IF(IFERROR(VLOOKUP($I$18&$I$19,料金プランマスタ!$E:$AD,6,0),"●")="●",TRUE,FALSE),"")="",FALSE,TRUE)) -> TRUE | CZ39: H57:K57 | DA39: 上に同じ | DC39: 負荷率別の場合は表示不要 | DE39: end
C40: 1 | AL40: 0 | AU40: 1月 | AX40: =IF(IFERROR(IF(VLOOKUP($I$18&$I$19,料金プランマスタ!$E:$AD,6,0)="",N40,IF($N40<$I$23*$CB$8,$N40,$I$23*$CB$8)),0)=0,"",IFERROR(IF(VLOOKUP($I$18&$I$19,料金プランマスタ!$E:$AD,6,0)="",N40,IF($N40<$I$23*$CB$8,$N40,$I$23*$CB$8)),0)) ->  | BA40: =IF(IFERROR(IF(VLOOKUP($I$18&$I$19,料金プランマスタ!$E:$AD,6,0)="",T40,IF($N40-$AX40<$I$23*$CB$9-$I$23*$CB$8,$N40-$AX40,$I$23*$CB$9-$I$23*$CB$8)),0)=0,"",IFERROR(IF(VLOOKUP($I$18&$I$19,料金プランマスタ!$E:$AD,6,0)="",T40,IF($N40-$AX40<$I$23*$CB$9-$I$23*$CB$8,$N40-$AX40,$I$23*$CB$9-$I$23*$CB$8)),0)) ->  | BD40: =IF(IFERROR(IF(VLOOKUP($I$18&$I$19,料金プランマスタ!$E:$AD,6,0)="",Z40,IF($N40-$AX40-$BA40<$I$23*$CB$10-$I$23*$CB$9,$N40-$AX40-$BA40,$I$23*$CB$10-$I$23*$CB$9)),0)=0,"",IFERROR(IF(VLOOKUP($I$18&$I$19,料金プランマスタ!$E:$AD,6,0)="",Z40,IF($N40-$AX40-$BA40<$I$23*$CB$10-$I$23*$CB$9,$N40-$AX40-$BA40,$I$23*$CB$10-$I$23*$CB$9)),0)) ->  | BG40: =IF(IFERROR(IF(VLOOKUP($I$18&$I$19,料金プランマスタ!$E:$AD,6,0)="",AF40,IF($N40-$AX40-$BA40-$BD40<$I$23*$CB$11-$I$23*$CB$10,$N40-$AX40-$BA40-$BD40,$I$23*$CB$11-$I$23*$CB$10)),0)=0,"",IFERROR(IF(VLOOKUP($I$18&$I$19,料金プランマスタ!$E:$AD,6,0)="",AF40,IF($N40-$AX40-$BA40-$BD40<$I$23*$CB$11-$I$23*$CB$10,$N40-$AX40-$BA40-$BD40,$I$23*$CB$11-$I$23*$CB$10)),0)) ->  | BJ40: =IF(IFERROR(IF(VLOOKUP($I$18&$I$19,料金プランマスタ!$E:$AD,6,0)="","",IF($N40-$AX40-$BA40-$BD40-BG40<$I$23*$CB$12-$I$23*$CB$11,$N40-$AX40-$BA40-$BD40-$BG40,$I$23*$CB$12-$I$23*$CB$11)),0)=0,"",IFERROR(IF(VLOOKUP($I$18&$I$19,料金プランマスタ!$E:$AD,6,0)="","",IF($N40-$AX40-$BA40-$BD40-BG40<$I$23*$CB$12-$I$23*$CB$11,$N40-$AX40-$BA40-$BD40-$BG40,$I$23*$CB$12-$I$23*$CB$11)),0)) ->  | BM40: =IF(IFERROR(IF(VLOOKUP($I$18&$I$19,料金プランマスタ!$E:$AD,6,0)="","",IF($T40<$I$23*$CB$8,$T40,$I$23*$CB$8)),0)=0,"",IFERROR(IF(VLOOKUP($I$18&$I$19,料金プランマスタ!$E:$AD,6,0)="","",IF($T40<$I$23*$CB$8,$T40,$I$23*$CB$8)),0)) ->  | BP40: =IF(IFERROR(IF(VLOOKUP($I$18&$I$19,料金プランマスタ!$E:$AD,6,0)="","",IF($T40-$BM40<$I$23*$CB$9-$I$23*$CB$8,$T40-$BM40,$I$23*$CB$9-$I$23*$CB$8)),0)=0,"",IFERROR(IF(VLOOKUP($I$18&$I$19,料金プランマスタ!$E:$AD,6,0)="","",IF($T40-$BM40<$I$23*$CB$9-$I$23*$CB$8,$T40-$BM40,$I$23*$CB$9-$I$23*$CB$8)),0)) ->  | BS40: =IF(IFERROR(IF(VLOOKUP($I$18&$I$19,料金プランマスタ!$E:$AD,6,0)="","",IF($T40-$BM40-$BP40<$I$23*$CB$10-$I$23*$CB$9,$T40-$BM40-$BP40,$I$23*$CB$10-$I$23*$CB$9)),0)=0,"",IFERROR(IF(VLOOKUP($I$18&$I$19,料金プランマスタ!$E:$AD,6,0)="","",IF($T40-$BM40-$BP40<$I$23*$CB$10-$I$23*$CB$9,$T40-$BM40-$BP40,$I$23*$CB$10-$I$23*$CB$9)),0)) ->  | BV40: =IF(IFERROR(IF(VLOOKUP($I$18&$I$19,料金プランマスタ!$E:$AD,6,0)="","",IF($T40-$BM40-$BP40-$BS40<$I$23*$CB$11-$I$23*$CB$10,$T40-$BM40-$BP40-$BS40,$I$23*$CB$11-$I$23*$CB$10)),0)=0,"",IFERROR(IF(VLOOKUP($I$18&$I$19,料金プランマスタ!$E:$AD,6,0)="","",IF($T40-$BM40-$BP40-$BS40<$I$23*$CB$11-$I$23*$CB$10,$T40-$BM40-$BP40-$BS40,$I$23*$CB$11-$I$23*$CB$10)),0)) ->  | BY40: =IF(IFERROR(IF(VLOOKUP($I$18&$I$19,料金プランマスタ!$E:$AD,6,0)="","",IF($T40-$BM40-$BP40-$BS40-BV40<$I$23*$CB$12-$I$23*$CB$11,$T40-$BM40-$BP40-$BS40-$BV40,$I$23*$CB$12-$I$23*$CB$11)),0)=0,"",IFERROR(IF(VLOOKUP($I$18&$I$19,料金プランマスタ!$E:$AD,6,0)="","",IF($T40-$BM40-$BP40-$BS40-BV40<$I$23*$CB$12-$I$23*$CB$11,$T40-$BM40-$BP40-$BS40-$BV40,$I$23*$CB$12-$I$23*$CB$11)),0)) ->  | CB40: 0 | CF40: e | CV40: 使用電力量料金単価 | CW40: 窓値4 | CX40: ● | CY40: =OR($H$52<>0,$H$60<>0,$H$61<>0,$H$62<>0,$I$19="",IF(IFERROR(IF(IFERROR(VLOOKUP($I$18&$I$19,料金プランマスタ!$E:$AD,6,0),"●")="●",TRUE,FALSE),"")="",FALSE,TRUE)) -> TRUE | CZ40: H58:K58 | DA40: 上に同じ | DC40: 負荷率別の場合は表示不要 | DE40: end
C41: 2 | AL41: 0 | AU41: 2月 | AX41: =IF(IFERROR(IF(VLOOKUP($I$18&$I$19,料金プランマスタ!$E:$AD,6,0)="",N41,IF($N41<$I$23*$CB$8,$N41,$I$23*$CB$8)),0)=0,"",IFERROR(IF(VLOOKUP($I$18&$I$19,料金プランマスタ!$E:$AD,6,0)="",N41,IF($N41<$I$23*$CB$8,$N41,$I$23*$CB$8)),0)) ->  | BA41: =IF(IFERROR(IF(VLOOKUP($I$18&$I$19,料金プランマスタ!$E:$AD,6,0)="",T41,IF($N41-$AX41<$I$23*$CB$9-$I$23*$CB$8,$N41-$AX41,$I$23*$CB$9-$I$23*$CB$8)),0)=0,"",IFERROR(IF(VLOOKUP($I$18&$I$19,料金プランマスタ!$E:$AD,6,0)="",T41,IF($N41-$AX41<$I$23*$CB$9-$I$23*$CB$8,$N41-$AX41,$I$23*$CB$9-$I$23*$CB$8)),0)) ->  | BD41: =IF(IFERROR(IF(VLOOKUP($I$18&$I$19,料金プランマスタ!$E:$AD,6,0)="",Z41,IF($N41-$AX41-$BA41<$I$23*$CB$10-$I$23*$CB$9,$N41-$AX41-$BA41,$I$23*$CB$10-$I$23*$CB$9)),0)=0,"",IFERROR(IF(VLOOKUP($I$18&$I$19,料金プランマスタ!$E:$AD,6,0)="",Z41,IF($N41-$AX41-$BA41<$I$23*$CB$10-$I$23*$CB$9,$N41-$AX41-$BA41,$I$23*$CB$10-$I$23*$CB$9)),0)) ->  | BG41: =IF(IFERROR(IF(VLOOKUP($I$18&$I$19,料金プランマスタ!$E:$AD,6,0)="",AF41,IF($N41-$AX41-$BA41-$BD41<$I$23*$CB$11-$I$23*$CB$10,$N41-$AX41-$BA41-$BD41,$I$23*$CB$11-$I$23*$CB$10)),0)=0,"",IFERROR(IF(VLOOKUP($I$18&$I$19,料金プランマスタ!$E:$AD,6,0)="",AF41,IF($N41-$AX41-$BA41-$BD41<$I$23*$CB$11-$I$23*$CB$10,$N41-$AX41-$BA41-$BD41,$I$23*$CB$11-$I$23*$CB$10)),0)) ->  | BJ41: =IF(IFERROR(IF(VLOOKUP($I$18&$I$19,料金プランマスタ!$E:$AD,6,0)="","",IF($N41-$AX41-$BA41-$BD41-BG41<$I$23*$CB$12-$I$23*$CB$11,$N41-$AX41-$BA41-$BD41-$BG41,$I$23*$CB$12-$I$23*$CB$11)),0)=0,"",IFERROR(IF(VLOOKUP($I$18&$I$19,料金プランマスタ!$E:$AD,6,0)="","",IF($N41-$AX41-$BA41-$BD41-BG41<$I$23*$CB$12-$I$23*$CB$11,$N41-$AX41-$BA41-$BD41-$BG41,$I$23*$CB$12-$I$23*$CB$11)),0)) ->  | BM41: =IF(IFERROR(IF(VLOOKUP($I$18&$I$19,料金プランマスタ!$E:$AD,6,0)="","",IF($T41<$I$23*$CB$8,$T41,$I$23*$CB$8)),0)=0,"",IFERROR(IF(VLOOKUP($I$18&$I$19,料金プランマスタ!$E:$AD,6,0)="","",IF($T41<$I$23*$CB$8,$T41,$I$23*$CB$8)),0)) ->  | BP41: =IF(IFERROR(IF(VLOOKUP($I$18&$I$19,料金プランマスタ!$E:$AD,6,0)="","",IF($T41-$BM41<$I$23*$CB$9-$I$23*$CB$8,$T41-$BM41,$I$23*$CB$9-$I$23*$CB$8)),0)=0,"",IFERROR(IF(VLOOKUP($I$18&$I$19,料金プランマスタ!$E:$AD,6,0)="","",IF($T41-$BM41<$I$23*$CB$9-$I$23*$CB$8,$T41-$BM41,$I$23*$CB$9-$I$23*$CB$8)),0)) ->  | BS41: =IF(IFERROR(IF(VLOOKUP($I$18&$I$19,料金プランマスタ!$E:$AD,6,0)="","",IF($T41-$BM41-$BP41<$I$23*$CB$10-$I$23*$CB$9,$T41-$BM41-$BP41,$I$23*$CB$10-$I$23*$CB$9)),0)=0,"",IFERROR(IF(VLOOKUP($I$18&$I$19,料金プランマスタ!$E:$AD,6,0)="","",IF($T41-$BM41-$BP41<$I$23*$CB$10-$I$23*$CB$9,$T41-$BM41-$BP41,$I$23*$CB$10-$I$23*$CB$9)),0)) ->  | BV41: =IF(IFERROR(IF(VLOOKUP($I$18&$I$19,料金プランマスタ!$E:$AD,6,0)="","",IF($T41-$BM41-$BP41-$BS41<$I$23*$CB$11-$I$23*$CB$10,$T41-$BM41-$BP41-$BS41,$I$23*$CB$11-$I$23*$CB$10)),0)=0,"",IFERROR(IF(VLOOKUP($I$18&$I$19,料金プランマスタ!$E:$AD,6,0)="","",IF($T41-$BM41-$BP41-$BS41<$I$23*$CB$11-$I$23*$CB$10,$T41-$BM41-$BP41-$BS41,$I$23*$CB$11-$I$23*$CB$10)),0)) ->  | BY41: =IF(IFERROR(IF(VLOOKUP($I$18&$I$19,料金プランマスタ!$E:$AD,6,0)="","",IF($T41-$BM41-$BP41-$BS41-BV41<$I$23*$CB$12-$I$23*$CB$11,$T41-$BM41-$BP41-$BS41-$BV41,$I$23*$CB$12-$I$23*$CB$11)),0)=0,"",IFERROR(IF(VLOOKUP($I$18&$I$19,料金プランマスタ!$E:$AD,6,0)="","",IF($T41-$BM41-$BP41-$BS41-BV41<$I$23*$CB$12-$I$23*$CB$11,$T41-$BM41-$BP41-$BS41-$BV41,$I$23*$CB$12-$I$23*$CB$11)),0)) ->  | CB41: 0 | CF41: e | CV41: ●割引 | CW41: 基本料金割引 | CX41: ● | CY41: =OR($AZ$47<>$BH$47,$AZ$49<>$BH$49,$AZ$50<>$BH$50,$AZ$51<>$BH$51,$AZ$52<>$BH$52,$AZ$53<>$BH$53,$BO$49<>$BW$49,$BO$50<>$BW$50,$BO$51<>$BW$51,$BO$52<>$BW$52,$BO$53<>$BW$53,$H$53<>$N$53,$H$55<>$N$55,$H$56<>$N$56,$H$57<>$N$57,$H$58<>$N$58) -> FALSE | CZ41: H60:K60 | DA41: OR($AZ$47<>$BH$47,$AZ$49<>$BH$49,$AZ$50<>$BH$50,$AZ$51<>$BH$51,$AZ$52<>$BH$52,$AZ$53<>$BH$53,$BO$49<>$BW$49,$BO$50<>$BW$50,$BO$51<>$BW$51,$BO$52<>$BW$52,$BO$53<>$BW$53) | DE41: end
C42: 3 | AL42: 0 | AU42: 3月 | AX42: =IF(IFERROR(IF(VLOOKUP($I$18&$I$19,料金プランマスタ!$E:$AD,6,0)="",N42,IF($N42<$I$23*$CB$8,$N42,$I$23*$CB$8)),0)=0,"",IFERROR(IF(VLOOKUP($I$18&$I$19,料金プランマスタ!$E:$AD,6,0)="",N42,IF($N42<$I$23*$CB$8,$N42,$I$23*$CB$8)),0)) ->  | BA42: =IF(IFERROR(IF(VLOOKUP($I$18&$I$19,料金プランマスタ!$E:$AD,6,0)="",T42,IF($N42-$AX42<$I$23*$CB$9-$I$23*$CB$8,$N42-$AX42,$I$23*$CB$9-$I$23*$CB$8)),0)=0,"",IFERROR(IF(VLOOKUP($I$18&$I$19,料金プランマスタ!$E:$AD,6,0)="",T42,IF($N42-$AX42<$I$23*$CB$9-$I$23*$CB$8,$N42-$AX42,$I$23*$CB$9-$I$23*$CB$8)),0)) ->  | BD42: =IF(IFERROR(IF(VLOOKUP($I$18&$I$19,料金プランマスタ!$E:$AD,6,0)="",Z42,IF($N42-$AX42-$BA42<$I$23*$CB$10-$I$23*$CB$9,$N42-$AX42-$BA42,$I$23*$CB$10-$I$23*$CB$9)),0)=0,"",IFERROR(IF(VLOOKUP($I$18&$I$19,料金プランマスタ!$E:$AD,6,0)="",Z42,IF($N42-$AX42-$BA42<$I$23*$CB$10-$I$23*$CB$9,$N42-$AX42-$BA42,$I$23*$CB$10-$I$23*$CB$9)),0)) ->  | BG42: =IF(IFERROR(IF(VLOOKUP($I$18&$I$19,料金プランマスタ!$E:$AD,6,0)="",AF42,IF($N42-$AX42-$BA42-$BD42<$I$23*$CB$11-$I$23*$CB$10,$N42-$AX42-$BA42-$BD42,$I$23*$CB$11-$I$23*$CB$10)),0)=0,"",IFERROR(IF(VLOOKUP($I$18&$I$19,料金プランマスタ!$E:$AD,6,0)="",AF42,IF($N42-$AX42-$BA42-$BD42<$I$23*$CB$11-$I$23*$CB$10,$N42-$AX42-$BA42-$BD42,$I$23*$CB$11-$I$23*$CB$10)),0)) ->  | BJ42: =IF(IFERROR(IF(VLOOKUP($I$18&$I$19,料金プランマスタ!$E:$AD,6,0)="","",IF($N42-$AX42-$BA42-$BD42-BG42<$I$23*$CB$12-$I$23*$CB$11,$N42-$AX42-$BA42-$BD42-$BG42,$I$23*$CB$12-$I$23*$CB$11)),0)=0,"",IFERROR(IF(VLOOKUP($I$18&$I$19,料金プランマスタ!$E:$AD,6,0)="","",IF($N42-$AX42-$BA42-$BD42-BG42<$I$23*$CB$12-$I$23*$CB$11,$N42-$AX42-$BA42-$BD42-$BG42,$I$23*$CB$12-$I$23*$CB$11)),0)) ->  | BM42: =IF(IFERROR(IF(VLOOKUP($I$18&$I$19,料金プランマスタ!$E:$AD,6,0)="","",IF($T42<$I$23*$CB$8,$T42,$I$23*$CB$8)),0)=0,"",IFERROR(IF(VLOOKUP($I$18&$I$19,料金プランマスタ!$E:$AD,6,0)="","",IF($T42<$I$23*$CB$8,$T42,$I$23*$CB$8)),0)) ->  | BP42: =IF(IFERROR(IF(VLOOKUP($I$18&$I$19,料金プランマスタ!$E:$AD,6,0)="","",IF($T42-$BM42<$I$23*$CB$9-$I$23*$CB$8,$T42-$BM42,$I$23*$CB$9-$I$23*$CB$8)),0)=0,"",IFERROR(IF(VLOOKUP($I$18&$I$19,料金プランマスタ!$E:$AD,6,0)="","",IF($T42-$BM42<$I$23*$CB$9-$I$23*$CB$8,$T42-$BM42,$I$23*$CB$9-$I$23*$CB$8)),0)) ->  | BS42: =IF(IFERROR(IF(VLOOKUP($I$18&$I$19,料金プランマスタ!$E:$AD,6,0)="","",IF($T42-$BM42-$BP42<$I$23*$CB$10-$I$23*$CB$9,$T42-$BM42-$BP42,$I$23*$CB$10-$I$23*$CB$9)),0)=0,"",IFERROR(IF(VLOOKUP($I$18&$I$19,料金プランマスタ!$E:$AD,6,0)="","",IF($T42-$BM42-$BP42<$I$23*$CB$10-$I$23*$CB$9,$T42-$BM42-$BP42,$I$23*$CB$10-$I$23*$CB$9)),0)) ->  | BV42: =IF(IFERROR(IF(VLOOKUP($I$18&$I$19,料金プランマスタ!$E:$AD,6,0)="","",IF($T42-$BM42-$BP42-$BS42<$I$23*$CB$11-$I$23*$CB$10,$T42-$BM42-$BP42-$BS42,$I$23*$CB$11-$I$23*$CB$10)),0)=0,"",IFERROR(IF(VLOOKUP($I$18&$I$19,料金プランマスタ!$E:$AD,6,0)="","",IF($T42-$BM42-$BP42-$BS42<$I$23*$CB$11-$I$23*$CB$10,$T42-$BM42-$BP42-$BS42,$I$23*$CB$11-$I$23*$CB$10)),0)) ->  | BY42: =IF(IFERROR(IF(VLOOKUP($I$18&$I$19,料金プランマスタ!$E:$AD,6,0)="","",IF($T42-$BM42-$BP42-$BS42-BV42<$I$23*$CB$12-$I$23*$CB$11,$T42-$BM42-$BP42-$BS42-$BV42,$I$23*$CB$12-$I$23*$CB$11)),0)=0,"",IFERROR(IF(VLOOKUP($I$18&$I$19,料金プランマスタ!$E:$AD,6,0)="","",IF($T42-$BM42-$BP42-$BS42-BV42<$I$23*$CB$12-$I$23*$CB$11,$T42-$BM42-$BP42-$BS42-$BV42,$I$23*$CB$12-$I$23*$CB$11)),0)) ->  | CB42: 0 | CF42: e | CV42: ●割引 | DA42: OR($H$53<>$N$53,$H$55<>$N$55,$H$56<>$N$56,$H$57<>$N$57,$H$58<>$N$58) | DE42: end
C43: 合計 | N43: =SUM(N31:S42) -> 0 | T43: =IF(T30="-","-",SUM(T31:Y42)) -> 0 | Z43: =IF(Z30="-","-",SUM(Z31:AE42)) -> 0 | AF43: =IF(AF30="-","-",SUM(AF31:AK42)) -> 0 | AL43: =SUM(AL31:AQ42) -> 0 | AU43: 合計 | AX43: =SUM(AX31:AZ42) -> 0 | BA43: =IF(BA$30="-","-",SUM(BA31:BC42)) -> 0 | BD43: =IF(BD$30="-","-",SUM(BD$31:BF$42)) -> 0 | BG43: =IF(BG$30="-","-",SUM(BG$31:BI$42)) -> 0 | BJ43: =IF(BJ$30="-","-",SUM(BJ$31:BL$42)) -> 0 | BM43: =IF(BM$30="-","-",SUM(BM$31:BO$42)) -> 0 | BP43: =IF(BP$30="-","-",SUM(BP$31:BR$42)) -> 0 | BS43: =IF(BS$30="-","-",SUM(BS$31:BU$42)) -> 0 | BV43: =IF(BV$30="-","-",SUM(BV$31:BX$42)) -> 0 | BY43: =IF(BY$30="-","-",SUM(BY$31:CA$42)) -> 0 | CB43: =SUM(CB$31:CD$42) -> 0 | CF43: e | CV43: ●割引 | CW43: 電力量料金割引 | CX43: ● | CY43: =OR($AZ$47<>$BH$47,$AZ$49<>$BH$49,$AZ$50<>$BH$50,$AZ$51<>$BH$51,$AZ$52<>$BH$52,$AZ$53<>$BH$53,$BO$49<>$BW$49,$BO$50<>$BW$50,$BO$51<>$BW$51,$BO$52<>$BW$52,$BO$53<>$BW$53,$H$53<>$N$53,$H$55<>$N$55,$H$56<>$N$56,$H$57<>$N$57,$H$58<>$N$58) -> FALSE | CZ43: H61:K61 | DA43: 上に同じ | DE43: end
C44: 特記事項 | CF44: e | CV44: ●割引 | CW44: 年間割引総額 | CX44: ● | CY44: =OR($AZ$47<>$BH$47,$AZ$49<>$BH$49,$AZ$50<>$BH$50,$AZ$51<>$BH$51,$AZ$52<>$BH$52,$AZ$53<>$BH$53,$BO$49<>$BW$49,$BO$50<>$BW$50,$BO$51<>$BW$51,$BO$52<>$BW$52,$BO$53<>$BW$53,$H$53<>$N$53,$H$55<>$N$55,$H$56<>$N$56,$H$57<>$N$57,$H$58<>$N$58) -> FALSE | CZ44: H62:K62 | DA44: 上に同じ | DE44: end
CF45: e | CV45: 競合情報2 | CW45: 「その他」の場合 | CX45: ● | CY45: =$T$49<>"その他" -> TRUE | CZ45: T50:W50 | DA45: $T$49<>"その他" | DE45: end
AL46: ◆負荷率 | AN46: =IFERROR(IF($I$23=0,"",$AL$43/($I$23*12)),"") ->  | AT46: ◆競合情報1 | CF46: e | CV46: ◆競合単価（税込） | CW46: 低減率 | CX46: ● | CY46: =OR($T$53<>$Z$53,$T$55<>$Z$55,$T$56<>$Z$56,$T$57<>$Z$57,$T$58<>$Z$58,$AZ$56<>$BH$56,$AZ$58<>$BH$58,$AZ$59<>$BH$59,$AZ$60<>$BH$60,$AZ$61<>$BH$61,$AZ$62<>$BH$62,$BO$58<>$BW$58,$BO$59<>$BW$59,$BO$60<>$BW$60,$BO$61<>$BW$61,$BO$62<>$BW$62) -> FALSE | CZ46: T52:W52 | DA46: OR($T$53<>$Z$53,$T$55<>$Z$55,$T$56<>$Z$56,$T$57<>$Z$57,$T$58<>$Z$58) | DE46: end
AT47: ●基本料金単価 | BF47: 円/kW | BH47: =IFERROR(VLOOKUP($I$18&$I$19,料金プランマスタ!$E:$AO,27,FALSE),"") ->  | CF47: e | CV47: ◆競合単価（税込） | DA47: OR($AZ$56<>$BH$56,$AZ$58<>$BH$58,$AZ$59<>$BH$59,$AZ$60<>$BH$60,$AZ$61<>$BH$61,$AZ$62<>$BH$62,$BO$58<>$BW$58,$BO$59<>$BW$59,$BO$60<>$BW$60,$BO$61<>$BW$61,$BO$62<>$BW$62) | DE47: end
C48: 競合情報1 | L48: 会社名検索 | O48: 競合情報2 | X48: 会社名検索 | AT48: ●電力量料金単価 | BX48: ・負荷率帯 | CF48: e | CV48: ◆競合単価（税込） | CW48: 基本料金単価 | CX48: ● | CY48: =OR($T$52<>0,$T$60<>0,$T$61<>0,$T$62<>0,$I$19="",IF(IFERROR(VLOOKUP($I$18&$I$19,料金プランマスタ!$E:$AD,6,0),"●")="●",TRUE,FALSE)) -> TRUE | CZ48: T53:W53 | DA48: $I$19="" | DE48: end
C49: ◆会社名 | O49: ◆会社名 | AC49: 競合情報1特記事項 | AU49: =IFERROR(IF(VLOOKUP($I$18&$I$19,料金プランマスタ!$E:$AD,6,0)="●",VLOOKUP($I$18&$I$19,料金プランマスタ!$E:$AD,17,0),$N$30),"") ->  | BF49: 円/kWh | BH49: =IFERROR(VLOOKUP($I$18&$I$19,料金プランマスタ!$E:$AO,28,FALSE),"") ->  | BI49: =IFERROR(IF(VLOOKUP($I$18&$I$19,料金プランマスタ!$E:$AD,6,0)="●",VLOOKUP($I$18&$I$19,料金プランマスタ!$E:$AD,22,0),"-"),"") ->  | BU49: 円/kWh | BW49: =IFERROR(VLOOKUP($I$18&$I$19,料金プランマスタ!$E:$AO,33,FALSE),"") ->  | BX49: =IFERROR(VLOOKUP($I$18&$I$19,料金プランマスタ!$E:$AO,7,FALSE),"") ->  | CA49: ～ | CB49: =IFERROR(VLOOKUP($I$18&$I$19,料金プランマスタ!$E:$AO,8,FALSE),"") ->  | CE49: h | CF49: e | CV49: ◆競合単価（税込） | DA49: IF(IFERROR(VLOOKUP($I$18&$I$19,料金プランマスタ!$E$7:$AD$212,6,0),"●")="●",TRUE,FALSE) | DC49: 負荷率別の場合は表示不要 | DE49: end
D50: ・「その他」の場合 | H50: - | L50: ※全角カタカナ | P50: ・「その他」の場合 | T50: =IF($T$49="その他","直接入力して下さい","-") -> - | X50: ※全角カタカナ | AC50: 競合情報に表記している消費税率は ☑ 消費税率「８%」で表記しています。 ☑ 消費税率「10％」で表記しています。 | AU50: =IFERROR(IF(VLOOKUP($I$18&$I$19,料金プランマスタ!$E:$AD,6,0)="●",VLOOKUP($I$18&$I$19,料金プランマスタ!$E:$AD,18,0),$T$30),"") ->  | BF50: 円/kWh | BH50: =IFERROR(VLOOKUP($I$18&$I$19,料金プランマスタ!$E:$AO,29,FALSE),"") ->  | BI50: =IFERROR(IF(VLOOKUP($I$18&$I$19,料金プランマスタ!$E:$AD,6,0)="●",VLOOKUP($I$18&$I$19,料金プランマスタ!$E:$AD,23,0),"-"),"") ->  | BU50: 円/kWh | BW50: =IFERROR(VLOOKUP($I$18&$I$19,料金プランマスタ!$E:$AO,34,FALSE),"") ->  | BX50: =IFERROR(VLOOKUP($I$18&$I$19,料金プランマスタ!$E:$AO,9,FALSE),"") ->  | CA50: ～ | CB50: =IFERROR(VLOOKUP($I$18&$I$19,料金プランマスタ!$E:$AO,10,FALSE),"") ->  | CE50: h | CF50: e | CV50: ◆競合単価（税込） | DA50: OR($T$52<>0,$T$60<>0,$T$61<>0,$T$62<>0,) | DE50: end
C51: ◆競合単価（税込） | O51: ◆競合単価（税込） | AU51: =IFERROR(IF(VLOOKUP($I$18&$I$19,料金プランマスタ!$E:$AD,6,0)="●",VLOOKUP($I$18&$I$19,料金プランマスタ!$E:$AD,19,0),$Z$30),"") ->  | BF51: 円/kWh | BH51: =IFERROR(VLOOKUP($I$18&$I$19,料金プランマスタ!$E:$AO,30,FALSE),"") ->  | BI51: =IFERROR(IF(VLOOKUP($I$18&$I$19,料金プランマスタ!$E:$AD,6,0)="●",VLOOKUP($I$18&$I$19,料金プランマスタ!$E:$AD,24,0),"-"),"") ->  | BU51: 円/kWh | BW51: =IFERROR(VLOOKUP($I$18&$I$19,料金プランマスタ!$E:$AO,35,FALSE),"") ->  | BX51: =IFERROR(VLOOKUP($I$18&$I$19,料金プランマスタ!$E:$AO,11,FALSE),"") ->  | CA51: ～ | CB51: =IFERROR(VLOOKUP($I$18&$I$19,料金プランマスタ!$E:$AO,12,FALSE),"") ->  | CE51: h | CF51: e | CV51: 使用電力量料金単価 | CW51: 窓名1 | CX51: ● | CY51: TRUE | CZ51: O55 | DA51: 常時 | DC51: 負荷率別の場合は表示不要 | DE51: end
C52: ●低減率 | L52: % | O52: ●低減率 | X52: % | AU52: =IFERROR(IF(VLOOKUP($I$18&$I$19,料金プランマスタ!$E:$AD,6,0)="●",VLOOKUP($I$18&$I$19,料金プランマスタ!$E:$AD,20,0),$AF$30),"") ->  | BF52: 円/kWh | BH52: =IFERROR(VLOOKUP($I$18&$I$19,料金プランマスタ!$E:$AO,31,FALSE),"") ->  | BI52: =IFERROR(IF(VLOOKUP($I$18&$I$19,料金プランマスタ!$E:$AD,6,0)="●",VLOOKUP($I$18&$I$19,料金プランマスタ!$E:$AD,25,0),"-"),"") ->  | BU52: 円/kWh | BW52: =IFERROR(VLOOKUP($I$18&$I$19,料金プランマスタ!$E:$AO,36,FALSE),"") ->  | BX52: =IFERROR(VLOOKUP($I$18&$I$19,料金プランマスタ!$E:$AO,13,FALSE),"") ->  | CA52: ～ | CB52: =IFERROR(VLOOKUP($I$18&$I$19,料金プランマスタ!$E:$AO,14,FALSE),"") ->  | CE52: h | CF52: e | CV52: 使用電力量料金単価 | CW52: 窓名2 | CX52: ● | CY52: TRUE | CZ52: O56 | DA52: 常時 | DC52: 負荷率別の場合は表示不要 | DE52: end
C53: ●基本料金単価 | L53: 円/kW | N53: =IFERROR(VLOOKUP($I$18&$I$19,料金プランマスタ!$E:$AO,27,FALSE),"") ->  | O53: ●基本料金単価 | X53: 円/kW | Z53: =IFERROR(VLOOKUP($I$18&$I$19,料金プランマスタ!$E:$AO,27,FALSE),"") ->  | AU53: =IFERROR(IF(VLOOKUP($I$18&$I$19,料金プランマスタ!$E:$AD,6,0)="●",VLOOKUP($I$18&$I$19,料金プランマスタ!$E:$AD,21,0),"-"),"") ->  | BF53: 円/kWh | BH53: =IFERROR(VLOOKUP($I$18&$I$19,料金プランマスタ!$E:$AO,32,FALSE),"") ->  | BI53: =IFERROR(IF(VLOOKUP($I$18&$I$19,料金プランマスタ!$E:$AD,6,0)="●",VLOOKUP($I$18&$I$19,料金プランマスタ!$E:$AD,26,0),"-"),"") ->  | BU53: 円/kWh | BW53: =IFERROR(VLOOKUP($I$18&$I$19,料金プランマスタ!$E:$AO,37,FALSE),"") ->  | BX53: =IFERROR(VLOOKUP($I$18&$I$19,料金プランマスタ!$E:$AO,15,FALSE),"") ->  | CA53: ～ | CB53: =IFERROR(VLOOKUP($I$18&$I$19,料金プランマスタ!$E:$AO,16,FALSE),"") ->  | CE53: h | CF53: e | CV53: 使用電力量料金単価 | CW53: 窓名3 | CX53: ● | CY53: TRUE | CZ53: O57 | DA53: 常時 | DC53: 負荷率別の場合は表示不要 | DE53: end
C54: ●電力量料金単価 | O54: ●電力量料金単価 | CF54: e | CV54: 使用電力量料金単価 | CW54: 窓名4 | CX54: ● | CY54: TRUE | CZ54: O58 | DA54: 常時 | DC54: 負荷率別の場合は表示不要 | DE54: end
C55: =IFERROR(" "&IF(VLOOKUP($I$18&$I$19,料金プランマスタ!$E:$AD,2,0)=0,"-",VLOOKUP($I$18&$I$19,料金プランマスタ!$E:$AD,2,0)),"") ->  | L55: 円/kWh | N55: =IFERROR(VLOOKUP($I$18&$I$19,料金プランマスタ!$E:$AO,28,FALSE),"") ->  | O55: =IFERROR(" "&VLOOKUP($I$18&$I$19,料金プランマスタ!$E:$AD,2,0),"") ->  | X55: 円/kWh | Z55: =IFERROR(VLOOKUP($I$18&$I$19,料金プランマスタ!$E:$AO,28,FALSE),"") ->  | AT55: ◆競合情報2 | CF55: e | CV55: 使用電力量料金単価 | CW55: 窓値1 | CX55: ● | CY55: =OR($T$52<>0,$T$60<>0,$T$61<>0,$T$62<>0,$I$19="",IF(IFERROR(VLOOKUP($I$18&$I$19,料金プランマスタ!$E:$AD,6,0),"●")="●",TRUE,FALSE)) -> TRUE | CZ55: T55:W55 | DA55: $I$19="" | DE55: end
C56: =IFERROR(" "&IF(VLOOKUP($I$18&$I$19,料金プランマスタ!$E:$AD,3,0)=0,"-",VLOOKUP($I$18&$I$19,料金プランマスタ!$E:$AD,3,0)),"") ->  | L56: 円/kWh | N56: =IFERROR(VLOOKUP($I$18&$I$19,料金プランマスタ!$E:$AO,29,FALSE),"") ->  | O56: =IFERROR(" "&VLOOKUP($I$18&$I$19,料金プランマスタ!$E:$AD,3,0),"") ->  | X56: 円/kWh | Z56: =IFERROR(VLOOKUP($I$18&$I$19,料金プランマスタ!$E:$AO,29,FALSE),"") ->  | AT56: ●基本料金単価 | BF56: 円/kW | BH56: =IFERROR(VLOOKUP($I$18&$I$19,料金プランマスタ!$E:$AO,27,FALSE),"") ->  | CF56: e | CV56: 使用電力量料金単価 | DA56: IF(IFERROR(VLOOKUP($I$18&$I$19,料金プランマスタ!$E$7:$AD$212,6,0),"●")="●",TRUE,FALSE) | DC56: 負荷率別の場合は表示不要 | DE56: end
C57: =IFERROR(" "&IF(VLOOKUP($I$18&$I$19,料金プランマスタ!$E:$AD,4,0)=0,"-",VLOOKUP($I$18&$I$19,料金プランマスタ!$E:$AD,4,0)),"") ->  | L57: 円/kWh | N57: =IFERROR(VLOOKUP($I$18&$I$19,料金プランマスタ!$E:$AO,30,FALSE),"") ->  | O57: =IFERROR(" "&VLOOKUP($I$18&$I$19,料金プランマスタ!$E:$AD,4,0),"") ->  | X57: 円/kWh | Z57: =IFERROR(VLOOKUP($I$18&$I$19,料金プランマスタ!$E:$AO,30,FALSE),"") ->  | AC57: 競合情報2特記事項 | AT57: ●電力量料金単価 | BX57: ・負荷率帯 | CF57: e | CV57: 使用電力量料金単価 | DA57: OR($T$52<>0,$T$60<>0,$T$61<>0,$T$62<>0,) | DE57: end
C58: =IFERROR(" "&IF(VLOOKUP($I$18&$I$19,料金プランマスタ!$E:$AD,4,0)=0,"-",VLOOKUP($I$18&$I$19,料金プランマスタ!$E:$AD,5,0)),"") ->  | L58: 円/kWh | N58: =IFERROR(VLOOKUP($I$18&$I$19,料金プランマスタ!$E:$AO,31,FALSE),"") ->  | O58: =IFERROR(" "&VLOOKUP($I$18&$I$19,料金プランマスタ!$E:$AD,5,0),"") ->  | X58: 円/kWh | Z58: =IFERROR(VLOOKUP($I$18&$I$19,料金プランマスタ!$E:$AO,31,FALSE),"") ->  | AC58: 競合情報に表記している消費税率は ☑ 消費税率「８%」で表記しています。 ☑ 消費税率「10％」で表記しています。 | AU58: =IFERROR(IF(VLOOKUP($I$18&$I$19,料金プランマスタ!$E:$AD,6,0)="●",VLOOKUP($I$18&$I$19,料金プランマスタ!$E:$AD,17,0),$N$30),"") ->  | BF58: 円/kWh | BH58: =IFERROR(VLOOKUP($I$18&$I$19,料金プランマスタ!$E:$AO,28,FALSE),"") ->  | BI58: =IFERROR(IF(VLOOKUP($I$18&$I$19,料金プランマスタ!$E:$AD,6,0)="●",VLOOKUP($I$18&$I$19,料金プランマスタ!$E:$AD,22,0),"-"),"") ->  | BU58: 円/kWh | BW58: =IFERROR(VLOOKUP($I$18&$I$19,料金プランマスタ!$E:$AO,33,FALSE),"") ->  | BX58: =IFERROR(VLOOKUP($I$18&$I$19,料金プランマスタ!$E:$AO,7,FALSE),"") ->  | CA58: ～ | CB58: =IFERROR(VLOOKUP($I$18&$I$19,料金プランマスタ!$E:$AO,8,FALSE),"") ->  | CE58: h | CF58: e | CV58: 使用電力量料金単価 | CW58: 窓値2 | CX58: ● | CY58: =OR($T$52<>0,$T$60<>0,$T$61<>0,$T$62<>0,$I$19="",IF(IFERROR(VLOOKUP($I$18&$I$19,料金プランマスタ!$E:$AD,6,0),"●")="●",TRUE,FALSE)) -> TRUE | CZ58: T56:W56 | DA58: 上に同じ | DC58: 負荷率別の場合は表示不要 | DE58: end
C59: ●割引 | O59: ●割引 | AU59: =IFERROR(IF(VLOOKUP($I$18&$I$19,料金プランマスタ!$E:$AD,6,0)="●",VLOOKUP($I$18&$I$19,料金プランマスタ!$E:$AD,18,0),$T$30),"") ->  | BF59: 円/kWh | BH59: =IFERROR(VLOOKUP($I$18&$I$19,料金プランマスタ!$E:$AO,29,FALSE),"") ->  | BI59: =IFERROR(IF(VLOOKUP($I$18&$I$19,料金プランマスタ!$E:$AD,6,0)="●",VLOOKUP($I$18&$I$19,料金プランマスタ!$E:$AD,23,0),"-"),"") ->  | BU59: 円/kWh | BW59: =IFERROR(VLOOKUP($I$18&$I$19,料金プランマスタ!$E:$AO,34,FALSE),"") ->  | BX59: =IFERROR(VLOOKUP($I$18&$I$19,料金プランマスタ!$E:$AO,9,FALSE),"") ->  | CA59: ～ | CB59: =IFERROR(VLOOKUP($I$18&$I$19,料金プランマスタ!$E:$AO,10,FALSE),"") ->  | CE59: h | CF59: e | CV59: 使用電力量料金単価 | CW59: 窓値3 | CX59: ● | CY59: =OR($T$52<>0,$T$60<>0,$T$61<>0,$T$62<>0,$I$19="",IF(IFERROR(VLOOKUP($I$18&$I$19,料金プランマスタ!$E:$AD,6,0),"●")="●",TRUE,FALSE)) -> TRUE | CZ59: T57:W57 | DA59: 上に同じ | DC59: 負荷率別の場合は表示不要 | DE59: end
D60: ・基本料金割引 | L60: 円/kW | O60: % | P60: ・基本料金割引 | X60: 円/kW | AA60: % | AU60: =IFERROR(IF(VLOOKUP($I$18&$I$19,料金プランマスタ!$E:$AD,6,0)="●",VLOOKUP($I$18&$I$19,料金プランマスタ!$E:$AD,19,0),$Z$30),"") ->  | BF60: 円/kWh | BH60: =IFERROR(VLOOKUP($I$18&$I$19,料金プランマスタ!$E:$AO,30,FALSE),"") ->  | BI60: =IFERROR(IF(VLOOKUP($I$18&$I$19,料金プランマスタ!$E:$AD,6,0)="●",VLOOKUP($I$18&$I$19,料金プランマスタ!$E:$AD,24,0),"-"),"") ->  | BU60: 円/kWh | BW60: =IFERROR(VLOOKUP($I$18&$I$19,料金プランマスタ!$E:$AO,35,FALSE),"") ->  | BX60: =IFERROR(VLOOKUP($I$18&$I$19,料金プランマスタ!$E:$AO,11,FALSE),"") ->  | CA60: ～ | CB60: =IFERROR(VLOOKUP($I$18&$I$19,料金プランマスタ!$E:$AO,12,FALSE),"") ->  | CE60: h | CF60: e | CV60: 使用電力量料金単価 | CW60: 窓値4 | CX60: ● | CY60: =OR($T$52<>0,$T$60<>0,$T$61<>0,$T$62<>0,$I$19="",IF(IFERROR(VLOOKUP($I$18&$I$19,料金プランマスタ!$E:$AD,6,0),"●")="●",TRUE,FALSE)) -> TRUE | CZ60: T58:W58 | DA60: 上に同じ | DC60: 負荷率別の場合は表示不要 | DE60: end
D61: ・電力量料金割引 | L61: 円/kWh | O61: % | P61: ・電力量料金割引 | X61: 円/kWh | AA61: % | AU61: =IFERROR(IF(VLOOKUP($I$18&$I$19,料金プランマスタ!$E:$AD,6,0)="●",VLOOKUP($I$18&$I$19,料金プランマスタ!$E:$AD,20,0),$AF$30),"") ->  | BF61: 円/kWh | BH61: =IFERROR(VLOOKUP($I$18&$I$19,料金プランマスタ!$E:$AO,31,FALSE),"") ->  | BI61: =IFERROR(IF(VLOOKUP($I$18&$I$19,料金プランマスタ!$E:$AD,6,0)="●",VLOOKUP($I$18&$I$19,料金プランマスタ!$E:$AD,25,0),"-"),"") ->  | BU61: 円/kWh | BW61: =IFERROR(VLOOKUP($I$18&$I$19,料金プランマスタ!$E:$AO,36,FALSE),"") ->  | BX61: =IFERROR(VLOOKUP($I$18&$I$19,料金プランマスタ!$E:$AO,13,FALSE),"") ->  | CA61: ～ | CB61: =IFERROR(VLOOKUP($I$18&$I$19,料金プランマスタ!$E:$AO,14,FALSE),"") ->  | CE61: h | CF61: e | CV61: ●割引 | CW61: 基本料金割引 | CX61: ● | CY61: =OR($T$53<>$Z$53,$T$55<>$Z$55,$T$56<>$Z$56,$T$57<>$Z$57,$T$58<>$Z$58,$AZ$56<>$BH$56,$AZ$58<>$BH$58,$AZ$59<>$BH$59,$AZ$60<>$BH$60,$AZ$61<>$BH$61,$AZ$62<>$BH$62,$BO$58<>$BW$58,$BO$59<>$BW$59,$BO$60<>$BW$60,$BO$61<>$BW$61,$BO$62<>$BW$62) -> FALSE | CZ61: T60:W60 | DA61: OR($T$53<>$Z$53,$T$55<>$Z$55,$T$56<>$Z$56,$T$57<>$Z$57,$T$58<>$Z$58) | DE61: end
D62: ・年間割引総額 | L62: 円 | P62: ・年間割引総額 | X62: 円 | AU62: =IFERROR(IF(VLOOKUP($I$18&$I$19,料金プランマスタ!$E:$AD,6,0)="●",VLOOKUP($I$18&$I$19,料金プランマスタ!$E:$AD,21,0),"-"),"") ->  | BF62: 円/kWh | BH62: =IFERROR(VLOOKUP($I$18&$I$19,料金プランマスタ!$E:$AO,32,FALSE),"") ->  | BI62: =IFERROR(IF(VLOOKUP($I$18&$I$19,料金プランマスタ!$E:$AD,6,0)="●",VLOOKUP($I$18&$I$19,料金プランマスタ!$E:$AD,26,0),"-"),"") ->  | BU62: 円/kWh | BW62: =IFERROR(VLOOKUP($I$18&$I$19,料金プランマスタ!$E:$AO,37,FALSE),"") ->  | BX62: =IFERROR(VLOOKUP($I$18&$I$19,料金プランマスタ!$E:$AO,15,FALSE),"") ->  | CA62: ～ | CB62: =IFERROR(VLOOKUP($I$18&$I$19,料金プランマスタ!$E:$AO,16,FALSE),"") ->  | CE62: h | CF62: e | CV62: ●割引 | DA62: OR($AZ$56<>$BH$56,$AZ$58<>$BH$58,$AZ$59<>$BH$59,$AZ$60<>$BH$60,$AZ$61<>$BH$61,$AZ$62<>$BH$62,$BO$58<>$BW$58,$BO$59<>$BW$59,$BO$60<>$BW$60,$BO$61<>$BW$61,$BO$62<>$BW$62) | DE62: end
N63: =IFERROR(AE6*N60/100,"") ->  | Z63: =IFERROR(AE6*Z60/100,"") ->  | CF63: e | CV63: ●割引 | CW63: 電力量料金割引 | CX63: ● | CY63: =OR($T$53<>$Z$53,$T$55<>$Z$55,$T$56<>$Z$56,$T$57<>$Z$57,$T$58<>$Z$58,$AZ$56<>$BH$56,$AZ$58<>$BH$58,$AZ$59<>$BH$59,$AZ$60<>$BH$60,$AZ$61<>$BH$61,$AZ$62<>$BH$62,$BO$58<>$BW$58,$BO$59<>$BW$59,$BO$60<>$BW$60,$BO$61<>$BW$61,$BO$62<>$BW$62) -> FALSE | CZ63: T61:W61 | DA63: 上に同じ | DE63: end
N64: =IFERROR(IF(IFERROR(VLOOKUP($I$18&$I$19,料金プランマスタ!$E:$AO,6,FALSE),"")="●",((IF(AX43="-",0,AX43*AZ8))+(IF(BA43="-",0,BA43*AZ9))+(IF(BD43="-",0,BD43*AZ10))+(IF(BG43="-",0,BG43*AZ11))+(IF(BJ43="-",0,BJ43*AZ12))+(IF(BM43="-",0,BM43*BO8))+(IF(BP43="-",0,BP43*BO9))+(IF(BS43="-",0,BS43*BO10))+(IF(BV43="-",0,BV43*BO11))+(IF(BY43="-",0,BY43*BO12))),(IF(N43="-",0,N43*AE8)+IF(T43="-",0,T43*AE9)+IF(Z43="-",0,Z43*AE10)+IF(AF43="-",0,AF43*AE11)))*(N61/100)/CB43,"") ->  | Z64: =IFERROR(IF(IFERROR(VLOOKUP($I$18&$I$19,料金プランマスタ!$E:$AO,6,FALSE),"")="●",((IF(AX43="-",0,AX43*AZ8))+(IF(BA43="-",0,BA43*AZ9))+(IF(BD43="-",0,BD43*AZ10))+(IF(BG43="-",0,BG43*AZ11))+(IF(BJ43="-",0,BJ43*AZ12))+(IF(BM43="-",0,BM43*BO8))+(IF(BP43="-",0,BP43*BO9))+(IF(BS43="-",0,BS43*BO10))+(IF(BV43="-",0,BV43*BO11))+(IF(BY43="-",0,BY43*BO12))),(IF(N43="-",0,N43*AE8)+IF(T43="-",0,T43*AE9)+IF(Z43="-",0,Z43*AE10)+IF(AF43="-",0,AF43*AE11)))*(Z61/100)/CB43,"") ->  | CF64: e | CV64: ●割引 | CW64: 年間割引総額 | CX64: ● | CY64: =OR($T$53<>$Z$53,$T$55<>$Z$55,$T$56<>$Z$56,$T$57<>$Z$57,$T$58<>$Z$58,$AZ$56<>$BH$56,$AZ$58<>$BH$58,$AZ$59<>$BH$59,$AZ$60<>$BH$60,$AZ$61<>$BH$61,$AZ$62<>$BH$62,$BO$58<>$BW$58,$BO$59<>$BW$59,$BO$60<>$BW$60,$BO$61<>$BW$61,$BO$62<>$BW$62) -> FALSE | CZ64: T62:W62 | DA64: 上に同じ | DE64: end
A65: e | B65: e | C65: e | D65: e | E65: e | F65: e | G65: e | H65: e | I65: e | J65: e | K65: e | L65: e | M65: e | N65: e | O65: e | P65: e | Q65: e | R65: e | S65: e | T65: e | U65: e | V65: e | W65: e | X65: e | Y65: e | Z65: e | AA65: e | AB65: e | AC65: e | AD65: e | AE65: e | AF65: e | AG65: e | AH65: e | AI65: e | AJ65: e | AK65: e | AL65: e | AM65: e | AN65: e | AO65: e | AP65: e | AQ65: e | AR65: e | AS65: e | AT65: e | AU65: e | AV65: e | AW65: e | AX65: e | AY65: e | AZ65: e | BA65: e | BB65: e | BC65: e | BD65: e | BE65: e | BF65: e | BG65: e | BH65: e | BI65: e | BJ65: e | BK65: e | BL65: e | BM65: e | BN65: e | BO65: e | BP65: e | BQ65: e | BR65: e | BS65: e | BT65: e | BU65: e | BV65: e | BW65: e | BX65: e | BY65: e | BZ65: e | CA65: e | CB65: e | CC65: e | CD65: e | CE65: e | CF65: e | CV65: ●使用電力量料金単価 | CW65: 窓名1 | CX65: ● | CY65: TRUE | CZ65: AU8:AY8 | DA65: 常時 | DE65: end
CV66: ●使用電力量料金単価 | CW66: 窓名2 | CX66: ● | CY66: TRUE | CZ66: AU9:AY9 | DA66: 常時 | DE66: end
C67: ◆旧見積ツール転記用 | I67: ◆使用電力量のコピー | CV67: ●使用電力量料金単価 | CW67: 窓名3 | CX67: ● | CY67: TRUE | CZ67: AU10:AY10 | DA67: 常時 | DE67: end
CV68: ●使用電力量料金単価 | CW68: 窓名4 | CX68: ● | CY68: TRUE | CZ68: AU11:AY11 | DA68: 常時 | DE68: end
D69: 1窓 | E69: 2窓 | F69: 3窓 | G69: 4窓 | J69: 1窓 | K69: 2窓 | L69: 3窓 | M69: 4窓 | CV69: ●使用電力量料金単価 | CW69: 窓名5 | CX69: ● | CY69: TRUE | CZ69: AU12:AY12 | DA69: 常時 | DE69: end
C70: 4月 | D70: =IF(N31="",0,N31) -> 0 | E70: =IF(T31="",0,T31) -> 0 | F70: =IF(Z31="",0,Z31) -> 0 | G70: =IF(AF31="",0,AF31) -> 0 | I70: 4月 | CV70: ●使用電力量料金単価 | CW70: 窓名6 | CX70: ● | CY70: TRUE | CZ70: BI8:BN8 | DA70: 常時 | DE70: end
C71: 5月 | D71: =IF(N32="",0,N32) -> 0 | E71: =IF(T32="",0,T32) -> 0 | F71: =IF(Z32="",0,Z32) -> 0 | G71: =IF(AF32="",0,AF32) -> 0 | I71: 5月 | CV71: ●使用電力量料金単価 | CW71: 窓名7 | CX71: ● | CY71: TRUE | CZ71: BI9:BN9 | DA71: 常時 | DE71: end
C72: 6月 | D72: 0 | E72: 0 | F72: 0 | G72: 0 | I72: 6月 | CV72: ●使用電力量料金単価 | CW72: 窓名8 | CX72: ● | CY72: TRUE | CZ72: BI10:BN10 | DA72: 常時 | DE72: end
C73: 7月 | D73: 0 | E73: 0 | F73: 0 | G73: 0 | I73: 7月 | CV73: ●使用電力量料金単価 | CW73: 窓名9 | CX73: ● | CY73: TRUE | CZ73: BI11:BN11 | DA73: 常時 | DE73: end
C74: 8月 | D74: 0 | E74: 0 | F74: 0 | G74: 0 | I74: 8月 | CV74: ●使用電力量料金単価 | CW74: 窓名10 | CX74: ● | CY74: TRUE | CZ74: BI12:BN12 | DA74: 常時 | DE74: end
C75: 9月 | D75: 0 | E75: 0 | F75: 0 | G75: 0 | I75: 9月 | CV75: ●使用電力量料金単価 | CW75: 窓値1 | CX75: ● | CY75: TRUE | CZ75: AZ8:BE8 | DA75: 常時 | DE75: end
C76: 10月 | D76: 0 | E76: 0 | F76: 0 | G76: 0 | I76: 10月 | CV76: ●使用電力量料金単価 | CW76: 窓値2 | CX76: ● | CY76: TRUE | CZ76: AZ9:BE9 | DA76: 常時 | DE76: end
C77: 11月 | D77: 0 | E77: 0 | F77: 0 | G77: 0 | I77: 11月 | CV77: ●使用電力量料金単価 | CW77: 窓値3 | CX77: ● | CY77: TRUE | CZ77: AZ10:BE10 | DA77: 常時 | DE77: end
C78: 12月 | D78: 0 | E78: 0 | F78: 0 | G78: 0 | I78: 12月 | CV78: ●使用電力量料金単価 | CW78: 窓値4 | CX78: ● | CY78: TRUE | CZ78: AZ11:BE11 | DA78: 常時 | DE78: end
C79: 1月 | D79: 0 | E79: 0 | F79: 0 | G79: 0 | I79: 1月 | CV79: ●使用電力量料金単価 | CW79: 窓値5 | CX79: ● | CY79: TRUE | CZ79: AZ12:BE12 | DA79: 常時 | DE79: end
C80: 2月 | D80: 0 | E80: 0 | F80: 0 | G80: 0 | I80: 2月 | CV80: ●使用電力量料金単価 | CW80: 窓値6 | CX80: ● | CY80: TRUE | CZ80: BO8:BT8 | DA80: 常時 | DE80: end
C81: 3月 | D81: 0 | E81: 0 | F81: 0 | G81: 0 | I81: 3月 | CV81: ●使用電力量料金単価 | CW81: 窓値7 | CX81: ● | CY81: TRUE | CZ81: BO9:BT9 | DA81: 常時 | DE81: end
C82: 合計 | D82: =SUM(D70:D81) -> 0 | E82: 0 | F82: 0 | G82: 0 | CV82: ●使用電力量料金単価 | CW82: 窓値8 | CX82: ● | CY82: TRUE | CZ82: BO10:BT10 | DA82: 常時 | DE82: end
C84: ◆料金単価転記用
C86: DC | D86: EC1 | E86: EC2 | F86: EC3 | G86: EC4 | CV86: ●使用電力量料金単価 | CW86: 窓値9 | CX86: ● | CY86: TRUE | CZ86: BO11:BT11 | DA86: 常時 | DE86: end
C87: =AE6 ->  | D87: =AE8 ->  | E87: =AE9 ->  | F87: =AE10 ->  | G87: =AE11 ->  | CV87: ●使用電力量料金単価 | CW87: 窓値10 | CX87: ● | CY87: TRUE | CZ87: BO12:BT12 | DA87: 常時 | DE87: end
CV88: ●使用電力量料金単価 | CW88: 負荷率帯1 | CX88: ● | CY88: TRUE | CZ88: BX8:BZ8 | DA88: 常時 | DE88: end
CV89: ●使用電力量料金単価 | CW89: 負荷率帯2 | CX89: ● | CY89: TRUE | CZ89: BX9:BZ9 | DA89: 常時 | DE89: end
CV90: ●使用電力量料金単価 | CW90: 負荷率帯3 | CX90: ● | CY90: TRUE | CZ90: BX10:BZ10 | DA90: 常時 | DE90: end
C91: ◆以下範囲は各種メモ・計算用に利用頂けます | CV91: ●使用電力量料金単価 | CW91: 負荷率帯4 | CX91: ● | CY91: TRUE | CZ91: BX11:BZ11 | DA91: 常時 | DE91: end
CV92: ●使用電力量料金単価 | CW92: 負荷率帯5 | CX92: ● | CY92: TRUE | CZ92: BX12:BZ12 | DA92: 常時 | DE92: end
CV93: ●使用電力量料金単価 | CW93: 負荷率帯6 | CX93: ● | CY93: TRUE | CZ93: CB8:CD8 | DA93: 常時 | DE93: end
CV94: ●使用電力量料金単価 | CW94: 負荷率帯7 | CX94: ● | CY94: TRUE | CZ94: CB9:CD9 | DA94: 常時 | DE94: end
CV95: ●使用電力量料金単価 | CW95: 負荷率帯8 | CX95: ● | CY95: TRUE | CZ95: CB10:CD10 | DA95: 常時 | DE95: end
CV96: ●使用電力量料金単価 | CW96: 負荷率帯9 | CX96: ● | CY96: TRUE | CZ96: CB11:CD11 | DA96: 常時 | DE96: end
CV97: ●使用電力量料金単価 | CW97: 負荷率帯10 | CX97: ● | CY97: TRUE | CZ97: CB12:CD12 | DA97: 常時 | DE97: end
CV98: ◆月別データ | CX98: ● | CY98: TRUE | CZ98: AX31:CD43 | DA98: 常時 | DE98: end
CV99: 使用量等 10窓 - 競合1 | CW99: 基本料金単価 | CX99: ● | CY99: =OR($H$52<>0,$H$60<>0,$H$61<>0,$H$62<>0,$I$19="",IF(IFERROR(VLOOKUP($I$18&$I$19,料金プランマスタ!$E:$AD,6,0),"")="",TRUE,FALSE)) -> TRUE | CZ99: AZ47:BE47 | DA99: OR($H$52<>0,$H$60<>0,$H$61<>0,$H$62<>0) | DE99: end
CV100: 使用量等 10窓 - 競合1 | DA100: $I$19="" | DE100: end
CV101: 使用量等 10窓 - 競合1 | DA101: =IF(IFERROR(VLOOKUP($I$18&$I$19,料金プランマスタ!$E:$AD,6,0),"")="",TRUE,FALSE) -> TRUE | DE101: end
CV102: 使用量等 10窓 - 競合1 | CW102: 窓名1 | CX102: ● | CY102: TRUE | CZ102: AU49:AY49 | DA102: 常時 | DE102: end
CV103: 使用量等 10窓 - 競合1 | CW103: 窓名2 | CX103: ● | CY103: TRUE | CZ103: AU50:AY50 | DA103: 常時 | DE103: end
CV104: 使用量等 10窓 - 競合1 | CW104: 窓名3 | CX104: ● | CY104: TRUE | CZ104: AU51:AY51 | DA104: 常時 | DE104: end
CV105: 使用量等 10窓 - 競合1 | CW105: 窓名4 | CX105: ● | CY105: TRUE | CZ105: AU52:AY52 | DA105: 常時 | DE105: end
CV106: 使用量等 10窓 - 競合1 | CW106: 窓名5 | CX106: ● | CY106: TRUE | CZ106: AU53:AY53 | DA106: 常時 | DE106: end
CV107: 使用量等 10窓 - 競合1 | CW107: 窓名6 | CX107: ● | CY107: TRUE | CZ107: BI49:BN49 | DA107: 常時 | DE107: end
CV108: 使用量等 10窓 - 競合1 | CW108: 窓名7 | CX108: ● | CY108: TRUE | CZ108: BI50:BN50 | DA108: 常時 | DE108: end
CV109: 使用量等 10窓 - 競合1 | CW109: 窓名8 | CX109: ● | CY109: TRUE | CZ109: BI51:BN51 | DA109: 常時 | DE109: end
CV110: 使用量等 10窓 - 競合1 | CW110: 窓名9 | CX110: ● | CY110: TRUE | CZ110: BI52:BN52 | DA110: 常時 | DE110: end
CV111: 使用量等 10窓 - 競合1 | CW111: 窓名10 | CX111: ● | CY111: TRUE | CZ111: BI53:BN53 | DA111: 常時 | DE111: end
CV112: 使用量等 10窓 - 競合1 | CW112: 窓値1 | CX112: ● | CY112: =OR($H$52<>0,$H$60<>0,$H$61<>0,$H$62<>0,$I$19="",IF(IFERROR(VLOOKUP($I$18&$I$19,料金プランマスタ!$E:$AD,6,0),"")="",TRUE,FALSE)) -> TRUE | CZ112: AZ49:BE49 | DA112: OR($H$52<>0,$H$60<>0,$H$61<>0,$H$62<>0) | DE112: end
CV113: 使用量等 10窓 - 競合1 | DA113: $I$19="" | DE113: end
CV114: 使用量等 10窓 - 競合1 | DA114: IF(IFERROR(VLOOKUP($I$18&$I$19,料金プランマスタ!$E$7:$AD$212,6,0),"")="",TRUE,FALSE) | DE114: end
CV115: 使用量等 10窓 - 競合1 | CW115: 窓値2 | CX115: ● | CY115: =OR($H$52<>0,$H$60<>0,$H$61<>0,$H$62<>0,$I$19="",IF(IFERROR(VLOOKUP($I$18&$I$19,料金プランマスタ!$E:$AD,6,0),"")="",TRUE,FALSE)) -> TRUE | CZ115: AZ50:BE50 | DA115: 上に同じ | DE115: end
CV116: 使用量等 10窓 - 競合1 | CW116: 窓値3 | CX116: ● | CY116: =OR($H$52<>0,$H$60<>0,$H$61<>0,$H$62<>0,$I$19="",IF(IFERROR(VLOOKUP($I$18&$I$19,料金プランマスタ!$E:$AD,6,0),"")="",TRUE,FALSE)) -> TRUE | CZ116: AZ51:BE51 | DA116: 上に同じ | DE116: end
CV117: 使用量等 10窓 - 競合1 | CW117: 窓値4 | CX117: ● | CY117: =OR($H$52<>0,$H$60<>0,$H$61<>0,$H$62<>0,$I$19="",IF(IFERROR(VLOOKUP($I$18&$I$19,料金プランマスタ!$E:$AD,6,0),"")="",TRUE,FALSE)) -> TRUE | CZ117: AZ52:BE52 | DA117: 上に同じ | DE117: end
CV118: 使用量等 10窓 - 競合1 | CW118: 窓値5 | CX118: ● | CY118: =OR($H$52<>0,$H$60<>0,$H$61<>0,$H$62<>0,$I$19="",IF(IFERROR(VLOOKUP($I$18&$I$19,料金プランマスタ!$E:$AD,6,0),"")="",TRUE,FALSE)) -> TRUE | CZ118: AZ53:BE53 | DA118: 上に同じ | DE118: end
CV119: 使用量等 10窓 - 競合1 | CW119: 窓値6 | CX119: ● | CY119: =OR($H$52<>0,$H$60<>0,$H$61<>0,$H$62<>0,$I$19="",IF(IFERROR(VLOOKUP($I$18&$I$19,料金プランマスタ!$E:$AD,6,0),"")="",TRUE,FALSE)) -> TRUE | CZ119: BO49:BT49 | DA119: 上に同じ | DE119: end
CV120: 使用量等 10窓 - 競合1 | CW120: 窓値7 | CX120: ● | CY120: =OR($H$52<>0,$H$60<>0,$H$61<>0,$H$62<>0,$I$19="",IF(IFERROR(VLOOKUP($I$18&$I$19,料金プランマスタ!$E:$AD,6,0),"")="",TRUE,FALSE)) -> TRUE | CZ120: BO50:BT50 | DA120: 上に同じ | DE120: end
CV121: 使用量等 10窓 - 競合1 | CW121: 窓値8 | CX121: ● | CY121: =OR($H$52<>0,$H$60<>0,$H$61<>0,$H$62<>0,$I$19="",IF(IFERROR(VLOOKUP($I$18&$I$19,料金プランマスタ!$E:$AD,6,0),"")="",TRUE,FALSE)) -> TRUE | CZ121: BO51:BT51 | DA121: 上に同じ | DE121: end
CV122: 使用量等 10窓 - 競合1 | CW122: 窓値9 | CX122: ● | CY122: =OR($H$52<>0,$H$60<>0,$H$61<>0,$H$62<>0,$I$19="",IF(IFERROR(VLOOKUP($I$18&$I$19,料金プランマスタ!$E:$AD,6,0),"")="",TRUE,FALSE)) -> TRUE | CZ122: BO52:BT52 | DA122: 上に同じ | DE122: end
CV123: 使用量等 10窓 - 競合1 | CW123: 窓値10 | CX123: ● | CY123: =OR($H$52<>0,$H$60<>0,$H$61<>0,$H$62<>0,$I$19="",IF(IFERROR(VLOOKUP($I$18&$I$19,料金プランマスタ!$E:$AD,6,0),"")="",TRUE,FALSE)) -> TRUE | CZ123: BO53:BT53 | DA123: 上に同じ | DE123: end
CV124: 使用量等 10窓 - 競合1 | CW124: 負荷率帯1 | CX124: ● | CY124: TRUE | CZ124: BX49:BZ49 | DA124: 常時 | DE124: end
CV125: 使用量等 10窓 - 競合1 | CW125: 負荷率帯2 | CX125: ● | CY125: TRUE | CZ125: BX50:BZ50 | DA125: 常時 | DE125: end
CV126: 使用量等 10窓 - 競合1 | CW126: 負荷率帯3 | CX126: ● | CY126: TRUE | CZ126: BX51:BZ51 | DA126: 常時 | DE126: end
CV127: 使用量等 10窓 - 競合1 | CW127: 負荷率帯4 | CX127: ● | CY127: TRUE | CZ127: BX52:BZ52 | DA127: 常時 | DE127: end
CV128: 使用量等 10窓 - 競合1 | CW128: 負荷率帯5 | CX128: ● | CY128: TRUE | CZ128: BX53:BZ53 | DA128: 常時 | DE128: end
CV129: 使用量等 10窓 - 競合1 | CW129: 負荷率帯6 | CX129: ● | CY129: TRUE | CZ129: CB49:CD49 | DA129: 常時 | DE129: end
CV130: 使用量等 10窓 - 競合1 | CW130: 負荷率帯7 | CX130: ● | CY130: TRUE | CZ130: CB50:CD50 | DA130: 常時 | DE130: end
CV131: 使用量等 10窓 - 競合1 | CW131: 負荷率帯8 | CX131: ● | CY131: TRUE | CZ131: CB51:CD51 | DA131: 常時 | DE131: end
CV132: 使用量等 10窓 - 競合1 | CW132: 負荷率帯9 | CX132: ● | CY132: TRUE | CZ132: CB52:CD52 | DA132: 常時 | DE132: end
CV133: 使用量等 10窓 - 競合1 | CW133: 負荷率帯10 | CX133: ● | CY133: TRUE | CZ133: CB53:CD53 | DA133: 常時 | DE133: end
CV134: 使用量等 10窓- 競合2 | CW134: 基本料金単価 | CX134: ● | CY134: =OR($T$52<>0,$T$60<>0,$T$61<>0,$T$62<>0,$I$19="",IF(IFERROR(VLOOKUP($I$18&$I$19,料金プランマスタ!$E:$AD,6,0),"")="",TRUE,FALSE)) -> TRUE | CZ134: AZ56:BE56 | DA134: OR($T$52<>0,$T$60<>0,$T$61<>0,$T$62<>0) | DE134: end
CV135: 使用量等 10窓- 競合2 | DA135: $I$19="" | DE135: end
CV136: 使用量等 10窓- 競合2 | DA136: IF(IFERROR(VLOOKUP($I$18&$I$19,料金プランマスタ!$E$7:$AD$212,6,0),"")="",TRUE,FALSE) | DE136: end
CV137: 使用量等 10窓- 競合2 | CW137: 窓名1 | CX137: ● | CY137: TRUE | CZ137: AU58:AY58 | DA137: 常時 | DE137: end
CV138: 使用量等 10窓- 競合2 | CW138: 窓名2 | CX138: ● | CY138: TRUE | CZ138: AU59:AY59 | DA138: 常時 | DE138: end
CV139: 使用量等 10窓- 競合2 | CW139: 窓名3 | CX139: ● | CY139: TRUE | CZ139: AU60:AY60 | DA139: 常時 | DE139: end
CV140: 使用量等 10窓- 競合2 | CW140: 窓名4 | CX140: ● | CY140: TRUE | CZ140: AU61:AY61 | DA140: 常時 | DE140: end
CV141: 使用量等 10窓- 競合2 | CW141: 窓名5 | CX141: ● | CY141: TRUE | CZ141: AU62:AY62 | DA141: 常時 | DE141: end
CV142: 使用量等 10窓- 競合2 | CW142: 窓名6 | CX142: ● | CY142: TRUE | CZ142: BI58:BN58 | DA142: 常時 | DE142: end
CV143: 使用量等 10窓- 競合2 | CW143: 窓名7 | CX143: ● | CY143: TRUE | CZ143: BI59:BN59 | DA143: 常時 | DE143: end
CV144: 使用量等 10窓- 競合2 | CW144: 窓名8 | CX144: ● | CY144: TRUE | CZ144: BI60:BN60 | DA144: 常時 | DE144: end
CV145: 使用量等 10窓- 競合2 | CW145: 窓名9 | CX145: ● | CY145: TRUE | CZ145: BI61:BN61 | DA145: 常時 | DE145: end
CV146: 使用量等 10窓- 競合2 | CW146: 窓名10 | CX146: ● | CY146: TRUE | CZ146: BI62:BN62 | DA146: 常時 | DE146: end
CV147: 使用量等 10窓- 競合2 | CW147: 窓値1 | CX147: ● | CY147: =OR($T$52<>0,$T$60<>0,$T$61<>0,$T$62<>0,$I$19="",IF(IFERROR(VLOOKUP($I$18&$I$19,料金プランマスタ!$E:$AD,6,0),"")="",TRUE,FALSE)) -> TRUE | CZ147: AZ58:BE58 | DA147: OR($T$52<>0,$T$60<>0,$T$61<>0,$T$62<>0) | DE147: end
CV148: 使用量等 10窓- 競合2 | DA148: $I$19="" | DE148: end
CV149: 使用量等 10窓- 競合2 | DA149: IF(IFERROR(VLOOKUP($I$18&$I$19,料金プランマスタ!$E$7:$AD$212,6,0),"")="",TRUE,FALSE) | DE149: end
CV150: 使用量等 10窓- 競合2 | CW150: 窓値2 | CX150: ● | CY150: =OR($T$52<>0,$T$60<>0,$T$61<>0,$T$62<>0,$I$19="",IF(IFERROR(VLOOKUP($I$18&$I$19,料金プランマスタ!$E:$AD,6,0),"")="",TRUE,FALSE)) -> TRUE | CZ150: AZ59:BE59 | DA150: 上に同じ | DE150: end
CV151: 使用量等 10窓- 競合2 | CW151: 窓値3 | CX151: ● | CY151: =OR($T$52<>0,$T$60<>0,$T$61<>0,$T$62<>0,$I$19="",IF(IFERROR(VLOOKUP($I$18&$I$19,料金プランマスタ!$E:$AD,6,0),"")="",TRUE,FALSE)) -> TRUE | CZ151: AZ60:BE60 | DA151: 上に同じ | DE151: end
CV152: 使用量等 10窓- 競合2 | CW152: 窓値4 | CX152: ● | CY152: =OR($T$52<>0,$T$60<>0,$T$61<>0,$T$62<>0,$I$19="",IF(IFERROR(VLOOKUP($I$18&$I$19,料金プランマスタ!$E:$AD,6,0),"")="",TRUE,FALSE)) -> TRUE | CZ152: AZ61:BE61 | DA152: 上に同じ | DE152: end
CV153: 使用量等 10窓- 競合2 | CW153: 窓値5 | CX153: ● | CY153: =OR($T$52<>0,$T$60<>0,$T$61<>0,$T$62<>0,$I$19="",IF(IFERROR(VLOOKUP($I$18&$I$19,料金プランマスタ!$E:$AD,6,0),"")="",TRUE,FALSE)) -> TRUE | CZ153: AZ62:BE62 | DA153: 上に同じ | DE153: end
CV154: 使用量等 10窓- 競合2 | CW154: 窓値6 | CX154: ● | CY154: =OR($T$52<>0,$T$60<>0,$T$61<>0,$T$62<>0,$I$19="",IF(IFERROR(VLOOKUP($I$18&$I$19,料金プランマスタ!$E:$AD,6,0),"")="",TRUE,FALSE)) -> TRUE | CZ154: BO58:BT58 | DA154: 上に同じ | DE154: end
CV155: 使用量等 10窓- 競合2 | CW155: 窓値7 | CX155: ● | CY155: =OR($T$52<>0,$T$60<>0,$T$61<>0,$T$62<>0,$I$19="",IF(IFERROR(VLOOKUP($I$18&$I$19,料金プランマスタ!$E:$AD,6,0),"")="",TRUE,FALSE)) -> TRUE | CZ155: BO59:BT59 | DA155: 上に同じ | DE155: end
CV156: 使用量等 10窓- 競合2 | CW156: 窓値8 | CX156: ● | CY156: =OR($T$52<>0,$T$60<>0,$T$61<>0,$T$62<>0,$I$19="",IF(IFERROR(VLOOKUP($I$18&$I$19,料金プランマスタ!$E:$AD,6,0),"")="",TRUE,FALSE)) -> TRUE | CZ156: BO60:BT60 | DA156: 上に同じ | DE156: end
CV157: 使用量等 10窓- 競合2 | CW157: 窓値9 | CX157: ● | CY157: =OR($T$52<>0,$T$60<>0,$T$61<>0,$T$62<>0,$I$19="",IF(IFERROR(VLOOKUP($I$18&$I$19,料金プランマスタ!$E:$AD,6,0),"")="",TRUE,FALSE)) -> TRUE | CZ157: BO61:BT61 | DA157: 上に同じ | DE157: end
CV158: 使用量等 10窓- 競合2 | CW158: 窓値10 | CX158: ● | CY158: =OR($T$52<>0,$T$60<>0,$T$61<>0,$T$62<>0,$I$19="",IF(IFERROR(VLOOKUP($I$18&$I$19,料金プランマスタ!$E:$AD,6,0),"")="",TRUE,FALSE)) -> TRUE | CZ158: BO62:BT62 | DA158: 上に同じ | DE158: end
CV159: 使用量等 10窓- 競合2 | CW159: 負荷率帯1 | CX159: ● | CY159: TRUE | CZ159: BX58:BZ58 | DA159: 常時 | DE159: end
CV160: 使用量等 10窓- 競合2 | CW160: 負荷率帯2 | CX160: ● | CY160: TRUE | CZ160: BX59:BZ59 | DA160: 常時 | DE160: end
CV161: 使用量等 10窓- 競合2 | CW161: 負荷率帯3 | CX161: ● | CY161: TRUE | CZ161: BX60:BZ60 | DA161: 常時 | DE161: end
CV162: 使用量等 10窓- 競合2 | CW162: 負荷率帯4 | CX162: ● | CY162: TRUE | CZ162: BX61:BZ61 | DA162: 常時 | DE162: end
CV163: 使用量等 10窓- 競合2 | CW163: 負荷率帯5 | CX163: ● | CY163: TRUE | CZ163: BX62:BZ62 | DA163: 常時 | DE163: end
CV164: 使用量等 10窓- 競合2 | CW164: 負荷率帯6 | CX164: ● | CY164: TRUE | CZ164: CB58:CD58 | DA164: 常時 | DE164: end
CV165: 使用量等 10窓- 競合2 | CW165: 負荷率帯7 | CX165: ● | CY165: TRUE | CZ165: CB59:CD59 | DA165: 常時 | DE165: end
CV166: 使用量等 10窓- 競合2 | CW166: 負荷率帯8 | CX166: ● | CY166: TRUE | CZ166: CB60:CD60 | DA166: 常時 | DE166: end
CV167: 使用量等 10窓- 競合2 | CW167: 負荷率帯9 | CX167: ● | CY167: TRUE | CZ167: CB61:CD61 | DA167: 常時 | DE167: end
CV168: 使用量等 10窓- 競合2 | CW168: 負荷率帯10 | CX168: ● | CY168: TRUE | CZ168: CB62:CD62 | DA168: 常時 | DE168: end
CV169: end | CW169: end | CX169: end | CY169: end | CZ169: end | DA169: end | DB169: end | DC169: end | DD169: end | DE169: end
CU170: ◆見積Excel用使用電力量

Sheet 業種リスト (hidden)
A1: ◆選択リスト | C1: e
B2: 業種一覧 | C2: e
B3: アパート・寮 (021) | C3: e
B4: 事務所 (023) | C4: e
B5: 病院 (024) | C5: e
B6: 学校研究所 (025) | C6: e
B7: 官公署 (026) | C7: e
B8: 商店百貨店 (027) | C8: e
B9: 旅館 (028) | C9: e
B10: 飲食店 (029) | C10: e
B11: 劇場 (030) | C11: e
B12: 娯楽場 (031) | C12: e
B13: その他産業 (038) | C13: e
B14: 倉庫 (043) | C14: e
B15: 運輸通信業 (044) | C15: e
B16: 電気・ガス・水 (045) | C16: e
B17: 建設業 (060) | C17: e
B18: 食料品 (071) | C18: e
B19: 繊維工業・木材 (072) | C19: e
B20: 紙パルプ (074) | C20: e
B21: 出版印刷 (075) | C21: e
B22: 化学 (076) | C22: e
B23: 石油石炭 (077) | C23: e
B24: ゴム製品 (078) | C24: e
B25: 窯業土石 (079) | C25: e
B26: 鉄鋼 (080) | C26: e
B27: 非鉄金属 (081) | C27: e
B28: 金属製品 (082) | C28: e
B29: 一般機械 (083) | C29: e
B30: 電気機械 (084) | C30: e
B31: 輸送用機械 (085) | C31: e
B32: その他製造業 (089) | C32: e
B33: 鉱業 (091) | C33: e
B34: 農林漁業 (092) | C34: e
B35: 住宅 (020) | C35: e
B36: 街路灯 (022) | C36: e
A37: e | C37: e

Sheet 一覧
B4: シート名 | C4: 需要場所施設名 | D4: 需要場所ご住所 | E4: エリア | F4: 料金プラン名 | G4: 契約電力

Sheet log (hidden)
A1: Timestamp | B1: Message
A2: 2019-10-10T15:18:29 | B2: モジュール名：Protect || メソッド名：ConctructorNotSpecifiedSheet || メッセージ：初期処理を実施します
A3: 2019-10-10T15:18:29 | B3: モジュール名：ThisWorkbook || メソッド名：Workbook_BeforeClose || メッセージ：ブックを閉じる処理が実施されました / 引数 Cancel
A4: 2019-10-10T15:18:29 | B4: モジュール名：Validation || メソッド名：beforeSaveValidation || メッセージ：必須項目が記入されているか確認します
A5: 2019-10-10T15:18:29 | B5: モジュール名：Protect || メソッド名：DestructorNotSpecifiedSheet || メッセージ：終了処理を実施します
A6: 2019-10-10T15:18:29 | B6: モジュール名：Protect || メソッド名：DestructorNotSpecifiedSheet || メッセージ：終了処理を実施します

Sheet 都道府県リスト (hidden)
A1: ◆選択リスト | C1: e
B2: 都道府県一覧 | C2: e
B3: 北海道 | C3: e
B4: 青森県 | C4: e
B5: 岩手県 | C5: e
B6: 宮城県 | C6: e
B7: 秋田県 | C7: e
B8: 山形県 | C8: e
B9: 福島県 | C9: e
B10: 茨城県 | C10: e
B11: 栃木県 | C11: e
B12: 群馬県 | C12: e
B13: 埼玉県 | C13: e
B14: 千葉県 | C14: e
B15: 東京都 | C15: e
B16: 神奈川県 | C16: e
B17: 新潟県 | C17: e
B18: 富山県 | C18: e
B19: 石川県 | C19: e
B20: 福井県 | C20: e
B21: 山梨県 | C21: e
B22: 長野県 | C22: e
B23: 岐阜県 | C23: e
B24: 静岡県 | C24: e
B25: 愛知県 | C25: e
B26: 三重県 | C26: e
B27: 滋賀県 | C27: e
B28: 京都府 | C28: e
B29: 大阪府 | C29: e
B30: 兵庫県 | C30: e
B31: 奈良県 | C31: e
B32: 和歌山県 | C32: e
B33: 鳥取県 | C33: e
B34: 島根県 | C34: e
B35: 岡山県 | C35: e
B36: 広島県 | C36: e
B37: 山口県 | C37: e
B38: 徳島県 | C38: e
B39: 香川県 | C39: e
B40: 愛媛県 | C40: e
B41: 高知県 | C41: e
B42: 福岡県 | C42: e
B43: 佐賀県 | C43: e
B44: 長崎県 | C44: e
B45: 熊本県 | C45: e
B46: 大分県 | C46: e
B47: 宮崎県 | C47: e
B48: 鹿児島県 | C48: e
B49: 沖縄県 | C49: e
A50: e | C50: e

Sheet エリアリスト (hidden)
A1: ◆選択リスト | C1: e
B2: エリア | C2: e
B3: 北海道電力 | C3: e
B4: 東北電力 | C4: e
B5: 東京電力 | C5: e
B6: 中部電力 | C6: e
B7: 関西電力 | C7: e
B8: 北陸電力 | C8: e
B9: 中国電力 | C9: e
B10: 四国電力 | C10: e
B11: 九州電力 | C11: e
A12: e | B12: e | C12: e

Sheet 会社名リスト (hidden)
A1: ◆選択リスト | D1: e
B2: 会社名一覧 | C2: ヨミガナ | D2: e
B3: 北海道電力 | C3: ホッカイドウデンリョク | D3: e
B4: 東北電力 | C4: トウホクデンリョク | D4: e
B5: 東京電力 | C5: トウキョウデンリョク | D5: e
B6: 中部電力 | C6: チュウブデンリョク | D6: e
B7: 関西電力 | C7: カンサイデンリョク | D7: e
B8: 北陸電力 | C8: ホクリクデンリョク | D8: e
B9: 中国電力 | C9: チュウゴクデンリョク | D9: e
B10: 四国電力 | C10: シコクデンリョク | D10: e
B11: 九州電力 | C11: キュウシュウデンリョク | D11: e
B12: F-Power | C12: エフパワー | D12: e
B13: イーレックス | C13: イーレックス | D13: e
B14: エネット | C14: エネット | D14: e
B15: 日本テクノ | C15: ニホンテクノ | D15: e
B16: Looop | C16: ループ | D16: e
B17: ＪＸＴＧエネルギー | C17: ジェイエックスティージーエネルギー | D17: e
B18: エネサーブ | C18: エネサーブ | D18: e
B19: ミツウロコグリーンエネルギー | C19: ミツウロコグリーンエネルギー | D19: e
B20: ナンワエナジー | C20: ナンワエナジー | D20: e
B21: 伊藤忠エネクス | C21: イトウチュウエネクス | D21: e
B22: アイ・グリッド・ソリューションズ | C22: アイ・グリッド・ソリューションズ | D22: e
B23: 丸紅新電力 | C23: マルベニシンデンリョク | D23: e
B24: 新出光 | C24: シンイデミツ | D24: e
B25: ウエスト電力 | C25: ウエストデンリョク | D25: e
B26: ｴﾌﾋﾞｯﾄｺﾐｭﾆｹｰｼｮﾝｽﾞ | C26: エフビットコミュニケーションズ | D26: e
B27: シン・エナジー | C27: シン・エナジー | D27: e
B28: サミットエナジー | C28: サミットエナジー | D28: e
B29: 昭和シェル石油 | C29: ショウワシェクセキユ | D29: e
B30: リコージャパン | C30: リコージャパン | D30: e
B31: リミックスポイント | C31: リミックスポイント | D31: e
B32: 鈴与商事 | C32: スズサダショウジ | D32: e
B33: 中央電力エナジー | C33: チュウオウデンリョクエナジー | D33: e
B34: ダイヤモンドパワー | C34: ダイヤモンドパワー | D34: e
B35: 東海電力 | C35: トウカイデンリョク | D35: e
B36: 出光グリーンパワー | C36: イデミツグリーンパワ－ | D36: e
B37: V-Power | C37: ブイパワー | D37: e
B38: 伊藤忠商事 | C38: イトウチュウショウジ | D38: e
B39: ＫＤＤＩ | C39: ケイディーディーアイ | D39: e
B40: シナネン | C40: シナネン | D40: e
B41: 九電みらいエナジー | C41: キュウデンミライエナジー | D41: e
B42: 丸紅 | C42: マルベニシンデンリョク | D42: e
B43: 大和エネルギー | C43: ダイワエネルギー | D43: e
B44: サニックス | C44: サニックス | D44: e
B45: みらい電力 | C45: ミライデンリョク | D45: e
B46: エナリス・パワー・マーケティング | C46: エナリス・パワー・マーケティング | D46: e
B47: Kenesエネルギーサービス | C47: ケネスエネルギーサービス | D47: e
B48: 坊っちゃん電力 | C48: ボッチャンデンリョク | D48: e
B49: 福岡電力 | C49: フクオカデンリョク | D49: e
B50: 中央電力 | C50: チュウオウデンリョクエナジー | D50: e
B51: イーセル | C51: イーセル | D51: e
B52: サイサン | C52: サイサン | D52: e
B53: オリックス | C53: オリックス | D53: e
B54: みんな電力 | C54: ミンナデンリョク | D54: e
B55: コンシェルジュ | C55: コンシェルジュ | D55: e
B56: 東急パワーサプライ | C56: トウキュウパワーサプライ | D56: e
B57: 新日鉄住金エンジニアリング | C57: シンニッテツスミキンエンジニアリング | D57: e
B58: サーラｅエナジー | C58: サーライーエナジー | D58: e
B59: 大和ハウス工業 | C59: ダイワハウスコウギョウ | D59: e
B60: アンフィニ | C60: アンフィニ | D60: e
B61: ツネイシCバリューズ | C61: ツネイシシーバリューズ | D61: e
B62: 楽天 | C62: ラクテン | D62: e
B63: コープ電力 | C63: コープデンリョク | D63: e
B64: 須賀川瓦斯 | C64: スカガワガス | D64: e
B65: 日本エナジーバンク | C65: ニホンエナジーバンク | D65: e
B66: 大阪瓦斯 | C66: オオサカガス | D66: e
B67: テス・エンジニアリング | C67: テス・エンジニアリング | D67: e
B68: 大一ガス | C68: ダイイチガス | D68: e
B69: 奈良電力 | C69: ナラデンリョク | D69: e
B70: 日立造船 | C70: ヒタチゾウセン | D70: e
B71: 武州瓦斯 | C71: ブシュウガス | D71: e
B72: 凸版印刷 | C72: トッパンインサツ | D72: e
B73: イーエムアイ | C73: イーエムアイ | D73: e
B74: フソウ・エナジー | C74: フソウ・エナジー | D74: e
B75: NECファシリティーズ | C75: エヌイーシーファシリティーズ | D75: e
B76: 伊藤忠エネクスホームライフ西日本 | C76: イトウチュウエネクスホームライフニシニホン | D76: e
B77: 長崎地域電力 | C77: ナガサキチイキデンリョク | D77: e
B78: いこま電力 | C78: イコマデンリョク | D78: e
B79: ハルエネ | C79: ハルエネ | D79: e
B80: 岡山電力 | C80: オカヤマデンリョク | D80: e
B81: みなとみらい電力 | C81: ミナトミライデンリョク | D81: e
B82: 三菱瓦斯化学 | C82: ミツビシガスカガク | D82: e
B83: アースインフィニティ | C83: アースインフィニティ | D83: e
B84: アースカラー | C84: アースカラー | D84: e
B85: アーバンエナジー | C85: アーバンエナジー | D85: e
B86: アイキューフォーメーション | C86: アイキューフォーメーション | D86: e
B87: 愛知電力 | C87: アイチデンリョク | D87: e
B88: 青森県民エナジー | C88: アオモリケンミンエナジー | D88: e
B89: あくびコミュニケーションズ | C89: アクビコミュニケーションズ | D89: e
B90: 朝日ガスエナジー | C90: アサヒガスエナジー | D90: e
B91: アジアエネルギーバンク | C91: アジアエネルギーバンク | D91: e
B92: 足利ガス | C92: アシカガガス | D92: e
B93: アシストワンエナジー | C93: アシストワンエナジー | D93: e
B94: アストマックス・トレーディング | C94: アストマックス・トレーディング | D94: e
B95: アストモスエネルギー | C95: アストモスエネルギー | D95: e
B96: 厚木瓦斯 | C96: アツギガス | D96: e
B97: アドバリュー | C97: アドバリュー | D97: e
B98: アドバンテック | C98: アドバンテック | D98: e
B99: ＡｐａｍａｎＥｎｅｒｇｙ | C99: アパマンエナジー | D99: e
B100: アメニティ電力 | C100: アメニティデンリョク | D100: e
B101: 有明エナジー | C101: アリアケエナジー | D101: e
B102: アルファライズ | C102: アルファライズ | D102: e
B103: アンビット・エナジー・ジャパン合同会社 | C103: アンビット・エナジー・ジャパンゴウドウガイシャ | D103: e
B104: ESC | C104: イーエスシー | D104: e
B105: イーゲート | C105: イーゲート | D105: e
B106: イーネットワークシステムズ | C106: イーネットワークシステムズ | D106: e
B107: イーレックス・スパーク・マーケティング | C107: イーレックス・スパーク・マーケティング | D107: e
B108: イーレックス販売3号 | C108: イーレックスハンバイサンゴウ | D108: e
B109: イオンディライト | C109: イオンディライト | D109: e
B110: 池見石油店 | C110: イケミセキユテン | D110: e
B111: いこま市民パワー | C111: イコマシミンパワー | D111: e
B112: 石川電力 | C112: イシカワデンリョク | D112: e
B113: 出雲ガス | C113: イズモガス | D113: e
B114: 伊勢崎ガス | C114: イセサキガス | D114: e
B115: 伊勢志摩電力 | C115: イセシマデンリョク | D115: e
B116: いちき串木野電力 | C116: イチキクシキノデンリョック | D116: e
B117: いちたかガスワン | C117: イチタカガスワン | D117: e
B118: 一般財団法人泉佐野電力 | C118: イッパンザイダンホウジンイズミサノデンリョク | D118: e
B119: 一般財団法人神奈川県太陽光発電協会 | C119: イッパンザイダンホウジンカナガワケンタイヨウコウハツデンキョウカイ | D119: e
B120: 一般社団法人グリーン・市民電力 | C120: イッパンザイダンホウジングリーン・シミンデンリョク | D120: e
B121: 一般社団法人塩尻市森林公社 | C121: イッパンザイダンホウジンシオジリシシンリンコウシャ | D121: e
B122: 一般社団法人東松島みらいとし機構 | C122: イッパンザイダンホウジンヒガシマツシマミライトシキコウ | D122: e
B123: 伊藤忠プランテック | C123: イトウチュウプランテック | D123: e
B124: いばらきコープ生活協同組合 | C124: イバラキコープセイカツキョウドウクミアイ | D124: e
B125: 入間ガス | C125: イルマガス | D125: e
B126: イワタニ関東 | C126: イワタニカントウ | D126: e
B127: イワタニ首都圏 | C127: イワタニシュトケン | D127: e
B128: イワタニ東海 | C128: イワタニトウカイ | D128: e
B129: イワタニ三重 | C129: イワタニミエ | D129: e
B130: 岩手ウッドパワー | C130: イワテウッドパワー | D130: e
B131: 岩手中央エネルギー | C131: イワテチュウオウエネルギー | D131: e
B132: 岩手電力 | C132: イワテデンリョク | D132: e
B133: インボイス | C133: インボイス | D133: e
B134: ヴィジョナリーパワー | C134: ヴィジョナリーパワー | D134: e
B135: 上田ガス | C135: ウエダガス | D135: e
B136: うすきエネルギー | C136: ウスキエネルギー | D136: e
B137: ウッドエナジー | C137: ウッドエナジー | D137: e
B138: HTBエナジー | C138: エイチティービーエナジー | D138: e
B139: AIサポート | C139: エーアイサポート | D139: e
B140: エーコープサービス | C140: エーコープサービス | D140: e
B141: ＡＧ Ｅｎｅｒｇｙ | C141: エージーエナジー | D141: e
B142: エージーピー | C142: エージーピー | D142: e
B143: エースタイル | C143: エースタイル | D143: e
B144: エコア | C144: エコア | D144: e
B145: エコエンジニアリング | C145: エコエンジニアリング | D145: e
B146: エコスタイル | C146: エコスタイル | D146: e
B147: SEウイングズ | C147: エスイーウイングズ | D147: e
B148: エスケーエナジー | C148: エスケーエナジー | D148: e
B149: SBパワー | C149: エスビーパワー | D149: e
B150: エックスパワー | C150: エックスパワー | D150: e
B151: Ethos合同会社 | C151: エトスゴウドウガイシャ | D151: e
B152: エナジードリーム | C152: エナジードリーム | D152: e
B153: エナジーパートナー | C153: エナジーパートナー | D153: e
B154: NECフィールディング | C154: エヌイーシーフィールディング | D154: e
B155: ＮＦパワーサービス | C155: エヌエフパワーサービス | D155: e
B156: NTTファシリティーズ | C156: エヌティーティーファシリティーズ | D156: e
B157: エヌパワー南九州 | C157: エヌパワーミナミキュウシュウ | D157: e
B158: エネアーク関西 | C158: エネアークカンサイ | D158: e
B159: エネアーク関東 | C159: エネアークカントウ | D159: e
B160: エネクスライフサービス | C160: エネクスライフサービス | D160: e
B161: エネコープ | C161: エネコープ | D161: e
B162: エネサンス関東 | C162: エネサンスカントウ | D162: e
B163: エネックス | C163: エネックス | D163: e
B164: エネトレード | C164: エネトレード | D164: e
B165: エネラボ | C165: エネラボ | D165: e
B166: エネルギア・ソリューション・アンド・サービス | C166: エネルギア・ソリューション・アンド・サービス | D166: e
B167: エネルギー・オプティマイザー | C167: エネルギー・オプティマイザー | D167: e
B168: 荏原環境プラント | C168: エバラカンキョウプラント | D168: e
B169: エフィシエント | C169: エフィシエント | D169: e
B170: エフエネ | C170: エフエネ | D170: e
B171: エプコ | C171: エプコ | D171: e
B172: ＦＴエナジー | C172: エフティーエナジー | D172: e
B173: ＭＫエネルギー | C173: エムケーエネルギー | D173: e
B174: MKステーションズ | C174: エムケーステーションズ | D174: e
B175: ＭＣリテールエナジー | C175: エムシーリテールエナジー | D175: e
B176: ＭＢエナジー | C176: エムビーエナジー | D176: e
B177: LDH JAPAN | C177: エルディーエイチジャパン | D177: e
B178: エルピオ | C178: エルピオ | D178: e
B179: エレトス合同会社 | C179: エレトスゴウドウガイシャ | D179: e
B180: 王子・伊藤忠エネクス電力販売 | C180: オウジ・イトウチュウエネクスデンリョクハンバイ | D180: e
B181: 王子製紙 | C181: オウジセイシ | D181: e
B182: 青梅ガス | C182: オウメガス | D182: e
B183: 大分ケーブルテレコム | C183: オオイタケーブルテレコム | D183: e
B184: 大分県民電力 | C184: オオイタケンミンデンリョク | D184: e
B185: 大垣ガス | C185: オオガキガス | D185: e
B186: 大阪いずみ市民生活協同組合 | C186: オオサカイズミシミンセイカツキョウドウクミアイ | D186: e
B187: 大阪府民電力 | C187: オオサカフミンデンリョク | D187: e
B188: ＯＧＣＴＳ | C188: オージーシーティーエス | D188: e
B189: おおすみ半島スマートエネルギー | C189: オオスミハントウスマートエネルギー | D189: e
B190: 大多喜ガス | C190: オオタキガス | D190: e
B191: おおた電力 | C191: オオタデンリョク | D191: e
B192: 大林クリーンエナジー | C192: オオバヤシクリーンエナジー | D192: e
B193: 岡田建設 | C193: オカダケンセツ | D193: e
B194: オカモト | C194: オカモト | D194: e
B195: 沖縄ガスニューパワー | C195: オキナワガスニューパワー | D195: e
B196: おきなわコープエナジー | C196: オキナワコープエナジー | D196: e
B197: 奥出雲電力 | C197: オクイズモデンリョク | D197: e
B198: オノプロックス | C198: オノプロックス | D198: e
B199: Optimized Energy | C199: オプティマイズドエナジー | D199: e
B200: おまかせ電力 | C200: オマカセデンリョク | D200: e
... 312 more rows

Sheet 料金プランリスト (hidden)
A1: ◆選択リスト | C1: 橙色：裏メニュー | K1: e
B2: 北海道電力 | C2: 東北電力 | D2: 東京電力 | E2: 中部電力 | F2: 関西電力 | G2: 北陸電力 | H2: 中国電力 | I2: 四国電力 | J2: 九州電力 | K2: e
B3: 業務用電力一般 | C3: 業務用電力 | D3: 業務用 | E3: 高圧業務用電力ＷＥプランＡ | F3: 高圧電力ＡＳ－ＴＯＵ | G3: 業務用電力 | H3: 業務用電力 | I3: 業務用電力500kW未満 | J3: 業務用A | K3: e
B4: 業務用電力時間帯別 | C4: 業務用季節別時間帯別電力 | D4: 業務用2型 | E4: 高圧業務用電力ＷＥプランＢ | F4: 高圧電力ＡＳ | G4: 業務用季節別時間帯別電力 | H4: 業務用ＴＯＵ | I4: 業務用電力500kW以上 | J4: 産業用A | K4: e
B5: 高圧電力一般(契約電力500kW以上) | C5: 業務用ウィークエンド電力 | D5: 業務用季時別 | E5: 高圧業務用電力ＷＥプランＣ | F5: 高圧電力ＡＳ－ＷＥ | G5: 高圧電力Ａ | H5: 高圧電力Ｂ | I5: 業務用季節別時間帯別電力500kW未満 | J5: 業務用A-Ⅰ | K5: e
B6: 高圧電力一般(契約電力500kW未満) | C6: 高圧電力 | D6: 業務用季時別2型 | E6: 高圧業務用電力ＦＲプランＡ | F6: 高圧電力ＢＳ－ＴＯＵ（Ｆ） | G6: 高圧電力Ｂ | H6: 高圧ＴＯＵＢ | I6: 業務用季節別時間帯別電力500kW以上 | J6: 産業用A-Ⅰ | K6: e
B7: 高圧電力時間帯別(契約電力500kW以上) | C7: 高圧季節別時間帯別電力 | D7: 業務用休日高負荷 | E7: 高圧業務用電力ＦＲプランＢ | F7: 高圧電力ＢＳ（Ｆ） | G7: 季節別時間帯別電力Ａ | H7: 業務用高負荷率電力 | I7: 高圧電力Ａ500kW未満 | J7: 業務用季時別A | K7: e
B8: 高圧電力時間帯別(契約電力500kW未満) | C8: 高圧電力Ｓ | D8: 業務用休日高負荷2型 | E8: 高圧業務用電力ＦＲプランＣ | F8: 高圧電力ＡＬ－ＴＯＵ | G8: 季節別時間帯別電力Ｂ | H8: 業務用高負荷率ＴＯＵ | I8: 高圧電力Ｂ500kW以上 | J8: 産業用季時別A | K8: e
B9: 業務用ウイークエンド電力 | C9: 高圧季節別時間帯別電力Ｓ | D9: 高圧A | E9: 高圧業務用電力ＴＯＵ | F9: 高圧電力ＡＬ | G9: 負荷率別電力 | H9: 業務用ウィークエンド電力 | I9: 高圧Ａ季節別時間帯別電力500kW未満 | J9: 業務用季時別A-Ⅰ | K9: e
B10: 高圧電力Ⅰ型一般(契約電力500kW以上) | C10: 特別高圧電力Ａ30kV | D10: 高圧 | E10: 高圧業務用電力ＴＯＵ２ | F10: 高圧電力ＡＬ－ＷＥ | G10: 業務用季節別曜日別電力ＷＥ | H10: 高圧高負荷率電力Ｂ | I10: 高圧Ｂ季節別時間帯別電力500kW以上 | J10: 産業用季時別A-Ⅰ | K10: e
B11: 高圧電力Ⅰ型一般(契約電力500kW未満) | C11: 特別高圧電力Ａ60kV | D11: 高圧A2型 | E11: 高圧電力第１種プランＬ | F11: 高圧電力ＢＳ・ＢＬ－ＴＯＵ | G11: 業務用特別高圧電力20kV・30kV | H11: 高圧高負荷率ＴＯＵＢ | I11: 特別高圧電力Ａ20kV | J11: 業務用休日エコノミーA | K11: e
B12: 高圧電力Ⅰ型時間帯別(契約電力500kW以上) | C12: 特別高圧季節別時間帯別電力Ａ30kV | D12: 高圧2型 | E12: 高圧電力第１種プランＨ | F12: 高圧電力ＢＳ・ＢＬ | G12: 業務用特別高圧電力60kV・70kV | H12: 高圧ウィークエンド電力Ｂ | I12: 特別高圧電力Ａ60kV | J12: 業務用休日エコノミーA-Ⅰ | K12: e
B13: 高圧電力Ⅰ型時間帯別(契約電力500kW未満) | C13: 特別高圧季節別時間帯別電力Ａ60kV | D13: 高圧季時別A | E13: 高圧電力第２種プランＬ | F13: 高圧負荷率別契約Ｓ | G13: 業務用特別高圧季節別時間帯別電力20kV・30kV | H13: 高圧電力Ａ | I13: 特別高圧季節別時間帯別電力Ａ20kV | J13: 負荷率別契約 | K13: e
B14: 高圧電力Ⅱ型一般(契約電力500kW以上) | C14: 特別高圧電力Ｂ30kV | D14: 高圧季時別 | E14: 高圧電力第２種プランＨ | F14: 高圧負荷率別契約Ｌ | G14: 業務用特別高圧季節別時間帯別電力60kV・70kV | H14: 高圧ＴＯＵＡ | I14: 特別高圧季節別時間帯別電力Ａ60kV | J14: 業務用A20kV | K14: e
B15: 高圧電力Ⅱ型一般(契約電力500kW未満) | C15: 特別高圧電力Ｂ60kV | D15: 高圧季時別A2型 | E15: 高圧電力第１種プランＡ | F15: 特別高圧電力Ａ－ＴＯＵ20・30kV | G15: 特別高圧電力20kV・30kV | H15: 高圧高負荷率電力Ａ | I15: 特別高圧電力Ｂ20kV | J15: 業務用A60kV | K15: e
B16: 高圧電力Ⅱ型時間帯別(契約電力500kW以上) | C16: 特別高圧電力Ｂ140kV | D16: 高圧季時別2型 | E16: 高圧電力第１種プランＢ | F16: 特別高圧電力Ａ－ＴＯＵ70kV | G16: 特別高圧電力60kV・70kV | H16: 高圧高負荷率ＴＯＵＡ | I16: 特別高圧電力Ｂ60kV | J16: 産業用A20kV | K16: e
B17: 高圧電力Ⅱ型時間帯別(契約電力500kW未満) | C17: 特別高圧季節別時間帯別電力Ｂ30kV | D17: 高圧休日高負荷A | E17: 高圧電力第２種プランＡ | F17: 特別高圧電力Ａ20・30kV | G17: 特別高圧電力140kV | H17: 高圧ウィークエンド電力Ａ | I17: 特別高圧季節別時間帯別電力Ｂ20kV | J17: 産業用A60kV | K17: e
B18: 高圧電力Ⅲ型一般(契約電力500kW以上) | C18: 特別高圧季節別時間帯別電力Ｂ60kV | D18: 高圧休日高負荷 | E18: 高圧電力第２種プランＢ | F18: 特別高圧電力Ａ70kV | G18: 特別高圧季節別時間帯別電力20kV・30kV | H18: 特別高圧電力Ａ20kV | I18: 特別高圧季節別時間帯別電力Ｂ60kV | J18: 産業用A100kV | K18: e
B19: 高圧電力Ⅲ型一般(契約電力500kW未満) | C19: 特別高圧季節別時間帯別電力Ｂ140kV | D19: 高圧休日高負荷A2型 | E19: 特別高圧業務用電力第１種20・30kV-プランＡ | F19: 特別高圧電力Ｂ－ＴＯＵ20・30kV | G19: 特別高圧季節別時間帯別電力60kV・70kV | H19: 特別高圧電力Ａ60kV | J19: 業務用季時別A20kV | K19: e
B20: 高圧電力Ⅲ型時間帯別(契約電力500kW以上) | D20: 高圧休日高負荷2型 | E20: 特別高圧業務用電力第１種20・30kV-プランＢ | F20: 特別高圧電力Ｂ－ＴＯＵ70kV | G20: 特別高圧季節別時間帯別電力140kV | H20: 特別高圧ＴＯＵＡ20kV | J20: 業務用季時別A60kV | K20: e
B21: 高圧電力Ⅲ型時間帯別(契約電力500kW未満) | D21: 特高A20kV | E21: 特別高圧業務用電力第１種20・30kV-プランＣ | F21: 特別高圧電力Ｂ20・30kV | H21: 特別高圧ＴＯＵＡ60kV | J21: 産業用季時別A20kV | K21: e
B22: 業務用電力(30kV)A | D22: 特高A60kV | E22: 特別高圧業務用電力第２種20・30kV-プランＡ | F22: 特別高圧電力Ｂ70kV | H22: 特別高圧電力Ｂ20kV | J22: 産業用季時別A60kV | K22: e
B23: 業務用電力(30kV)B | D23: 特高B20kV | E23: 特別高圧業務用電力第２種20・30kV-プランＢ | H23: 特別高圧電力Ｂ60kV | J23: 産業用季時別A100kV | K23: e
B24: 特別高圧電力(30kV)A | D24: 特高B60kV | E24: 特別高圧業務用電力第２種20・30kV-プランＣ | H24: 特別高圧電力Ｂ100kV | J24: 業務用休日エコノミーA20kV | K24: e
B25: 特別高圧電力(30kV)B | D25: 特高B140kV | E25: 特別高圧業務用電力第１種70kV-プランＡ | H25: 特別高圧ＴＯＵＢ20kV | J25: 業務用休日エコノミーA60kV | K25: e
B26: 業務用電力(60kV)A | D26: 特高季時別A20kV | E26: 特別高圧業務用電力第１種70kV-プランＢ | H26: 特別高圧ＴＯＵＢ60kV | K26: e
B27: 業務用電力(60kV)B | D27: 特高季時別A60kV | E27: 特別高圧業務用電力第１種70kV-プランＣ | H27: 特別高圧ＴＯＵＢ100kV | K27: e
B28: 特高電力(60kV)A | D28: 特高季時別B20kV | E28: 特別高圧業務用電力第２種70kV-プランＡ | K28: e
B29: 特高電力(60kV)B | D29: 特高季時別B60kV | E29: 特別高圧業務用電力第２種70kV-プランＢ | K29: e
D30: 特高季時別B140kV | E30: 特別高圧業務用電力第２種70kV-プランＣ | K30: e
E31: 特別高圧電力第１種20・30kV-プランＡ | K31: e
E32: 特別高圧電力第１種20・30kV-プランＢ | K32: e
E33: 特別高圧電力第２種20・30kV-プランＡ | K33: e
E34: 特別高圧電力第２種20・30kV-プランＢ | K34: e
E35: 特別高圧電力第１種70kV-プランＡ | K35: e
E36: 特別高圧電力第１種70kV-プランＢ | K36: e
E37: 特別高圧電力第２種70kV-プランＡ | K37: e
E38: 特別高圧電力第２種70kV-プランＢ | K38: e
E39: 特別高圧電力第１種140kV-プランＡ | K39: e
E40: 特別高圧電力第１種140kV-プランＢ | K40: e
E41: 特別高圧電力第２種140kV-プランＡ | K41: e
E42: 特別高圧電力第２種140kV-プランＢ | K42: e
K43: e

Sheet 料金プランマスタ (hidden)
A1: ◆料金プランマスタ | D1: 橙色：裏メニューの単価(地場電力HPに掲載がないため、既存の単価を消費税10%版に変換したものを使用) | AS1: e
E2: 1 | F2: 2 | G2: 3 | H2: 4 | I2: 5 | J2: 6 | K2: 7 | L2: 8 | M2: 9 | N2: 10 | O2: 11 | P2: 12 | Q2: 13 | R2: 14 | S2: 15 | T2: 16 | U2: 17 | V2: 18 | W2: 19 | X2: 20 | Y2: 21 | Z2: 22 | AA2: 23 | AB2: 24 | AC2: 25 | AD2: 26 | AE2: 27 | AF2: 28 | AG2: 29 | AH2: 30 | AI2: 31 | AJ2: 32 | AK2: 33 | AL2: 34 | AM2: 35 | AN2: 36 | AO2: 37 | AP2: 38 | AQ2: 39 | AS2: e
B3: # | C3: 電力会社 | D3: 料金プラン | E3: VLOOKUP用 | F3: 窓名 | AE3: 単価 | AP3: 窓数 | AQ3: 高圧/特高 | AR3: 裏メニュー | AS3: e
F4: 通常メニュー | J4: 負荷率別メニュー | AE4: 基本料金単価 | AF4: 電力量料金単価１ | AG4: 電力量料金単価２ | AH4: 電力量料金単価３ | AI4: 電力量料金単価４ | AJ4: 電力量料金単価５ | AK4: 電力量料金単価６ | AL4: 電力量料金単価７ | AM4: 電力量料金単価８ | AN4: 電力量料金単価９ | AO4: 電力量料金単価１０ | AS4: e
F5: 窓1 | G5: 窓2 | H5: 窓3 | I5: 窓4 | J5: フラグ | K5: 負荷率帯1 | M5: 負荷率帯2 | O5: 負荷率帯3 | Q5: 負荷率帯4 | S5: 負荷率帯5 | U5: 窓1 | V5: 窓2 | W5: 窓3 | X5: 窓4 | Y5: 窓5 | Z5: 窓6 | AA5: 窓7 | AB5: 窓8 | AC5: 窓9 | AD5: 窓10 | AS5: e
K6: 下限 | L6: 上限 | M6: 下限 | N6: 上限 | O6: 下限 | P6: 上限 | Q6: 下限 | R6: 上限 | S6: 下限 | T6: 上限 | AS6: e
B7: =ROW()-6 -> 1 | C7: 北海道電力 | D7: 業務用電力一般 | E7: =C7&D7 -> 北海道電力業務用電力一般 | F7: 月間 | G7: - | H7: - | I7: - | K7: - | L7: - | M7: - | N7: - | O7: - | P7: - | Q7: - | R7: - | S7: - | T7: - | U7: - | V7: - | W7: - | X7: - | Y7: - | Z7: - | AA7: - | AB7: - | AC7: - | AD7: - | AE7: 1870 | AF7: 18.46 | AG7: - | AH7: - | AI7: - | AJ7: - | AK7: - | AL7: - | AM7: - | AN7: - | AO7: - | AP7: 1 | AQ7: 高圧 | AS7: e
B8: =ROW()-6 -> 2 | C8: 北海道電力 | D8: 業務用電力時間帯別 | E8: 北海道電力業務用電力時間帯別 | F8: 昼間 | G8: 夜間 | H8: - | I8: - | K8: - | L8: - | M8: - | N8: - | O8: - | P8: - | Q8: - | R8: - | S8: - | T8: - | U8: - | V8: - | W8: - | X8: - | Y8: - | Z8: - | AA8: - | AB8: - | AC8: - | AD8: - | AE8: 1870 | AF8: 20.94 | AG8: 14.72 | AH8: - | AI8: - | AJ8: - | AK8: - | AL8: - | AM8: - | AN8: - | AO8: - | AP8: 2 | AQ8: 高圧 | AS8: e
B9: 3 | C9: 北海道電力 | D9: 高圧電力一般(契約電力500kW以上) | E9: 北海道電力高圧電力一般(契約電力500kW以上) | F9: 月間 | G9: - | H9: - | I9: - | K9: - | L9: - | M9: - | N9: - | O9: - | P9: - | Q9: - | R9: - | S9: - | T9: - | U9: - | V9: - | W9: - | X9: - | Y9: - | Z9: - | AA9: - | AB9: - | AC9: - | AD9: - | AE9: 2057 | AF9: 16.68 | AG9: - | AH9: - | AI9: - | AJ9: - | AK9: - | AL9: - | AM9: - | AN9: - | AO9: - | AP9: 1 | AQ9: 高圧 | AS9: e
B10: 4 | C10: 北海道電力 | D10: 高圧電力一般(契約電力500kW未満) | E10: 北海道電力高圧電力一般(契約電力500kW未満) | F10: 月間 | G10: - | H10: - | I10: - | K10: - | L10: - | M10: - | N10: - | O10: - | P10: - | Q10: - | R10: - | S10: - | T10: - | U10: - | V10: - | W10: - | X10: - | Y10: - | Z10: - | AA10: - | AB10: - | AC10: - | AD10: - | AE10: 2057 | AF10: 16.68 | AG10: - | AH10: - | AI10: - | AJ10: - | AK10: - | AL10: - | AM10: - | AN10: - | AO10: - | AP10: 1 | AQ10: 高圧 | AS10: e
B11: 5 | C11: 北海道電力 | D11: 高圧電力時間帯別(契約電力500kW以上) | E11: =C11&D11 -> 北海道電力高圧電力時間帯別(契約電力500kW以上) | F11: 昼間 | G11: 夜間 | H11: - | I11: - | K11: - | L11: - | M11: - | N11: - | O11: - | P11: - | Q11: - | R11: - | S11: - | T11: - | U11: - | V11: - | W11: - | X11: - | Y11: - | Z11: - | AA11: - | AB11: - | AC11: - | AD11: - | AE11: 2057 | AF11: 18.26 | AG11: 14.72 | AH11: - | AI11: - | AJ11: - | AK11: - | AL11: - | AM11: - | AN11: - | AO11: - | AP11: 2 | AQ11: 高圧 | AS11: e
B12: 6 | C12: 北海道電力 | D12: 高圧電力時間帯別(契約電力500kW未満) | E12: =C12&D12 -> 北海道電力高圧電力時間帯別(契約電力500kW未満) | F12: 昼間 | G12: 夜間 | H12: - | I12: - | K12: - | L12: - | M12: - | N12: - | O12: - | P12: - | Q12: - | R12: - | S12: - | T12: - | U12: - | V12: - | W12: - | X12: - | Y12: - | Z12: - | AA12: - | AB12: - | AC12: - | AD12: - | AE12: 2057 | AF12: 18.26 | AG12: 14.72 | AH12: - | AI12: - | AJ12: - | AK12: - | AL12: - | AM12: - | AN12: - | AO12: - | AP12: 2 | AQ12: 高圧 | AS12: e
B13: 7 | C13: 北海道電力 | D13: 業務用ウイークエンド電力 | E13: 北海道電力業務用ウイークエンド電力 | F13: 平日 | G13: 休日 | H13: - | I13: - | K13: - | L13: - | M13: - | N13: - | O13: - | P13: - | Q13: - | R13: - | S13: - | T13: - | U13: - | V13: - | W13: - | X13: - | Y13: - | Z13: - | AA13: - | AB13: - | AC13: - | AD13: - | AE13: 2431 | AF13: 16.29 | AG13: 15.26 | AH13: - | AI13: - | AJ13: - | AK13: - | AL13: - | AM13: - | AN13: - | AO13: - | AP13: 2 | AQ13: 高圧 | AS13: e
B14: 8 | C14: 北海道電力 | D14: 高圧電力Ⅰ型一般(契約電力500kW以上) | E14: 北海道電力高圧電力Ⅰ型一般(契約電力500kW以上) | F14: 月間 | G14: - | H14: - | I14: - | K14: - | L14: - | M14: - | N14: - | O14: - | P14: - | Q14: - | R14: - | S14: - | T14: - | U14: - | V14: - | W14: - | X14: - | Y14: - | Z14: - | AA14: - | AB14: - | AC14: - | AD14: - | AE14: 1441 | AF14: 18.22 | AG14: - | AH14: - | AI14: - | AJ14: - | AK14: - | AL14: - | AM14: - | AN14: - | AO14: - | AP14: 1 | AQ14: 高圧 | AS14: e
B15: 9 | C15: 北海道電力 | D15: 高圧電力Ⅰ型一般(契約電力500kW未満) | E15: =C15&D15 -> 北海道電力高圧電力Ⅰ型一般(契約電力500kW未満) | F15: 月間 | G15: - | H15: - | I15: - | K15: - | L15: - | M15: - | N15: - | O15: - | P15: - | Q15: - | R15: - | S15: - | T15: - | U15: - | V15: - | W15: - | X15: - | Y15: - | Z15: - | AA15: - | AB15: - | AC15: - | AD15: - | AE15: 1441 | AF15: 18.22 | AG15: - | AH15: - | AI15: - | AJ15: - | AK15: - | AL15: - | AM15: - | AN15: - | AO15: - | AP15: 1 | AQ15: 高圧 | AS15: e
B16: 10 | C16: 北海道電力 | D16: 高圧電力Ⅰ型時間帯別(契約電力500kW以上) | E16: 北海道電力高圧電力Ⅰ型時間帯別(契約電力500kW以上) | F16: 昼間 | G16: 夜間 | H16: - | I16: - | K16: - | L16: - | M16: - | N16: - | O16: - | P16: - | Q16: - | R16: - | S16: - | T16: - | U16: - | V16: - | W16: - | X16: - | Y16: - | Z16: - | AA16: - | AB16: - | AC16: - | AD16: - | AE16: 1441 | AF16: 21.1 | AG16: 14.72 | AH16: - | AI16: - | AJ16: - | AK16: - | AL16: - | AM16: - | AN16: - | AO16: - | AP16: 2 | AQ16: 高圧 | AS16: e
B17: 11 | C17: 北海道電力 | D17: 高圧電力Ⅰ型時間帯別(契約電力500kW未満) | E17: 北海道電力高圧電力Ⅰ型時間帯別(契約電力500kW未満) | F17: 昼間 | G17: 夜間 | H17: - | I17: - | K17: - | L17: - | M17: - | N17: - | O17: - | P17: - | Q17: - | R17: - | S17: - | T17: - | U17: - | V17: - | W17: - | X17: - | Y17: - | Z17: - | AA17: - | AB17: - | AC17: - | AD17: - | AE17: 1441 | AF17: 21.1 | AG17: 14.72 | AH17: - | AI17: - | AJ17: - | AK17: - | AL17: - | AM17: - | AN17: - | AO17: - | AP17: 2 | AQ17: 高圧 | AS17: e
B18: 12 | C18: 北海道電力 | D18: 高圧電力Ⅱ型一般(契約電力500kW以上) | E18: 北海道電力高圧電力Ⅱ型一般(契約電力500kW以上) | F18: 月間 | G18: - | H18: - | I18: - | K18: - | L18: - | M18: - | N18: - | O18: - | P18: - | Q18: - | R18: - | S18: - | T18: - | U18: - | V18: - | W18: - | X18: - | Y18: - | Z18: - | AA18: - | AB18: - | AC18: - | AD18: - | AE18: 1727 | AF18: 17.39 | AG18: - | AH18: - | AI18: - | AJ18: - | AK18: - | AL18: - | AM18: - | AN18: - | AO18: - | AP18: 1 | AQ18: 高圧 | AS18: e
B19: 13 | C19: 北海道電力 | D19: 高圧電力Ⅱ型一般(契約電力500kW未満) | E19: 北海道電力高圧電力Ⅱ型一般(契約電力500kW未満) | F19: =F18 -> 月間 | G19: - | H19: - | I19: - | K19: - | L19: - | M19: - | N19: - | O19: - | P19: - | Q19: - | R19: - | S19: - | T19: - | U19: - | V19: - | W19: - | X19: - | Y19: - | Z19: - | AA19: - | AB19: - | AC19: - | AD19: - | AE19: 1727 | AF19: 17.39 | AG19: - | AH19: - | AI19: - | AJ19: - | AK19: - | AL19: - | AM19: - | AN19: - | AO19: - | AP19: 1 | AQ19: 高圧 | AS19: e
B20: 14 | C20: 北海道電力 | D20: 高圧電力Ⅱ型時間帯別(契約電力500kW以上) | E20: 北海道電力高圧電力Ⅱ型時間帯別(契約電力500kW以上) | F20: 昼間 | G20: 夜間 | H20: - | I20: - | K20: - | L20: - | M20: - | N20: - | O20: - | P20: - | Q20: - | R20: - | S20: - | T20: - | U20: - | V20: - | W20: - | X20: - | Y20: - | Z20: - | AA20: - | AB20: - | AC20: - | AD20: - | AE20: 1727 | AF20: 19.6 | AG20: 14.72 | AH20: - | AI20: - | AJ20: - | AK20: - | AL20: - | AM20: - | AN20: - | AO20: - | AP20: 2 | AQ20: 高圧 | AS20: e
B21: 15 | C21: =C20 -> 北海道電力 | D21: 高圧電力Ⅱ型時間帯別(契約電力500kW未満) | E21: 北海道電力高圧電力Ⅱ型時間帯別(契約電力500kW未満) | F21: =F20 -> 昼間 | G21: 夜間 | H21: - | I21: - | K21: - | L21: - | M21: - | N21: - | O21: - | P21: - | Q21: - | R21: - | S21: - | T21: - | U21: - | V21: - | W21: - | X21: - | Y21: - | Z21: - | AA21: - | AB21: - | AC21: - | AD21: - | AE21: 1727 | AF21: 19.6 | AG21: 14.72 | AH21: - | AI21: - | AJ21: - | AK21: - | AL21: - | AM21: - | AN21: - | AO21: - | AP21: 2 | AQ21: 高圧 | AS21: e
B22: 16 | C22: 北海道電力 | D22: 高圧電力Ⅲ型一般(契約電力500kW以上) | E22: 北海道電力高圧電力Ⅲ型一般(契約電力500kW以上) | F22: 月間 | G22: - | H22: - | I22: - | K22: - | L22: - | M22: - | N22: - | O22: - | P22: - | Q22: - | R22: - | S22: - | T22: - | U22: - | V22: - | W22: - | X22: - | Y22: - | Z22: - | AA22: - | AB22: - | AC22: - | AD22: - | AE22: 2464 | AF22: 15.61 | AG22: - | AH22: - | AI22: - | AJ22: - | AK22: - | AL22: - | AM22: - | AN22: - | AO22: - | AP22: 1 | AQ22: 高圧 | AS22: e
B23: 17 | C23: 北海道電力 | D23: 高圧電力Ⅲ型一般(契約電力500kW未満) | E23: 北海道電力高圧電力Ⅲ型一般(契約電力500kW未満) | F23: =F22 -> 月間 | G23: - | H23: - | I23: - | K23: - | L23: - | M23: - | N23: - | O23: - | P23: - | Q23: - | R23: - | S23: - | T23: - | U23: - | V23: - | W23: - | X23: - | Y23: - | Z23: - | AA23: - | AB23: - | AC23: - | AD23: - | AE23: 2464 | AF23: 15.61 | AG23: - | AH23: - | AI23: - | AJ23: - | AK23: - | AL23: - | AM23: - | AN23: - | AO23: - | AP23: 1 | AQ23: 高圧 | AS23: e
B24: 18 | C24: 北海道電力 | D24: 高圧電力Ⅲ型時間帯別(契約電力500kW以上) | E24: 北海道電力高圧電力Ⅲ型時間帯別(契約電力500kW以上) | F24: 昼間 | G24: 夜間 | H24: - | I24: - | K24: - | L24: - | M24: - | N24: - | O24: - | P24: - | Q24: - | R24: - | S24: - | T24: - | U24: - | V24: - | W24: - | X24: - | Y24: - | Z24: - | AA24: - | AB24: - | AC24: - | AD24: - | AE24: 2464 | AF24: 16.32 | AG24: 14.72 | AH24: - | AI24: - | AJ24: - | AK24: - | AL24: - | AM24: - | AN24: - | AO24: - | AP24: 2 | AQ24: 高圧 | AS24: e
B25: 19 | C25: 北海道電力 | D25: 高圧電力Ⅲ型時間帯別(契約電力500kW未満) | E25: 北海道電力高圧電力Ⅲ型時間帯別(契約電力500kW未満) | F25: =F24 -> 昼間 | G25: 夜間 | H25: - | I25: - | K25: - | L25: - | M25: - | N25: - | O25: - | P25: - | Q25: - | R25: - | S25: - | T25: - | U25: - | V25: - | W25: - | X25: - | Y25: - | Z25: - | AA25: - | AB25: - | AC25: - | AD25: - | AE25: 2464 | AF25: 16.32 | AG25: 14.72 | AH25: - | AI25: - | AJ25: - | AK25: - | AL25: - | AM25: - | AN25: - | AO25: - | AP25: 2 | AQ25: 高圧 | AS25: e
B26: 20 | C26: 東北電力 | D26: 業務用電力 | E26: 東北電力業務用電力 | F26: 夏季 | G26: その他季 | H26: - | I26: - | K26: - | L26: - | M26: - | N26: - | O26: - | P26: - | Q26: - | R26: - | S26: - | T26: - | U26: - | V26: - | W26: - | X26: - | Y26: - | Z26: - | AA26: - | AB26: - | AC26: - | AD26: - | AE26: 1661 | AF26: 16.82 | AG26: 15.62 | AH26: - | AI26: - | AJ26: - | AK26: - | AL26: - | AM26: - | AN26: - | AO26: - | AP26: 2 | AQ26: 高圧 | AS26: e
B27: 21 | C27: 東北電力 | D27: 業務用季節別時間帯別電力 | E27: 東北電力業務用季節別時間帯別電力 | F27: ピーク時間 | G27: 夏季昼間 | H27: その他季昼間 | I27: 夜間 | K27: - | L27: - | M27: - | N27: - | O27: - | P27: - | Q27: - | R27: - | S27: - | T27: - | U27: - | V27: - | W27: - | X27: - | Y27: - | Z27: - | AA27: - | AB27: - | AC27: - | AD27: - | AE27: 1661 | AF27: 20.74 | AG27: 19.2 | AH27: 18.14 | AI27: 11.33 | AJ27: - | AK27: - | AL27: - | AM27: - | AN27: - | AO27: - | AP27: 4 | AQ27: 高圧 | AS27: e
B28: 22 | C28: 東北電力 | D28: 業務用ウィークエンド電力 | E28: 東北電力業務用ウィークエンド電力 | F28: 夏季平日 | G28: その他季平日 | H28: 休日 | I28: - | K28: - | L28: - | M28: - | N28: - | O28: - | P28: - | Q28: - | R28: - | S28: - | T28: - | U28: - | V28: - | W28: - | X28: - | Y28: - | Z28: - | AA28: - | AB28: - | AC28: - | AD28: - | AE28: 1661 | AF28: 18.13 | AG28: 16.72 | AH28: 12.75 | AI28: - | AJ28: - | AK28: - | AL28: - | AM28: - | AN28: - | AO28: - | AP28: 3 | AQ28: 高圧 | AS28: e
B29: 23 | C29: 東北電力 | D29: 高圧電力 | E29: 東北電力高圧電力 | F29: 夏季 | G29: その他季 | H29: - | I29: - | K29: - | L29: - | M29: - | N29: - | O29: - | P29: - | Q29: - | R29: - | S29: - | T29: - | U29: - | V29: - | W29: - | X29: - | Y29: - | Z29: - | AA29: - | AB29: - | AC29: - | AD29: - | AE29: 1980 | AF29: 14.74 | AG29: 13.75 | AH29: - | AI29: - | AJ29: - | AK29: - | AL29: - | AM29: - | AN29: - | AO29: - | AP29: 2 | AQ29: 高圧 | AS29: e
B30: 24 | C30: 東北電力 | D30: 高圧季節別時間帯別電力 | E30: 東北電力高圧季節別時間帯別電力 | F30: ピーク時間 | G30: 夏季昼間 | H30: その他季昼間 | I30: 夜間 | K30: - | L30: - | M30: - | N30: - | O30: - | P30: - | Q30: - | R30: - | S30: - | T30: - | U30: - | V30: - | W30: - | X30: - | Y30: - | Z30: - | AA30: - | AB30: - | AC30: - | AD30: - | AE30: 1980 | AF30: 18.12 | AG30: 16.81 | AH30: 15.52 | AI30: 11.33 | AJ30: - | AK30: - | AL30: - | AM30: - | AN30: - | AO30: - | AP30: 4 | AQ30: 高圧 | AS30: e
B31: 25 | C31: 東北電力 | D31: 高圧電力Ｓ | E31: 東北電力高圧電力Ｓ | F31: 夏季 | G31: その他季 | H31: - | I31: - | K31: - | L31: - | M31: - | N31: - | O31: - | P31: - | Q31: - | R31: - | S31: - | T31: - | U31: - | V31: - | W31: - | X31: - | Y31: - | Z31: - | AA31: - | AB31: - | AC31: - | AD31: - | AE31: 1320 | AF31: 16.38 | AG31: 15.24 | AH31: - | AI31: - | AJ31: - | AK31: - | AL31: - | AM31: - | AN31: - | AO31: - | AP31: 2 | AQ31: 高圧 | AS31: e
B32: 26 | C32: 東北電力 | D32: 高圧季節別時間帯別電力Ｓ | E32: 東北電力高圧季節別時間帯別電力Ｓ | F32: ピーク時間 | G32: 夏季昼間 | H32: その他季昼間 | I32: 夜間 | K32: - | L32: - | M32: - | N32: - | O32: - | P32: - | Q32: - | R32: - | S32: - | T32: - | U32: - | V32: - | W32: - | X32: - | Y32: - | Z32: - | AA32: - | AB32: - | AC32: - | AD32: - | AE32: 1320 | AF32: 20.79 | AG32: 19.24 | AH32: 17.88 | AI32: 11.33 | AJ32: - | AK32: - | AL32: - | AM32: - | AN32: - | AO32: - | AP32: 4 | AQ32: 高圧 | AS32: e
B33: 27 | C33: 東京電力 | D33: 業務用 | E33: 東京電力業務用 | F33: 夏季 | G33: その他季 | H33: - | I33: - | K33: - | L33: - | M33: - | N33: - | O33: - | P33: - | Q33: - | R33: - | S33: - | T33: - | U33: - | V33: - | W33: - | X33: - | Y33: - | Z33: - | AA33: - | AB33: - | AC33: - | AD33: - | AE33: 1716 | AF33: 17.54 | AG33: 16.38 | AH33: - | AI33: - | AJ33: - | AK33: - | AL33: - | AM33: - | AN33: - | AO33: - | AP33: 2 | AQ33: 高圧 | AS33: e
B34: 28 | C34: 東京電力 | D34: 業務用2型 | E34: 東京電力業務用2型 | F34: 夏季 | G34: その他季 | H34: - | I34: - | K34: - | L34: - | M34: - | N34: - | O34: - | P34: - | Q34: - | R34: - | S34: - | T34: - | U34: - | V34: - | W34: - | X34: - | Y34: - | Z34: - | AA34: - | AB34: - | AC34: - | AD34: - | AE34: 2046 | AF34: 16.01 | AG34: 15.02 | AH34: - | AI34: - | AJ34: - | AK34: - | AL34: - | AM34: - | AN34: - | AO34: - | AP34: 2 | AQ34: 高圧 | AR34: ● | AS34: e
B35: 29 | C35: 東京電力 | D35: 業務用季時別 | E35: 東京電力業務用季時別 | F35: ピーク | G35: 夏季昼間 | H35: 他季昼間 | I35: 夜間 | K35: - | L35: - | M35: - | N35: - | O35: - | P35: - | Q35: - | R35: - | S35: - | T35: - | U35: - | V35: - | W35: - | X35: - | Y35: - | Z35: - | AA35: - | AB35: - | AC35: - | AD35: - | AE35: 1716 | AF35: 20.52 | AG35: 19.81 | AH35: 18.38 | AI35: 12.77 | AJ35: - | AK35: - | AL35: - | AM35: - | AN35: - | AO35: - | AP35: 4 | AQ35: 高圧 | AS35: e
B36: 30 | C36: 東京電力 | D36: 業務用季時別2型 | E36: 東京電力業務用季時別2型 | F36: ピーク | G36: 夏季昼間 | H36: 他季昼間 | I36: 夜間 | K36: - | L36: - | M36: - | N36: - | O36: - | P36: - | Q36: - | R36: - | S36: - | T36: - | U36: - | V36: - | W36: - | X36: - | Y36: - | Z36: - | AA36: - | AB36: - | AC36: - | AD36: - | AE36: 2046 | AF36: 18.1 | AG36: 17.5 | AH36: 16.29 | AI36: 12.77 | AJ36: - | AK36: - | AL36: - | AM36: - | AN36: - | AO36: - | AP36: 4 | AQ36: 高圧 | AR36: ● | AS36: e
B37: 31 | C37: 東京電力 | D37: 業務用休日高負荷 | E37: 東京電力業務用休日高負荷 | F37: 夏季平日 | G37: 夏季休日 | H37: 他季平日 | I37: 他季休日 | K37: - | L37: - | M37: - | N37: - | O37: - | P37: - | Q37: - | R37: - | S37: - | T37: - | U37: - | V37: - | W37: - | X37: - | Y37: - | Z37: - | AA37: - | AB37: - | AC37: - | AD37: - | AE37: 1716 | AF37: 18.92 | AG37: 14.2 | AH37: 17.66 | AI37: 13.37 | AJ37: - | AK37: - | AL37: - | AM37: - | AN37: - | AO37: - | AP37: 4 | AQ37: 高圧 | AR37: ● | AS37: e
B38: 32 | C38: 東京電力 | D38: 業務用休日高負荷2型 | E38: 東京電力業務用休日高負荷2型 | F38: 夏季平日 | G38: 夏季休日 | H38: 他季平日 | I38: 他季休日 | K38: - | L38: - | M38: - | N38: - | O38: - | P38: - | Q38: - | R38: - | S38: - | T38: - | U38: - | V38: - | W38: - | X38: - | Y38: - | Z38: - | AA38: - | AB38: - | AC38: - | AD38: - | AE38: 2046 | AF38: 16.85 | AG38: 14.2 | AH38: 15.75 | AI38: 13.37 | AJ38: - | AK38: - | AL38: - | AM38: - | AN38: - | AO38: - | AP38: 4 | AQ38: 高圧 | AR38: ● | AS38: e
B39: 33 | C39: 東京電力 | D39: 高圧A | E39: 東京電力高圧A | F39: 夏季 | G39: その他季 | H39: - | I39: - | K39: - | L39: - | M39: - | N39: - | O39: - | P39: - | Q39: - | R39: - | S39: - | T39: - | U39: - | V39: - | W39: - | X39: - | Y39: - | Z39: - | AA39: - | AB39: - | AC39: - | AD39: - | AE39: 1292.5 | AF39: 17.37 | AG39: 16.24 | AH39: - | AI39: - | AJ39: - | AK39: - | AL39: - | AM39: - | AN39: - | AO39: - | AP39: 2 | AQ39: 高圧 | AS39: e
B40: 34 | C40: 東京電力 | D40: 高圧 | E40: 東京電力高圧 | F40: 夏季 | G40: その他季 | H40: - | I40: - | K40: - | L40: - | M40: - | N40: - | O40: - | P40: - | Q40: - | R40: - | S40: - | T40: - | U40: - | V40: - | W40: - | X40: - | Y40: - | Z40: - | AA40: - | AB40: - | AC40: - | AD40: - | AE40: 1815 | AF40: 16.16 | AG40: 15.15 | AH40: - | AI40: - | AJ40: - | AK40: - | AL40: - | AM40: - | AN40: - | AO40: - | AP40: 2 | AQ40: 高圧 | AS40: e
B41: 35 | C41: 東京電力 | D41: 高圧A2型 | E41: 東京電力高圧A2型 | F41: 夏季 | G41: その他季 | H41: - | I41: - | K41: - | L41: - | M41: - | N41: - | O41: - | P41: - | Q41: - | R41: - | S41: - | T41: - | U41: - | V41: - | W41: - | X41: - | Y41: - | Z41: - | AA41: - | AB41: - | AC41: - | AD41: - | AE41: 1512.5 | AF41: 16.9 | AG41: 15.8 | AH41: - | AI41: - | AJ41: - | AK41: - | AL41: - | AM41: - | AN41: - | AO41: - | AP41: 2 | AQ41: 高圧 | AR41: ● | AS41: e
B42: 36 | C42: 東京電力 | D42: 高圧2型 | E42: 東京電力高圧2型 | F42: 夏季 | G42: その他季 | H42: - | I42: - | K42: - | L42: - | M42: - | N42: - | O42: - | P42: - | Q42: - | R42: - | S42: - | T42: - | U42: - | V42: - | W42: - | X42: - | Y42: - | Z42: - | AA42: - | AB42: - | AC42: - | AD42: - | AE42: 2145 | AF42: 15.41 | AG42: 14.47 | AH42: - | AI42: - | AJ42: - | AK42: - | AL42: - | AM42: - | AN42: - | AO42: - | AP42: 2 | AQ42: 高圧 | AR42: ● | AS42: e
B43: 37 | C43: 東京電力 | D43: 高圧季時別A | E43: 東京電力高圧季時別A | F43: ピーク | G43: 夏季昼間 | H43: 他季昼間 | I43: 夜間 | K43: - | L43: - | M43: - | N43: - | O43: - | P43: - | Q43: - | R43: - | S43: - | T43: - | U43: - | V43: - | W43: - | X43: - | Y43: - | Z43: - | AA43: - | AB43: - | AC43: - | AD43: - | AE43: 1292.5 | AF43: 21.19 | AG43: 20.47 | AH43: 19.05 | AI43: 12.77 | AJ43: - | AK43: - | AL43: - | AM43: - | AN43: - | AO43: - | AP43: 4 | AQ43: 高圧 | AS43: e
B44: 38 | C44: 東京電力 | D44: 高圧季時別 | E44: 東京電力高圧季時別 | F44: ピーク | G44: 夏季昼間 | H44: 他季昼間 | I44: 夜間 | K44: - | L44: - | M44: - | N44: - | O44: - | P44: - | Q44: - | R44: - | S44: - | T44: - | U44: - | V44: - | W44: - | X44: - | Y44: - | Z44: - | AA44: - | AB44: - | AC44: - | AD44: - | AE44: 1815 | AF44: 19.2 | AG44: 18.54 | AH44: 17.06 | AI44: 12.77 | AJ44: - | AK44: - | AL44: - | AM44: - | AN44: - | AO44: - | AP44: 4 | AQ44: 高圧 | AS44: e
B45: 39 | C45: 東京電力 | D45: 高圧季時別A2型 | E45: 東京電力高圧季時別A2型 | F45: ピーク | G45: 夏季昼間 | H45: 他季昼間 | I45: 夜間 | K45: - | L45: - | M45: - | N45: - | O45: - | P45: - | Q45: - | R45: - | S45: - | T45: - | U45: - | V45: - | W45: - | X45: - | Y45: - | Z45: - | AA45: - | AB45: - | AC45: - | AD45: - | AE45: 1512.5 | AF45: 20.3 | AG45: 19.59 | AH45: 18.21 | AI45: 12.77 | AJ45: - | AK45: - | AL45: - | AM45: - | AN45: - | AO45: - | AP45: 4 | AQ45: 高圧 | AR45: ● | AS45: e
B46: 40 | C46: 東京電力 | D46: 高圧季時別2型 | E46: 東京電力高圧季時別2型 | F46: ピーク | G46: 夏季昼間 | H46: 他季昼間 | I46: 夜間 | K46: - | L46: - | M46: - | N46: - | O46: - | P46: - | Q46: - | R46: - | S46: - | T46: - | U46: - | V46: - | W46: - | X46: - | Y46: - | Z46: - | AA46: - | AB46: - | AC46: - | AD46: - | AE46: 2145 | AF46: 17.95 | AG46: 17.34 | AH46: 15.8 | AI46: 12.77 | AJ46: - | AK46: - | AL46: - | AM46: - | AN46: - | AO46: - | AP46: 4 | AQ46: 高圧 | AR46: ● | AS46: e
B47: 41 | C47: 東京電力 | D47: 高圧休日高負荷A | E47: 東京電力高圧休日高負荷A | F47: 夏季平日 | G47: 夏季休日 | H47: 他季平日 | I47: 他季休日 | K47: - | L47: - | M47: - | N47: - | O47: - | P47: - | Q47: - | R47: - | S47: - | T47: - | U47: - | V47: - | W47: - | X47: - | Y47: - | Z47: - | AA47: - | AB47: - | AC47: - | AD47: - | AE47: 1292.5 | AF47: 18.66 | AG47: 14.2 | AH47: 17.44 | AI47: 13.37 | AJ47: - | AK47: - | AL47: - | AM47: - | AN47: - | AO47: - | AP47: 4 | AQ47: 高圧 | AR47: ● | AS47: e
B48: 42 | C48: 東京電力 | D48: 高圧休日高負荷 | E48: 東京電力高圧休日高負荷 | F48: 夏季平日 | G48: 夏季休日 | H48: 他季平日 | I48: 他季休日 | K48: - | L48: - | M48: - | N48: - | O48: - | P48: - | Q48: - | R48: - | S48: - | T48: - | U48: - | V48: - | W48: - | X48: - | Y48: - | Z48: - | AA48: - | AB48: - | AC48: - | AD48: - | AE48: 1815 | AF48: 17 | AG48: 14.2 | AH48: 15.9 | AI48: 13.37 | AJ48: - | AK48: - | AL48: - | AM48: - | AN48: - | AO48: - | AP48: 4 | AQ48: 高圧 | AR48: ● | AS48: e
B49: 43 | C49: 東京電力 | D49: 高圧休日高負荷A2型 | E49: 東京電力高圧休日高負荷A2型 | F49: 夏季平日 | G49: 夏季休日 | H49: 他季平日 | I49: 他季休日 | K49: - | L49: - | M49: - | N49: - | O49: - | P49: - | Q49: - | R49: - | S49: - | T49: - | U49: - | V49: - | W49: - | X49: - | Y49: - | Z49: - | AA49: - | AB49: - | AC49: - | AD49: - | AE49: 1512.5 | AF49: 17.95 | AG49: 14.2 | AH49: 16.79 | AI49: 13.37 | AJ49: - | AK49: - | AL49: - | AM49: - | AN49: - | AO49: - | AP49: 4 | AQ49: 高圧 | AR49: ● | AS49: e
B50: 44 | C50: 東京電力 | D50: 高圧休日高負荷2型 | E50: 東京電力高圧休日高負荷2型 | F50: 夏季平日 | G50: 夏季休日 | H50: 他季平日 | I50: 他季休日 | K50: - | L50: - | M50: - | N50: - | O50: - | P50: - | Q50: - | R50: - | S50: - | T50: - | U50: - | V50: - | W50: - | X50: - | Y50: - | Z50: - | AA50: - | AB50: - | AC50: - | AD50: - | AE50: 2145 | AF50: 15.9 | AG50: 14.2 | AH50: 14.91 | AI50: 13.37 | AJ50: - | AK50: - | AL50: - | AM50: - | AN50: - | AO50: - | AP50: 4 | AQ50: 高圧 | AR50: ● | AS50: e
B51: 45 | C51: 中部電力 | D51: 高圧業務用電力ＷＥプランＡ | E51: 中部電力高圧業務用電力ＷＥプランＡ | F51: 平日夏季 | G51: 平日その他季 | H51: 休日 | I51: - | K51: - | L51: - | M51: - | N51: - | O51: - | P51: - | Q51: - | R51: - | S51: - | T51: - | U51: - | V51: - | W51: - | X51: - | Y51: - | Z51: - | AA51: - | AB51: - | AC51: - | AD51: - | AE51: 1644.76 | AF51: 18.29 | AG51: 17.1 | AH51: 14.21 | AI51: - | AJ51: - | AK51: - | AL51: - | AM51: - | AN51: - | AO51: - | AP51: 3 | AQ51: 高圧 | AS51: e
B52: 46 | C52: 中部電力 | D52: 高圧業務用電力ＷＥプランＢ | E52: 中部電力高圧業務用電力ＷＥプランＢ | F52: 平日夏季 | G52: 平日その他季 | H52: 休日 | I52: - | K52: - | L52: - | M52: - | N52: - | O52: - | P52: - | Q52: - | R52: - | S52: - | T52: - | U52: - | V52: - | W52: - | X52: - | Y52: - | Z52: - | AA52: - | AB52: - | AC52: - | AD52: - | AE52: 1842.76 | AF52: 16.69 | AG52: 15.64 | AH52: 14.21 | AI52: - | AJ52: - | AK52: - | AL52: - | AM52: - | AN52: - | AO52: - | AP52: 3 | AQ52: 高圧 | AS52: e
B53: 47 | C53: 中部電力 | D53: 高圧業務用電力ＷＥプランＣ | E53: 中部電力高圧業務用電力ＷＥプランＣ | F53: 平日夏季 | G53: 平日その他季 | H53: 休日 | I53: - | K53: - | L53: - | M53: - | N53: - | O53: - | P53: - | Q53: - | R53: - | S53: - | T53: - | U53: - | V53: - | W53: - | X53: - | Y53: - | Z53: - | AA53: - | AB53: - | AC53: - | AD53: - | AE53: 1930.76 | AF53: 16.39 | AG53: 15.37 | AH53: 14.21 | AI53: - | AJ53: - | AK53: - | AL53: - | AM53: - | AN53: - | AO53: - | AP53: 3 | AQ53: 高圧 | AS53: e
B54: 48 | C54: 中部電力 | D54: 高圧業務用電力ＦＲプランＡ | E54: 中部電力高圧業務用電力ＦＲプランＡ | F54: 夏季 | G54: その他季 | H54: - | I54: - | K54: - | L54: - | M54: - | N54: - | O54: - | P54: - | Q54: - | R54: - | S54: - | T54: - | U54: - | V54: - | W54: - | X54: - | Y54: - | Z54: - | AA54: - | AB54: - | AC54: - | AD54: - | AE54: 1644.76 | AF54: 17.25 | AG54: 16.16 | AH54: - | AI54: - | AJ54: - | AK54: - | AL54: - | AM54: - | AN54: - | AO54: - | AP54: 2 | AQ54: 高圧 | AS54: e
B55: 49 | C55: 中部電力 | D55: 高圧業務用電力ＦＲプランＢ | E55: 中部電力高圧業務用電力ＦＲプランＢ | F55: 夏季 | G55: その他季 | H55: - | I55: - | K55: - | L55: - | M55: - | N55: - | O55: - | P55: - | Q55: - | R55: - | S55: - | T55: - | U55: - | V55: - | W55: - | X55: - | Y55: - | Z55: - | AA55: - | AB55: - | AC55: - | AD55: - | AE55: 1842.76 | AF55: 16.13 | AG55: 15.14 | AH55: - | AI55: - | AJ55: - | AK55: - | AL55: - | AM55: - | AN55: - | AO55: - | AP55: 2 | AQ55: 高圧 | AS55: e
B56: 50 | C56: 中部電力 | D56: 高圧業務用電力ＦＲプランＣ | E56: 中部電力高圧業務用電力ＦＲプランＣ | F56: 夏季 | G56: その他季 | H56: - | I56: - | K56: - | L56: - | M56: - | N56: - | O56: - | P56: - | Q56: - | R56: - | S56: - | T56: - | U56: - | V56: - | W56: - | X56: - | Y56: - | Z56: - | AA56: - | AB56: - | AC56: - | AD56: - | AE56: 1930.76 | AF56: 15.92 | AG56: 14.95 | AH56: - | AI56: - | AJ56: - | AK56: - | AL56: - | AM56: - | AN56: - | AO56: - | AP56: 2 | AQ56: 高圧 | AS56: e
B57: 51 | C57: 中部電力 | D57: 高圧業務用電力ＴＯＵ | E57: 中部電力高圧業務用電力ＴＯＵ | F57: 重負荷時間 | G57: 昼間時間 | H57: 夜間時間 | I57: - | K57: - | L57: - | M57: - | N57: - | O57: - | P57: - | Q57: - | R57: - | S57: - | T57: - | U57: - | V57: - | W57: - | X57: - | Y57: - | Z57: - | AA57: - | AB57: - | AC57: - | AD57: - | AE57: 1644.76 | AF57: 20.63 | AG57: 17.53 | AH57: 13.66 | AI57: - | AJ57: - | AK57: - | AL57: - | AM57: - | AN57: - | AO57: - | AP57: 3 | AQ57: 高圧 | AS57: e
B58: 52 | C58: 中部電力 | D58: 高圧業務用電力ＴＯＵ２ | E58: 中部電力高圧業務用電力ＴＯＵ２ | F58: 重負荷時間 | G58: 昼間時間 | H58: 夜間時間 | I58: - | K58: - | L58: - | M58: - | N58: - | O58: - | P58: - | Q58: - | R58: - | S58: - | T58: - | U58: - | V58: - | W58: - | X58: - | Y58: - | Z58: - | AA58: - | AB58: - | AC58: - | AD58: - | AE58: 1930.76 | AF58: 18.3 | AG58: 15.66 | AH58: 13.66 | AI58: - | AJ58: - | AK58: - | AL58: - | AM58: - | AN58: - | AO58: - | AP58: 3 | AQ58: 高圧 | AS58: e
B59: 53 | C59: 中部電力 | D59: 高圧電力第１種プランＬ | E59: 中部電力高圧電力第１種プランＬ | F59: 重負荷時間 | G59: 昼間時間 | H59: 夜間時間 | I59: - | K59: - | L59: - | M59: - | N59: - | O59: - | P59: - | Q59: - | R59: - | S59: - | T59: - | U59: - | V59: - | W59: - | X59: - | Y59: - | Z59: - | AA59: - | AB59: - | AC59: - | AD59: - | AE59: 1281.24 | AF59: 22.32 | AG59: 19.05 | AH59: 13.66 | AI59: - | AJ59: - | AK59: - | AL59: - | AM59: - | AN59: - | AO59: - | AP59: 3 | AQ59: 高圧 | AS59: e
B60: 54 | C60: 中部電力 | D60: 高圧電力第１種プランＨ | E60: 中部電力高圧電力第１種プランＨ | F60: 重負荷時間 | G60: 昼間時間 | H60: 夜間時間 | I60: - | K60: - | L60: - | M60: - | N60: - | O60: - | P60: - | Q60: - | R60: - | S60: - | T60: - | U60: - | V60: - | W60: - | X60: - | Y60: - | Z60: - | AA60: - | AB60: - | AC60: - | AD60: - | AE60: 1666.76 | AF60: 19.01 | AG60: 16.21 | AH60: 13.66 | AI60: - | AJ60: - | AK60: - | AL60: - | AM60: - | AN60: - | AO60: - | AP60: 3 | AQ60: 高圧 | AS60: e
B61: 55 | C61: 中部電力 | D61: 高圧電力第２種プランＬ | E61: 中部電力高圧電力第２種プランＬ | F61: 夏季 | G61: その他季 | H61: - | I61: - | K61: - | L61: - | M61: - | N61: - | O61: - | P61: - | Q61: - | R61: - | S61: - | T61: - | U61: - | V61: - | W61: - | X61: - | Y61: - | Z61: - | AA61: - | AB61: - | AC61: - | AD61: - | AE61: 1281.24 | AF61: 18.19 | AG61: 16.99 | AH61: - | AI61: - | AJ61: - | AK61: - | AL61: - | AM61: - | AN61: - | AO61: - | AP61: 2 | AQ61: 高圧 | AS61: e
B62: 56 | C62: 中部電力 | D62: 高圧電力第２種プランＨ | E62: 中部電力高圧電力第２種プランＨ | F62: 夏季 | G62: その他季 | H62: - | I62: - | K62: - | L62: - | M62: - | N62: - | O62: - | P62: - | Q62: - | R62: - | S62: - | T62: - | U62: - | V62: - | W62: - | X62: - | Y62: - | Z62: - | AA62: - | AB62: - | AC62: - | AD62: - | AE62: 1666.76 | AF62: 16.26 | AG62: 15.26 | AH62: - | AI62: - | AJ62: - | AK62: - | AL62: - | AM62: - | AN62: - | AO62: - | AP62: 2 | AQ62: 高圧 | AS62: e
B63: 57 | C63: 中部電力 | D63: 高圧電力第１種プランＡ | E63: 中部電力高圧電力第１種プランＡ | F63: 重負荷時間 | G63: 昼間時間 | H63: 夜間時間 | I63: - | K63: - | L63: - | M63: - | N63: - | O63: - | P63: - | Q63: - | R63: - | S63: - | T63: - | U63: - | V63: - | W63: - | X63: - | Y63: - | Z63: - | AA63: - | AB63: - | AC63: - | AD63: - | AE63: 1666.76 | AF63: 19.01 | AG63: 16.21 | AH63: 13.66 | AI63: - | AJ63: - | AK63: - | AL63: - | AM63: - | AN63: - | AO63: - | AP63: 3 | AQ63: 高圧 | AS63: e
B64: 58 | C64: 中部電力 | D64: 高圧電力第１種プランＢ | E64: 中部電力高圧電力第１種プランＢ | F64: 重負荷時間 | G64: 昼間時間 | H64: 夜間時間 | I64: - | K64: - | L64: - | M64: - | N64: - | O64: - | P64: - | Q64: - | R64: - | S64: - | T64: - | U64: - | V64: - | W64: - | X64: - | Y64: - | Z64: - | AA64: - | AB64: - | AC64: - | AD64: - | AE64: 1864.76 | AF64: 17.39 | AG64: 14.93 | AH64: 13.66 | AI64: - | AJ64: - | AK64: - | AL64: - | AM64: - | AN64: - | AO64: - | AP64: 3 | AQ64: 高圧 | AS64: e
B65: 59 | C65: 中部電力 | D65: 高圧電力第２種プランＡ | E65: 中部電力高圧電力第２種プランＡ | F65: 夏季 | G65: その他季 | H65: - | I65: - | K65: - | L65: - | M65: - | N65: - | O65: - | P65: - | Q65: - | R65: - | S65: - | T65: - | U65: - | V65: - | W65: - | X65: - | Y65: - | Z65: - | AA65: - | AB65: - | AC65: - | AD65: - | AE65: 1666.76 | AF65: 16.26 | AG65: 15.26 | AH65: - | AI65: - | AJ65: - | AK65: - | AL65: - | AM65: - | AN65: - | AO65: - | AP65: 2 | AQ65: 高圧 | AS65: e
B66: 60 | C66: 中部電力 | D66: 高圧電力第２種プランＢ | E66: 中部電力高圧電力第２種プランＢ | F66: 夏季 | G66: その他季 | H66: - | I66: - | K66: - | L66: - | M66: - | N66: - | O66: - | P66: - | Q66: - | R66: - | S66: - | T66: - | U66: - | V66: - | W66: - | X66: - | Y66: - | Z66: - | AA66: - | AB66: - | AC66: - | AD66: - | AE66: 1864.76 | AF66: 15.37 | AG66: 14.43 | AH66: - | AI66: - | AJ66: - | AK66: - | AL66: - | AM66: - | AN66: - | AO66: - | AP66: 2 | AQ66: 高圧 | AS66: e
B67: 61 | C67: 北陸電力 | D67: 業務用電力 | E67: 北陸電力業務用電力 | F67: 夏季 | G67: その他季 | H67: - | I67: - | K67: - | L67: - | M67: - | N67: - | O67: - | P67: - | Q67: - | R67: - | S67: - | T67: - | U67: - | V67: - | W67: - | X67: - | Y67: - | Z67: - | AA67: - | AB67: - | AC67: - | AD67: - | AE67: 1584 | AF67: 13.09 | AG67: 12.08 | AH67: - | AI67: - | AJ67: - | AK67: - | AL67: - | AM67: - | AN67: - | AO67: - | AP67: 2 | AQ67: 高圧 | AS67: e
B68: 62 | C68: 北陸電力 | D68: 業務用季節別時間帯別電力 | E68: 北陸電力業務用季節別時間帯別電力 | F68: ピーク時間 | G68: 昼間時間夏季 | H68: 昼間時間その他季 | I68: 夜間時間 | K68: - | L68: - | M68: - | N68: - | O68: - | P68: - | Q68: - | R68: - | S68: - | T68: - | U68: - | V68: - | W68: - | X68: - | Y68: - | Z68: - | AA68: - | AB68: - | AC68: - | AD68: - | AE68: 1584 | AF68: 14.95 | AG68: 14.28 | AH68: 12.99 | AI68: 10.09 | AJ68: - | AK68: - | AL68: - | AM68: - | AN68: - | AO68: - | AP68: 4 | AQ68: 高圧 | AS68: e
B69: 63 | C69: 北陸電力 | D69: 高圧電力Ａ | E69: 北陸電力高圧電力Ａ | F69: 夏季 | G69: その他季 | H69: - | I69: - | K69: - | L69: - | M69: - | N69: - | O69: - | P69: - | Q69: - | R69: - | S69: - | T69: - | U69: - | V69: - | W69: - | X69: - | Y69: - | Z69: - | AA69: - | AB69: - | AC69: - | AD69: - | AE69: 1309 | AF69: 13.41 | AG69: 12.34 | AH69: - | AI69: - | AJ69: - | AK69: - | AL69: - | AM69: - | AN69: - | AO69: - | AP69: 2 | AQ69: 高圧 | AS69: e
B70: 64 | C70: 北陸電力 | D70: 高圧電力Ｂ | E70: 北陸電力高圧電力Ｂ | F70: 夏季 | G70: その他季 | H70: - | I70: - | K70: - | L70: - | M70: - | N70: - | O70: - | P70: - | Q70: - | R70: - | S70: - | T70: - | U70: - | V70: - | W70: - | X70: - | Y70: - | Z70: - | AA70: - | AB70: - | AC70: - | AD70: - | AE70: 1584 | AF70: 12.12 | AG70: 11.19 | AH70: - | AI70: - | AJ70: - | AK70: - | AL70: - | AM70: - | AN70: - | AO70: - | AP70: 2 | AQ70: 高圧 | AS70: e
B71: 65 | C71: 北陸電力 | D71: 季節別時間帯別電力Ａ | E71: 北陸電力季節別時間帯別電力Ａ | F71: ピーク時間 | G71: 昼間時間夏季 | H71: 昼間時間その他季 | I71: 夜間時間 | K71: - | L71: - | M71: - | N71: - | O71: - | P71: - | Q71: - | R71: - | S71: - | T71: - | U71: - | V71: - | W71: - | X71: - | Y71: - | Z71: - | AA71: - | AB71: - | AC71: - | AD71: - | AE71: 1309 | AF71: 16.08 | AG71: 15.37 | AH71: 13.86 | AI71: 10.09 | AJ71: - | AK71: - | AL71: - | AM71: - | AN71: - | AO71: - | AP71: 4 | AQ71: 高圧 | AS71: e
B72: 66 | C72: 北陸電力 | D72: 季節別時間帯別電力Ｂ | E72: 北陸電力季節別時間帯別電力Ｂ | F72: ピーク時間 | G72: 昼間時間夏季 | H72: 昼間時間その他季 | I72: 夜間時間 | K72: - | L72: - | M72: - | N72: - | O72: - | P72: - | Q72: - | R72: - | S72: - | T72: - | U72: - | V72: - | W72: - | X72: - | Y72: - | Z72: - | AA72: - | AB72: - | AC72: - | AD72: - | AE72: 1584 | AF72: 13.85 | AG72: 13.22 | AH72: 11.79 | AI72: 10.09 | AJ72: - | AK72: - | AL72: - | AM72: - | AN72: - | AO72: - | AP72: 4 | AQ72: 高圧 | AS72: e
B73: 67 | C73: 北陸電力 | D73: 負荷率別電力 | E73: 北陸電力負荷率別電力 | F73: 夏季 | G73: その他季 | H73: - | I73: - | J73: ● | K73: 0 | L73: 250 | M73: 250 | N73: 350 | O73: 350 | P73: 450 | Q73: 450 | R73: 999 | S73: - | T73: - | U73: 夏季250未満 | V73: 夏季250-350 | W73: 夏季350-450 | X73: 夏季450以上 | Y73: - | Z73: 他季250未満 | AA73: 他季250-350 | AB73: 他季350-450 | AC73: 他季450以上 | AD73: - | AE73: 2255 | AF73: 10.36 | AG73: 10.31 | AH73: 10.2 | AI73: 10.09 | AJ73: - | AK73: 9.56 | AL73: 9.52 | AM73: 9.44 | AN73: 9.34 | AO73: - | AP73: 2 | AQ73: 高圧 | AR73: ● | AS73: e
B74: 68 | C74: 北陸電力 | D74: 業務用季節別曜日別電力ＷＥ | E74: 北陸電力業務用季節別曜日別電力ＷＥ | F74: 平日夏季 | G74: 平日その他季 | H74: 休日 | I74: - | K74: - | L74: - | M74: - | N74: - | O74: - | P74: - | Q74: - | R74: - | S74: - | T74: - | U74: - | V74: - | W74: - | X74: - | Y74: - | Z74: - | AA74: - | AB74: - | AC74: - | AD74: - | AE74: 2134 | AF74: 11.17 | AG74: 10.33 | AH74: 9.36 | AI74: - | AJ74: - | AK74: - | AL74: - | AM74: - | AN74: - | AO74: - | AP74: 3 | AQ74: 高圧 | AR74: ● | AS74: e
B75: 69 | C75: 関西電力 | D75: 高圧電力ＡＳ－ＴＯＵ | E75: =C75&D75 -> 関西電力高圧電力ＡＳ－ＴＯＵ | F75: 重負荷時間 | G75: 昼間時間 | H75: 夜間時間 | I75: - | K75: - | L75: - | M75: - | N75: - | O75: - | P75: - | Q75: - | R75: - | S75: - | T75: - | U75: - | V75: - | W75: - | X75: - | Y75: - | Z75: - | AA75: - | AB75: - | AC75: - | AD75: - | AE75: 1765.5 | AF75: 19.4 | AG75: 14.09 | AH75: 9.73 | AI75: - | AJ75: - | AK75: - | AL75: - | AM75: - | AN75: - | AO75: - | AP75: 3 | AQ75: 高圧 | AS75: e
B76: 70 | C76: 関西電力 | D76: 高圧電力ＡＳ | E76: 関西電力高圧電力ＡＳ | F76: 夏季 | G76: その他季 | H76: - | I76: - | K76: - | L76: - | M76: - | N76: - | O76: - | P76: - | Q76: - | R76: - | S76: - | T76: - | U76: - | V76: - | W76: - | X76: - | Y76: - | Z76: - | AA76: - | AB76: - | AC76: - | AD76: - | AE76: 1765.5 | AF76: 13.94 | AG76: 12.87 | AH76: - | AI76: - | AJ76: - | AK76: - | AL76: - | AM76: - | AN76: - | AO76: - | AP76: 2 | AQ76: 高圧 | AS76: e
B77: 71 | C77: 関西電力 | D77: 高圧電力ＡＳ－ＷＥ | E77: 関西電力高圧電力ＡＳ－ＷＥ | F77: 夏季平日 | G77: 夏季休日 | H77: 他季平日 | I77: 他季休日 | K77: - | L77: - | M77: - | N77: - | O77: - | P77: - | Q77: - | R77: - | S77: - | T77: - | U77: - | V77: - | W77: - | X77: - | Y77: - | Z77: - | AA77: - | AB77: - | AC77: - | AD77: - | AE77: 1765.5 | AF77: 15.15 | AG77: 11.18 | AH77: 13.96 | AI77: 10.37 | AJ77: - | AK77: - | AL77: - | AM77: - | AN77: - | AO77: - | AP77: 4 | AQ77: 高圧 | AR77: ● | AS77: e
B78: 72 | C78: 関西電力 | D78: 高圧電力ＢＳ－ＴＯＵ（Ｆ） | E78: 関西電力高圧電力ＢＳ－ＴＯＵ（Ｆ） | F78: 重負荷時間 | G78: 昼間時間 | H78: 夜間時間 | I78: - | K78: - | L78: - | M78: - | N78: - | O78: - | P78: - | Q78: - | R78: - | S78: - | T78: - | U78: - | V78: - | W78: - | X78: - | Y78: - | Z78: - | AA78: - | AB78: - | AC78: - | AD78: - | AE78: 1386 | AF78: 21.87 | AG78: 15.77 | AH78: 9.73 | AI78: - | AJ78: - | AK78: - | AL78: - | AM78: - | AN78: - | AO78: - | AP78: 3 | AQ78: 高圧 | AS78: e
B79: 73 | C79: 関西電力 | D79: 高圧電力ＢＳ（Ｆ） | E79: 関西電力高圧電力ＢＳ（Ｆ） | F79: 夏季 | G79: その他季 | H79: - | I79: - | K79: - | L79: - | M79: - | N79: - | O79: - | P79: - | Q79: - | R79: - | S79: - | T79: - | U79: - | V79: - | W79: - | X79: - | Y79: - | Z79: - | AA79: - | AB79: - | AC79: - | AD79: - | AE79: 1386 | AF79: 14.48 | AG79: 13.37 | AH79: - | AI79: - | AJ79: - | AK79: - | AL79: - | AM79: - | AN79: - | AO79: - | AP79: 2 | AQ79: 高圧 | AS79: e
B80: =ROW()-6 -> 74 | C80: 関西電力 | D80: 高圧電力ＡＬ－ＴＯＵ | E80: 関西電力高圧電力ＡＬ－ＴＯＵ | F80: 重負荷時間 | G80: 昼間時間 | H80: 夜間時間 | I80: - | K80: - | L80: - | M80: - | N80: - | O80: - | P80: - | Q80: - | R80: - | S80: - | T80: - | U80: - | V80: - | W80: - | X80: - | Y80: - | Z80: - | AA80: - | AB80: - | AC80: - | AD80: - | AE80: 1765.5 | AF80: 19.4 | AG80: 14.09 | AH80: 9.73 | AI80: - | AJ80: - | AK80: - | AL80: - | AM80: - | AN80: - | AO80: - | AP80: 3 | AQ80: 高圧 | AS80: e
B81: 75 | C81: 関西電力 | D81: 高圧電力ＡＬ | E81: 関西電力高圧電力ＡＬ | F81: 夏季 | G81: その他季 | H81: - | I81: - | K81: - | L81: - | M81: - | N81: - | O81: - | P81: - | Q81: - | R81: - | S81: - | T81: - | U81: - | V81: - | W81: - | X81: - | Y81: - | Z81: - | AA81: - | AB81: - | AC81: - | AD81: - | AE81: 1765.5 | AF81: 13.94 | AG81: 12.87 | AH81: - | AI81: - | AJ81: - | AK81: - | AL81: - | AM81: - | AN81: - | AO81: - | AP81: 2 | AQ81: 高圧 | AS81: e
B82: 76 | C82: 関西電力 | D82: 高圧電力ＡＬ－ＷＥ | E82: 関西電力高圧電力ＡＬ－ＷＥ | F82: 夏季平日 | G82: 夏季休日 | H82: 他季平日 | I82: 他季休日 | K82: - | L82: - | M82: - | N82: - | O82: - | P82: - | Q82: - | R82: - | S82: - | T82: - | U82: - | V82: - | W82: - | X82: - | Y82: - | Z82: - | AA82: - | AB82: - | AC82: - | AD82: - | AE82: 1765.5 | AF82: 15.15 | AG82: 11.18 | AH82: 13.96 | AI82: 10.37 | AJ82: - | AK82: - | AL82: - | AM82: - | AN82: - | AO82: - | AP82: 4 | AQ82: 高圧 | AR82: ● | AS82: e
B83: 77 | C83: 関西電力 | D83: 高圧電力ＢＳ・ＢＬ－ＴＯＵ | E83: 関西電力高圧電力ＢＳ・ＢＬ－ＴＯＵ | F83: 重負荷時間 | G83: 昼間時間 | H83: 夜間時間 | I83: - | K83: - | L83: - | M83: - | N83: - | O83: - | P83: - | Q83: - | R83: - | S83: - | T83: - | U83: - | V83: - | W83: - | X83: - | Y83: - | Z83: - | AA83: - | AB83: - | AC83: - | AD83: - | AE83: 1897.5 | AF83: 17.52 | AG83: 12.78 | AH83: 9.73 | AI83: - | AJ83: - | AK83: - | AL83: - | AM83: - | AN83: - | AO83: - | AP83: 3 | AQ83: 高圧 | AS83: e
B84: 78 | C84: 関西電力 | D84: 高圧電力ＢＳ・ＢＬ | E84: 関西電力高圧電力ＢＳ・ＢＬ | F84: 夏季 | G84: その他季 | H84: - | I84: - | K84: - | L84: - | M84: - | N84: - | O84: - | P84: - | Q84: - | R84: - | S84: - | T84: - | U84: - | V84: - | W84: - | X84: - | Y84: - | Z84: - | AA84: - | AB84: - | AC84: - | AD84: - | AE84: 1897.5 | AF84: 12.55 | AG84: 11.6 | AH84: - | AI84: - | AJ84: - | AK84: - | AL84: - | AM84: - | AN84: - | AO84: - | AP84: 2 | AQ84: 高圧 | AS84: e
B85: 79 | C85: 関西電力 | D85: 高圧負荷率別契約Ｓ | E85: 関西電力高圧負荷率別契約Ｓ | F85: 夏季 | G85: その他季 | H85: - | I85: - | J85: ● | K85: 0 | L85: 100 | M85: 100 | N85: 200 | O85: 200 | P85: 300 | Q85: 300 | R85: 999 | S85: - | T85: - | U85: 夏季100未満 | V85: 夏季100-200 | W85: 夏季200-300 | X85: 夏季300以上 | Y85: - | Z85: 他季100未満 | AA85: 他季100-200 | AB85: 他季200-300 | AC85: 他季300以上 | AD85: - | AE85: 1842.5 | AF85: 14.14 | AG85: 13.02 | AH85: 12.52 | AI85: 12.39 | AJ85: - | AK85: 13.07 | AL85: 12.04 | AM85: 11.59 | AN85: 11.48 | AO85: - | AP85: 2 | AQ85: 高圧 | AR85: ● | AS85: e
B86: 80 | C86: 関西電力 | D86: 高圧負荷率別契約Ｌ | E86: 関西電力高圧負荷率別契約Ｌ | F86: 夏季 | G86: その他季 | H86: - | I86: - | J86: ● | K86: 0 | L86: 100 | M86: 100 | N86: 200 | O86: 200 | P86: 300 | Q86: 300 | R86: 999 | S86: - | T86: - | U86: 夏季100未満 | V86: 夏季100-200 | W86: 夏季200-300 | X86: 夏季300以上 | Y86: - | Z86: 他季100未満 | AA86: 他季100-200 | AB86: 他季200-300 | AC86: 他季300以上 | AD86: - | AE86: 1842.5 | AF86: 14.14 | AG86: 13.02 | AH86: 12.52 | AI86: 12.39 | AJ86: - | AK86: 13.07 | AL86: 12.04 | AM86: 11.59 | AN86: 11.48 | AO86: - | AP86: 2 | AQ86: 高圧 | AR86: ● | AS86: e
B87: 81 | C87: 中国電力 | D87: 業務用電力 | E87: 中国電力業務用電力 | F87: 夏季 | G87: その他季 | H87: - | I87: - | K87: - | L87: - | M87: - | N87: - | O87: - | P87: - | Q87: - | R87: - | S87: - | T87: - | U87: - | V87: - | W87: - | X87: - | Y87: - | Z87: - | AA87: - | AB87: - | AC87: - | AD87: - | AE87: 1732.5 | AF87: 14.34 | AG87: 13.11 | AH87: - | AI87: - | AJ87: - | AK87: - | AL87: - | AM87: - | AN87: - | AO87: - | AP87: 2 | AQ87: 高圧 | AS87: e
B88: 82 | C88: 中国電力 | D88: 業務用ＴＯＵ | E88: 中国電力業務用ＴＯＵ | F88: ピーク時間 | G88: 昼間時間夏季 | H88: 昼間時間その他季 | I88: 夜間時間 | K88: - | L88: - | M88: - | N88: - | O88: - | P88: - | Q88: - | R88: - | S88: - | T88: - | U88: - | V88: - | W88: - | X88: - | Y88: - | Z88: - | AA88: - | AB88: - | AC88: - | AD88: - | AE88: 1732.5 | AF88: 19.05 | AG88: 15.84 | AH88: 15.02 | AI88: 9.87 | AJ88: - | AK88: - | AL88: - | AM88: - | AN88: - | AO88: - | AP88: 4 | AQ88: 高圧 | AS88: e
B89: 83 | C89: 中国電力 | D89: 高圧電力Ｂ | E89: 中国電力高圧電力Ｂ | F89: 夏季 | G89: その他季 | H89: - | I89: - | K89: - | L89: - | M89: - | N89: - | O89: - | P89: - | Q89: - | R89: - | S89: - | T89: - | U89: - | V89: - | W89: - | X89: - | Y89: - | Z89: - | AA89: - | AB89: - | AC89: - | AD89: - | AE89: 1732.5 | AF89: 12.75 | AG89: 11.66 | AH89: - | AI89: - | AJ89: - | AK89: - | AL89: - | AM89: - | AN89: - | AO89: - | AP89: 2 | AQ89: 高圧 | AS89: e
B90: 84 | C90: 中国電力 | D90: 高圧ＴＯＵＢ | E90: 中国電力高圧ＴＯＵＢ | F90: ピーク時間 | G90: 昼間時間夏季 | H90: 昼間時間その他季 | I90: 夜間時間 | K90: - | L90: - | M90: - | N90: - | O90: - | P90: - | Q90: - | R90: - | S90: - | T90: - | U90: - | V90: - | W90: - | X90: - | Y90: - | Z90: - | AA90: - | AB90: - | AC90: - | AD90: - | AE90: 1732.5 | AF90: 16.86 | AG90: 14.03 | AH90: 12.93 | AI90: 9.87 | AJ90: - | AK90: - | AL90: - | AM90: - | AN90: - | AO90: - | AP90: 4 | AQ90: 高圧 | AS90: e
B91: 85 | C91: 中国電力 | D91: 業務用高負荷率電力 | E91: 中国電力業務用高負荷率電力 | F91: 夏季 | G91: その他季 | H91: - | I91: - | K91: - | L91: - | M91: - | N91: - | O91: - | P91: - | Q91: - | R91: - | S91: - | T91: - | U91: - | V91: - | W91: - | X91: - | Y91: - | Z91: - | AA91: - | AB91: - | AC91: - | AD91: - | AE91: 2167 | AF91: 11.72 | AG91: 10.71 | AH91: - | AI91: - | AJ91: - | AK91: - | AL91: - | AM91: - | AN91: - | AO91: - | AP91: 2 | AQ91: 高圧 | AS91: e
B92: 86 | C92: 中国電力 | D92: 業務用高負荷率ＴＯＵ | E92: 中国電力業務用高負荷率ＴＯＵ | F92: ピーク時間 | G92: 昼間時間夏季 | H92: 昼間時間その他季 | I92: 夜間時間 | K92: - | L92: - | M92: - | N92: - | O92: - | P92: - | Q92: - | R92: - | S92: - | T92: - | U92: - | V92: - | W92: - | X92: - | Y92: - | Z92: - | AA92: - | AB92: - | AC92: - | AD92: - | AE92: 2167 | AF92: 14.5 | AG92: 12.07 | AH92: 11.22 | AI92: 9.87 | AJ92: - | AK92: - | AL92: - | AM92: - | AN92: - | AO92: - | AP92: 4 | AQ92: 高圧 | AS92: e
B93: 87 | C93: 中国電力 | D93: 業務用ウィークエンド電力 | E93: 中国電力業務用ウィークエンド電力 | F93: ピーク時間 | G93: 平日時間夏季 | H93: 平日時間その他季 | I93: 週末時間 | K93: - | L93: - | M93: - | N93: - | O93: - | P93: - | Q93: - | R93: - | S93: - | T93: - | U93: - | V93: - | W93: - | X93: - | Y93: - | Z93: - | AA93: - | AB93: - | AC93: - | AD93: - | AE93: 2167 | AF93: 14.93 | AG93: 11.77 | AH93: 11.02 | AI93: 10.04 | AJ93: - | AK93: - | AL93: - | AM93: - | AN93: - | AO93: - | AP93: 4 | AQ93: 高圧 | AS93: e
B94: 88 | C94: 中国電力 | D94: 高圧高負荷率電力Ｂ | E94: 中国電力高圧高負荷率電力Ｂ | F94: 夏季 | G94: その他季 | H94: - | I94: - | K94: - | L94: - | M94: - | N94: - | O94: - | P94: - | Q94: - | R94: - | S94: - | T94: - | U94: - | V94: - | W94: - | X94: - | Y94: - | Z94: - | AA94: - | AB94: - | AC94: - | AD94: - | AE94: 2167 | AF94: 11.2 | AG94: 10.24 | AH94: - | AI94: - | AJ94: - | AK94: - | AL94: - | AM94: - | AN94: - | AO94: - | AP94: 2 | AQ94: 高圧 | AS94: e
B95: 89 | C95: 中国電力 | D95: 高圧高負荷率ＴＯＵＢ | E95: 中国電力高圧高負荷率ＴＯＵＢ | F95: ピーク時間 | G95: 昼間時間夏季 | H95: 昼間時間その他季 | I95: 夜間時間 | K95: - | L95: - | M95: - | N95: - | O95: - | P95: - | Q95: - | R95: - | S95: - | T95: - | U95: - | V95: - | W95: - | X95: - | Y95: - | Z95: - | AA95: - | AB95: - | AC95: - | AD95: - | AE95: 2167 | AF95: 13.88 | AG95: 11.55 | AH95: 10.49 | AI95: 9.87 | AJ95: - | AK95: - | AL95: - | AM95: - | AN95: - | AO95: - | AP95: 4 | AQ95: 高圧 | AS95: e
B96: 90 | C96: 中国電力 | D96: 高圧ウィークエンド電力Ｂ | E96: 中国電力高圧ウィークエンド電力Ｂ | F96: ピーク時間 | G96: 平日時間夏季 | H96: 平日時間その他季 | I96: 週末時間 | K96: - | L96: - | M96: - | N96: - | O96: - | P96: - | Q96: - | R96: - | S96: - | T96: - | U96: - | V96: - | W96: - | X96: - | Y96: - | Z96: - | AA96: - | AB96: - | AC96: - | AD96: - | AE96: 2167 | AF96: 14.29 | AG96: 11.14 | AH96: 10.32 | AI96: 10.04 | AJ96: - | AK96: - | AL96: - | AM96: - | AN96: - | AO96: - | AP96: 4 | AQ96: 高圧 | AS96: e
B97: 91 | C97: 中国電力 | D97: 高圧電力Ａ | E97: 中国電力高圧電力Ａ | F97: 夏季 | G97: その他季 | H97: - | I97: - | K97: - | L97: - | M97: - | N97: - | O97: - | P97: - | Q97: - | R97: - | S97: - | T97: - | U97: - | V97: - | W97: - | X97: - | Y97: - | Z97: - | AA97: - | AB97: - | AC97: - | AD97: - | AE97: 1243 | AF97: 14.91 | AG97: 13.63 | AH97: - | AI97: - | AJ97: - | AK97: - | AL97: - | AM97: - | AN97: - | AO97: - | AP97: 2 | AQ97: 高圧 | AS97: e
B98: 92 | C98: 中国電力 | D98: 高圧ＴＯＵＡ | E98: 中国電力高圧ＴＯＵＡ | F98: ピーク時間 | G98: 昼間時間夏季 | H98: 昼間時間その他季 | I98: 夜間時間 | K98: - | L98: - | M98: - | N98: - | O98: - | P98: - | Q98: - | R98: - | S98: - | T98: - | U98: - | V98: - | W98: - | X98: - | Y98: - | Z98: - | AA98: - | AB98: - | AC98: - | AD98: - | AE98: 1243 | AF98: 21 | AG98: 17.46 | AH98: 16.28 | AI98: 9.87 | AJ98: - | AK98: - | AL98: - | AM98: - | AN98: - | AO98: - | AP98: 4 | AQ98: 高圧 | AS98: e
B99: 93 | C99: 中国電力 | D99: 高圧高負荷率電力Ａ | E99: 中国電力高圧高負荷率電力Ａ | F99: 夏季 | G99: その他季 | H99: - | I99: - | K99: - | L99: - | M99: - | N99: - | O99: - | P99: - | Q99: - | R99: - | S99: - | T99: - | U99: - | V99: - | W99: - | X99: - | Y99: - | Z99: - | AA99: - | AB99: - | AC99: - | AD99: - | AE99: 1556.5 | AF99: 13.95 | AG99: 12.76 | AH99: - | AI99: - | AJ99: - | AK99: - | AL99: - | AM99: - | AN99: - | AO99: - | AP99: 2 | AQ99: 高圧 | AS99: e
B100: 94 | C100: 中国電力 | D100: 高圧高負荷率ＴＯＵＡ | E100: 中国電力高圧高負荷率ＴＯＵＡ | F100: ピーク時間 | G100: 昼間時間夏季 | H100: 昼間時間その他季 | I100: 夜間時間 | K100: - | L100: - | M100: - | N100: - | O100: - | P100: - | Q100: - | R100: - | S100: - | T100: - | U100: - | V100: - | W100: - | X100: - | Y100: - | Z100: - | AA100: - | AB100: - | AC100: - | AD100: - | AE100: 1556.5 | AF100: 19.2 | AG100: 15.96 | AH100: 14.78 | AI100: 9.87 | AJ100: - | AK100: - | AL100: - | AM100: - | AN100: - | AO100: - | AP100: 4 | AQ100: 高圧 | AS100: e
B101: 95 | C101: 中国電力 | D101: 高圧ウィークエンド電力Ａ | E101: 中国電力高圧ウィークエンド電力Ａ | F101: ピーク時間 | G101: 平日時間夏季 | H101: 平日時間その他季 | I101: 週末時間 | K101: - | L101: - | M101: - | N101: - | O101: - | P101: - | Q101: - | R101: - | S101: - | T101: - | U101: - | V101: - | W101: - | X101: - | Y101: - | Z101: - | AA101: - | AB101: - | AC101: - | AD101: - | AE101: 1556.5 | AF101: 19.77 | AG101: 14.74 | AH101: 13.93 | AI101: 10.04 | AJ101: - | AK101: - | AL101: - | AM101: - | AN101: - | AO101: - | AP101: 4 | AQ101: 高圧 | AS101: e
B102: 96 | C102: 四国電力 | D102: 業務用電力500kW未満 | E102: 四国電力業務用電力500kW未満 | F102: 夏季 | G102: その他季 | H102: - | I102: - | K102: - | L102: - | M102: - | N102: - | O102: - | P102: - | Q102: - | R102: - | S102: - | T102: - | U102: - | V102: - | W102: - | X102: - | Y102: - | Z102: - | AA102: - | AB102: - | AC102: - | AD102: - | AE102: 1546.28 | AF102: 15.33 | AG102: 14.15 | AH102: - | AI102: - | AJ102: - | AK102: - | AL102: - | AM102: - | AN102: - | AO102: - | AP102: 2 | AQ102: 高圧 | AS102: e
B103: 97 | C103: 四国電力 | D103: 業務用電力500kW以上 | E103: 四国電力業務用電力500kW以上 | F103: 夏季 | G103: その他季 | H103: - | I103: - | K103: - | L103: - | M103: - | N103: - | O103: - | P103: - | Q103: - | R103: - | S103: - | T103: - | U103: - | V103: - | W103: - | X103: - | Y103: - | Z103: - | AA103: - | AB103: - | AC103: - | AD103: - | AE103: 1546.28 | AF103: 15.33 | AG103: 14.15 | AH103: - | AI103: - | AJ103: - | AK103: - | AL103: - | AM103: - | AN103: - | AO103: - | AP103: 2 | AQ103: 高圧 | AS103: e
B104: 98 | C104: 四国電力 | D104: 業務用季節別時間帯別電力500kW未満 | E104: 四国電力業務用季節別時間帯別電力500kW未満 | F104: ピーク時間 | G104: 昼間時間夏季 | H104: 昼間時間その他季 | I104: 夜間時間 | K104: - | L104: - | M104: - | N104: - | O104: - | P104: - | Q104: - | R104: - | S104: - | T104: - | U104: - | V104: - | W104: - | X104: - | Y104: - | Z104: - | AA104: - | AB104: - | AC104: - | AD104: - | AE104: 1546.28 | AF104: 23.58 | AG104: 21.64 | AH104: 20.57 | AI104: 11.02 | AJ104: - | AK104: - | AL104: - | AM104: - | AN104: - | AO104: - | AP104: 4 | AQ104: 高圧 | AS104: e
B105: 99 | C105: 四国電力 | D105: 業務用季節別時間帯別電力500kW以上 | E105: 四国電力業務用季節別時間帯別電力500kW以上 | F105: ピーク時間 | G105: 昼間時間夏季 | H105: 昼間時間その他季 | I105: 夜間時間 | K105: - | L105: - | M105: - | N105: - | O105: - | P105: - | Q105: - | R105: - | S105: - | T105: - | U105: - | V105: - | W105: - | X105: - | Y105: - | Z105: - | AA105: - | AB105: - | AC105: - | AD105: - | AE105: 1546.28 | AF105: 23.58 | AG105: 21.64 | AH105: 20.57 | AI105: 11.02 | AJ105: - | AK105: - | AL105: - | AM105: - | AN105: - | AO105: - | AP105: 4 | AQ105: 高圧 | AS105: e
B106: 100 | C106: 四国電力 | D106: 高圧電力Ａ500kW未満 | E106: 四国電力高圧電力Ａ500kW未満 | F106: 夏季 | G106: その他季 | H106: - | I106: - | K106: - | L106: - | M106: - | N106: - | O106: - | P106: - | Q106: - | R106: - | S106: - | T106: - | U106: - | V106: - | W106: - | X106: - | Y106: - | Z106: - | AA106: - | AB106: - | AC106: - | AD106: - | AE106: 1293.81 | AF106: 16.43 | AG106: 15.14 | AH106: - | AI106: - | AJ106: - | AK106: - | AL106: - | AM106: - | AN106: - | AO106: - | AP106: 2 | AQ106: 高圧 | AS106: e
B107: 101 | C107: 四国電力 | D107: 高圧電力Ｂ500kW以上 | E107: 四国電力高圧電力Ｂ500kW以上 | F107: 夏季 | G107: その他季 | H107: - | I107: - | K107: - | L107: - | M107: - | N107: - | O107: - | P107: - | Q107: - | R107: - | S107: - | T107: - | U107: - | V107: - | W107: - | X107: - | Y107: - | Z107: - | AA107: - | AB107: - | AC107: - | AD107: - | AE107: 1816.57 | AF107: 13.49 | AG107: 12.44 | AH107: - | AI107: - | AJ107: - | AK107: - | AL107: - | AM107: - | AN107: - | AO107: - | AP107: 2 | AQ107: 高圧 | AS107: e
B108: 102 | C108: 四国電力 | D108: 高圧Ａ季節別時間帯別電力500kW未満 | E108: 四国電力高圧Ａ季節別時間帯別電力500kW未満 | F108: ピーク時間 | G108: 昼間時間夏季 | H108: 昼間時間その他季 | I108: 夜間時間 | K108: - | L108: - | M108: - | N108: - | O108: - | P108: - | Q108: - | R108: - | S108: - | T108: - | U108: - | V108: - | W108: - | X108: - | Y108: - | Z108: - | AA108: - | AB108: - | AC108: - | AD108: - | AE108: 1293.81 | AF108: 22.33 | AG108: 19.25 | AH108: 18.47 | AI108: 11.02 | AJ108: - | AK108: - | AL108: - | AM108: - | AN108: - | AO108: - | AP108: 4 | AQ108: 高圧 | AS108: e
B109: 103 | C109: 四国電力 | D109: 高圧Ｂ季節別時間帯別電力500kW以上 | E109: 四国電力高圧Ｂ季節別時間帯別電力500kW以上 | F109: ピーク時間 | G109: 昼間時間夏季 | H109: 昼間時間その他季 | I109: 夜間時間 | K109: - | L109: - | M109: - | N109: - | O109: - | P109: - | Q109: - | R109: - | S109: - | T109: - | U109: - | V109: - | W109: - | X109: - | Y109: - | Z109: - | AA109: - | AB109: - | AC109: - | AD109: - | AE109: 1816.57 | AF109: 17.45 | AG109: 15.11 | AH109: 13.79 | AI109: 11.02 | AJ109: - | AK109: - | AL109: - | AM109: - | AN109: - | AO109: - | AP109: 4 | AQ109: 高圧 | AS109: e
B110: 104 | C110: 九州電力 | D110: 業務用A | E110: 九州電力業務用A | F110: 夏季 | G110: その他季 | H110: - | I110: - | K110: - | L110: - | M110: - | N110: - | O110: - | P110: - | Q110: - | R110: - | S110: - | T110: - | U110: - | V110: - | W110: - | X110: - | Y110: - | Z110: - | AA110: - | AB110: - | AC110: - | AD110: - | AE110: 2046 | AF110: 12.99 | AG110: 12.06 | AH110: - | AI110: - | AJ110: - | AK110: - | AL110: - | AM110: - | AN110: - | AO110: - | AP110: 2 | AQ110: 高圧 | AS110: e
B111: 105 | C111: 九州電力 | D111: 産業用A | E111: 九州電力産業用A | F111: 夏季 | G111: その他季 | H111: - | I111: - | K111: - | L111: - | M111: - | N111: - | O111: - | P111: - | Q111: - | R111: - | S111: - | T111: - | U111: - | V111: - | W111: - | X111: - | Y111: - | Z111: - | AA111: - | AB111: - | AC111: - | AD111: - | AE111: 2046 | AF111: 12.51 | AG111: 11.62 | AH111: - | AI111: - | AJ111: - | AK111: - | AL111: - | AM111: - | AN111: - | AO111: - | AP111: 2 | AQ111: 高圧 | AS111: e
B112: 106 | C112: 九州電力 | D112: 業務用A-Ⅰ | E112: 九州電力業務用A-Ⅰ | F112: 夏季 | G112: その他季 | H112: - | I112: - | K112: - | L112: - | M112: - | N112: - | O112: - | P112: - | Q112: - | R112: - | S112: - | T112: - | U112: - | V112: - | W112: - | X112: - | Y112: - | Z112: - | AA112: - | AB112: - | AC112: - | AD112: - | AE112: 1320 | AF112: 18.6 | AG112: 17.15 | AH112: - | AI112: - | AJ112: - | AK112: - | AL112: - | AM112: - | AN112: - | AO112: - | AP112: 2 | AQ112: 高圧 | AS112: e
B113: 107 | C113: 九州電力 | D113: 産業用A-Ⅰ | E113: 九州電力産業用A-Ⅰ | F113: 夏季 | G113: その他季 | H113: - | I113: - | K113: - | L113: - | M113: - | N113: - | O113: - | P113: - | Q113: - | R113: - | S113: - | T113: - | U113: - | V113: - | W113: - | X113: - | Y113: - | Z113: - | AA113: - | AB113: - | AC113: - | AD113: - | AE113: 1375 | AF113: 16 | AG113: 14.78 | AH113: - | AI113: - | AJ113: - | AK113: - | AL113: - | AM113: - | AN113: - | AO113: - | AP113: 2 | AQ113: 高圧 | AS113: e
B114: 108 | C114: 九州電力 | D114: 業務用季時別A | E114: 九州電力業務用季時別A | F114: ピーク | G114: 昼間夏季 | H114: 昼間他季 | I114: 夜間 | K114: - | L114: - | M114: - | N114: - | O114: - | P114: - | Q114: - | R114: - | S114: - | T114: - | U114: - | V114: - | W114: - | X114: - | Y114: - | Z114: - | AA114: - | AB114: - | AC114: - | AD114: - | AE114: 2046 | AF114: 16.95 | AG114: 14.48 | AH114: 13.53 | AI114: 9.06 | AJ114: - | AK114: - | AL114: - | AM114: - | AN114: - | AO114: - | AP114: 4 | AQ114: 高圧 | AS114: e
B115: 109 | C115: 九州電力 | D115: 産業用季時別A | E115: 九州電力産業用季時別A | F115: ピーク | G115: 昼間夏季 | H115: 昼間他季 | I115: 夜間 | K115: - | L115: - | M115: - | N115: - | O115: - | P115: - | Q115: - | R115: - | S115: - | T115: - | U115: - | V115: - | W115: - | X115: - | Y115: - | Z115: - | AA115: - | AB115: - | AC115: - | AD115: - | AE115: 2046 | AF115: 16.95 | AG115: 14.48 | AH115: 13.53 | AI115: 9.06 | AJ115: - | AK115: - | AL115: - | AM115: - | AN115: - | AO115: - | AP115: 4 | AQ115: 高圧 | AS115: e
B116: 110 | C116: 九州電力 | D116: 業務用季時別A-Ⅰ | E116: 九州電力業務用季時別A-Ⅰ | F116: ピーク | G116: 昼間夏季 | H116: 昼間他季 | I116: 夜間 | K116: - | L116: - | M116: - | N116: - | O116: - | P116: - | Q116: - | R116: - | S116: - | T116: - | U116: - | V116: - | W116: - | X116: - | Y116: - | Z116: - | AA116: - | AB116: - | AC116: - | AD116: - | AE116: 1320 | AF116: 26.46 | AG116: 22.36 | AH116: 21.33 | AI116: 9.06 | AJ116: - | AK116: - | AL116: - | AM116: - | AN116: - | AO116: - | AP116: 4 | AQ116: 高圧 | AS116: e
B117: 111 | C117: 九州電力 | D117: 産業用季時別A-Ⅰ | E117: 九州電力産業用季時別A-Ⅰ | F117: ピーク | G117: 昼間夏季 | H117: 昼間他季 | I117: 夜間 | K117: - | L117: - | M117: - | N117: - | O117: - | P117: - | Q117: - | R117: - | S117: - | T117: - | U117: - | V117: - | W117: - | X117: - | Y117: - | Z117: - | AA117: - | AB117: - | AC117: - | AD117: - | AE117: 1375 | AF117: 23.87 | AG117: 20.35 | AH117: 19.08 | AI117: 9.06 | AJ117: - | AK117: - | AL117: - | AM117: - | AN117: - | AO117: - | AP117: 4 | AQ117: 高圧 | AS117: e
B118: 112 | C118: 九州電力 | D118: 業務用休日エコノミーA | E118: 九州電力業務用休日エコノミーA | F118: 夏季平日 | G118: 夏季休日 | H118: 他季平日 | I118: 他季休日 | K118: - | L118: - | M118: - | N118: - | O118: - | P118: - | Q118: - | R118: - | S118: - | T118: - | U118: - | V118: - | W118: - | X118: - | Y118: - | Z118: - | AA118: - | AB118: - | AC118: - | AD118: - | AE118: 2046 | AF118: 14.11 | AG118: 10.29 | AH118: 13.09 | AI118: 9.6 | AJ118: - | AK118: - | AL118: - | AM118: - | AN118: - | AO118: - | AP118: 4 | AQ118: 高圧 | AS118: e
B119: 113 | C119: 九州電力 | D119: 業務用休日エコノミーA-Ⅰ | E119: 九州電力業務用休日エコノミーA-Ⅰ | F119: 夏季平日 | G119: 夏季休日 | H119: 他季平日 | I119: 他季休日 | K119: - | L119: - | M119: - | N119: - | O119: - | P119: - | Q119: - | R119: - | S119: - | T119: - | U119: - | V119: - | W119: - | X119: - | Y119: - | Z119: - | AA119: - | AB119: - | AC119: - | AD119: - | AE119: 1320 | AF119: 21 | AG119: 12.87 | AH119: 19.34 | AI119: 11.94 | AJ119: - | AK119: - | AL119: - | AM119: - | AN119: - | AO119: - | AP119: 4 | AQ119: 高圧 | AS119: e
B120: 114 | C120: 九州電力 | D120: 負荷率別契約 | E120: 九州電力負荷率別契約 | F120: 夏季 | G120: その他季 | H120: - | I120: - | J120: ● | K120: 0 | L120: 100 | M120: 100 | N120: 200 | O120: 200 | P120: 300 | Q120: 300 | R120: 400 | S120: 400 | T120: 999 | U120: 夏季100未満 | V120: 夏季100-200 | W120: 夏季200-300 | X120: 夏季300-400 | Y120: 夏季400以上 | Z120: 他季100未満 | AA120: 他季100-200 | AB120: 他季200-300 | AC120: 他季300-400 | AD120: 他季400以上 | AE120: 2046 | AF120: 13.53 | AG120: 12.41 | AH120: 11.68 | AI120: 11.29 | AJ120: 11.16 | AK120: 12.54 | AL120: 11.52 | AM120: 10.87 | AN120: 10.51 | AO120: 10.39 | AP120: 2 | AQ120: 高圧 | AS120: e
B121: 115 | C121: 北海道電力 | D121: 業務用電力(30kV)A | E121: 北海道電力業務用電力(30kV)A | F121: 月間 | G121: - | H121: - | I121: - | K121: - | L121: - | M121: - | N121: - | O121: - | P121: - | Q121: - | R121: - | S121: - | T121: - | U121: - | V121: - | W121: - | X121: - | Y121: - | Z121: - | AA121: - | AB121: - | AC121: - | AD121: - | AE121: 1925 | AF121: 16.6 | AG121: - | AH121: - | AI121: - | AJ121: - | AK121: - | AL121: - | AM121: - | AN121: - | AO121: - | AP121: 1 | AQ121: 特高 | AS121: e
B122: 116 | C122: 北海道電力 | D122: 業務用電力(30kV)B | E122: 北海道電力業務用電力(30kV)B | F122: 昼間 | G122: 夜間 | H122: - | I122: - | K122: - | L122: - | M122: - | N122: - | O122: - | P122: - | Q122: - | R122: - | S122: - | T122: - | U122: - | V122: - | W122: - | X122: - | Y122: - | Z122: - | AA122: - | AB122: - | AC122: - | AD122: - | AE122: 1925 | AF122: 18.24 | AG122: 14.14 | AH122: - | AI122: - | AJ122: - | AK122: - | AL122: - | AM122: - | AN122: - | AO122: - | AP122: 2 | AQ122: 特高 | AS122: e
B123: 117 | C123: 北海道電力 | D123: 特別高圧電力(30kV)A | E123: 北海道電力特別高圧電力(30kV)A | F123: 月間 | G123: - | H123: - | I123: - | K123: - | L123: - | M123: - | N123: - | O123: - | P123: - | Q123: - | R123: - | S123: - | T123: - | U123: - | V123: - | W123: - | X123: - | Y123: - | Z123: - | AA123: - | AB123: - | AC123: - | AD123: - | AE123: 1991 | AF123: 15.65 | AG123: - | AH123: - | AI123: - | AJ123: - | AK123: - | AL123: - | AM123: - | AN123: - | AO123: - | AP123: 1 | AQ123: 特高 | AS123: e
B124: 118 | C124: 北海道電力 | D124: 特別高圧電力(30kV)B | E124: 北海道電力特別高圧電力(30kV)B | F124: 昼間 | G124: 夜間 | H124: - | I124: - | K124: - | L124: - | M124: - | N124: - | O124: - | P124: - | Q124: - | R124: - | S124: - | T124: - | U124: - | V124: - | W124: - | X124: - | Y124: - | Z124: - | AA124: - | AB124: - | AC124: - | AD124: - | AE124: 1991 | AF124: 16.9 | AG124: 14.14 | AH124: - | AI124: - | AJ124: - | AK124: - | AL124: - | AM124: - | AN124: - | AO124: - | AP124: 2 | AQ124: 特高 | AS124: e
B125: 119 | C125: 北海道電力 | D125: 業務用電力(60kV)A | E125: 北海道電力業務用電力(60kV)A | F125: 月間 | G125: - | H125: - | I125: - | K125: - | L125: - | M125: - | N125: - | O125: - | P125: - | Q125: - | R125: - | S125: - | T125: - | U125: - | V125: - | W125: - | X125: - | Y125: - | Z125: - | AA125: - | AB125: - | AC125: - | AD125: - | AE125: 1914 | AF125: 16.56 | AG125: - | AH125: - | AI125: - | AJ125: - | AK125: - | AL125: - | AM125: - | AN125: - | AO125: - | AP125: 1 | AQ125: 特高 | AS125: e
B126: 120 | C126: 北海道電力 | D126: 業務用電力(60kV)B | E126: 北海道電力業務用電力(60kV)B | F126: 昼間 | G126: 夜間 | H126: - | I126: - | K126: - | L126: - | M126: - | N126: - | O126: - | P126: - | Q126: - | R126: - | S126: - | T126: - | U126: - | V126: - | W126: - | X126: - | Y126: - | Z126: - | AA126: - | AB126: - | AC126: - | AD126: - | AE126: 1914 | AF126: 18.17 | AG126: 14.1 | AH126: - | AI126: - | AJ126: - | AK126: - | AL126: - | AM126: - | AN126: - | AO126: - | AP126: 2 | AQ126: 特高 | AS126: e
B127: 121 | C127: 北海道電力 | D127: 特高電力(60kV)A | E127: 北海道電力特高電力(60kV)A | F127: 月間 | G127: - | H127: - | I127: - | K127: - | L127: - | M127: - | N127: - | O127: - | P127: - | Q127: - | R127: - | S127: - | T127: - | U127: - | V127: - | W127: - | X127: - | Y127: - | Z127: - | AA127: - | AB127: - | AC127: - | AD127: - | AE127: 1980 | AF127: 15.61 | AG127: - | AH127: - | AI127: - | AJ127: - | AK127: - | AL127: - | AM127: - | AN127: - | AO127: - | AP127: 1 | AQ127: 特高 | AS127: e
B128: 122 | C128: 北海道電力 | D128: 特高電力(60kV)B | E128: 北海道電力特高電力(60kV)B | F128: 昼間 | G128: 夜間 | H128: - | I128: - | K128: - | L128: - | M128: - | N128: - | O128: - | P128: - | Q128: - | R128: - | S128: - | T128: - | U128: - | V128: - | W128: - | X128: - | Y128: - | Z128: - | AA128: - | AB128: - | AC128: - | AD128: - | AE128: 1980 | AF128: 16.84 | AG128: 14.1 | AH128: - | AI128: - | AJ128: - | AK128: - | AL128: - | AM128: - | AN128: - | AO128: - | AP128: 2 | AQ128: 特高 | AS128: e
B129: 123 | C129: 東北電力 | D129: 特別高圧電力Ａ30kV | E129: 東北電力特別高圧電力Ａ30kV | F129: 夏季 | G129: その他季 | H129: - | I129: - | K129: - | L129: - | M129: - | N129: - | O129: - | P129: - | Q129: - | R129: - | S129: - | T129: - | U129: - | V129: - | W129: - | X129: - | Y129: - | Z129: - | AA129: - | AB129: - | AC129: - | AD129: - | AE129: 1639 | AF129: 14.87 | AG129: 13.85 | AH129: - | AI129: - | AJ129: - | AK129: - | AL129: - | AM129: - | AN129: - | AO129: - | AP129: 2 | AQ129: 特高 | AS129: e
B130: 124 | C130: 東北電力 | D130: 特別高圧電力Ａ60kV | E130: 東北電力特別高圧電力Ａ60kV | F130: 夏季 | G130: その他季 | H130: - | I130: - | K130: - | L130: - | M130: - | N130: - | O130: - | P130: - | Q130: - | R130: - | S130: - | T130: - | U130: - | V130: - | W130: - | X130: - | Y130: - | Z130: - | AA130: - | AB130: - | AC130: - | AD130: - | AE130: 1617 | AF130: 14.51 | AG130: 13.52 | AH130: - | AI130: - | AJ130: - | AK130: - | AL130: - | AM130: - | AN130: - | AO130: - | AP130: 2 | AQ130: 特高 | AS130: e
B131: 125 | C131: 東北電力 | D131: 特別高圧季節別時間帯別電力Ａ30kV | E131: 東北電力特別高圧季節別時間帯別電力Ａ30kV | F131: ピーク時間 | G131: 夏季昼間 | H131: その他季昼間 | I131: 夜間 | K131: - | L131: - | M131: - | N131: - | O131: - | P131: - | Q131: - | R131: - | S131: - | T131: - | U131: - | V131: - | W131: - | X131: - | Y131: - | Z131: - | AA131: - | AB131: - | AC131: - | AD131: - | AE131: 1639 | AF131: 18.07 | AG131: 16.76 | AH131: 15.79 | AI131: 10.96 | AJ131: - | AK131: - | AL131: - | AM131: - | AN131: - | AO131: - | AP131: 4 | AQ131: 特高 | AS131: e
B132: 126 | C132: 東北電力 | D132: 特別高圧季節別時間帯別電力Ａ60kV | E132: 東北電力特別高圧季節別時間帯別電力Ａ60kV | F132: ピーク時間 | G132: 夏季昼間 | H132: その他季昼間 | I132: 夜間 | K132: - | L132: - | M132: - | N132: - | O132: - | P132: - | Q132: - | R132: - | S132: - | T132: - | U132: - | V132: - | W132: - | X132: - | Y132: - | Z132: - | AA132: - | AB132: - | AC132: - | AD132: - | AE132: 1617 | AF132: 17.63 | AG132: 16.36 | AH132: 15.4 | AI132: 10.7 | AJ132: - | AK132: - | AL132: - | AM132: - | AN132: - | AO132: - | AP132: 4 | AQ132: 特高 | AS132: e
B133: 127 | C133: 東北電力 | D133: 特別高圧電力Ｂ30kV | E133: =C133&D133 -> 東北電力特別高圧電力Ｂ30kV | F133: 夏季 | G133: その他季 | H133: - | I133: - | K133: - | L133: - | M133: - | N133: - | O133: - | P133: - | Q133: - | R133: - | S133: - | T133: - | U133: - | V133: - | W133: - | X133: - | Y133: - | Z133: - | AA133: - | AB133: - | AC133: - | AD133: - | AE133: 1815 | AF133: 13.96 | AG133: 13.02 | AH133: - | AI133: - | AJ133: - | AK133: - | AL133: - | AM133: - | AN133: - | AO133: - | AP133: 2 | AQ133: 特高 | AS133: e
B134: 128 | C134: 東北電力 | D134: 特別高圧電力Ｂ60kV | E134: 東北電力特別高圧電力Ｂ60kV | F134: 夏季 | G134: その他季 | H134: - | I134: - | K134: - | L134: - | M134: - | N134: - | O134: - | P134: - | Q134: - | R134: - | S134: - | T134: - | U134: - | V134: - | W134: - | X134: - | Y134: - | Z134: - | AA134: - | AB134: - | AC134: - | AD134: - | AE134: 1749 | AF134: 13.6 | AG134: 12.69 | AH134: - | AI134: - | AJ134: - | AK134: - | AL134: - | AM134: - | AN134: - | AO134: - | AP134: 2 | AQ134: 特高 | AS134: e
B135: 129 | C135: 東北電力 | D135: 特別高圧電力Ｂ140kV | E135: 東北電力特別高圧電力Ｂ140kV | F135: 夏季 | G135: その他季 | H135: - | I135: - | K135: - | L135: - | M135: - | N135: - | O135: - | P135: - | Q135: - | R135: - | S135: - | T135: - | U135: - | V135: - | W135: - | X135: - | Y135: - | Z135: - | AA135: - | AB135: - | AC135: - | AD135: - | AE135: 1683 | AF135: 13.23 | AG135: 12.36 | AH135: - | AI135: - | AJ135: - | AK135: - | AL135: - | AM135: - | AN135: - | AO135: - | AP135: 2 | AQ135: 特高 | AS135: e
B136: 130 | C136: 東北電力 | D136: 特別高圧季節別時間帯別電力Ｂ30kV | E136: 東北電力特別高圧季節別時間帯別電力Ｂ30kV | F136: ピーク時間 | G136: 夏季昼間 | H136: その他季昼間 | I136: 夜間 | K136: - | L136: - | M136: - | N136: - | O136: - | P136: - | Q136: - | R136: - | S136: - | T136: - | U136: - | V136: - | W136: - | X136: - | Y136: - | Z136: - | AA136: - | AB136: - | AC136: - | AD136: - | AE136: 1815 | AF136: 17.05 | AG136: 15.83 | AH136: 14.61 | AI136: 10.96 | AJ136: - | AK136: - | AL136: - | AM136: - | AN136: - | AO136: - | AP136: 4 | AQ136: 特高 | AS136: e
B137: 131 | C137: 東北電力 | D137: 特別高圧季節別時間帯別電力Ｂ60kV | E137: 東北電力特別高圧季節別時間帯別電力Ｂ60kV | F137: ピーク時間 | G137: 夏季昼間 | H137: その他季昼間 | I137: 夜間 | K137: - | L137: - | M137: - | N137: - | O137: - | P137: - | Q137: - | R137: - | S137: - | T137: - | U137: - | V137: - | W137: - | X137: - | Y137: - | Z137: - | AA137: - | AB137: - | AC137: - | AD137: - | AE137: 1749 | AF137: 16.58 | AG137: 15.4 | AH137: 14.22 | AI137: 10.7 | AJ137: - | AK137: - | AL137: - | AM137: - | AN137: - | AO137: - | AP137: 4 | AQ137: 特高 | AS137: e
B138: 132 | C138: 東北電力 | D138: 特別高圧季節別時間帯別電力Ｂ140kV | E138: 東北電力特別高圧季節別時間帯別電力Ｂ140kV | F138: ピーク時間 | G138: 夏季昼間 | H138: その他季昼間 | I138: 夜間 | K138: - | L138: - | M138: - | N138: - | O138: - | P138: - | Q138: - | R138: - | S138: - | T138: - | U138: - | V138: - | W138: - | X138: - | Y138: - | Z138: - | AA138: - | AB138: - | AC138: - | AD138: - | AE138: 1683 | AF138: 16.1 | AG138: 14.97 | AH138: 13.84 | AI138: 10.45 | AJ138: - | AK138: - | AL138: - | AM138: - | AN138: - | AO138: - | AP138: 4 | AQ138: 特高 | AS138: e
B139: 133 | C139: 東京電力 | D139: 特高A20kV | E139: 東京電力特高A20kV | F139: 夏季 | G139: その他季 | H139: - | I139: - | K139: - | L139: - | M139: - | N139: - | O139: - | P139: - | Q139: - | R139: - | S139: - | T139: - | U139: - | V139: - | W139: - | X139: - | Y139: - | Z139: - | AA139: - | AB139: - | AC139: - | AD139: - | AE139: 1661 | AF139: 15.91 | AG139: 14.9 | AH139: - | AI139: - | AJ139: - | AK139: - | AL139: - | AM139: - | AN139: - | AO139: - | AP139: 2 | AQ139: 特高 | AS139: e
B140: 134 | C140: 東京電力 | D140: 特高A60kV | E140: 東京電力特高A60kV | F140: 夏季 | G140: その他季 | H140: - | I140: - | K140: - | L140: - | M140: - | N140: - | O140: - | P140: - | Q140: - | R140: - | S140: - | T140: - | U140: - | V140: - | W140: - | X140: - | Y140: - | Z140: - | AA140: - | AB140: - | AC140: - | AD140: - | AE140: 1606 | AF140: 15.65 | AG140: 14.69 | AH140: - | AI140: - | AJ140: - | AK140: - | AL140: - | AM140: - | AN140: - | AO140: - | AP140: 2 | AQ140: 特高 | AS140: e
B141: 135 | C141: 東京電力 | D141: 特高B20kV | E141: 東京電力特高B20kV | F141: 夏季 | G141: その他季 | H141: - | I141: - | K141: - | L141: - | M141: - | N141: - | O141: - | P141: - | Q141: - | R141: - | S141: - | T141: - | U141: - | V141: - | W141: - | X141: - | Y141: - | Z141: - | AA141: - | AB141: - | AC141: - | AD141: - | AE141: 1661 | AF141: 15.35 | AG141: 14.4 | AH141: - | AI141: - | AJ141: - | AK141: - | AL141: - | AM141: - | AN141: - | AO141: - | AP141: 2 | AQ141: 特高 | AS141: e
B142: 136 | C142: 東京電力 | D142: 特高B60kV | E142: 東京電力特高B60kV | F142: 夏季 | G142: その他季 | H142: - | I142: - | K142: - | L142: - | M142: - | N142: - | O142: - | P142: - | Q142: - | R142: - | S142: - | T142: - | U142: - | V142: - | W142: - | X142: - | Y142: - | Z142: - | AA142: - | AB142: - | AC142: - | AD142: - | AE142: 1606 | AF142: 15.1 | AG142: 14.18 | AH142: - | AI142: - | AJ142: - | AK142: - | AL142: - | AM142: - | AN142: - | AO142: - | AP142: 2 | AQ142: 特高 | AS142: e
B143: 137 | C143: 東京電力 | D143: 特高B140kV | E143: 東京電力特高B140kV | F143: 夏季 | G143: その他季 | H143: - | I143: - | K143: - | L143: - | M143: - | N143: - | O143: - | P143: - | Q143: - | R143: - | S143: - | T143: - | U143: - | V143: - | W143: - | X143: - | Y143: - | Z143: - | AA143: - | AB143: - | AC143: - | AD143: - | AE143: 1551 | AF143: 14.86 | AG143: 13.96 | AH143: - | AI143: - | AJ143: - | AK143: - | AL143: - | AM143: - | AN143: - | AO143: - | AP143: 2 | AQ143: 特高 | AS143: e
B144: =ROW()-6 -> 138 | C144: 東京電力 | D144: 特高季時別A20kV | E144: 東京電力特高季時別A20kV | F144: ピーク | G144: 昼間夏季 | H144: 昼間その他季 | I144: 夜間 | K144: - | L144: - | M144: - | N144: - | O144: - | P144: - | Q144: - | R144: - | S144: - | T144: - | U144: - | V144: - | W144: - | X144: - | Y144: - | Z144: - | AA144: - | AB144: - | AC144: - | AD144: - | AE144: 1661 | AF144: 17.71 | AG144: 17.1 | AH144: 15.95 | AI144: 12.54 | AJ144: - | AK144: - | AL144: - | AM144: - | AN144: - | AO144: - | AP144: 4 | AQ144: 特高 | AS144: e
B145: 139 | C145: 東京電力 | D145: 特高季時別A60kV | E145: 東京電力特高季時別A60kV | F145: ピーク | G145: 昼間夏季 | H145: 昼間その他季 | I145: 夜間 | K145: - | L145: - | M145: - | N145: - | O145: - | P145: - | Q145: - | R145: - | S145: - | T145: - | U145: - | V145: - | W145: - | X145: - | Y145: - | Z145: - | AA145: - | AB145: - | AC145: - | AD145: - | AE145: 1606 | AF145: 17.49 | AG145: 16.89 | AH145: 15.74 | AI145: 12.31 | AJ145: - | AK145: - | AL145: - | AM145: - | AN145: - | AO145: - | AP145: 4 | AQ145: 特高 | AS145: e
B146: 140 | C146: 東京電力 | D146: 特高季時別B20kV | E146: 東京電力特高季時別B20kV | F146: ピーク | G146: 昼間夏季 | H146: 昼間その他季 | I146: 夜間 | K146: - | L146: - | M146: - | N146: - | O146: - | P146: - | Q146: - | R146: - | S146: - | T146: - | U146: - | V146: - | W146: - | X146: - | Y146: - | Z146: - | AA146: - | AB146: - | AC146: - | AD146: - | AE146: 1661 | AF146: 17.71 | AG146: 17.1 | AH146: 15.95 | AI146: 12.54 | AJ146: - | AK146: - | AL146: - | AM146: - | AN146: - | AO146: - | AP146: 4 | AQ146: 特高 | AS146: e
B147: 141 | C147: 東京電力 | D147: 特高季時別B60kV | E147: 東京電力特高季時別B60kV | F147: ピーク | G147: 昼間夏季 | H147: 昼間その他季 | I147: 夜間 | K147: - | L147: - | M147: - | N147: - | O147: - | P147: - | Q147: - | R147: - | S147: - | T147: - | U147: - | V147: - | W147: - | X147: - | Y147: - | Z147: - | AA147: - | AB147: - | AC147: - | AD147: - | AE147: 1606 | AF147: 17.49 | AG147: 16.89 | AH147: 15.74 | AI147: 12.31 | AJ147: - | AK147: - | AL147: - | AM147: - | AN147: - | AO147: - | AP147: 4 | AQ147: 特高 | AS147: e
B148: 142 | C148: 東京電力 | D148: 特高季時別B140kV | E148: 東京電力特高季時別B140kV | F148: ピーク | G148: 昼間夏季 | H148: 昼間その他季 | I148: 夜間 | K148: - | L148: - | M148: - | N148: - | O148: - | P148: - | Q148: - | R148: - | S148: - | T148: - | U148: - | V148: - | W148: - | X148: - | Y148: - | Z148: - | AA148: - | AB148: - | AC148: - | AD148: - | AE148: 1551 | AF148: 17.27 | AG148: 16.66 | AH148: 15.46 | AI148: 12.16 | AJ148: - | AK148: - | AL148: - | AM148: - | AN148: - | AO148: - | AP148: 4 | AQ148: 特高 | AS148: e
B149: 143 | C149: 中部電力 | D149: 特別高圧業務用電力第１種20・30kV-プランＡ | E149: 中部電力特別高圧業務用電力第１種20・30kV-プランＡ | F149: 重負荷時間 | G149: 昼間時間 | H149: 夜間時間 | I149: - | K149: - | L149: - | M149: - | N149: - | O149: - | P149: - | Q149: - | R149: - | S149: - | T149: - | U149: - | V149: - | W149: - | X149: - | Y149: - | Z149: - | AA149: - | AB149: - | AC149: - | AD149: - | AE149: 1623.81 | AF149: 19.07 | AG149: 16.24 | AH149: 12.7 | AI149: - | AJ149: - | AK149: - | AL149: - | AM149: - | AN149: - | AO149: - | AP149: 3 | AQ149: 特高 | AS149: e
B150: 144 | C150: 中部電力 | D150: 特別高圧業務用電力第１種20・30kV-プランＢ | E150: 中部電力特別高圧業務用電力第１種20・30kV-プランＢ | F150: 重負荷時間 | G150: 昼間時間 | H150: 夜間時間 | I150: - | K150: - | L150: - | M150: - | N150: - | O150: - | P150: - | Q150: - | R150: - | S150: - | T150: - | U150: - | V150: - | W150: - | X150: - | Y150: - | Z150: - | AA150: - | AB150: - | AC150: - | AD150: - | AE150: 1744.28 | AF150: 17.8 | AG150: 15.23 | AH150: 12.7 | AI150: - | AJ150: - | AK150: - | AL150: - | AM150: - | AN150: - | AO150: - | AP150: 3 | AQ150: 特高 | AS150: e
B151: 145 | C151: 中部電力 | D151: 特別高圧業務用電力第１種20・30kV-プランＣ | E151: 中部電力特別高圧業務用電力第１種20・30kV-プランＣ | F151: 重負荷時間 | G151: 昼間時間 | H151: 夜間時間 | I151: - | K151: - | L151: - | M151: - | N151: - | O151: - | P151: - | Q151: - | R151: - | S151: - | T151: - | U151: - | V151: - | W151: - | X151: - | Y151: - | Z151: - | AA151: - | AB151: - | AC151: - | AD151: - | AE151: 1898.28 | AF151: 17 | AG151: 14.59 | AH151: 12.7 | AI151: - | AJ151: - | AK151: - | AL151: - | AM151: - | AN151: - | AO151: - | AP151: 3 | AQ151: 特高 | AS151: e
B152: 146 | C152: 中部電力 | D152: 特別高圧業務用電力第２種20・30kV-プランＡ | E152: 中部電力特別高圧業務用電力第２種20・30kV-プランＡ | F152: 夏季 | G152: その他季 | H152: - | I152: - | K152: - | L152: - | M152: - | N152: - | O152: - | P152: - | Q152: - | R152: - | S152: - | T152: - | U152: - | V152: - | W152: - | X152: - | Y152: - | Z152: - | AA152: - | AB152: - | AC152: - | AD152: - | AE152: 1623.81 | AF152: 15.88 | AG152: 14.9 | AH152: - | AI152: - | AJ152: - | AK152: - | AL152: - | AM152: - | AN152: - | AO152: - | AP152: 2 | AQ152: 特高 | AS152: e
B153: 147 | C153: 中部電力 | D153: 特別高圧業務用電力第２種20・30kV-プランＢ | E153: 中部電力特別高圧業務用電力第２種20・30kV-プランＢ | F153: 夏季 | G153: その他季 | H153: - | I153: - | K153: - | L153: - | M153: - | N153: - | O153: - | P153: - | Q153: - | R153: - | S153: - | T153: - | U153: - | V153: - | W153: - | X153: - | Y153: - | Z153: - | AA153: - | AB153: - | AC153: - | AD153: - | AE153: 1744.28 | AF153: 15.19 | AG153: 14.28 | AH153: - | AI153: - | AJ153: - | AK153: - | AL153: - | AM153: - | AN153: - | AO153: - | AP153: 2 | AQ153: 特高 | AS153: e
B154: 148 | C154: 中部電力 | D154: 特別高圧業務用電力第２種20・30kV-プランＣ | E154: 中部電力特別高圧業務用電力第２種20・30kV-プランＣ | F154: 夏季 | G154: その他季 | H154: - | I154: - | K154: - | L154: - | M154: - | N154: - | O154: - | P154: - | Q154: - | R154: - | S154: - | T154: - | U154: - | V154: - | W154: - | X154: - | Y154: - | Z154: - | AA154: - | AB154: - | AC154: - | AD154: - | AE154: 1898.28 | AF154: 14.75 | AG154: 13.88 | AH154: - | AI154: - | AJ154: - | AK154: - | AL154: - | AM154: - | AN154: - | AO154: - | AP154: 2 | AQ154: 特高 | AS154: e
B155: 149 | C155: 中部電力 | D155: 特別高圧業務用電力第１種70kV-プランＡ | E155: 中部電力特別高圧業務用電力第１種70kV-プランＡ | F155: 重負荷時間 | G155: 昼間時間 | H155: 夜間時間 | I155: - | K155: - | L155: - | M155: - | N155: - | O155: - | P155: - | Q155: - | R155: - | S155: - | T155: - | U155: - | V155: - | W155: - | X155: - | Y155: - | Z155: - | AA155: - | AB155: - | AC155: - | AD155: - | AE155: 1581.9 | AF155: 18.9 | AG155: 16.09 | AH155: 12.55 | AI155: - | AJ155: - | AK155: - | AL155: - | AM155: - | AN155: - | AO155: - | AP155: 3 | AQ155: 特高 | AS155: e
B156: 150 | C156: 中部電力 | D156: 特別高圧業務用電力第１種70kV-プランＢ | E156: 中部電力特別高圧業務用電力第１種70kV-プランＢ | F156: 重負荷時間 | G156: 昼間時間 | H156: 夜間時間 | I156: - | K156: - | L156: - | M156: - | N156: - | O156: - | P156: - | Q156: - | R156: - | S156: - | T156: - | U156: - | V156: - | W156: - | X156: - | Y156: - | Z156: - | AA156: - | AB156: - | AC156: - | AD156: - | AE156: 1702.38 | AF156: 17.63 | AG156: 15.09 | AH156: 12.55 | AI156: - | AJ156: - | AK156: - | AL156: - | AM156: - | AN156: - | AO156: - | AP156: 3 | AQ156: 特高 | AS156: e
B157: 151 | C157: 中部電力 | D157: 特別高圧業務用電力第１種70kV-プランＣ | E157: 中部電力特別高圧業務用電力第１種70kV-プランＣ | F157: 重負荷時間 | G157: 昼間時間 | H157: 夜間時間 | I157: - | K157: - | L157: - | M157: - | N157: - | O157: - | P157: - | Q157: - | R157: - | S157: - | T157: - | U157: - | V157: - | W157: - | X157: - | Y157: - | Z157: - | AA157: - | AB157: - | AC157: - | AD157: - | AE157: 1856.38 | AF157: 16.83 | AG157: 14.45 | AH157: 12.55 | AI157: - | AJ157: - | AK157: - | AL157: - | AM157: - | AN157: - | AO157: - | AP157: 3 | AQ157: 特高 | AS157: e
B158: 152 | C158: 中部電力 | D158: 特別高圧業務用電力第２種70kV-プランＡ | E158: 中部電力特別高圧業務用電力第２種70kV-プランＡ | F158: 夏季 | G158: その他季 | H158: - | I158: - | K158: - | L158: - | M158: - | N158: - | O158: - | P158: - | Q158: - | R158: - | S158: - | T158: - | U158: - | V158: - | W158: - | X158: - | Y158: - | Z158: - | AA158: - | AB158: - | AC158: - | AD158: - | AE158: 1581.9 | AF158: 15.72 | AG158: 14.76 | AH158: - | AI158: - | AJ158: - | AK158: - | AL158: - | AM158: - | AN158: - | AO158: - | AP158: 2 | AQ158: 特高 | AS158: e
B159: 153 | C159: 中部電力 | D159: 特別高圧業務用電力第２種70kV-プランＢ | E159: 中部電力特別高圧業務用電力第２種70kV-プランＢ | F159: 夏季 | G159: その他季 | H159: - | I159: - | K159: - | L159: - | M159: - | N159: - | O159: - | P159: - | Q159: - | R159: - | S159: - | T159: - | U159: - | V159: - | W159: - | X159: - | Y159: - | Z159: - | AA159: - | AB159: - | AC159: - | AD159: - | AE159: 1702.38 | AF159: 15.03 | AG159: 14.14 | AH159: - | AI159: - | AJ159: - | AK159: - | AL159: - | AM159: - | AN159: - | AO159: - | AP159: 2 | AQ159: 特高 | AS159: e
B160: 154 | C160: 中部電力 | D160: 特別高圧業務用電力第２種70kV-プランＣ | E160: 中部電力特別高圧業務用電力第２種70kV-プランＣ | F160: 夏季 | G160: その他季 | H160: - | I160: - | K160: - | L160: - | M160: - | N160: - | O160: - | P160: - | Q160: - | R160: - | S160: - | T160: - | U160: - | V160: - | W160: - | X160: - | Y160: - | Z160: - | AA160: - | AB160: - | AC160: - | AD160: - | AE160: 1856.38 | AF160: 14.6 | AG160: 13.73 | AH160: - | AI160: - | AJ160: - | AK160: - | AL160: - | AM160: - | AN160: - | AO160: - | AP160: 2 | AQ160: 特高 | AS160: e
B161: 155 | C161: 中部電力 | D161: 特別高圧電力第１種20・30kV-プランＡ | E161: 中部電力特別高圧電力第１種20・30kV-プランＡ | F161: 重負荷時間 | G161: 昼間時間 | H161: 夜間時間 | I161: - | K161: - | L161: - | M161: - | N161: - | O161: - | P161: - | Q161: - | R161: - | S161: - | T161: - | U161: - | V161: - | W161: - | X161: - | Y161: - | Z161: - | AA161: - | AB161: - | AC161: - | AD161: - | AE161: 1635.33 | AF161: 18.8 | AG161: 16.04 | AH161: 12.7 | AI161: - | AJ161: - | AK161: - | AL161: - | AM161: - | AN161: - | AO161: - | AP161: 3 | AQ161: 特高 | AS161: e
B162: 156 | C162: 中部電力 | D162: 特別高圧電力第１種20・30kV-プランＢ | E162: 中部電力特別高圧電力第１種20・30kV-プランＢ | F162: 重負荷時間 | G162: 昼間時間 | H162: 夜間時間 | I162: - | K162: - | L162: - | M162: - | N162: - | O162: - | P162: - | Q162: - | R162: - | S162: - | T162: - | U162: - | V162: - | W162: - | X162: - | Y162: - | Z162: - | AA162: - | AB162: - | AC162: - | AD162: - | AE162: 1833.33 | AF162: 16.99 | AG162: 14.59 | AH162: 12.7 | AI162: - | AJ162: - | AK162: - | AL162: - | AM162: - | AN162: - | AO162: - | AP162: 3 | AQ162: 特高 | AS162: e
B163: 157 | C163: 中部電力 | D163: 特別高圧電力第２種20・30kV-プランＡ | E163: 中部電力特別高圧電力第２種20・30kV-プランＡ | F163: 夏季 | G163: その他季 | H163: - | I163: - | K163: - | L163: - | M163: - | N163: - | O163: - | P163: - | Q163: - | R163: - | S163: - | T163: - | U163: - | V163: - | W163: - | X163: - | Y163: - | Z163: - | AA163: - | AB163: - | AC163: - | AD163: - | AE163: 1635.33 | AF163: 15.6 | AG163: 14.65 | AH163: - | AI163: - | AJ163: - | AK163: - | AL163: - | AM163: - | AN163: - | AO163: - | AP163: 2 | AQ163: 特高 | AS163: e
B164: 158 | C164: 中部電力 | D164: 特別高圧電力第２種20・30kV-プランＢ | E164: 中部電力特別高圧電力第２種20・30kV-プランＢ | F164: 夏季 | G164: その他季 | H164: - | I164: - | K164: - | L164: - | M164: - | N164: - | O164: - | P164: - | Q164: - | R164: - | S164: - | T164: - | U164: - | V164: - | W164: - | X164: - | Y164: - | Z164: - | AA164: - | AB164: - | AC164: - | AD164: - | AE164: 1833.33 | AF164: 14.65 | AG164: 13.78 | AH164: - | AI164: - | AJ164: - | AK164: - | AL164: - | AM164: - | AN164: - | AO164: - | AP164: 2 | AQ164: 特高 | AS164: e
B165: 159 | C165: 中部電力 | D165: 特別高圧電力第１種70kV-プランＡ | E165: 中部電力特別高圧電力第１種70kV-プランＡ | F165: 重負荷時間 | G165: 昼間時間 | H165: 夜間時間 | I165: - | K165: - | L165: - | M165: - | N165: - | O165: - | P165: - | Q165: - | R165: - | S165: - | T165: - | U165: - | V165: - | W165: - | X165: - | Y165: - | Z165: - | AA165: - | AB165: - | AC165: - | AD165: - | AE165: 1593.43 | AF165: 18.53 | AG165: 15.81 | AH165: 12.55 | AI165: - | AJ165: - | AK165: - | AL165: - | AM165: - | AN165: - | AO165: - | AP165: 3 | AQ165: 特高 | AS165: e
B166: 160 | C166: 中部電力 | D166: 特別高圧電力第１種70kV-プランＢ | E166: 中部電力特別高圧電力第１種70kV-プランＢ | F166: 重負荷時間 | G166: 昼間時間 | H166: 夜間時間 | I166: - | K166: - | L166: - | M166: - | N166: - | O166: - | P166: - | Q166: - | R166: - | S166: - | T166: - | U166: - | V166: - | W166: - | X166: - | Y166: - | Z166: - | AA166: - | AB166: - | AC166: - | AD166: - | AE166: 1791.43 | AF166: 16.7 | AG166: 14.35 | AH166: 12.55 | AI166: - | AJ166: - | AK166: - | AL166: - | AM166: - | AN166: - | AO166: - | AP166: 3 | AQ166: 特高 | AS166: e
B167: 161 | C167: 中部電力 | D167: 特別高圧電力第２種70kV-プランＡ | E167: 中部電力特別高圧電力第２種70kV-プランＡ | F167: 夏季 | G167: その他季 | H167: - | I167: - | K167: - | L167: - | M167: - | N167: - | O167: - | P167: - | Q167: - | R167: - | S167: - | T167: - | U167: - | V167: - | W167: - | X167: - | Y167: - | Z167: - | AA167: - | AB167: - | AC167: - | AD167: - | AE167: 1593.43 | AF167: 15.38 | AG167: 14.44 | AH167: - | AI167: - | AJ167: - | AK167: - | AL167: - | AM167: - | AN167: - | AO167: - | AP167: 2 | AQ167: 特高 | AS167: e
B168: 162 | C168: 中部電力 | D168: 特別高圧電力第２種70kV-プランＢ | E168: 中部電力特別高圧電力第２種70kV-プランＢ | F168: 夏季 | G168: その他季 | H168: - | I168: - | K168: - | L168: - | M168: - | N168: - | O168: - | P168: - | Q168: - | R168: - | S168: - | T168: - | U168: - | V168: - | W168: - | X168: - | Y168: - | Z168: - | AA168: - | AB168: - | AC168: - | AD168: - | AE168: 1791.43 | AF168: 14.42 | AG168: 13.58 | AH168: - | AI168: - | AJ168: - | AK168: - | AL168: - | AM168: - | AN168: - | AO168: - | AP168: 2 | AQ168: 特高 | AS168: e
B169: 163 | C169: 中部電力 | D169: 特別高圧電力第１種140kV-プランＡ | E169: 中部電力特別高圧電力第１種140kV-プランＡ | F169: 重負荷時間 | G169: 昼間時間 | H169: 夜間時間 | I169: - | K169: - | L169: - | M169: - | N169: - | O169: - | P169: - | Q169: - | R169: - | S169: - | T169: - | U169: - | V169: - | W169: - | X169: - | Y169: - | Z169: - | AA169: - | AB169: - | AC169: - | AD169: - | AE169: 1551.52 | AF169: 18.32 | AG169: 15.65 | AH169: 12.25 | AI169: - | AJ169: - | AK169: - | AL169: - | AM169: - | AN169: - | AO169: - | AP169: 3 | AQ169: 特高 | AS169: e
B170: 164 | C170: 中部電力 | D170: 特別高圧電力第１種140kV-プランＢ | E170: 中部電力特別高圧電力第１種140kV-プランＢ | F170: 重負荷時間 | G170: 昼間時間 | H170: 夜間時間 | I170: - | K170: - | L170: - | M170: - | N170: - | O170: - | P170: - | Q170: - | R170: - | S170: - | T170: - | U170: - | V170: - | W170: - | X170: - | Y170: - | Z170: - | AA170: - | AB170: - | AC170: - | AD170: - | AE170: 1749.52 | AF170: 16.27 | AG170: 13.99 | AH170: 12.25 | AI170: - | AJ170: - | AK170: - | AL170: - | AM170: - | AN170: - | AO170: - | AP170: 3 | AQ170: 特高 | AS170: e
B171: 165 | C171: 中部電力 | D171: 特別高圧電力第２種140kV-プランＡ | E171: 中部電力特別高圧電力第２種140kV-プランＡ | F171: 夏季 | G171: その他季 | H171: - | I171: - | K171: - | L171: - | M171: - | N171: - | O171: - | P171: - | Q171: - | R171: - | S171: - | T171: - | U171: - | V171: - | W171: - | X171: - | Y171: - | Z171: - | AA171: - | AB171: - | AC171: - | AD171: - | AE171: 1551.52 | AF171: 15.16 | AG171: 14.24 | AH171: - | AI171: - | AJ171: - | AK171: - | AL171: - | AM171: - | AN171: - | AO171: - | AP171: 2 | AQ171: 特高 | AS171: e
B172: 166 | C172: 中部電力 | D172: 特別高圧電力第２種140kV-プランＢ | E172: 中部電力特別高圧電力第２種140kV-プランＢ | F172: 夏季 | G172: その他季 | H172: - | I172: - | K172: - | L172: - | M172: - | N172: - | O172: - | P172: - | Q172: - | R172: - | S172: - | T172: - | U172: - | V172: - | W172: - | X172: - | Y172: - | Z172: - | AA172: - | AB172: - | AC172: - | AD172: - | AE172: 1749.52 | AF172: 14.08 | AG172: 13.26 | AH172: - | AI172: - | AJ172: - | AK172: - | AL172: - | AM172: - | AN172: - | AO172: - | AP172: 2 | AQ172: 特高 | AS172: e
B173: 167 | C173: 北陸電力 | D173: 業務用特別高圧電力20kV・30kV | E173: 北陸電力業務用特別高圧電力20kV・30kV | F173: 夏季 | G173: その他季 | H173: - | I173: - | K173: - | L173: - | M173: - | N173: - | O173: - | P173: - | Q173: - | R173: - | S173: - | T173: - | U173: - | V173: - | W173: - | X173: - | Y173: - | Z173: - | AA173: - | AB173: - | AC173: - | AD173: - | AE173: 1567.5 | AF173: 12.28 | AG173: 11.32 | AH173: - | AI173: - | AJ173: - | AK173: - | AL173: - | AM173: - | AN173: - | AO173: - | AP173: 2 | AQ173: 特高 | AS173: e
B174: 168 | C174: 北陸電力 | D174: 業務用特別高圧電力60kV・70kV | E174: 北陸電力業務用特別高圧電力60kV・70kV | F174: 夏季 | G174: その他季 | H174: - | I174: - | K174: - | L174: - | M174: - | N174: - | O174: - | P174: - | Q174: - | R174: - | S174: - | T174: - | U174: - | V174: - | W174: - | X174: - | Y174: - | Z174: - | AA174: - | AB174: - | AC174: - | AD174: - | AE174: 1540 | AF174: 11.89 | AG174: 11 | AH174: - | AI174: - | AJ174: - | AK174: - | AL174: - | AM174: - | AN174: - | AO174: - | AP174: 2 | AQ174: 特高 | AS174: e
B175: 169 | C175: 北陸電力 | D175: 業務用特別高圧季節別時間帯別電力20kV・30kV | E175: 北陸電力業務用特別高圧季節別時間帯別電力20kV・30kV | F175: ピーク時間 | G175: 昼間時間夏季 | H175: 昼間時間その他季 | I175: 夜間時間 | K175: - | L175: - | M175: - | N175: - | O175: - | P175: - | Q175: - | R175: - | S175: - | T175: - | U175: - | V175: - | W175: - | X175: - | Y175: - | Z175: - | AA175: - | AB175: - | AC175: - | AD175: - | AE175: 1567.5 | AF175: 13.68 | AG175: 13.08 | AH175: 11.88 | AI175: 9.92 | AJ175: - | AK175: - | AL175: - | AM175: - | AN175: - | AO175: - | AP175: 4 | AQ175: 特高 | AS175: e
B176: 170 | C176: 北陸電力 | D176: 業務用特別高圧季節別時間帯別電力60kV・70kV | E176: 北陸電力業務用特別高圧季節別時間帯別電力60kV・70kV | F176: ピーク時間 | G176: 昼間時間夏季 | H176: 昼間時間その他季 | I176: 夜間時間 | K176: - | L176: - | M176: - | N176: - | O176: - | P176: - | Q176: - | R176: - | S176: - | T176: - | U176: - | V176: - | W176: - | X176: - | Y176: - | Z176: - | AA176: - | AB176: - | AC176: - | AD176: - | AE176: 1540 | AF176: 13.2 | AG176: 12.61 | AH176: 11.43 | AI176: 9.76 | AJ176: - | AK176: - | AL176: - | AM176: - | AN176: - | AO176: - | AP176: 4 | AQ176: 特高 | AS176: e
B177: 171 | C177: 北陸電力 | D177: 特別高圧電力20kV・30kV | E177: 北陸電力特別高圧電力20kV・30kV | F177: 夏季 | G177: その他季 | H177: - | I177: - | K177: - | L177: - | M177: - | N177: - | O177: - | P177: - | Q177: - | R177: - | S177: - | T177: - | U177: - | V177: - | W177: - | X177: - | Y177: - | Z177: - | AA177: - | AB177: - | AC177: - | AD177: - | AE177: 1567.5 | AF177: 11.63 | AG177: 10.75 | AH177: - | AI177: - | AJ177: - | AK177: - | AL177: - | AM177: - | AN177: - | AO177: - | AP177: 2 | AQ177: 特高 | AS177: e
B178: 172 | C178: 北陸電力 | D178: 特別高圧電力60kV・70kV | E178: 北陸電力特別高圧電力60kV・70kV | F178: 夏季 | G178: その他季 | H178: - | I178: - | K178: - | L178: - | M178: - | N178: - | O178: - | P178: - | Q178: - | R178: - | S178: - | T178: - | U178: - | V178: - | W178: - | X178: - | Y178: - | Z178: - | AA178: - | AB178: - | AC178: - | AD178: - | AE178: 1540 | AF178: 11.33 | AG178: 10.46 | AH178: - | AI178: - | AJ178: - | AK178: - | AL178: - | AM178: - | AN178: - | AO178: - | AP178: 2 | AQ178: 特高 | AS178: e
B179: 173 | C179: 北陸電力 | D179: 特別高圧電力140kV | E179: 北陸電力特別高圧電力140kV | F179: 夏季 | G179: その他季 | H179: - | I179: - | K179: - | L179: - | M179: - | N179: - | O179: - | P179: - | Q179: - | R179: - | S179: - | T179: - | U179: - | V179: - | W179: - | X179: - | Y179: - | Z179: - | AA179: - | AB179: - | AC179: - | AD179: - | AE179: 1512.5 | AF179: 10.98 | AG179: 10.14 | AH179: - | AI179: - | AJ179: - | AK179: - | AL179: - | AM179: - | AN179: - | AO179: - | AP179: 2 | AQ179: 特高 | AS179: e
B180: 174 | C180: 北陸電力 | D180: 特別高圧季節別時間帯別電力20kV・30kV | E180: 北陸電力特別高圧季節別時間帯別電力20kV・30kV | F180: ピーク時間 | G180: 昼間時間夏季 | H180: 昼間時間その他季 | I180: 夜間時間 | K180: - | L180: - | M180: - | N180: - | O180: - | P180: - | Q180: - | R180: - | S180: - | T180: - | U180: - | V180: - | W180: - | X180: - | Y180: - | Z180: - | AA180: - | AB180: - | AC180: - | AD180: - | AE180: 1567.5 | AF180: 13.09 | AG180: 12.52 | AH180: 11.13 | AI180: 9.92 | AJ180: - | AK180: - | AL180: - | AM180: - | AN180: - | AO180: - | AP180: 4 | AQ180: 特高 | AS180: e
B181: 175 | C181: 北陸電力 | D181: 特別高圧季節別時間帯別電力60kV・70kV | E181: 北陸電力特別高圧季節別時間帯別電力60kV・70kV | F181: ピーク時間 | G181: 昼間時間夏季 | H181: 昼間時間その他季 | I181: 夜間時間 | K181: - | L181: - | M181: - | N181: - | O181: - | P181: - | Q181: - | R181: - | S181: - | T181: - | U181: - | V181: - | W181: - | X181: - | Y181: - | Z181: - | AA181: - | AB181: - | AC181: - | AD181: - | AE181: 1540 | AF181: 12.66 | AG181: 12.11 | AH181: 10.79 | AI181: 9.76 | AJ181: - | AK181: - | AL181: - | AM181: - | AN181: - | AO181: - | AP181: 4 | AQ181: 特高 | AS181: e
B182: 176 | C182: 北陸電力 | D182: 特別高圧季節別時間帯別電力140kV | E182: 北陸電力特別高圧季節別時間帯別電力140kV | F182: ピーク時間 | G182: 昼間時間夏季 | H182: 昼間時間その他季 | I182: 夜間時間 | K182: - | L182: - | M182: - | N182: - | O182: - | P182: - | Q182: - | R182: - | S182: - | T182: - | U182: - | V182: - | W182: - | X182: - | Y182: - | Z182: - | AA182: - | AB182: - | AC182: - | AD182: - | AE182: 1512.5 | AF182: 12.19 | AG182: 11.66 | AH182: 10.37 | AI182: 9.54 | AJ182: - | AK182: - | AL182: - | AM182: - | AN182: - | AO182: - | AP182: 4 | AQ182: 特高 | AS182: e
B183: 177 | C183: 関西電力 | D183: 特別高圧電力Ａ－ＴＯＵ20・30kV | E183: 関西電力特別高圧電力Ａ－ＴＯＵ20・30kV | F183: 重負荷時間 | G183: 昼間時間 | H183: 夜間時間 | I183: - | K183: - | L183: - | M183: - | N183: - | O183: - | P183: - | Q183: - | R183: - | S183: - | T183: - | U183: - | V183: - | W183: - | X183: - | Y183: - | Z183: - | AA183: - | AB183: - | AC183: - | AD183: - | AE183: 1721.5 | AF183: 17.44 | AG183: 12.71 | AH183: 9.44 | AI183: - | AJ183: - | AK183: - | AL183: - | AM183: - | AN183: - | AO183: - | AP183: 3 | AQ183: 特高 | AS183: e
B184: 178 | C184: 関西電力 | D184: 特別高圧電力Ａ－ＴＯＵ70kV | E184: 関西電力特別高圧電力Ａ－ＴＯＵ70kV | F184: 重負荷時間 | G184: 昼間時間 | H184: 夜間時間 | I184: - | K184: - | L184: - | M184: - | N184: - | O184: - | P184: - | Q184: - | R184: - | S184: - | T184: - | U184: - | V184: - | W184: - | X184: - | Y184: - | Z184: - | AA184: - | AB184: - | AC184: - | AD184: - | AE184: 1677.5 | AF184: 17.12 | AG184: 12.49 | AH184: 9.21 | AI184: - | AJ184: - | AK184: - | AL184: - | AM184: - | AN184: - | AO184: - | AP184: 3 | AQ184: 特高 | AS184: e
B185: 179 | C185: 関西電力 | D185: 特別高圧電力Ａ20・30kV | E185: 関西電力特別高圧電力Ａ20・30kV | F185: 夏季 | G185: その他季 | H185: - | I185: - | K185: - | L185: - | M185: - | N185: - | O185: - | P185: - | Q185: - | R185: - | S185: - | T185: - | U185: - | V185: - | W185: - | X185: - | Y185: - | Z185: - | AA185: - | AB185: - | AC185: - | AD185: - | AE185: 1721.5 | AF185: 12.7 | AG185: 11.73 | AH185: - | AI185: - | AJ185: - | AK185: - | AL185: - | AM185: - | AN185: - | AO185: - | AP185: 2 | AQ185: 特高 | AS185: e
B186: 180 | C186: 関西電力 | D186: 特別高圧電力Ａ70kV | E186: 関西電力特別高圧電力Ａ70kV | F186: 夏季 | G186: その他季 | H186: - | I186: - | K186: - | L186: - | M186: - | N186: - | O186: - | P186: - | Q186: - | R186: - | S186: - | T186: - | U186: - | V186: - | W186: - | X186: - | Y186: - | Z186: - | AA186: - | AB186: - | AC186: - | AD186: - | AE186: 1677.5 | AF186: 12.45 | AG186: 11.51 | AH186: - | AI186: - | AJ186: - | AK186: - | AL186: - | AM186: - | AN186: - | AO186: - | AP186: 2 | AQ186: 特高 | AS186: e
B187: 181 | C187: 関西電力 | D187: 特別高圧電力Ｂ－ＴＯＵ20・30kV | E187: 関西電力特別高圧電力Ｂ－ＴＯＵ20・30kV | F187: 重負荷時間 | G187: 昼間時間 | H187: 夜間時間 | I187: - | K187: - | L187: - | M187: - | N187: - | O187: - | P187: - | Q187: - | R187: - | S187: - | T187: - | U187: - | V187: - | W187: - | X187: - | Y187: - | Z187: - | AA187: - | AB187: - | AC187: - | AD187: - | AE187: 1853.5 | AF187: 16.05 | AG187: 11.74 | AH187: 9.44 | AI187: - | AJ187: - | AK187: - | AL187: - | AM187: - | AN187: - | AO187: - | AP187: 3 | AQ187: 特高 | AS187: e
B188: 182 | C188: 関西電力 | D188: 特別高圧電力Ｂ－ＴＯＵ70kV | E188: 関西電力特別高圧電力Ｂ－ＴＯＵ70kV | F188: 重負荷時間 | G188: 昼間時間 | H188: 夜間時間 | I188: - | K188: - | L188: - | M188: - | N188: - | O188: - | P188: - | Q188: - | R188: - | S188: - | T188: - | U188: - | V188: - | W188: - | X188: - | Y188: - | Z188: - | AA188: - | AB188: - | AC188: - | AD188: - | AE188: 1809.5 | AF188: 15.58 | AG188: 11.44 | AH188: 9.21 | AI188: - | AJ188: - | AK188: - | AL188: - | AM188: - | AN188: - | AO188: - | AP188: 3 | AQ188: 特高 | AS188: e
B189: 183 | C189: 関西電力 | D189: 特別高圧電力Ｂ20・30kV | E189: 関西電力特別高圧電力Ｂ20・30kV | F189: 夏季 | G189: その他季 | H189: - | I189: - | K189: - | L189: - | M189: - | N189: - | O189: - | P189: - | Q189: - | R189: - | S189: - | T189: - | U189: - | V189: - | W189: - | X189: - | Y189: - | Z189: - | AA189: - | AB189: - | AC189: - | AD189: - | AE189: 1853.5 | AF189: 11.81 | AG189: 10.94 | AH189: - | AI189: - | AJ189: - | AK189: - | AL189: - | AM189: - | AN189: - | AO189: - | AP189: 2 | AQ189: 特高 | AS189: e
B190: 184 | C190: 関西電力 | D190: 特別高圧電力Ｂ70kV | E190: 関西電力特別高圧電力Ｂ70kV | F190: 夏季 | G190: その他季 | H190: - | I190: - | K190: - | L190: - | M190: - | N190: - | O190: - | P190: - | Q190: - | R190: - | S190: - | T190: - | U190: - | V190: - | W190: - | X190: - | Y190: - | Z190: - | AA190: - | AB190: - | AC190: - | AD190: - | AE190: 1809.5 | AF190: 11.49 | AG190: 10.63 | AH190: - | AI190: - | AJ190: - | AK190: - | AL190: - | AM190: - | AN190: - | AO190: - | AP190: 2 | AQ190: 特高 | AS190: e
B191: 185 | C191: 中国電力 | D191: 特別高圧電力Ａ20kV | E191: 中国電力特別高圧電力Ａ20kV | F191: 夏季 | G191: その他季 | H191: - | I191: - | K191: - | L191: - | M191: - | N191: - | O191: - | P191: - | Q191: - | R191: - | S191: - | T191: - | U191: - | V191: - | W191: - | X191: - | Y191: - | Z191: - | AA191: - | AB191: - | AC191: - | AD191: - | AE191: 1710.5 | AF191: 11.72 | AG191: 10.71 | AH191: - | AI191: - | AJ191: - | AK191: - | AL191: - | AM191: - | AN191: - | AO191: - | AP191: 2 | AQ191: 特高 | AS191: e
B192: 186 | C192: 中国電力 | D192: 特別高圧電力Ａ60kV | E192: 中国電力特別高圧電力Ａ60kV | F192: 夏季 | G192: その他季 | H192: - | I192: - | K192: - | L192: - | M192: - | N192: - | O192: - | P192: - | Q192: - | R192: - | S192: - | T192: - | U192: - | V192: - | W192: - | X192: - | Y192: - | Z192: - | AA192: - | AB192: - | AC192: - | AD192: - | AE192: 1694 | AF192: 11.61 | AG192: 10.62 | AH192: - | AI192: - | AJ192: - | AK192: - | AL192: - | AM192: - | AN192: - | AO192: - | AP192: 2 | AQ192: 特高 | AS192: e
B193: 187 | C193: 中国電力 | D193: 特別高圧ＴＯＵＡ20kV | E193: 中国電力特別高圧ＴＯＵＡ20kV | F193: ピーク時間 | G193: 昼間時間夏季 | H193: 昼間時間その他季 | I193: 夜間時間 | K193: - | L193: - | M193: - | N193: - | O193: - | P193: - | Q193: - | R193: - | S193: - | T193: - | U193: - | V193: - | W193: - | X193: - | Y193: - | Z193: - | AA193: - | AB193: - | AC193: - | AD193: - | AE193: 1710.5 | AF193: 14.7 | AG193: 12.29 | AH193: 11.51 | AI193: 9.36 | AJ193: - | AK193: - | AL193: - | AM193: - | AN193: - | AO193: - | AP193: 4 | AQ193: 特高 | AS193: e
B194: 188 | C194: 中国電力 | D194: 特別高圧ＴＯＵＡ60kV | E194: 中国電力特別高圧ＴＯＵＡ60kV | F194: ピーク時間 | G194: 昼間時間夏季 | H194: 昼間時間その他季 | I194: 夜間時間 | K194: - | L194: - | M194: - | N194: - | O194: - | P194: - | Q194: - | R194: - | S194: - | T194: - | U194: - | V194: - | W194: - | X194: - | Y194: - | Z194: - | AA194: - | AB194: - | AC194: - | AD194: - | AE194: 1694 | AF194: 14.55 | AG194: 12.17 | AH194: 11.41 | AI194: 9.26 | AJ194: - | AK194: - | AL194: - | AM194: - | AN194: - | AO194: - | AP194: 4 | AQ194: 特高 | AS194: e
B195: 189 | C195: 中国電力 | D195: 特別高圧電力Ｂ20kV | E195: 中国電力特別高圧電力Ｂ20kV | F195: 夏季 | G195: その他季 | H195: - | I195: - | K195: - | L195: - | M195: - | N195: - | O195: - | P195: - | Q195: - | R195: - | S195: - | T195: - | U195: - | V195: - | W195: - | X195: - | Y195: - | Z195: - | AA195: - | AB195: - | AC195: - | AD195: - | AE195: 1710.5 | AF195: 11 | AG195: 10.07 | AH195: - | AI195: - | AJ195: - | AK195: - | AL195: - | AM195: - | AN195: - | AO195: - | AP195: 2 | AQ195: 特高 | AS195: e
B196: 190 | C196: 中国電力 | D196: 特別高圧電力Ｂ60kV | E196: 中国電力特別高圧電力Ｂ60kV | F196: 夏季 | G196: その他季 | H196: - | I196: - | K196: - | L196: - | M196: - | N196: - | O196: - | P196: - | Q196: - | R196: - | S196: - | T196: - | U196: - | V196: - | W196: - | X196: - | Y196: - | Z196: - | AA196: - | AB196: - | AC196: - | AD196: - | AE196: 1694 | AF196: 10.88 | AG196: 9.96 | AH196: - | AI196: - | AJ196: - | AK196: - | AL196: - | AM196: - | AN196: - | AO196: - | AP196: 2 | AQ196: 特高 | AS196: e
B197: 191 | C197: 中国電力 | D197: 特別高圧電力Ｂ100kV | E197: =C197&D197 -> 中国電力特別高圧電力Ｂ100kV | F197: 夏季 | G197: その他季 | H197: - | I197: - | K197: - | L197: - | M197: - | N197: - | O197: - | P197: - | Q197: - | R197: - | S197: - | T197: - | U197: - | V197: - | W197: - | X197: - | Y197: - | Z197: - | AA197: - | AB197: - | AC197: - | AD197: - | AE197: 1661 | AF197: 10.7 | AG197: 9.79 | AH197: - | AI197: - | AJ197: - | AK197: - | AL197: - | AM197: - | AN197: - | AO197: - | AP197: 2 | AQ197: 特高 | AS197: e
B198: 192 | C198: 中国電力 | D198: 特別高圧ＴＯＵＢ20kV | E198: 中国電力特別高圧ＴＯＵＢ20kV | F198: ピーク時間 | G198: 昼間時間夏季 | H198: 昼間時間その他季 | I198: 夜間時間 | K198: - | L198: - | M198: - | N198: - | O198: - | P198: - | Q198: - | R198: - | S198: - | T198: - | U198: - | V198: - | W198: - | X198: - | Y198: - | Z198: - | AA198: - | AB198: - | AC198: - | AD198: - | AE198: 1710.5 | AF198: 13.84 | AG198: 11.57 | AH198: 10.56 | AI198: 9.36 | AJ198: - | AK198: - | AL198: - | AM198: - | AN198: - | AO198: - | AP198: 4 | AQ198: 特高 | AS198: e
B199: 193 | C199: 中国電力 | D199: 特別高圧ＴＯＵＢ60kV | E199: 中国電力特別高圧ＴＯＵＢ60kV | F199: ピーク時間 | G199: 昼間時間夏季 | H199: 昼間時間その他季 | I199: 夜間時間 | K199: - | L199: - | M199: - | N199: - | O199: - | P199: - | Q199: - | R199: - | S199: - | T199: - | U199: - | V199: - | W199: - | X199: - | Y199: - | Z199: - | AA199: - | AB199: - | AC199: - | AD199: - | AE199: 1694 | AF199: 13.7 | AG199: 11.45 | AH199: 10.44 | AI199: 9.26 | AJ199: - | AK199: - | AL199: - | AM199: - | AN199: - | AO199: - | AP199: 4 | AQ199: 特高 | AS199: e
B200: 194 | C200: 中国電力 | D200: 特別高圧ＴＯＵＢ100kV | E200: 中国電力特別高圧ＴＯＵＢ100kV | F200: ピーク時間 | G200: 昼間時間夏季 | H200: 昼間時間その他季 | I200: 夜間時間 | K200: - | L200: - | M200: - | N200: - | O200: - | P200: - | Q200: - | R200: - | S200: - | T200: - | U200: - | V200: - | W200: - | X200: - | Y200: - | Z200: - | AA200: - | AB200: - | AC200: - | AD200: - | AE200: 1661 | AF200: 13.44 | AG200: 11.24 | AH200: 10.26 | AI200: 9.12 | AJ200: - | AK200: - | AL200: - | AM200: - | AN200: - | AO200: - | AP200: 4 | AQ200: 特高 | AS200: e
... 21 more rows
